Workbook

Sheet CB_DATA_ (hidden)
A1: Crystal Ball Data
P2: =_xll.CB.RecalcCounterFN() -> 
A3: Workbook Variables | B3: Last Var Column | C3: 0
A4: Name:
A5: Value:
A7: Worksheet Data | B7: Last Data Column Used
B8: 3
A10: Sheet Ref
A11: =CB_DATA_!#REF! ->  | B11: ='Financial Model'!#REF! ->  | C11: ='User Interface'!#REF! -> 
A13: Sheet Guid
A14: 0c59c1eb-133d-429c-9a5e-3e60152125eb | B14: 8860a6ec-422b-400e-9de7-87ce88be893b | C14: 5b744d1d-9c5e-4843-a4dc-e14658bbfe39
A16: Deleted sheet count
A19: Last row used
A20: 34 | B20: 52 | C20: 26
A25: Data blocks
A26: CB_Block_0 | B26: CB_Block_7.0.0.0:8
A27: 㜸〱敤㕣㕢㙣ㅣ㔷ㄹ摥㌳摥㕤敦慣敤搸㡤㤳戶㈹愵㌵㉤愵㔰〷㌷㑥㥢㤶〲㈱昸搲㕣㡡ㄳ扢戱㤳㠲〰㙤挶扢㘷攲㘹㜶㘶摣㤹㔹挷㉥㤵㕡㐱换㐵摣愴㜲ㄱ㉤攵㔶〱ㄲ㉦㕣㕥戸扦㈰㈱㠱㔰㤱㜸㠰〷〴て〵㈱㜸〰愱㐸扣昰㠰〴摦㜷㘶㘶㜷㘶搷㍢㜶户㉤戸挸㈷摤摦㘷捥㙤捥㌹晦昵晣晦㤹收㐴㉥㤷晢㌷ㄲ晦㌲攵㤹戹㝥㜱挳て愴㍤㌱攳搶敢戲ㅡ㔸慥攳㑦㑣㜹㥥戱㌱㘷昹㐱ㅦㅡㄴ㉢ㄶ敡晤㐲挵户ㅥ㤶愵捡㥡昴㝣㌴㉡攴㜲愵㤲慥愱㥥㠳昰㌷ㄲ㍦攸散㌵㤸〷㔸㥡㤹㥥㕦㝥㄰愳㉥〶慥㈷て㡥㥤て晢ㅥ㥤㥣㥣㤸㥣戸昳敥挹扢㈶づㅤㅣ㥢㘹搴㠳㠶㈷㡦㍡戲ㄱ㜸㐶晤攰搸㐲㘳戹㙥㔵摦㈱㌷㤶摣㑢搲㌹㉡㤷て摤戱㙣摣昹愶挹㍢㡦ㅣ㌱敦戹攷㑤㠳㜸㜵敥捣捣昴㠲㈷㑤晦㈵ㅡ戳挰㈹摦㌹㉢慢ㄶ搷㈶愵㘷㌹ㄷ㈷㘶愶昱㕦㘲晥㜸扡㝢㘲㜱㐵捡㠰慦㤶㥥㜴慡搲搷搱㜱挰㥥昲晤㠶扤捡捤搳敤攳㔸㙡搵昰㠳㠲㍤㈳敢㜵摤㡥㐷㉤搹昳搸扢扡戱㌱㘸㉦㑡挷户〲㙢捤ち㌶㡡昶ㄲ〶慡つ搹攷㝣㜹搶㜰㉥捡㌳㠶㉤ぢ昶㠹㠶㔵换㠷㈹搷㜷㙢㍣㐴㜲㘲㙡昹ㄳ㔳扥㍤戳㘲㜸㙡㐶㍥㌷㈶愳敤㜱慦㥡㙥㝢㜳昷㜱㌹㜵昵〶㡥㜹㑢昷㜶愸㌹㙦㜸捤㤶攳摤㕢㐶㡢㑦捦攰昶敥敤ㄳ㝢㤴敥昳㠶敥㝤搴㔶愶㕢㡢㠱㠸扥搵㡥㘲㌱㝡㤱愰㥦愰㐴㐰〴敡㘵㠲〱㠲㐱〰㤱晦〷戸㈴搹㤱㔵㕡挵搰㉡换㕡愵慡㔵㙡㕡㐵㙡ㄵ㔳慢㕣搴㉡㉢㕡挵搲㉡て㙡㤵㑢㘸ㄳ愷㔲㝦扦ㄶ愵慦慥㍦㍤㜴搷散㔷愶扥昶扢晤〷㥥㥣晦搱㠹挱㍤㘸㜴㝦㌴愹㔹捦戸っ㔲㙢㔱昱攱㠹㐳晣户㌵㔷㠰㈹捣㈳收摤收攴㘴敤挸㈱攳づ愳挰㘵㘵㈰㍦㐵㈸㈳㘸㍢㘸㍥㘰㌹㌵昷戲挲摤昵搳㠶㉦㕢ㅢ㌷ㅥ搵㑤扢つ愷收扦㙡昳捡挵挰〸攴㜵敤㜵慤㐱㍡扡㉤㠲慤愴慦摥㜷㐳㝢户昳㐶扤㈱愷搶慤戰晡搵㙤搵昶㠲攷㉥㜷慦㍤敥挹㠷㥡戵ㅤ㌳㥡㠲㔰㕢㔳㘳㜷慣㌲慣ち攷㌵㌶戳攲晡搲㔱搳ㅢ户ㄷ慣敡㈵改㉤㑡㡡㐴㔹㔳㑢摤捦慡㠸敢挷攷ㅤ㉣ㄴ摣㕡扢㈹㔹㙡摥扢ㅥ㠰㤹㘵つ昳㕤㤵㕥戰戱㘴㉣搷攵搵愹㈶攱㍢㔱㜱㈰㔵㝣摣慤㌶晣ㄹ搷〹㍣户㥥慥㤹慡慤ㄹ㤰㌴戵搳㙥㑤收昳㌹㈵ㄴ㈰㜰晢晡㠴挸摤搶㥤ㄷㄴ㈲ㄲ㈸㈶㈳㕦㥢㈶扢㠹戳㔸ㅤ㔶㔱㤷愴㐹敤戵㕢っ挶昹㉡ㄹ㤳挱㠱㠹㌵㔱㝦昰愵慦摦㘲搸㈶收㕥摥挶㥡㌶ㅡ慤晥摥㌵改〴㈷つ愷㔶㤷㕥愶昶ㄳ㥣㤱㍥っ㔰戸〲㠱搰㜵昷愸敡挴扡搸㈸㕣戶㙡挱㑡㜱㐵㕡ㄷ㔷〲㤴㐱㐳㤶㑡摣摡㡥愴㕦㠵㈲㝤㉦挱㈸㐰戹㥣㉢敥㘳愳㘲ㄹ㈹㔷愰㜴捡攰攵㤴㈰㘷扦ㄴ㉦て㥡挷慤㝡㈰㐳愱㍣㙣〲㈳愱㔶㔳攸ㅢ㈲㠹㝡㐶㌵㔴ㄸ晢捣ㄹ㔰愹㘱㌹挱㐶㡢㙦㍢戸㈴㈴愲㕤㔹戰攳㘴〱㐵㐱㕡ㅥ㘴昰ㅡ㠸愶㑤ㅡ㘴㌷㑥㄰ㄱ搹㈰㐳戳㘳攴㌴㤱戱㝤㠶㡣㐰晢㈴ㄱ戲昵愱敥㌲㠲挴摥㐹愴散搴㤵ㅦ㜷愵搹㘶戶㝣㈸捤昶㘳攳昴慢〹慥㈱戸㤶攰〰㠰昸㌳㈴ㅣ愵ㅣ昲改愴扦ち捦晡昵〴慦〶㠰㝣搲㈹㜳㈲㔱㐵ㅢ㙡㍢㜶㈴摢つ挱㑥㔶㐶㜱㈸㡡㘸ㄹ㌷敤捣㈱㕢㈱㍡戲㍡㜷㠶慥捤㉢ㅤ晢扡敥戴㤹㕣づ㈹㌲愳㘹㜲慤㕢㌴㑤㙥〴㥢昶愸户㙥㐴㔷㝤㡣攰㌵〰㘵晤㈶㐲㈸ㄷㅡ扣摢戳攸㘹㔲扥㈲捣愲搰ㄸ敡㔱挱㐷㠴捣㈳㐰㠶㤰敢㌸扥散摡搰㌴〷挷捤㔷扣つ㝤戰㍢㝦㐷㐸㙦搳㥢扢㝡㠷晥愲ㄷ㘸㐵摦っ昶ㄲ扦敦慡㘳㙥㐱戵晥㍡㠲㕢〱摡㜴っ㑦摦㉦搴㔳愰捣㘲㍢㠱戹扤昴扡㈸㉢㜷㘹㘳㔵㉡つ㌴㘸㉥ㄹ摥㐵ㄹ挰㠳㜱㙡ㄶ戶戰敢㜹戲㡥㐳㙤㑤ㄵ昰晣㜲㑤扡搰㍦敥戹㌶换㜷㙤㘴晦ㄵ愱ㄸ昲㜹慤㉦搷㘶㈳㘷搸㥡〹㥦㔳㠲㜲愸㠳敦攸㉥㈴ㄲ㥤搲攴挵㝥搹攷换㕤㐹搲㠳㈴㜹〳戶㔵扦つ〰㔲㐲晣愶慢㐴㌹挸㘶㙦㔴捤搲ㄶ㉢㍤㝣ㄹ愷㤳㌶ㅦ㘲㠷ㅣㄹ〸ㅤ戶搳昰ㅦ昸㐳昶愲㘵㌷㠵挵㠰扤㈰扤㉡㝣ぢ㔶㕤㤶㐳户㉣㐵捤慥慣㜸㠵挸㡡扥扥㡥昳㜴㠶㝦㑤搱㐹㥢㤴挸攴昶捣捡㡣戳㜸㡢愸攸㠶愴㔰挹㜰つ㌵㈵㄰㈹㡦㙤㜷㐵㑣て㈲收㜶㙣㥣㝥㠸㘰㤲攰㌰㐰攱㤷㤰㌴摢摤㜸㠶挳晡搷攸搲慥㔴㜲㈵愲㐱戹〸㥦敢㉡慣㡥昰㌵㜷ㄱ摣つ搰㘶晥搰〱㤹㐱㠸ち攵〹㐲㔴㘱っ昳扣㈵㉦㤳〶昶㤸〸㉣捤㌴晣挰戵ㄹ㔹ㅡ㌲㘷摤㌳㙥㌰㙢昹慢㠸㐴㡤㥡㔱收㠱ㄵ改㠰扡㍣搸㍥㙤㘵敥敡慡慣改收愲摢㠰㘸㍢㌵扢ㄳづ收搸づ搸㤲敡㙣慥〹愴摥捥挷ㄸ㐲㘰愷㤵扦㤵摥搸㙤㜹扦㜹攸ㅢ㙥敤攸㤲ㄵ搴攵㠰ㄹ㌲ㅤ昳㈵ㄳ扢㠸挸㐱慤摦㕣㕡昱愴㥣ㅤ㌲㑦㜸㔶慤㙥㌹㤲挸㠰㡤挹㘰摤㥣扣㠸㈸挱㠲换ㄸ愰敢っ㤹㑢㥥攱昸慢〶〳㡡ㅢ㝢㔳㑦㉡㉣㔲㌰愷㉤挷挷㙢ㄴㄶ㤹ㅦ㌶ㄷ㔷摣换㠸搸㌶㙣攷㠴戱敡敦〸慣㤰攸挳愴㔰㈳㌴愱㘹愲愴㤵㝡挵てて攴戹ㅣ㜹㉦㑦愰㜰㤵㉢搰㘷㥥愱扤㘹搷㐷㌱ㅡ摡改㥣搳㈰愲㐷捤挲扥㑣㈹㑣㑥搵敦㘱㥦㌷〳摣㜷攲摣愹㔶㘴敥㐵挵慣ぢ昴昲㘷挸㜸㐵ㄶ捤㐰〸㝤㜴㝢㐲㔲㘱ㄹ㈹〷ㅣ〸㡣昳愹㥤晣捡愶㙡㐳敡摢搳捡ㅥ㐷㈴㘹搰㥣㌳㤶㘵ㅤ昱㘸摢〸昶㠴て㌴㘳㙤愳敥㐷㜵㌳慥㙤ㅢ㈴㉤㤲攵㘲搵㈰〵㑦㌵〲昷戴攵攸㈶㠰愲扦愸挸㔸㐷㤱戱慥㡡〶捤戳っつ慡㍣挷㜲㉦ㅡ㥥ㄵ慣搸㔶戵挴〷㠶敦㜶〴㑤㠲挹㈹㜹攳ㄴ换㡣戱㌶㙢晥ㅣ㑣㌶㝦〲攸㥥㠰ㅣ攵搶ㄱ晤愰㕣㑤ㄴ昱㑦昴攸㔸㠲㠰㔱㥥㔲晤慤ㄸ慤愰㙥㐷㐰攴愸㜴㈵扥㠳㜱攵㔱㤴㠴㐲㠸㔸捦㈰ㄱ㜸〵ㄳ㐲㥥㉥敥愲㜹捥戱〲㘰㡦ㄸ㍢㙥〵戳㍥㔰づ㠰慣㍡摥㕥愷戰㥡攸㌴摥搴ち㌷㜶㔶愵搴挴つ㥤昵㐹扤昱摡㑤慡㐳㡤㤲㔰㈴㕢㌵㔲㥡㘵㤳㌹敥㈴㔵㈳㤴攲㡥戵㡤挸㜲㥢戶昶㥤㔲攴㐵㈸㈶㐵㌳㌹晤㙤㡡㔰㄰攸㡤㜴ㄴ㝤昶搹攴㤱㠸搸搰〶㈸㔳㑦㠵㘵㐳㔱㐸昰ㄴ慥㥤搴㘴㌹㝡〲㝦敦㠹戲昳㡤㈰㔵㘳慣㡦㐶㌵㔳昵晡扣〳㉢愱㙡㜸戵ㅤ挲搲㔸㕢愸㘱ㄴ㜷昶慡晤挳敤㑤㌰㘲挴㠶っ㡢㘴昸㠱挱㠶㘰慥㐴㐴㤵搶搹㄰户扡㔹㕣攲搳㘹㘹㌸ち〳㡢㐱㙤㔶慥㈹㌳慣㘵挹㡦慡づ捤搳愲㤲愳扡㌹戵散㐳愵〷㤴攳㔱㑥㌱戸㙥㥥愵㕢ち㤷ㄸ㈰㜶愳摣㐲㌵㐰㘸户㌹〰㑦〶㍢〷㍢搸㤱㌰㜴㐲敢㡣ㄲ戴㤸㐱戸改㐵㤰㜷㝡挴㈸〴愹愹搲摦㡦㠹愷㥦㘲晡挶戱㕣㥣㠹㤸㠸攱慥っ敢〱挸㑤㐶㈶挹㐵愳㜱挰㍣㤴㙣㑡㘸つ挶㘵㌴㌱㠶㘸昲㜹〱㙥昱㌰㤶㌵㑣戶愹攳㥥㕢㘰㐱㥢搶㌷昶㤸愷㥣㙡扤㔱㤳㑡ㄵ挷戲㕡㘹攴ㅤ㠱㉦㜵〵㌰攴愶㡣㝤㠹㌶攵ㄴ㡥㔲㕣㌲㤱搴扢摤慤ㅦ㐳㜷㈵攴㌰㐶愸晡ㄸ㠰捣㜰换愹㠰㔸挷㍤〵摡㠷㝢㕢ㄷㄸ搴攵㌹㠸戴㡥㈲捡戲㌹摣挷㙢㐶㤱ㄵ户㈵㥡捤戹㜳㉥㙤昶㐴搱㐹㉢㉣摡ㄱ㌸挲㍡㐳㠱㔷㉣挲ㄸ改㤱㍢㌸㐸敥㑡ㄴ摤扤昲愸㝡捣㕤〱㉡ㄴ〶〴㘳扣㍣〵攵戰慢㘰㈴ㅡ摣㕡换敡ㄶ㡣晥搲昲搶愷〰〴挳挰㌴㘸搱㌲㌴㜰㘶㤰摦摡挰戹ㄱ慤㌲㈲愴挹㘰㉡㘳㤴愳㜰搸〳㘹攰㈶ㅥ愴㤷㕣㈸愱㘰㥦扡ㄸㄶ摦㑤ㅣ户㜱〴㜲扤慢摢ちㄷ㡣〰搷㕦㥣〳㙤挵㔳戵ㅡ捤㕤昸攷㜶〴㔶㜱㜵㈳㌴㐷昷戵㕤捡㔲㙢愲㝤㜷㜳㕢㐵㜴㔹昰昰散挴㐹㈳愸慥㉣〶ㅢ攱挵慤㕥㐹愲昰㘳昸㈳㌶㝤㍢㙤收扣挳㡢愸㙢摣晢昲㈵挷扤散愸㜹ㄵ㝣摥晡〳㠵攰ち㘵㍦㈷㔹捥晤ㅢ晦㔴搲㜲㠵ㅦ㘱挴敤㑣㥢〳戴ㅣ㈴ㅣ㐷愵㔰ㅡ㡣㈱㥦㐱㈷戰摤㥢户〶㐸㈷晢摡攸㐴〹㠲㕤㐲㜱㉥扥㘴㠴㈲㝥〸戴㤲㔸挲㈳㌹昶晣敢㘰㝤昱〳㤴㄰攱㜸㡥挴㐸攱㌵挸㘵愰㑥〹昲攸㡡〷㉦㠴晣晦㘰㈹收收㑤搹改扦挰捣攲晢敤㈸扡㠱㈸晡㕥〷㡡〴慦㠱㈸晥扤て㤹㌸ㄵㄸ㥥㝤㐱㠱㜰慥㘹昷〰晡戲㕦昸晤ㅦㅥ㐰攷㈲攲㔰㌶ㅡ㐲㙤户攰戹㘹㈲昴㜵㤸〸っ摥㉢ㄳ攱㌴㌲㠲㔱晣搰㐴㠸㝣㈰昳㈸搸摡㐴㘰㙣㉦挳㄰㑣㠴㕡ㄳ㙥つ㥥挰慥戶改ㅦ㍢㠹㡢户搲㐷㍣ㅦ㑡换㥦㠱㐷敡㥡捥攲〵挳㌳散〳慡晣㠴㈷愱捣扣㈵摣攴㔶㕤搸攳扡㑤㙢㔴愷㑤㝣ㄵ戱㤷㝤搷㥦戲扤晢敢挰㔴㤸㐲昷扤㈸㠹攲㡢昰㤴〸㥥ㅢ㜲敦摢昷捤ㄳ㝦㜸昸昱㘳扣慤ㄶ搱㙡攱㌶攴㝢〹搹搳㥥㐰㔰㌷㜱㔱㘴㍦㍦捣㌹㡤㑦㤴慣搵扡㥣㌶㍣㘵〵昹扡ㅤ㘷㐳挲㑢㄰㘶㐸㝣㍢挱挴挴扤㠷搰挴㥣㘸㜳㜷慡て㥢㤴㡢㜰㈲㌱㜱攵搳㡢挳㠶愲慢㈲敢搱摡㉣㝣ㅢ慡攸〵㑥㈴㙤㈵昲搴挹㈴挴户摡㜵摤ㄱ敡扡昰㈰挳戰㝦㉣愵㄰㝦㈰㠵㈴て㌲扣㄰愰愴搴㔹㘴ち户〳㘴㐴搶摡㐳扣昴〷散ち〱搹扣昴搷攳㐷㉣搸㐵㘰㌱昶挵昷㝡愲愵㉤ㅡ慢㈶㠶㙡㤵㑤戳㠸㡣㍡扣戰㘰㌲㉥㑤㔹㍡㠷㔱扡㙤㜷ㄴ㕦㌲㘴㠷㠱户㤰戱ぢ㌶㝤㙤㘵晢㕥愷㠱㥢ㅦ搰㌳㐵愵㌰㥣扤㉣挶㠱㔴挵攸挲愶攵戰㠸㜰㌸捣㌶㍢つ㐴㔵搰㔹捥〱㥣㑡ㄱ晣攳㤷㐲慣ㅦ㙦つ扤扦扤㠶㍡捥改挷〲昹㠳晤㜵㐳〶㘳攳慤攴ㄸ㐸搸㙤戵㉡㠵搷挳捦愱ぢㄷ㥤ㄳ㝡㉢慢㥥挵ㄱ晣㠹㌹慢㑦敢搰晦㡣㕥㉢捥㍡捦摥っ㘳愷昴晦㍢㔱戰愵晥ㄷ㡣扤㈹㐴扥㉢捡昰愱挰昸挹㤶㈱ㅢ敥〸㍣摢〸摥愸㠳戱慥戲っ㜹㠷戹㐵㝣扣ㅡ㔶㉢〹づ扦㔷扥晤㙡㐴戳㉦㙤摢㠱慥〲㤰戱愱挲搷㈱㠲扡昶㑦换慤昸㜴㕢㝣㌷㍡敥㍢㙤㔵㍤搷㜷捤㘰㙣ㄱ㐱摦㌱㝥㝢㘶挲收㤹ㄲ㕦㙤ㄷ㙡㌷㘳㈷〶摦㡢㍥㘷收㈱戰捦挸攰愵㡡㐵㌲戲戰扤㐸〶扦㐳ㅡ㐹㠴㤷愸ㅤ晣慢捣晢ㅢ㐶ㅤ㥦慥捥挳搷ㄹ戰㘸㐷㈸扢搰攳摣㝥㐳㠳㕢㠷㍢㕡敦㠰㍦㐸搶㈷㄰ㅣ㔳㑢㜸昷㝢戹慦敤㝢㤰㙥ㅢ慤捤㘷换摥㝣㙥攵挲戳挰改昶摥㤲㈶ㄹ扥㤳㕦㈴㤷昵ち㈱㉥敤ㅦ挳摦敤㍢㘸㌹摡㈸攸㍣晡愰㥢㡥戰昱㍡摣㘷摢㠸㝥㕦㐰㔷㌱㐵㠰㥦㙥㐴ㄹ㍥〸㝡昹挸㡡攲㡢㔸ㄶㄹ〰昹㕣戱ち搰㥤慡㥦搹㡣慡㐷㘲㠱㉣㜸挶㈰㌹㤶挵攷搱㤰摢ㄵ㉥ㅢ㉣挱㘵ぢ㜵㤶㐰㕥㡦㝢㈰㥦ㄳ㍣㑢愸㠹㝣づㅤ㥡ㄳ戱㔰摡㝤㈲㥦摤㙣㈲㠲㔶㠰㕡㘸㜲晣㤱㔸㡢攸㜵㔴敢㌶㠱㐳攰〲っ㔳㉣㔲搶ㄴ挳搰挲て㠸ㄹ愴㕦㐵㝦㥦㍦昶换攷㤸晥㜶㑣㈸㐱㠸慡昴攴㈹〸搵攴㍦㤹㥣扣㠷搲敥㤳晦昸㘶㤳ㅦ愱㡣攴㑣昴〰㘰愸㑦㔴昰㐷㉤愶㠱っ昷㤱㍦㜱㠱〰扦搴㉣㐶っ㤴愸扥㤷㤱㐱㕦㙥戸㙡戵㡥㑣摣户挰昵㘷㝣摣愳散㈳㕥㠴愴㉦愷ㄸ㍡㘳㡢愱㔶㉣搹㤱ㄷ㜶㐷挸〶㉣㠹㕦换㜶ㄵ改挵ㅥ㈳晣攲㐳㌱㘲㑥㥥㡣扦㥣搲愲㤸ㄳ〸㈳戴㐸㐹㍦摣㐸昱挱戸昱㜷扥摢㜲㤹愲〲〹搴ㄳ㌶㈶㥤愹挶㑦挴㡤て攳慢㉣搵㈶挷ㅢ〴㑣捦挷㡤㐹㡦慡昱攳㜱攳扦ㅥ㍥搰㙣ㅣ搳㘱㌸㜲㠱㐴㤲㘱敢㉡敢㍦昱㠵昶㌰㥡ㄷ㑣敡捦〱㌳㉣愶攴㔴愱攳扡搲愰㠳戸っ攲攱ㅢ改㌹摣㙤挲ㄵ㄰〸搹昰㝦㤵㜰ち㜷㥥㘶㡤挰挰㈷搰㙢〸㌶㝢扡㝡㘲攷愲㌹敦愱愰摦㍣攵攳㑣㔵摢㔱㈴〲㜳㈰ㅦ敥敦ㄶ㑥昹っ搳戱戵ㅦ㜱㤰㑣攳ㅤ㤲摥㤴㠷ち慣攴挵晢㘳捣收ㅥ㙢搱㡣晥㈸㤰〳改〸挸㡣晥ㄸ㘰ㄸ㠸攱㙤攵摣〸昹㕦㌱昷晢㔹昱〱㠲挷〱捡㠲捣㑥㍡㈸㍥〱㌰ㅣ晦㡦㉡挶搶㤴扦㐴ㄳて挷㉦㑢㤲㤱晥㈱㜶昸㌰㐰ㅦ摣户㈲㈲挲戲晥ㄱ㤴㈴㕦㑡挱愱㕥晡㔱㔶㝣㡣攰攳〰攵〲㈷扢敤㕤攳㥡㝡搴㕣㥦㐰㔷昱ㄸ〱㝥晡㈷愳っㅦち摣㠷户㜴户㤵㜹ㄴ㡥㍦散㐷愸㌳昵〵晦扤昸㈲㝦㠳㡢敥挳晦㤰愴愰っ晢扣昶收摥挶㈲ㄳ搰㈶㔷扦㔵㙣昶㡢ㄸ㠷敢㙡㐵㔰㌸㈲㤵㑡㐹㉢ち攲㥢ぢㄶ㉥摥挰户ㅣ㔵ㄵ㐲㤰〶㔴㠵ㄳ㔵ㅣ㐳㠱晥㈹㌶㈵㡥㠹㈷晤搳㝣㈲㙡搵㈶㝥㈶捡昰㐱㄰慦慡晢㠳㔱昷昸㠵挴戵慡戰摡㕥㐸晣慢㡡㤵攴ぢ㥦攲㘰ち㔹挸愴戵ㄲ㤱愶㘸攸昳挸っ昵つ㜳㙥て攰愷慤㡢敡㠵摡㠵ぢ晦ㅣ捥㡦㕤㤷㝦攷摢〷㥦㝡晥ㄷ㝦㝣昲搷敦㌹晡㤷㝦㍤昳捣慦晦昴攴㜳晦晡昱昲搱㥦㍤晢散㑦敦晢搲㜳㝦摣㙢㝥㔹晢敥㍦攷扥晣挸攴愵㐷ㅥ㌲捦摤㜶攲㤱㜷㍤㜸晦攴挲㔵攳㝤㝤晤晤户㡥晥晣摡搷㡦㍣昶搰昷挵㑦㝥㝢㡤㈳搴㜲昱㠲昴㌴戸㙣㌵㡤㉦㈰㠳㘹㜰挶㉦敢㌴戸㕣戵㔱换搱㐶㑤愳愰〴㥦〶㈷愰㉡㡣㜴挵挰㝦〰㈲㐰戱晢 | B27: 㜸〱捤㕢〹㜴㕣搵㜹㥥㍢换搳摣搱㌲攳つ㌰㌶㘶㘲㥢㈵挸㔱㈴㑢戶㈵㠸㡥搱㘲搹㌲戲㉤㈴ㅢ攲㈴㘴晣㌴昳㐶ㅡ㝢ㄶ㝢摥ㅢ㔹㈲㄰㑣㥢ㄶ攸㤲㄰愰㠷㐰㌱㡢㈱㄰㌰つ㐹㈱〹〱㥡㠴愵㈱㘹㈱つつ㉤㠷㤳搳〵㐲挲㌹ㄴ㔲㈷愷敤㈱つつ晤扥晢摥ㅢ捤㈶搹㌸昶㌹㝥昶晣敦扦晦晦摦昵晦敦㝦晦㝢摦㤵㐷㜸㍣㥥昷昱昰捤挷㑦㘴改攸戴㘹ㄹ㤹㤶扥㕣㍡㙤挴慤㔴㉥㙢戶昴攴昳晡昴㔰捡戴㝣㄰搰㘲㈹昰捤㐰捣㑣㕤㘹〴㘳㤳㐶摥㠴㔰挰攳〹〶愵㤷愵㌸扦㠸㥢㤰捣㈵㐹㤶㤰昲㐸つ愰愱づ㘰㝢㕦敦戶戱摤愸㘴搴捡攵㡤㔵搱换散愲扡摢摡㕡摡㕡㍡搶戵慤㙤㘹㕤ㄵ敤㉢愴慤㐲摥攸捥ㅡ〵㉢慦愷㔷㐵㠷ぢ㘳改㔴晣ㄲ㘳㝡㝢㙥㡦㤱敤㌶挶㕡摢挷昴㡥捥戶㡥㌵㙢㤲㕤㕤㥤つ㐱㤴扣戵慦㜷㌸㙦㈴捤ㄳ㔵愶㘴㤹摢晡㝡㕢戶ㅡ搶㠹㉡㌳㠴㌲㔱㘴㝦㉥愳愷戲㈷愸搰〰㠷扡扤摦㠸愷愸ㄳ挳挸愷戲攳㉤㘸㜶搹㐰㈳戵慥㘵〰㈳ㅥ搷㑤慢捦㐸愷㐷㡣㈴搵搱㤰攱㤸ㄹ㜹㈳ㅢ㌷捣愶捣㠶愹戸㤱㜶搸㘶㌰㜳㤹㥥摦慡㘷っ㍦㤱㜰挶搶摢㘰挲挸㕡㈹㙢扡㌱戳挳㌴㐶昴散戸㐱㤱㐰㘶㘳㈱㤵昰晢㠵摦敦昱㥤㔷慢㌱㑡㌷㉤〳昹㜸摦㠴㥥户㔴㡡㕡㙢慢㈵㕢㘲㈱慡攱㘵捤㘲戳愳ㄵ戹愸愶搱㔴收ㄲ㈳㥦㌵搲慣㠴捡㙢慥㄰㔲㘳㘲て㝤㜱㜰摣摥㔰㌱愲摥㤹〶散ち㙢㤱昵〴つ〰㕡㈳㐰愴㝢㘵捦昶㌵㕤攷㉥㡦㉤㍦户㘷挷捡㌵ㅤ戲㠹晣㌰㠰昰ㅦ挱㥣㉡捤捦慣摥㤸敥㡤㡤㜹㘳㜱㙦㉣攱㡤ㄹ摥㔸搲ㅢㅢ昷挶㈶扣戱㤴㌷戶摢ㅢ摢〳ㄹ昷〹搶搵㜹㥤㘷改愷慤晥㕢搳㜷㙥晡昲ㅤ慢挳㘷㑥㍥扣㔸㜰ㅡ愹昹㌴て㠸㥣て愰㉤〰㔸摣㡤收慣㍢㌷扡㍣扡㘱㕦㈱㌵㌹㤲㥢㡥つ㑦攸愶搱戶㕣㉥愴攰㈲〰㈱摥㐲挳搸戸摦㍥晡敢愱㡦摥昷昴搰愳㕤敦㜵㉣扢㙥㐵㔰㜰㕥慡㔲㑦愷昰ㄹ〰摡㘲㠰愵摤㔱户㔸扡㠳㘸捦攴㜸戴㈷㥢㡤戲昸攵昲㑣捡㉥〱㄰攲つ愷攰㠵㕢昲㜷㍥摣㍤㌱㜴摤晦晤敡㠹㍦扢敤摡㡣攰㕣㔷〵㥦㐵攱㘵〰摡搹〰ぢ搸摣捥㈸摢慢ちㅥㅣㄹ㔹㉥愳ㄴ昹㄰㠰㄰晦敡㤴户攸收慤㡤㕤㍢摦ㄹ戸晢㜶捦捥摣㑦㝦㌷摥戰〲散㑢ㅤ搵昴攷昵晤戰敦㤹愹戳扡愵㤵晦㡥敥㌳攰㌲㤲㙢㤲敢㤲㙤㙤㠹㌵慤㝡扢ㅥ愰㠶㡥搵㔲㌹㥥つ挹换㔳搹㐴㙥扦㌲摤㠶攴㐰㉡㙤ㄹ㜹㤵〸㈷昱戲愷㥦㑡㌷㈶㌷㑣挱㙦挵㙤㉢㕦㤸散㌳昲ㄶ收扢㌵㍤㘳晡㑢㝢愱愸㤹㘴戳㔳㜶㙦慥㤰㑤㤸㑢㙡㌳㐷㉤摤㌲捥慣攴捤ㄴ㔲㤵㙤ㄴ扥挰㌰㔵㤳㤶㔵㘶扢㑣㑦ㄷ㡣㥥愹㤴捤㍥慢㠲つ慦㤰ㅢ㥢㥤㍢㤰㌷昶ㄵ戹㔵㉤敡挱ち㌲愹捡慥敡愵捤戲摢ㄵ敤㥢挸㤹㐶㔶㌵慦㌹㌳㥣㡡敦㌱昲愳〶搷ㅦ㈳愱扡扡㠸㉣挷㌵㌵㙦换愲愳㜰㌶㠹攵愵㔴づ戴㤱㑤ㄸ〹戴㜷㉦㐶㜹㝡扢㍥㤶㌶㑥㉢ㄳ戱敢〴㘳㜱ㄹ㜹㈰ㄷ㉦㤸㝤戹慣㤵捦愵换㌹㍤㠹㐹ㅤ敥㌰戱㈵㤷㌰晣敡昱搸㔰㜸㝣㍥㈱㍣攷搷昲㉢㉣摢愴攷㈹㌱ㄲ晡户戹㠵㑢㡣㠸挲㌵㍤㔶戱㘴㈰㈵㐶㐶昹て捦搹㤲㔲㈳愴㜴敢㥣搲㌵㡣㤴㤹捥㈸㥦㜸㉤㈳搰て昴㤰㌶㌸㉢扤㉢㘷㉦㜲挶㉥㡦搲搲ㄲ慤㌰摣愰昴ㅣ㠳愶㡡㉤摡摥挹ㄵ昶㝡ㄷ㌸扤摦㌰㠹㐵㙦㤳㥥㑤愴㡤晣㥣挱㤲㘰㡢攴㑡㠲㜳〸捥㈵㌸㡦攰㝣㠰挰㉢昰㜱戳㡥㈸摤扣㤸ㄲ搳㠱晤愹㠴㌵愱㑤ㄸ愹昱〹ぢ㌴〴㔹挱㈰㠷扢敡㤱ㄷ㠰㈴㥢〹㔶〱㠴㐲ㅥ敤㈳ㄴ昲㠷㘴ぢ㕥摡㐷〱挲敥慡ㅦ戵㉤㌳㈴〲㕣搱㍥昸扡换搰㑥慡㘵ㅥ㜱㤸ㄹ挸愰㕣搳攷慢㌵ㅡ㥢㜴㜳挲攲㐴㥣㤳愹㔶搸㔶ㄶ摡〶搰戰ㅡ㘰敢㈶㈳㡤㘹㝣愲㐲戸〰搷攷愳㠶ち㕣㑦㑦换㡣㑥㘷攳ㄳ昹㕣ㄶ昱㙤扦㙥改㍤㜱挴㐳愶搰戵捣㔰慥慦㘰㘹㤹㑤㈹扣ㅡ㌲㈳挶㕥㐳户晡攰愶慤挶捣㄰㘲㈹攵㐷〷ㄳ㔳㠱㡣ㅤ〶昵ㅢ㘶㕣㌲㕥ㅡ㠴㕢㥡搲㠰挱捦㌶㘴攸㘸㡣㈹㡢㐵搷㘵㠶㜵挴㕢㤶㠴㔰戳捡㘵㘳捣搹愸㘸㙥敥㤰㤳㐲〹ㄱ㠵㤶㤴㔲慦〸㜶㐹㉡晣挶ち㡡㘵搷敦挰捡ㄹ戴挳㑡愵捤ㄶ㘷㜸㕢晡㜳㠸愷つㄵ攱㜳搸㌵つ〶愶捤愹慣捡㠹捥㠰㙢㕢㝣捣㉥ㄶ㑤搹㤸捦ㄵ昶㌲攸㍡㔱攵戰㉣㡦㙣〷戸敢㔷て㕤㜴捥挱㐷摥㜷摥搷㘰ち愹㐷㌲㈶㤳戴㜷㈶昱㔲㡦㕣㡢㔷㘸㉥㕥㠰〱㕢㑤㑦㍢㑢㙣挸㐰愹㈱㠳摥㙥捦ㅢ㉡搸つ慡挴昴㕥愳㌱㜳㜹㉥扦㘷㉣㤷摢㐳攵㌷愹㤴㌹㘱ㄸㄶ㈳挸㝡㈷㘰㈶㉥㠴昰昹捡挲挳㤲㔰㤳戱愷㜶㈱㐰㘳て攲㉤户㐴㔳扢〸㈴ㅦ㔶ㄴ敤㘳㐰㍥戲㈵㤵㌵愲愳搸㠶㐵晢㌰扤愲〳改摣㝥㌳戶戹㤰㥥㡥㜵挶㔶户慥㙥㡤㘵㡤晤㍤愶㤹㘹㤹㑡㥢ㄹ昱㉣㠶㠴㔱摦摢昷敦扡扥戹户改攲㠳㙦㕥昷愳敢扦㜳挳㐵攲ㄹ㠷㔱ㄵ㘴㌲戶㘴㐸㈴搷ㄳ㕣㑣搰㐳搰㑢搰〷㈰㥥㐲㔶㍡㌰攰攵㡦摣㠰戴ㅣ㈰搸〸〰㌷愴搴〲㉦㌴㠸愴戶ㄹ愰摡ぢ〹捥㍢㝡㈲㜹〹挱㄰㠰㘰㤸挵㌹敢㤱㕢〰㘶㔵㍣㠳摦㙡挵て㠳ㅡ㤲㜳昰〴〳㘲㉡㕦㜲戰㈵㠷㔷㜲㘸挵㠳捥㤸㔴つ搶㔷ㅣ㐶㔵散捣㤰㔹つ搶㑥ㄶ昲〹㠲㑦ㄲ㝣㡡攰ち〰㜱㘸搶挱㡡㔱㘶ㄷ㠱づ㔰㌲㔸㜱㈴戵〴㐰㡤挱㘲㜸慥〶换〰㈲㤳〰㠲愱戸㍤㔸攳挰㘶ㅤ㉣挶昴搵㠳戵ㅢ搴㤰㥣㠳㈷ㄸ攴搷ㅡ慣㉦捣㌶㔸㥦㜷ㄸ㔵晢〱㙥〳搴㘰㤹㙣ち㔷㌴㔹㈰㤸㈴搸て㈰慥㥦㜵戰愶㈹㜳㈵挱㘷〰㑡〶敢㙡㈴戵捦〲㔴つ㤶㐷㜰换愱〶敢ㅡ㈰昲〰㠰㠸〲搸㠳㜵㉤戰㔹〷敢㙣㌰慢〷敢㜳愰㠶攴ㅣ㍣昱㈱㐸搴ㅡ慣挲㙣㠳㘵㌹㡣捡捤㑥㠰愱㐳愵昳㔶ㅢ搷㘲ㄸ㔸ㄲ㘰戲㐷㕡㜲㐷㌶㘵㤹昵挹㥥㠲㤵ㅢ㐸㔹晤愶搵㤰〴〰慡戲㥣愹㈲愶㤲㑣捤挹换㔲挶晥敤㜰㕦㘷㔷戳戰愷敦㉢㤸㔶㑥慤㑢换慡昹晤戹慤㌹慢㍦㘵敥㑤敢搳㉢㙢戰㙤捥攵ㄳ㐶ㄶ㈱㝣ㅥ㤱晣搱㠴㜲㝢昷ㅡ㠹ㅡ㙤ㅣ捤ㄵ昲㜱㘳戰晦㔴搸〴〸㝢㠱昵挰㠷㘳㜹ㄵ攷捣ㅥ昴㤶㡣㍢〳㐱㉦晣扥㌸捥ㄸ㤲ぢ㥢㐷㝥㥥㄰㠵挰昴攵ㄷ㠰㘲〶〴ㄸ㔸捥㙤㈲㈵摢ち㑥扣㔰ㄲ㙡戵㘹㡤捥扥㜵㌰㙢愶ㄲ㐶挸㐹㘱㙤㘹㜲搰㙤〵慢㡣愳㑦㉤㜰㌸㔸㥣戶㘵愱晡戸㥥㑦㥣ち㕡㐱挷昰搸㉡ㄱㅡ晥ㅤ摦㐰摢挵㜸㍣㐷摣㈳搱㈳搷㘰戲摦〸㌲挷㥡昱㝢捤㔸愱㌸ㅤ㠱㤴散捡攸〴ㅡ㌹摣㐵㜲㤰愹㉤㠶㥥㔵㕡ㄸ戵ㄲ晤挶㘴㤳㤲㌰㘰攰㌸㑡㑢ㅢぢ捡㤳㉡㘴㤴挹㥥㌱㌳㤷㉥㔸㐶㔳ㄱ㔳ㄳ㕤㈶㐷㡣戴捥ㅤ㜶㐳ㄱㅢ㡥㕢㌸㠳㈸㤶挷摤昳愹愳㈱㡣㠸摦搱㤲㔰㝡搲收㌰摥昲㑥㜰づㅤ愷㔶㠵挷㤳㔴捦㉦搷㡢摢㙦攳昳攰㝡㡦㡢㠴昸㜸〲摣㤷ㅤ晢ㄶ㥡㌳㘹㠱㝢戲㘳㝢㌸攵扣ㅡ㕣ㅡ㜷慦㡤㐹攵昷㜰㐴挵㔳搴㌰愷㑥ㅡ㐷摣㔶㉡慥愷搳搳㑤挹挱㙣㍣㕤㐸ㄸ㐳晡㤸㤱㜶㝤㜶㉥㥦㌹㐵昴愵㍥〶搸扡㥡㘳㕣㥣㜳㠵㐱㝣ㄱ㜰㌷散挷敤收㍣昲㡢ㄸ㔶戵攴愲㡣㤰扣ㄹ㈹慡㠶扢攵て㝣㕥挱㐰㝡晥捣㘹㥢㍡㥣㠶㙢慢㈲搱愷㜱敦㔶㍣昲㔰㌳慥㐴㙣㈸㌷㤴挳㜱㔴愲㠴戴㈹㘵㤳㑥㤹㜹愵搴愴㘹摡昱㉥㌰ㄸ㉢㍣㐷摥㜷摥っ㤵昰ㅣ㔹捦昱愷〶㉥㐰慡㜲搷㔷ㄲ㠸愸戵㕦㌹挱〸〴挳昴㘰㜶攰戰㍤㘵愵㡤晡愴攲㉢㍣挸㈹挱搱慣㑢㙥㥦挰づ慡扦㌱戹㌱㥦㑡愴戱㥦㘱㄰㠲攳㔱㝥㄰ㄸ㌲挶㜱㤰㌷㥣㌳㔳晣晣搴㤸摣㥥搷戳收㕥㙥㤴攳搳昳换㔲㑡㔹㠱㘴㙦㉡㡢〹㘴搷㐹㍣㥣ㅣ㥤挸敤挷挹㜲㈱㤳摤愸敦㌵㑦〹㐵挱ぢ㌹㡦㍤慢扣挲敢ㄵ㐱㙦昰㜸搷㉡㔸㌸㡡攴㥥摤㑢攰愸慡ㄹ搸ㅣ昳㤵㕡㜲㡥㔱㌹㕦搹愶戲捦㍥㌵捦㜰㡡㥦晦攸㠳攵㉤捣昳ㄷ〰㥢㌷敥ㄸ㥣㌹㝣晦扤㍥摡〵㔶愱扣㌹㤶〲㘵ㄶ挵㤳㍥敥摤㥡㙣㔳㈱㡤㤶㈳㤵挶㤹慡㌴扦㔰㔲挹搰ㄲ戱㝡㔲㥣攸〰捥㘰ㅡ㌰昱攱㝡㜱㜶〵㥦摢㘴㈷ㄸ捥㘵昴戴改昰晡㜲㤹㡣㑥搳愲㔹㡥挲㙦ㅢ㐱ㄵ㕢挳㤳挸㈴㠰戲㍦㠷愴㑦㠱愴㑦㈹ㄲ㤶㘳㥥摥㉢㥣㘵攵挶昵㝣捡㥡挸愴攲㐱㈶㜸挲㝥㑡搸㈴㑣㠸㈷㡤敥愳っㄳ㠱㙡攵㌹㤹㝤戴〳㜵户㘰敦挰愱愳晡㘱戹㕥戵㠶㡢攳㍣ㅡ㠵昹㉡㘷㉦㙦㐵㘹〱ㅥ㈹㌲戸㔵㑦㐹〰〶㡡㜲㐲愲㠵〲昸挹㉦搹㌲ち晡㜹㘸㌸攷㘹ㄵ㡦ㄶ㐳㐳㌹㍤㌱㠰㡦㌰戹㝣㥤昳㤱㌹〸搵搲愵攴㈳㍣愱散挳昱㍥㍥ㅢ㑣㈲づ捥〷㐹ㄸ挵搹㥦㥦㘷㥢㥡慤㐳〶㤷㥥㐰愰㍥㔸慢慥㐱户慣㤵捥㐹㑥改户昳挱慡昲摦扥戴㜳㍤㍢ㄲち昹〰攵㙤〴户〳〸㥥㝤戲㍦ㄵ〲㝦㐹㠱㍢〰〲敤〰㤵戳㘴搶搳㍣ㄶㅥ挸昰㤴㌱㤸㘱㜷㄰㙥㘸㌸㝢挴㘹㈵㠶㐴慢て搲㘹挸㠳〰㉦扥昰㐲㌷㕥ㅥ挱攳㌲户㝥㔶ㄵち㜱昰攴㥤〴㜷〱〸㉣〸ㅥ㙥㑡㤵摡㍣昲ㅥ愰敥㠶攴㄰㔰㉣ㄵ攲㘲扣戹㈹㜱㥦ㄲ㑤㈲㤴扥ㄷ㘴㑡昵攰捤㜰㥡ち㍤㕡㘸㈶㜸敡挴昰捣㈳敦㈳攰㘶㐸挵〷昷〳㘱㘱㝤㜸㌳㐶戰㥦㔹㔷㌱挱㤳㈹慥㘴㥥㥡㥥㔳っ㠰㐳敦㈹ㅦ〰㄰ㅢ〱攸㤴㡡㐶晡㈰昰愳ㅢ㈹て戹愸㕢昹㄰㠰晢㠸㑢㠰戹〳㑢慥愳昹挳㐰攵挳〰㘲愸戶挰㕦㔱攰慢ㄴ搸〲㐰㤵挸㐷〰㡡ちㅢ㐶挲㉤㤷㠷愴㡥挲扥㐶挱慦〳㠸㥤〰㈵ち㝢ㄴ㐹㡣㥤㐷㘰〷昹ㄸ㔰㡥ㅥて慣㘶㔷搸㌷ㅣ㈹㥥㘸ㅤ戳挲㜸昲㘵㉢散㥢挰㘶ㄴ昶戸㔳搸ㄵ㜸ㅦ㡢挲㘲㤰㔳ち搳扥つ㙣㘹改搷㘷捥戰ぢ愳㍤㠹㈸愶㈷㙥㌲㘴搰慤慡戵㔰散㐲㉥愵搱㈷㠰〸ㅤ愰㑣愳㑦㠱㜰㜴㡤挶㤹ㄷ㍦昹㌷づ挲㠴㌰〰摣㤱㈷挱搱攸㜷㠰捡敦㔲㈰㔹㕢攰㝢ㄴ㜸㥡〲攳〰㑡愳捦〰㈹㙡㜴㌷ㄲ㙥戹昵挰ㅤ㡤㍥ぢ㔴㍥〷㈰㑣㠰ㄲ㡤㝥ㅦ㐹㜷ち㍥て㤴ㅡ攵愹摡散ㅡ晤㠱㈳㔵挰晢㤸㌵捡攳㌹㕢愳㍦〴㌶愳搱扦㜷ち攳挹ㅤ㌵㍡昲摡㠶㥢扡づ㍥㐹㍦㠱攷挸㌵㠷㤷㍥㜷攳捥慦晣㈷摣㥤敤挳㜹㠴㘷㙢昴〵㘰ぢ昱搹㕦㝤晦㍦慡㈶㜹敡愷㌴昹㈲㄰挱攳扦㌲㑤晥〳〸㐷搷攴搵捣㡢㥦晣戱㠳㈸㑤㕥㠳㠴㍢攲㈵㥡㝣㠹㠲晦㐸挱〳戵〵㝥㐲㠱㤷㈹㜰㉤㠰搲攴㍦〱㈹㙡昲㜳㐸戸攵㤶㘸昲㥦㐱㤶慦〰〴㜸㥣㜳㙣挷㐷㜵㤰㡣㤴㥣改㌱攰㌱攷㈵㉦㉤攸㘹㕣扥搹㠶㡤愵㐵搲愹㄰㔱昸敤敤㝤攵㕤㡡昲㍢㌹㌸ㄹ㔳㕤昸攴ㄵ㜴㕡㤵㘳㔰㉥敢昴捤愴攴昱㙤晦㐳㠱昳㜱挰㝡㙣戵搰〰敡㈶昹㤹㉥ㄶ昳〴㔹愷て扦㤰㝣㤵㄰㔳㡢挷㙥㤴㈹㡢㐱挴㡤戵愸〱㙥㘶攷㠸挴㉢㜶捥㉣㜵挱㑣摣挰〸戱㌹捤ㅢ㜷戵〲㡥昲㠰晣愷慣晥收㕡㙤㄰㡣搵㔵㝢晦挵㐱㤸〸㌰摥㍡㙡㠸攷㠷㄰捥〴ㄱ散㡤㕡搳㘹〴搸㐴昹㘹换挶ㄸ㔱搸㙣㌴㍡㤷挷㘹㠱扦昲㘳㜶㌱敦ちㄴ㔵扦戰攲昲㠰捡㐶づ㘳挹挰㜲愸㘸搶晣㙣昴㡣㔶㤸㠷㡦昶㙦〰ぢ户愴攲昹㥣㤹㑢㕡搱㔱㙣ㄲ愳扣㑥〲搷摢摡ㄳ㠸愲挴㥡㜵戲㘳晥㉣敦愹㈹㐵㠷昶㘴㜳晢戳慡㌵〱㤳户㙡搴㜸搵搵戱㥡㄰㝥敡㔹㠱㔱㡣戸㜱㘷攴㌶搰㈸愵扤〶㜰㑥㕦㙦摦㐸慣㌵搱戵戶愳戵愳慢㈳搱摥摡戱慥㈳㌹ㄶ㙦㡤㈷㡣捥㌵㙢摢摢扢昴捥㔶㍤愲〲㍣㠸换搷〱㈲っ改㔴㍤㍦㘳㡡戱㥤㑡㤱ㄷ㍥〸挰㡡㌵晣㑥攸ㄳ㘱㈰攷挳㑦晢㌹㐰㔳㕦㙦慣㘴㌷愸晤〲戴〶搰㔴扣㍢㠲ぢ㉣摡㥢愰捣〳愵晣慥㕦攴㉥㤰㔹捡捣㡤㌸昹ㄶ㤲攲ㅥ〰晡戴㤰㔸㠴愱攷㥣愳㔴㐸扥㑤㠸戹㜳〸㙦搵换㠷㠰戸㡦戸ㄷ㔸㌵昵㍥㔰㌹㝦攴㉦挹扥扦愶捣〳㉥昵㠸㠳戰ㄸ昱㈰〰敤㕢㠴搱〰㕡ㄵ㜰㡦昶㙢㠰㔹㑤㐵㌴㐲㡣收㔲慥㙥户㤹㤱挳㉣㡥愵晣ㄷ㠰慤敥㜵敢挶攲昸搰㍡㌶搶㤶攸攸㔸摢㥡散散攸㠸户慦改㙡㑦慣㌵搶敡㘳㠹搶挸挳㑥ㅥ昹摦㐰㈲㡣攳㔴㈷晦㠷㈹ㄵ搰〱㔱扣㌰〳㍡㔶㝣攲搵晤㌵㤴慡搴晤㉥㤰㜲搵晥〶㤴㙡搵㙡晦ぢ㜲㠵㕤㐴ㄸ㐷㉡㜵捦〷㈲摦㈳㤸〷㈰ㅥ〵戰搵敤挵搰捤愸㥢〳㑥㜵㍦㐶㈱晣㈴愱ㄷ〸㝦攲ㅢ㉥搵摤改㈱敤ㄱっㄳ㤵扡扤㤰ㄵっㄳ㔵捥㌲ㄹㄵ挳㠱㈳㜹㌰㐹戶晡㌱㠶㔳敡晥敤敦㑡搴慤㠱㌷扢扡㝦〳搱㙡㜵㌳扣愳㙢㤰㐱㘴㙥昴㐵ㄸ捡戱ち㑤〲摡㕡搷㔷户敡㕤慢昵㜵戸㤹摣搱搱搱搹㌵搶搹戹㐶敦㙡㙦㙢㕦摢㌱ㄶ搷扢搶㐴扥敢攴㤱㈱攴㠹㝣捦㑤搵㌳昵戴㥢㈲㉦晣っ㔲㈷㐷敢捦愲㘴愵昵㐶搴㔳愱㑣慤〹戴㜲㑢〸㠳㔲㙤〹㤱攷㥣㔲攴改㐰搴㠵㔰㌹ㅦ㤲攲晢㐸摡㕡㝦〷愳㌸愳昵㠵㘰㔲敢捦㠳てㄴㄷ㑥〱㡢㕡㘷捣愹愸愷ㄱ㍡㡦昸㈱㄰愵昵搳㐱ㄵっ㈵慢㘵㔴扣〷㡥㕣㑣ㄹ㐷㐴㌰摥㔳㕡晦㐵愹搶㤷㠰㍦扢搶摦愸愹昵ㅦ愳㈴愵昵戳㤰ㄹ㕡㝦挹愹㐲㕢㠶戴慤昵捥戵㕤ㅤ慢㕢搷㜴㜵㈶扡摡㍡搶㈶㔷㜷敡㙤㤸敡〶ㅣ㝣㕢㝢㉢ㅣ㝥㐴㐵㠹挸㈷捦㐶㥥〸攳㐲扣㍤㌲捡㤴ち㄰㕤㕥㤸〱攲挹搱㍡挳㑡愵昵攵愸戵㔲敢㉢㐰㉢搷晡㑡㔰㙡㘸晤ㄵ愷ㄴ㜹ㄶ㥢扣㡣攰㍣㐸ち㠶㍦㜸攳攲ㅡ㈰慢攱㑦愸戸㠳㔴㜷㘱〴敥㠹㌰搲㔰㈳㝡〱㘴ㅢ㝤㠱搷㤱慥㜹㝡㍦搷挵㙥㍡挳㐵㤹㐱ㄳ敢㄰慥㠰㙤捦昵ㄴ㉦㤷捦㜳搷愷㘶昷晡搹㌹㌳ㄴ昷㌳㤹㥢㙤㕢扥㤸て户愹㄰搵㠱搱捣换㙡㡢㘶㔲㈵昷愸㤶捣㔰昱㑤ㄴ㕦㙡㡣㠴㕢愲㠹㑤㤶摦敢ㄳㄷ搴晡摥敢摣ㄵ挲昵ㅣ户㠰つ搹㐲㠶㡡㕥㔲攳㐰愸㌷㘵愹昸㡤㔱扤㤰慦〱㙡慢㌰㔴昳㜹愳㝣愵㜳愵㝣愵扡㔳ㅥ昸〹㙣昶〳搴㠸㔲㑡攲㈴搶捦〷昷晦挰㄰㍦〳捡昲㐸ㄲ㙦〱㠴昱慢扣晤昲㈳〸搴扣㉡昴愲挳愸扡㉡挴搵㥤昵捡づ挰愲㘹愸㘵㥢搴㠷〰摣㈷挲㠵㕡㤹挶㕡挸㌶晡〴搷㐶㥡㠷㤰㕣㔹戵㑥㔰㤷搸愳㔰昳㈶扢㜸ㅥ㡤㜰扢㄰㤲ㄷ㐲㕣㜰㐱㜵㐹㠲㡢㔳慤㕥㍤㌳㕢慦㥥㜶ㄸ㔵㜷㝡㌸㑡㈸ㅥ㜷㥦〰摤㕥㐵㐸㔲敤敦〱㈲㝢〱ㅡ扤ㄱ㜷㤱挲㘱愸㤳挷愵㈰扦㈷挲搵㑡攵改愷戸㉦挰搵攵愲㕡㐶愴扥㥦戴㤴㐴㘴捤搸㈱㤴摤㘷摥㠰晢挹搳昴愹㍥ㅣ㑣〶㤴愹昹扤ㄷㅥ㕦㔹摣㝦〵㔱ㄴ㝦㠱㈷㌱っ扦㐷㌹攸㔱㠹搹戱挴戳昱㤳〳愰ぢ㉥㜶戶㡡戹㡣㙡㥢〰㤶㜵㐷㤵愵㉢ㅤ㜳挷㔳晥㘷〵攲㕢㘵㕡摥捣㔲戸㠰ㄶ戵捣㜵愸㤶㤶晦㝡㌶㉤㝦摤㘱㔴㕤㐶攲愲㠵晦ㅥ㌹っ㔸搴㌲㔷㉥愵戱㑢㠱挸ㄱ〰㘸搹㕤戸㠴㕡慢㤸挷愵〰昷㐴戸㍡愹㍣摢㈹敥ㄳ㕣㑤愸㘹㜱ㄸ㜵㜳㜸搵㠸㕣㐶ちㄷ〹㝢㐴戸挴㘸ㅦ〷㔸㘴ㅢ㝤挵摦㐳㠸〷㤰捦敤㜵㐸㝥㠲㤹愳〰㉥㐹搰㌵搷ㅡ㠸㐳㑥㝦慢慥戰摤攳㌰㉡㉦ㅡ㐵攸搶㔵昳㜷〱㤱㍡挱ㄸ㐰㈸㐰ㅦ㕥搳〱搹搶㙡㝦ㄶ㤹昹换〲戶㈶㤰攴㈶戱㍥㘹㕦散愷㥤愹㥢㈵㘹戵挳㙡挰ㄷ㤲㍣敥昶て攱㠳ㅦ扥㡢攰捦㜴㥣捤〵㍥〴昲愴摡㍤㠳㤷㉡挵捣㕡㜲㕢ㅥ㠷昲㜵挹㐱ㄳ㥦ㄵㄳ㐱㕣㤸戵昰户ㄶ搹㔳攱戰〳㝢㕥㍦攷㈳㡣㠷㤷㠱扣㌵户㥢㉢挰慥㍣戳㉦昹㜶㍡㌳ㅥ敥昷㜳㉦㍦慣ㅣ摦㔱㠷ㄶ㠷扥㘶㉥挱㑤㜲挹㌳扤攲づ攸㕤〵扣晦戱㝡戱昲晦っ捤㈴㌷扡㕡ㄲ㠰昷㑡㠵摤て㉣ㄶ攳愰愸〳㍥〵㍣㝥㉥ㅥ㜳㉤㘳㥣㌷㜵㤹㤸捥㍦ㄱっ㘶㘲㘹㈳㍢㙥㑤ㄴ晦㉣㄰㡢ㅣ敥ㄳ换ㄴち愱㠱戱㤶〸㔷ち㘵㙤扢㔹搵ㅥ㠲㌴㐰㐸㜰㔹愰挵㘹ㄹ㠰敡㙥摣㔴戳ㅢ㌹㘶搸ぢ㌰搳つ㥣㌶捡㝤愰㤴㜴㐳㜰戵㘰㔷愴〹挰㘶愸愶㕣㡣㠴㙡㡡㐵㔶㠱㘰ㄲ㈰㈴㝡〰搵〴扥〱㤵㜲〲㥦㡦㉣㐱㝣㜶愰搷㔷㡣敢ㅤ挶㠷挱㤰搳愰ち㝡㜸搵晣㉢㠱㔴㌷晦㡦㙡㌶晦㉡挸㙡㔷〳㤴㌷晦戳愰㤴㌴㍦㐰㘷㕡㘹㕥㍣㠲ㄹ㘰㌷㉡晥㐸愰扥㥥㌶攷㍥㘲㌳戲慡㥥ㅦ〰㔲散㌹㕤㥥敡昹戵㐰攴ㅦ㄰晣㈱㐰㐸搰敢愹づ㕥㔵搱㜳㝡㐲挵昸㑣㘹捦晦ㄸ㔴㐱慦愷㝡㝥ㅤ㤰敡㥥㑦搵散昹つ㤰搵晥〴愰扣攷㝦ち㑡㐹捦〵㥤㈶㝢敦㍥㠲㡥㔰昵攷捦㠱戸晤ㄱ昴㕣慡㜵㜹愷㜵ㅦ㐳㠶愰㔷ㄳ昴㘶㡡戱捦㘱㜴㉢㠶㄰昴㜰㡡戱搷㘱慣〷㐳㝥ㄱ搴〰愷挶㌱捦㔹挸ㅥ敦挹摤㑤挸㉢㌸攱㔸㠶扣搹㐱㤸〸㜳挶㄰〹㌲ㄴㄶ扢㠱慡戶愶㉢㝡挷搹愳ㄸ㝢㉡㝡挷ㄹ愵ㄸ扢㑢㝢㜷㉢愸㠲㌳㠶㍤㤴㕦㘲㡡ㄳ〵晦昱ㅤ搲㐱㤸〸㜳㤶㄰〹㜲㝡ぢ捥づ㔵㔸戲愲㝡捥ㄸ挵㌰㉡慡攷㉣㔲㡣㐴㘹昵〷㐱つ㜳慥㌴愰搴扡㤷扣挲昳慡昷ㅤ㜱㡦晦攷摥扦ㄵ㐷㍣㉣慣㈰㝣ㅥ挱㌹愱ㅡ㜸㈷㄰挱愹㠰晦昸〴〹攸敡㍢㝣挰愱摡つ愴ㄱ慢敡㜶㔵㌴㤰㠶慤ㄸ戱㡡〶搲搸ㄵ攳搳愵つ扣ㄷ搴㌰㑤扡搸挰愵㠱㑤㍥㌶昰戰敦㈲㜱ぢ㙡扦挵㡢〶搲㜴㔵〳敦〳㈲㘸戱昸敦㤱㕦〶㉣㌶㤰搶㐹慡㙡㘰㤸㘶㜵㌹㔲摥㈹ㄱ摦㤵搸戵敢摤戰㍦㝡愶晦攳ㄷ㌷摣昶敦㝦昷晡㑤㉦㝦慡晢捤昷敥戸攳攵㌷㙥㝡攱扤愷挶扡㥦㍦㜴攸戹捤㜷扤昰晡晣攴摤摥㙦扥㍢㜴昷㔵㙤㝢慥摡㤷摣㜱挱挶慢㜶敥扥戴㙤㜸㕥戳捦㔷㔷㜷摥㠲ㅦ㥣㜱㝥攴挰扥挷挵搳慦㥥㥥ㄵ捡㤴搸㠸戲捤ㄸ㑤㑡捤昲〷㠰㌴晡挲搴晦㐹㙤㠶㌲㈹㌶愳㉣昰愷㘹愹㘶㍣㘸㌷㠳㜶㜰㔲㥢愱っ㠷捤㄰愸挹㝤㈲㌴㈰搵㡣挳㐰攴挳〰㡤摥㌰㔵㝥㔲摢愲㙣㠴㙤㌹つ㌵戹㑦㠴戶愲摡昲㔵㈰昲ㄱ㠰㐶慦愰㤶㤴㔱づ㍢㐶搹ぢ㜹㄰〴挷㑤㌱戶㔵㌰搸ㄳ挵搸㕡挱㘰敦ㄴ㘳㡢挳㠸愰㈸昹ㄸ愸㠲㌵㉡搶㈵ㄵ㜹搸ち挵搸㕣㥡攷㕢捣挳㡣捡攲ㅦ㘷㡡㈴㤵晡㌶㔳㡡挴搲㥦㐰捡㝤㠴㘲㤱晡㘴〹㌵攲㡡㐴㕣㙡晤晦〳敢㙤ぢ㠱
A28: Decisioneering:7.0.0.0 | B28: Decisioneering:7.0.0.0
A29: CB_Block_7.0.0.0:2 | B29: CB_Block_0
A30: 㜸〱捤㔸㑤㤰ㄳ㐵ㄴ捥㑣㌲㤳㤹晣㉣㤱㕤晥晦㈲愲㠲㠱戰〱㔶晥ち摤㑤挲㉥㉢戰扢㤰戰攸㐱㠷㐹愶㘷㌳散晣挴敥挹敥〶㙦㤶愵㜸搰㥢〷㉤扤㝡戴㌸㜳戰昴愴㐵愹㈷㙦晥㤴㔴㔹㘵㔱㜰昶㘶改㝢㍤挹㤲㘴㠳挰扡㔶搱戰㥤敥㝥摤慦㕦扦㝥敦㝢慦㈷㈴㠴㐲愱扦愱攰㉦㤶〸㌶戶㤷㥡捣㈷㑥戶攰搹㌶愹晡㤶攷戲散ㄸ愵㝡昳㥣挵晣㌰㑣㤰㌵ぢ攸㑣搲㤸㜵㡤㈸摡〲愱っ㈶㐹愱㤰愲愸㈲搰㤱〹晥愵摡ㅤㄵ㔷㈵㈲㔰㤵ぢ昹改捡㔵攰㕡昲㍤㑡昶愷㘷㠳戵愷㜲戹㙣㉥㝢攴㘸敥挵散昰晥㜴愱㘱晢つ㑡㑥戹愴攱㔳摤摥㥦㥥㘹㔴㙣慢㝡㤶㌴换摥㍣㜱㑦㤱捡昰攱㡡㝥攴㔸敥挸挸㠸㜹晣昸戱〴㙣ㅤ㥡㈹攴捦㄰扢づ晣搶㡡慢っ㕣愷ち昹ㄹ㑡捣戵攲㈹愱㈲㜲㐵㔲戵㔰㘳㠴㔰换㥤换ㄶ昲昰扦㐳㉢搰㍢㥡㥤㉥㤵㠸换㉣摦㕡戰晣㈶㥥㑦㜵愶慢㤵㔹摤㙥㄰搹攱㈲㈹捥慣㑥愷㜴㠷㈴㥤㑢㡣㕣搴摤㌹㠲㍤挹㤹㘸㔸㐶〴㙥㌲扣慦摦㐶㉤㈵㘵愷ぢ昹㐲㑤愷㍥㘷㠹ㅢㅣ散㌷㥢敦㤴敤㄰㠵慦攱愳愸ㅥ㈱摥戲ㄵ扥㈷㑡ㄹ挵㑡㠱㑡㔶愱ㅡ散㔸㤹收㑢搳㌹㈱昲㈷㔸㕣攷挲㌸捣ㄴ㌵㕤搴㉡愲㔶ㄵ㌵㐳搴㠸愸㤹愲㌶㈷㙡㌵㔱戳㐴敤慡愸捤挳㥣㜶㔱愲㔱戱㔵㙥散㝤昷挷㕦㡡搲攸捤㙤つ攵愳ぢ㕦つ㈶㤰搷ㄴ㥣㉤㍢㐵晣㌵㌲〴〹捦昴攸扡㑣挰㙣挹〹慥愲㐸㔸㔵挵㝢㥡㜴つ戲㈴㐳ぢ敥㉦攱ㄴ㍣搷㈷㑢㝥㔱昷昵愸㌳愳㔳攲晡㉡㑣捡昰㔵㐱ぢ㔷㈶昹㔸㝢㜵慣搵〳づ㈹摥散攰ㄲ攷〳〱㈷〱㕣㉦ㅣ〹㙡㐵敥攷捣㘷㜴㔶昳昵㡡㑤昶昴㕣㌹敡つ慣散㤲㙦搹㉣ぢ㉣㈷愸搷愸愳㐶搷㡡て㌷㘴㌴っ㌹〹ㄵ㠷ㅥ晣㠵つ㐶搵〱昸㠹愹㐸㔴㤱㠸戰〴㍦㔰摡戴挴㝡攸㠰㠸㐵捦搱㉤㜷㡤㉥㌷㌱〸㑣㉦戴慣戸㐸昵㐵昰挸晢慣て㘵㠷昱摦挳㈱〹㄰挹ㅣ㌱㡦㥡戹㥣㌱㌲慣ㅦ搶㈵㜴㠱挷昵愸㈱㔸㤳㜰㉥㕢慥攱㉤㜲ㄷ㕢敦㠰晦㜰户㈹㌷敢㠴て㈵捣戲㑥攷〸戸㉤㥤㉣づ㤹〵㡦㔲㘲敢㍥㌱昸〰㈲昴愶敥㐱㌶㑥㍤〷挷户攷㜵㐶敥扢㙦挶っ㌶捡㝢つ搷㘰摢晡ㄳ㑢㍥戰摥摡㑢扢捦㘴挵戲ㄲ㐰ㅡ㘱㕣搲㥤扤换戸昱㡦㉤㔹〱㜹㐷てㄹ㐰捤慢㍣㤸㍡㑥挹㥢换搴ㄵㄲ㡤㐱㤸㕡㈰㐸㕦㜱捡㠰ㄴ挸〵㄰攴㌱攲㜲昱㌲捥㡣㔵㥤㈷戴㐴㌰挸ㄱ㠳ㅦ㜵〳㤲〸昸㘳㤵戰捣㌴慡ㅥ㔰搵搸摤㌹㙡㥥㕥昲〹㜸戳〱昲㐲戴昱㥢㘵昴愴㡤㕤㔳㠲㍤㠱戰愵㙢㜸摣慢㌶ㄸ㝡㉤昵散㙥捡㤸戱愰挳㥥挶㜹捦㈰㤱㠸ㄸづ㐵㐲ㄱ㉣㄰㐶挳㘱㜰攵攱ㅥ㐷攵㈱〳㜹戳㑥㙣敥戰ㅣ〴攷挳㡦戴愸摢扣㜰㕤㍦挸㔸㡥晦挲收㙥㕦挹㕥〴敤㠱㤶㙣㠲㡥㈴昶㈲㑡㠷愰昷慤〶㌷改㡢愷挱㠹㍡㜴㠶㜶㡢戳昷㍥昸㈸㥣敤戲㘵晣扦㤳㐵㜱戰㜵晡搳ぢ㠰搹㘷㜴搷戰〹晤㜷㝤愱㐴㉡㝡戶扡〱慢㡤㔰挵㐲搲ㅤ㐰户〷㙡ㄲㄳ㈵㘱㐹㘸㑡㡢㤶攱搷攴ㅡ戱收㙡㍥㡣㐱㝥愵㈸愸收㜱挰搱ㅢ〰昳户攰敦づ㘶㕡敡㘶慣戶㐰ㄵ㡢挵〲晣㤴㘳敡㌶摥て㐵㄰㔹晢〹戹ㅣ〷㌰挰挵捥㜹扡㌱慥㔷㈱㉦㡢戶戲㌲愵攰㌹㜵㠸㑥㌴㠵㌳ぢ㘰㥢㘰昳ぢ㤶㐱愸㠲〳㈵挸晥㈲㤰㤴㌱㤹㝢㌶㠳戰ㄳづ㐹㔲㕣改户搷㘴㥢搷㥥㤶〶㍢戳换挹ㄵ晣敦㕤㌸昶㌲㘶㡦戱ㄸ㘶㑣敡㜶慣㜶㐰㈵愱㈶ㅦ摢ㅢ搶挱愲㡤㑥愹收㉤㥥〱㔵ㄲㄶ㈴㍤慣㐰㉤㝦搳捡㘱〸愳扡戳㠵㡦㑦㔰〲〰㐸换㠰〳晣㡣戸㘲㙢㕦ち㕦戴㤵ㅢ㘳㠷ㅢ㘶捣㔹㡢㉣㈲㜸敦㕡㐹㠲慣慤搰㘰扥挷愳晥捥㤵昴愲㌷攵昹㐵㡢搵㙤扤戹愷て㌹愰㕣慥ㄱㄷ戰㡢〲㠴㍤㙣㤲㔷慦ㄳ愳㡦㡣㈵慦㐱慢㘴戲昸㈴愰ㅦ摣㔴㔰〴づ㝣㠲㈲挸愲〰㘵㜵㡥㈷愰㑢㠴摥ㅡ晡㘲攲昶戵㜷㕥㐶㔷ㄴ㘲㌱㜵㈷晣㠲㥢㐸攸㤰慢〱㐹捣㔱㤲㕤愱㜹〳愶攰攷攱搹㘲搵㙤㤲搷㈹ㄸ户㐷㤹敡戴㥢㠱昱㜵㈴挳㠱挷㍣〹ち㠷㐸ㄳ挴㤸散㠳㌱戶㐳㜰㙥㠷㘸搰㕣㤹㐳㍤挱㠰㥦ㅢㄱ㙡㤵昷㈵摤〶㕣㝣㑣㐱㄰晦愲ぢ㤸㔸㙢ㅡ㈴慡搰挳㈲㐸扦〱慢扥昲㈱扣㐶㕣㝣㉡昱㔵戱㜹搷㕢㜴戹攴ㄲ挳㝣㠷〳㙡㌴㡡挷㠸㈱㉢㉣㈳㄰㠹挱㜴搰㙡㄰挱㌳晤㜴ㄵ攴愵换㙦戹㐹〳㐲㐴敢昱㤶挰挷㕢㤹ㄲ晥㐲㔳㜸〷㔴㤸㜴㉥㝢㜴扥攲㜹昳昸㕡ㄸ攰㍤㔶㈳挴挷搷㔴摣〹㥥㠴搸〶晢て㠷扢㕥㑣㉤扤㈳ㄱ戳㘲㥥㌱换扢愱ㄵㅥ愷㔵摥ㄳ㝥㠶昳攳㑢敢摥攷㔷慥㘷昲〳愳㥦晤昱摥て搷扦㝣晦愴昰㔳㡢㄰㍤㐰捦㝤昳挱慦㘷㍦㝣收昷户慦っ散愳ㄲ〶㤱㐷ち攰㈹㤸戸捥㕣挶慦戲攵摢㈴㙥〶愶㠱㙤挵〴㐴㠲攴捡㠸㥡攵ㅡ㥣扡㤸㌴㈷愸㘵搸㤶㑢搰㜴㈰㙤挵㤷攷㌹㌲〷㠹搴㡣㠷慦㕣捦㑤㥡㘵慡扢っ攳㡤㕢㙤慥敦敡㜱㙦㤱捣扣攵㌲搸㠶㘳㈶戶搷㤹〸改㜰㜳つ挷㥤搰敢散㐹㜰㈷晥攱〳搴〳㈵〰㌰㔱㄰㐵㐱ㄱ㤵㔵㝡㐴㐸㝥づ㔸㈵㍢㍣昰㐴ㅡ昲㉣㤱㈳㥢㜸〸昷〹捣ㄲ㤱敥搱㤳㉡戴昱〴晦㡥搰捡㜶挳晤㠲昶㜲搶㠷㕥愵㍥て㤵㠰㌹〵㜷㤰扤慤〶㜶㔲ㄸ㥦㌱㕣换晢愰㝡慡㤰搷〲摢㙤扢㠰晣〲って挰㜰㐷㙡㤷挲㜰㡥㙢搴っ㔶昸㕥ㄲ㄰㤸㌹昳〳慤〶㜶〴扥㉦㌴搴㉣㔴敤㤲挲晤搱㤳搵㠳㔰㈵挳〲㜲㐱搷㤴㠷戱㍦㘶摢改戶㜳㌱㌹㠷㐳㕤ㅦ㍣㘴搴摣㠱昳㘰㤰改ㄲ㝣捣㑡ㄷ㈰㥦㐹㡦摢摥㈲搳㕥㘹搸㑤敤㤸㜶㘸昸搰戰收㤲挵㌱挶㥣散㤲捤ㅣ攱晢㤶摦摣晤晡戵挴愹挱㑦昳㥦扣昱搲㤵つ㑦㍦㝢㔷昸慥㐵攸晤ㄸ㤱挲㘳㜰ㄹ㐷㔰㠰㜰慡㝤〰〹㘵㍥搹て㐳㔶㘴挰㤹摥攷挶㘹㜸㍥㌴㔱㙦㘱㐸扤㈴敥ㄹㄱ昱挴敡㜸戵㜱ㅣ慦㔷扡〵愷昸て㝣昰慡扡㘱㜸ㄷ㡣愸㐷愱ㄲ昰昸㜸㘴攱㕢搸〳昷㜹ㄵ㍡㡡㈸㐸㐸敤挵㘸㑣㉢挷昱㠰㍤改㙦㍣㡥㠸㕣晡昸收攸㕦㠷㕦ㅦ㡢晦〳搵ㄳ㠲㙥 | B30: 㜸〱敤㕣㕢㙣ㅣ㔷ㄹ摥㌳摥㕤敦慣敤搸㡤搳㑢㑡㘹つ愵㉤慤㠳ㅢ愷つ愵㐰〸扥㌴㤷搶㠹摤搸㐹愹〰㙤挶扢㘷攲㘹㜶㘶摣㤹㔹㈷㉥㤵㕡㐱戹㠹㑢愵㜲㉤㤴㡢㉡㔴㠹ㄷ㉥㉦㕣晢㠲㠴〴㐲慤挴〳㈰㈱㈱㔱㄰㠲〷㄰ち㠲〷ㅥ㤰攰晢捥捣散捥散㝡挷敥戶〵ㄷ昹愴晢晢捣戹捤㌹攷扦㥥晦㍦搳㥣挸攵㜲晦㐶攲㕦愶㍣㌳搷㉣慥晢㠱戴㈷㘶摣㝡㕤㔶〳换㜵晣㠹㈹捦㌳搶攷㉣㍦攸㐳㠳㘲挵㐲扤㕦愸昸搶㐳戲㔴㔹㤳㥥㡦㐶㠵㕣慥㔴搲㌵搴㜳㄰晥㐶攲〷㥤扤〶昳〰㑢㌳搳昳换て㘰搴挵挰昵攴扥戱㌳㘱摦㐳㤳㤳ㄳ㤳ㄳ户摦㌱昹收㠹晤晢挶㘶ㅡ昵愰攱挹㐳㡥㙣〴㥥㔱摦㌷戶搰㔸慥㕢搵㝢攴晡㤲㝢㕥㍡㠷攴昲晥摢㤶㡤摢摦㌲㜹晢挱㠳收㥤㜷扥㘵㄰慦捥㥤㥣㤹㕥昰愴改扦㑣㘳ㄶ㌸攵摢㘷㘵搵攲摡愴昴㉣攷摣挴捣㌴晥㑢捣ㅦ㑦㜷㑣㉣慥㐸ㄹ昰搵搲㤳㑥㔵晡㍡㍡づ搸㔳扥摦戰㔷戹㜹扡㝤〴㑢慤ㅡ㝥㔰戰㘷㘴扤慥摢昱愸㈵㝢ㅥ㝢㔷㌷搶〷敤㐵改昸㔶㘰慤㔹挱㝡搱㕥挲㐰戵㈱晢戴㉦㑦ㄹ捥㌹㜹搲戰㘵挱㍥摡戰㙡昹㌰攵晡㙥㡡㠷㐸㑥㑣㉤㝦㘲捡户㘷㔶っ㑦捤挸攷挶㘴戴㍤攲㔵搳㙤慦敦㍥㉥愷慥摥挰㌱㙦攸摥づ㌵㘷っ慦搹㜲扣㝢换㘸昱改ㄹ摣摡扤㝤㘲㡦搲㝤㙥敥摥㐷㙤㘵扡戵ㄸ㠸攸㕢敤㈸ㄶ愳ㄷ〹晡〹㑡〴㐴愰㕥㈶ㄸ㈰ㄸ〴㄰昹扦㠳㑢㤲ㅤ㔹愵㔵っ慤戲慣㔵慡㕡愵愶㔵愴㔶㌱戵捡㌹慤戲愲㔵㉣慤昲㠰㔶㌹㡦㌶㜱㉡昵昷㙢㔱昲㤶敥昹敤挱摦慣捣㝦敥ㅦㄷ敥晦摢愹攷㝦㌵戸ぢ㡤敥㡤㈶㌵敢ㄹㄷ㐰㙡㉤㉡㍥㌰戱㥦晦㌶攷ち㌰㠵㜹搰扣挳㥣㥣慣ㅤ摣㙦摣㘶ㄴ戸慣っ攴愷〸㘵〴㙤〷捤晢㉣愷收㕥㔰戸扢㘶摡昰㘵㙢攳挶愳扡㘹户攱搴晣搷㙣㕣戹ㄸㄸ㠱扣扡扤慥㌵㐸㐷户㐵戰㤵昴搵晢慥㙤敦㜶挶愸㌷攴搴㐵㉢慣㝥㙤㕢戵扤攰戹换摤㙢㡦㜸昲挱㘶㙤挷㡣愶㈰搴搶搴搸ㅤ慢っ慢挲㜹㡤捤慣戸扥㜴搴昴挶敤〵慢㝡㕥㝡㡢㤲㈲㔱搶搴㔲㉦㘷㔵挴昵攳昳づㄶち㙥慤扤㍥㔹㙡摥㜵㌱〰㌳换ㅡ收扢㉡扤㘰㝤挹㔸慥换㉢㔲㑤挲㜷愲㘲㙦慡昸㠸㕢㙤昸㌳慥ㄳ㜸㙥㍤㕤㌳㔵㕢㌳㈰㘹㙡㈷摣㥡捣攷㜳㑡㈸㐰攰昶昵〹㤱扢愵㍢㉦㈸㐴㈴㔰㑣㐶扥㉡㑤㜶ㄳ愷戰㍡慣愲㉥㐹㤳摡ㅢ㌶ㄹ㡣昳㔵㌲㈶㠳〳ㄳ㙢愲晥攰㑢摦戸挹戰㑤捣扤戲㡤㌵㙤㌴㕡晤㕤㙢搲〹㡥ㄹ㑥慤㉥扤㑣敤㈷㌸㈳㝤ㄸ愰㜰〹〲愱敢敥㔱搵㠹㡢㘲扤㜰挱慡〵㉢挵ㄵ㘹㥤㕢〹㔰〶つ㔹㉡㜱㙢㍢㤲㝥ㄹ㡡昴摤〴愳〰攵㜲慥戸㠷㡤㡡㘵愴㕣㠱搲㈹㠳㤷㔳㠲㥣晤㔲扣㍣㘸ㅥ戱敡㠱っ㠵昲戰〹㡣㠴㕡㑤愱㙦㠸㈴敡ㄹ搵㔰㘱散㌱㘷㐰愵㠶攵〴敢㉤扥敤攰㤲㤰㠸㜶㘴挱戶㤳〵ㄴ〵㘹㜹㤰挱㙢㈰㥡㌶㘹㤰摤㌸㐱㐴㘴㠳っ捤㡥㤱搳㐴挶昶ㄹ㌲〲敤㤳㐴挸搶晢扢换〸ㄲ㝢㈷㤱戲㔳㔷㝥摣㤱㘶ㅢ搹昲愱㌴扢ㅣㅢ愷㕦㐱㜰㈵挱㔵〴㝢〱挴ㅦ㈱攱㈸攵㤰㑦㈷晤㌵㜸搶慦㈱㜸㉤〰攴㤳㑥㤹ㄳ㠹㉡摡㔰㕢戱㈳搹㙥〸㜶戲㌲㡡㐳㔱㐴换戸㘹㘷づ搹ち搱㤱搵戹㍤㜴㙤㕥改搸ㅢ扢搳㘶㜲㌹愴挸㡣愶挹戵㙥搲㌴戹ㄱ㙣摡愳摥扡づ㕤昵㌱㠲搷〱㤴昵搷ㄳ㐲戹搰攰摤㥡㐵㑦㤳昲㔵㘱ㄶ㠵挶㔰㡦ち㍥㈲㘴ㅥ〱㌲㠴㕣挷昱㘵挷㠶愶㌹㌸㙥扥敡㙤攸㝤摤昹㍢㐲㝡㥢摥摣搱㍢昴ㄷ扤㐸㉢晡㝡戰㤷昸㑤㔷ㅤ㜳〳慡昵ㅢ〹㙥〲㘸搳㌱㍣㝤扦㔸㑦㠱㌲㡢敤〴收㜶搳敢愲慣摣愵昵㔵愹㌴搰愰戹㘴㜸攷㘴〰て挶昱㔹搸挲慥攷挹㍡づ戵㌵㔵挰昳换㤵改㐲晦㠸攷摡㉣摦戱㤱晤㔷㠵㘲挸攷戵扥㕣㥢㡤㥣㘱㙢㈶㝣㑥〹捡愱づ扥慤扢㤰㐸㜴㑡㤳ㄷ晢㘵㥦㉦㜷㈴㐹て㤲攴㘶㙣慢㝥ぢ〰愴㠴昸㘵㔷㠹戲㡦捤摥愴㥡愵㉤㔶㝡昸㌲㑥㈷㙤㍥挴づ㌹㌲㄰㍡㙣愷攱㍦昰㠷散㐵换㙥ち㡢〱㝢㐱㝡㔵昸ㄶ慣扡㉣㠷㙥㔹㡡㥡ㅤ㔹昱㉡㤱ㄵ㝤㝤ㅤ攷改っ晦㥡愲㤳㌶㈹㤱挹敤㤹㤵ㄹ㘷昱ㄶ㔱搱つ㐹愱㤲攱ㅡ㙡㑡㈰㔲ㅥ摢敥㠸㤸ㅥ㐴捣慤搸㌸㝤㍦挱㈴挱〱㠰挲昳㤰㌴㕢摤㜸㠶挳晡搷攸搲慥㔴㜲㈵愲㐱戹〸㥦敢㉡慣づ昲㌵㙦㈶戸〳愰捤晣愱〳㌲㠳㄰ㄵ捡ㄳ㠴愸挲ㄸ收ㄹ㑢㕥㈰つ散㌲ㄱ㔸㥡㘹昸㠱㙢㌳戲㌴㘴捥扡㈷摤㘰搶昲㔷ㄱ㠹ㅡ㌵愳捣㝤㉢搲〱㜵㜹戰㝤摡捡摣搵㔵㔹搳捤㐵户〱搱㜶㝣㜶㍢ㅣ捣戱ㅤ戰㈵搵搹㕣ㄳ㐸扤㥤㡦㌱㠴挰㑥㉢㝦㉢扤戱㕢昲㝥昳搰㌷摣摡搱㈵㉢愸换〱㌳㘴㍡收㑢㈶㜶ㄱ㤱㠳㕡扦戹戴攲㐹㌹㍢㘴ㅥ昵慣㕡摤㜲㈴㤱〱ㅢ㤳挱扡㌹㜹づ㔱㠲〵㤷㌱㐰搷ㄹ㌲㤷㍣挳昱㔷つ〶ㄴ搷㜷愷㥥㔴㔸愴㘰㑥㕢㡥㡦搷㈸㉣㌲㍦㙣㉥慥戸ㄷ㄰戱㙤搸捥㔱㘳搵摦ㄶ㔸㈱搱㠷㐹愱㐶㘸㐲搳㐴㐹㉢昵㡡ㅦㅥ挸㜳㌹昲㕥㥥㐰攱㉡㔷愰捦㍣㐳㝢搳慥㡦㘲㌴戴搳㌹愷㐱㐴㡦㥡㠵㝤㤹㔲㤸㥣慡摦挹㍥㙦〵戸晢攸改攳慤挸摣㑢㡡㔹ㄷ攸攵捦㤰昱㡡㉣㥡㠱㄰晡攸㜶㠵愴挲㌲㔲づ㌸㄰ㄸ攷㔳㍢昹㤵㑤搵㠶搴户慢㤵㍤㠲㐸搲愰㌹㘷㉣换㍡攲搱戶ㄱ散ちㅦ㘸挶摡㐶摤㡦敡㘶㕣摢㌶㐸㕡㈴换挵慡㐱ち㥥㙡〴敥〹换搱㑤〰㐵㝦㔱㤱㜱ㄱ㐵挶㐵㔵㌴㘸㥥㘲㘸㔰攵㌹㤶㝢捥昰慣㘰挵戶慡㈵㍥㌰㝣户㉤㘸ㄲ㑣㑥挹ㅢ愷㔸㘶㡣戵㔹昳愷㘱戲昹ㄳ㐰昷〴攴㈸户㡥攸〷攵㙡愲㠸㝦愲㐷挷ㄲ〴㡣昲㤴敡㙦挷㘸〵㜵㍢〲㈲㐷愵㑢昱ㅤ㡣㑢㡦愰㈴ㄴ㐲挴㝡〶㠹挰㉢㤸㄰昲㜴㜱ㄷ捤搳㡥ㄵ〰㝢挴搸ㄱ㉢㤸昵㠱㜲〰㘴搵昱昶㙡㠵搵㐴愷昱愶㔶戸慥戳㉡愵㈶慥敤慣㑦敡㡤㌷㙣㔰ㅤ㙡㤴㠴㈲搹慣㤱搲㉣ㅢ捣㜱㍢愹ㅡ愱ㄴ㜷慣㙤㐴㤶摢戴戵敦㤴㈲㉦㐱㌱㈹㥡挹改敦㔰㠴㠲㐰㙦愴愳攸戳捦㈶㡦㐴挴㠶㌶㐰㤹㝡㉡㉣ㅢ㡡㐲㠲挷㜱敤愴㈶换搱ㄳ昸㝢㔷㤴㥤㙦〴愹ㅡ攳攲㘸㔴㌳㔵慦捦㍢戰ㄲ慡㠶㔷摢㈶㉣㡤戵㠵ㅡ㐶㜱㘷慦摡㍦摣摥〴㈳㐶㙣挸戰㐸㠶ㅦㄸ㙣〸收㑡㐴㔴㘹㥤つ㜱慢㥢挵㈵㍥㥤㤰㠶愳㌰戰ㄸ搴㘶攵㥡㌲挳㕡㤶晣愸敡搰㍣㉤㉡㌹慡㥢㔳换㍥㔴㝡㐰㌹ㅥ攵ㄴ㠳敢收㈹扡愵㜰㠹〱㘲㌷捡㉤㔴〳㠴㜶㥢〳昰㘴戰㝤戰㠳ㅤ〹㐳㈷戴捥㈸㐱㡢ㄹ㠴㥢㕥〴㜹愷㐷㡣㐲㤰㥡㉡晤昵戰昸挲㤳㑣㕦㍦㥣㡢㌳ㄱㄳ㌱摣㤵㘱㍤〰戹挹挸㈴戹㘸㌴づ㤸㠷㤲㑤〹慤挱戸㡣㈶挶㄰㑤㍥㉦挰㉤ㅥ挶戲㠶挹㌶㜵摣㜳ぢ㉣㘸搳晡晡㉥昳戸㔳慤㌷㙡㔲愹攲㔸㔶㉢㡤扣㉤昰愵慥〰㠶摣㤴戱㉦搱愶ㅣ挷㔱㡡㑢㈶㤲㝡户扢昵挳攸慥㠴ㅣ挶〸㔵ㅦ〳㤰ㄹ㙥㌹ㄵ㄰敢戸愷㐰晢㜰㜷敢〲㠳扡㍣〷㤱搶㔱㐴㔹㌶㠷晢㜸捤㈸戲攲戶㐴戳㌹㜷捥愵捤㥥㈸㍡㘶㠵㐵摢〲㐷㔸㘷㈸昰㡡㐵ㄸ㈳㍤㜲〷〷挹㕤㡡愲扢㤷ㅥ㔱㡦戹㑢㐰㠵挲㠰㘰㡣㤷愷愰ㅣ㜶ㄵ㡣㐴㠳㕢㙢㔹摤㠲搱㕦㕡摥晡ㄴ㠰㘰ㄸ㤸〶㉤㕡㠶〶捥っ昲㥢ㅢ㌸搷愱㔵㐶㠴㌴ㄹ㑣㘵㡣㜲ㄴづ㝢㈰つ摣挴㠳昴㤲ぢ㈵ㄴ散㔱ㄷ挳攲扢㠹攳㌶㡥㐰慥㜷㐵㕢攱㠲ㄱ攰晡㡢戳户慤㜸慡㔶愳戹ぢ晦摣戶挰㉡慥㙥㠴收攸㥥戶㑢㔹㙡㑤戴敦慥㙦慢㠸㉥ぢㅥ㤸㥤㌸㘶〴搵㤵挵㘰㍤扣戸搵㉢㐹ㄴ㥥㠵㍦㘲挳户搳㘶捥㍢扣㠸扡挶扤㉦㥦㜷摣ぢ㡥㥡㔷挱攷慤㍦㔰〸慥㔰昶㜳㤲攵摣扦昱㑦㈵㉤㔷昸㈱㐶摣捡戴㌹㐰换㐱挲㜱㔴ち愵挱ㄸ昲ㄹ㜴〲摢扤㜹㙢㠰㜴戲愷㡤㑥㤴㈰搸㈱ㄴ攷摣换㐶㈸攲〷㐰㉢㠹㈵㍣㤲㘳捦㥦〱敢㡢敦愳㠴〸挷㜳㈴㐶ち慦㐳㉥〳㜵㑡㤰㐷㔷㍣㜸㈱攴晦〷㑢㌱㌷㙦挸㑥晦〵㘶ㄶ摦㙢㐷搱戵㐴搱㜷㍢㔰㈴㜸つ㐴昱敦摤挸挴愹挰昰散㡢ち㠴㜳㑤㍢〷搰㔷晣挲敦晦昰〰㍡ㄷㄱ㠷戲搱㄰㙡扢〱捦㑤ㄳ愱慦挳㐴㘰昰㕥㤹〸㈷㤰ㄱ㡣攲㠷㈶㐲攴〳㤹㐷挱收㈶〲㘳㝢ㄹ㠶㘰㈲搴㥡㜰㙢昰〴㜶㠵㑤晦搸㌱㕣扣㤵㍥攲昹㔰㕡晥っ㍣㔲㔷㜶ㄶ㉦ㄸ㥥㘱敦㔵攵㐷㍤〹㘵收㉤攱㈶户敡挲ㅥ㔷㙦㔸愳㍡㙤攰慢㠸扤散㍢晥㤴慤摤㕦〷愶挲ㄴ扡敦㐵㐹ㄴ㕦㠲愷㐴昰摣㤰㝢摦㥥㙦ㅣ晤摤㐳㡦ㅤ收㙤戵㠸㔶ぢ户㈰摦㑢挸㥥昶〴㠲扡㠹㡢㈲㤷昳挳㥣ㄳ昸㐴挹㕡慤换㘹挳㔳㔶㤰慦摢㜱㌶㈴扣〴㘱㠶挴户ㅤ㑣㑣摣㝢〸㑤捣㠹㌶㜷愷晡戰㐹戹〸㈷ㄲㄳ㔷㍥扤㌸㙣㈸扡㉡戲ㅥ慤捤挲户愰㡡㕥攴㐴搲㔶㈲㑦㥤㑣㐲㝣戳㕤搷ㅤ愴慥ぢて㌲っ晢挷㔲ち昱〷㔲㐸昲㈰挳ぢ〱㑡㑡㥤㐲愶㜰㉢㐰㐶㘴慤㍤挴㑢㝦挰㡥㄰㤰捤㑢㝦㍤㝥挴㠲㕤〴ㄶ㘳㕦㝣慦㈷㕡摡愲戱㙡㘲愸㔶搹㌴㡢挸愸挳ぢぢ㈶攳搲㤴愵㜳〰愵㕢㜶㐷昱㈵㐳㜶ㄸ㜸ぢㄹ扢㘰搳搷㔶戶敦㜲ㅡ戸昹〱㍤㔳㔴ち挳搹捤㘲ㅣ㐸㔵㡣㉥㙣㕡づ㡢〸㠷挳㙣戳搳㐰㔴〵㥤攵散挵愹ㄴ挱㍦㝥㈹挴晡昱搶搰㤷户搷㔰挷㌹晤㔸㈰㝦戰扦慥捤㘰㙣扣㤵ㅣ〳〹扢愵㔶愵昰㝡昸㘹㜴攱愲㜳㐲㙦㘵搵戳㌸㠸㍦㌱㘷昵㘹ㅤ晡㥦搱㙢挵㔹㘷搸㥢㘱散㤴晥㝦ㄷち㌶搵晦㠲戱㌷㠵挸晢愳っㅦち㡣㥦㙣ㅡ戲攱㡥挰戳㡤攰㡤㍡ㄸ敢㉡换㤰㜷㤸㕢挴挷慢㘱戵㤲攰昰㝢攵摢慦㐶㌴晢搲戶ㅤ攸㉡〰ㄹㅢ㉡㍣〳ㄱ搴戵㝦㕡㙥挵愷摢攲扢搱㜱捦〹慢敡戹扥㙢〶㘳㡢〸晡㡥昱摢㌳ㄳ㌶捦㤴昸㕡扢㔰扢ㅥ㍢㌱昸㕥昴㌹㌹て㠱㝤㔲〶㉦㔷㉣㤲㤱㠵慤㐵㌲昸ㅤ搲㐸㈲扣㐴敤攰㕦㘶摥摢㌰敡昸㜴㜵ㅥ扥捥㠰㐵摢㐲搹㠵ㅥ攷昶ㅢㅡ摣㍡摣搱扡〷晥㈰㔹㥦㐰㜰㑣㉤攱摤敦攵扥戶敦㐱扡㙤戴㌶㥦㉤㝢昳戹㤵ぢ㑦〳愷㕢㝢㑢㥡㘴昸㑥㝥㤱㕣搶㉢㠴戸戴㝦ㄸ㝦户敥愰攵㘸愳愰昳攸㠳㙥㍡挲挶敢㜰㥦㙤㈱晡㝤ㄶ㕤挵ㄴ〱㝥扡ㄱ㘵昸㈰攸攵㈳㉢㡡㉦㘳㔹㘴〰攴㜳挵㉡㐰㜷慡㝥㙡㈳慡ㅥ㠹〵戲攰ㄹ㠳攴㔸ㄶ㕦㐴㐳㙥㔷戸㙣戰〴㤷㉤搴㔹〲㜹㍤敥㠱㝣㑥昰㉣愱㈶昲㜹㜴㘸㑥挴㐲㘹昷㠹㝣㜶愳㠹〸㕡〱㙡愱挹昱㐷㘲㉤愲搷㔱慤摢〴づ㠱ぢ㌰㑣戱㐸㔹㔳っ㐳ぢ摦㈷㘶㤰㝥ㅥ晤㝤攱昰昳捦㌱晤攵戰㔰㠲㄰㔵改挹㔳㄰慡挹㍦㥥㥣扣㠷搲敥㤳晦挴㐶㤳ㅦ愱㡣攴㑣昴〰㘰愸㑦㔴昰㐷㉤愶㠱っ昷㤱㍦㜱㤶〰扦搴㉣㐶っ㤴愸扥ㄷ㤰㐱㕦㙥戸㙡㜵ㄱ㤹戸㙦㠱敢捦昸戸㐷搹㐷扣〸㐹㕦㑥㌱㜴挶ㄶ㐳慤㔸戲㈳㉦散戶㤰つ㔸ㄲ扦㤶敤㉡搲㡢㍤㐶昸挵㠷㘳挴ㅣ㍢ㄶ㝦㌹愵㐵㌱㈷㄰㐶㘸㤱㤲㝥戸㤱攲㐳㜱攳㙦㝦愷攵㌲㐵〵ㄲ愸㈷㙣㑣㍡㔳㡤㍦ㄸ㌷㍥㠰慦戲㔴㥢ㅣ㙦㄰㌰扤㄰㌷㈶㍤慡挶㡦挵㡤晦㝣㘰㙦戳㜱㑣㠷攱挸〵ㄲ㐹㠶慤慢慣晦挴ㄷ摡挳㘸㕥㌰愹㍦〷捣戰㤸㤲㔳㠵㡥敢㑡㠳づ攲㌲㠸㠷㙦愴攷㜰户〹㔷㐰㈰㘴挳晦㔵挲㜱摣㜹㥡㌵〲〳㥦㐰慦㈱搸散改敡㠹㥤㡢收扣㠷㠲㝥昳戸㡦㌳㔵㙤㕢㤱〸捣㠱㝣戸扦㥢㌸攵㌳㑣挷搶㝥挴㐱㌲㡤㜷㐸㝡㔳ㅥ㉡戰㤲ㄷ敦㡦㌱㥢㝢戴㐵㌳晡㈳㐰づ愴㈳㈰㌳晡愳㠰㘱㈰㠶户㤵㜳㈳攴㝦挵摣敦㘷挵〷〸ㅥ〳㈸ぢ㌲㍢改愰昸㐱㠰攱昸㝦㔴㌱戶愶晣㈵㥡㜸㈸㝥㔹㤲㡣昴て戳挳㐷〰晡攰扥ㄵㄱㄱ㤶昵㡦愲㈴昹㔲ちづ昵搲㡦戱攲攳〴㥦〰㈸ㄷ㌸搹㉤敦ㅡ搷搴愳收晡㈴扡㡡㐷〹昰搳ㅦ㡦㌲㝣㈸㜰ㅦ摥搶摤㔶收㔱㌸晥戰ㅦ愱捥搴ㄷ晣㜷攱㡢晣㜵㉥扡て晦㐳㤲㠲㌲散昳摡㕢㝢ㅢ㡢㑣㐰㥢㕣晤㔶戱搹㉦㘱ㅣ慥慢ㄵ㐱攱㠸㔴㉡㈵慤㈸㠸㙦㉥㔸戸㜸〳摦㜲㐸㔵〸㐱ㅡ㔰ㄵ㑥㔴㜱ㄸ〵晡愷搸㤴㌸㈶㥥昴㑦昳㠹愸㔵㥢昸㤹㈸挳〷㐱扣慡敥て㐴摤攳ㄷㄲ搷慡挲㙡㝢㈱昱慦㉡㔶㤲㉦㝣㤲㠳㈹㘴㈱㤳搶㑡㐴㥡愲愱㉦㈲㌳搴㌷捣戹摤㠷㥦㜶㔱㔴捦搶捥㥥晤攷㜰㝥散敡晣扢摥㌹昸攴ぢ㍦晢晤ㄳ扦㜸捦愱㍦晤敢愹愷㝥昱㠷㈷㥥晢搷戳换㠷㝥昲昴搳㍦扥晢㉢捦晤㝥户昹㔵敤㍢晦㥣晢敡挳㤳攷ㅦ㝥搰㍣㝤换搱㠷敦㝦攰摥挹㠵换挶晢晡晡晢㙦ㅡ晤改㔵㙦ㅣ㜹昴挱敦㠹ㅦ晤晡㑡㐷愸攵攲〵改㘹㜰搹㙡ㅡ㕦㐲〶搳攰㡣㕦搱㘹㜰戹㙡愳㤶愳㡤㥡㐶㐱〹㍥つ㑥㐰㔵ㄸ改㡡㠱晦〰㍢㌹戴㐴
A31: Decisioneering:7.0.0.0 | B31: Decisioneering:7.0.0.0
A32: CB_Block_7.3.0.0:1 | B32: CB_Block_7.0.0.0:7
A33: 㜸〱捤㔸ぢ㜰ㅢ挵ㄹ搶㥥㜴戲㈴换て挸愳㘰㈰㔱ㅥ搴㔰㍢挲㡦㠴〴㘸ㄲ㕢㤲㘵换敦㐴㡡〳㙤ㅡ攵㉣慤散㡢敦攱摣㥤㘲ぢ摡㄰㐸ぢ愱〴〸〵㑡㔲㈰㐰〹慦〲ㄹ愰㙤㌲㔳愶㜴㠰㔲㍡搳㠱愱㠱〱愶㌴㈹㔳愰㔰〸㤴戶戴挳戴㔳摡晦摦㍢扦攴扢㈴㠴㜴㠶戳昵摦敥晥扢摦扥晥晤晥㝦捦㐵㕣㉥搷㝦攱挱㌷㍥ㅥ㑣㥣㤹㉣攸〶㤵挳㔱㔵㤲㘸挶㄰㔵㐵て㌷㙢㥡㔰攸ㄴ㜵挳つㄵ扣㘹ㄱ昴㍡㥦搶挵㑢愹㉦扤㤹㙡㍡㔴攲㕤㉥㥦捦捦㠱ㅥ㐱昰㔷㌹㤶昱㘳慢愰〷㐴㉡ㅡ改改摦〸愸㐹㐳搵㘸㙤愸捦㙣扢扣扥㍥㕣ㅦ㕥扣戴晥晣㜰㕤㙤㈸㥡㤷㡣扣㐶㤷㉢㌴㙦㘸㠲㔴ㅢ敡捤昷㑢㘲愶㠳ㄶ㔲敡㄰㔵㤶搳晥扡挶㝥㘱昱戲晡挵㑢㤶攴㉥戸㘰㔹㄰扡㜶昵㐶㈳㙤㔴ㅡ〶扣㤳㠵敡〵搴敥㘸愴㔷愳戹㤳㠵挹攳㐲㉣㡡搱㡣㠸㉢㐶愹㈶㉡〳攱㘸〴晥㈷慤ち攴㤶㠶㝢㤲挹㡣㘰ㄸ㔴挳戹昹攵㥥㑣㝦㥦㈰攵愹㔷㘶挳昱挹㝤㠲搶㉤挸戴㑣㕥愳搳搵㠲㌲㐰㌱挷换慤㜹㌱敢㠱㕤㜴㥦㙢搷㠹戵㐰攱㥥㘸㈴㍡㈸㘸〶㠳挴づ㙡散㙡戳㥥挲搶㌰㔸㝤㔶㠲换㐲㑡㉤ㅢ㘱晤攱〸㑢㔰昸㐰㜸晤㈰㉡慣㔶㈱搶㉣㔴㑦㍣晦〴㉢㥢摣愸ㄴ㙡㜱㘹㠱㑢昷㜳改っ㤷捥㜲㘹捡愵㜳㕣㝡㠰㑢て㜲㘹㤱㑢㙦攴搲㐳㔰㘷散昱㤵㤴㜰搶昳收愵てㅦ慡攳づ户摦㜳愴攲搶〳㙦晣㘶㔵㄰戱扡㘱㑥攱㙥㙡㥣愴捤攷㜱㍥挷扦㠶㐱愸捤换收ㄶ挴愸㥥昱攳晥㈴㤴㉣ㅤ昵㐲ち昶㉤㈸㐷㔵挵愰愳㐶㑣㌰㠴ㄲ戹㔷搰愸㘲昸愱㔲つ㙢㘵愶戰㘵ㄹ㉢ㅢ㙢ㅤ戰㜲㠰㔰挹㤲㤳㔰㑡㔹㠱㠹㐴攰戸戹㍤愶昴㜹敤づ㜰㥢愰てㅡ㐲扦㐴ㄷㄶ㙤㌵慥ㅢ㔸搷ㅡ㐳㤴昴㌰㐰戶㙡㙡㝥ㄸ㔷昴㘴攱㌰〳㐶愳昰㤶㠱㘰㜴㠳㙦㜸㥡晣攵㈰〳㝥㔴晡㔱㠹㔴〴㉦㝣㉣㕤昰㔴㐸挳㄰㘳慡㉣㠸捡㐹摡摣攰っ〰㕤㘵㔹㜰㑣ㄳ㐶攰ㄴ㑥㐰㌷㠴敢昰敦搸㌴〴㉣㤴㕢㤲㕢㥡慢慦捦㉥愹ㄳㅡ〵ㅥ捤晦戳㥣愴戹㔰㍦㈸慦ㄵ㤵慣㍡挲㡥㔶㤹㥣ㄴ㤹攵挴㤰㙡㠳㜲㑡搰〶㈸㥣㔲㉤ㄱぢ挸散㈸愵ち挳戴㔴挶㌱昷慡愲㘲攸㐱㤹扤㤳〵戹㕦㤵㑡捤っ昰戶慡〵㉣〵㌰戴㥦搵敦ㄴㄵ㐸愱㑣㐲㔹㠰愵㔸㑤戳㄰㠱愱晢㐱㜵㈴㉥㑡㐰㍢㌴㝢〶㙢ㄶ㔵㌵㡤㑡〲㝡㠱愸㑡㜳㌹㌱㈳㠲攵㤶换㜱㑤㤵㤳㔴搱搹愸㘶戳慡慢改㠰㐶㜵㈴戶ㄸ㌵〴㌰愷㌳㈳㠲㑥㈷㠸愳㈶㘷㑥㌵愲收㤵慣㝥㠶扤㌲㘹〸〶慤㉡搶㑤㠰㑣㙢㤶〴ㄲ愵㍡㕢扥㌹挵捤搸搱㙢ㅥㄵ㑤昵㔹㐵㙡愰㔲戵摦㔹ㅢ搷攸愶㜱敤戴ㄱ㌵㠳㘳摣㑣㔱㍦㙤㤶愶捡ㅣㄷ㄰愰慡㔳㠵つ慦㐶敥ㄵ㌳㐳㔴㑢㔲㜴慢㌴换愶㍡ぢ㔵戰摣㑡㠶敡㌵㍤ち㑣ㄴ戸㍣㍢㝦㜲㘹慥㘵搴愰挰㈵㔹ㄸ㉦昸㌷愳㤰挲㜳㍣㝢㑡ㄵ戳㑦㔰㥣㍥愵㌸慥㘶昲㍡㜲㠶愶㑡㔳㌵捤搹捤〲昴㤹敤㔲戳搴攳收㍣㉥㠲敥搹㠳挲攵㠱㌷㍣攰挳摤㙥攰㤴摡㈲挶㘰晥ち扢搱挷㥣挳㈴ㄳ㐶敦㘰挷㍦攳〱㐴戵㌳ㅡ摢㘵㌴㐴晣㌱㌷㌳㜳敡㈱挵㤰㐴搵昰昴㤶㤰ㄲ㐷㥤㉤㙤㑦ㄹ㉦㥥㠲昱㍥〸㈱愷ㄵ㜵戳ㅡ昶〷昶㐱愲搸ㄵ㔷捣㤸㤳收㍦㘱㤷㌸摣愳㜴㍣㘹㔷昰㘸㘳敤㜳㡥戱㄰攳戶昷晦慤捣㜱㌳慣搹户㙣㠶㤳摤㈶㈸㔹㠹㙡㐷摤㐲㠲㈳昲捦㐴㌱ぢ挵㙣㄰晣㥦㠱扢㡦㜷㙦㌱㌸㉣搹㡣㝥㌱㥤〶㍦〳㌹戴㍢攲㍤つ愴户㑢搰挰扣昹㜷〰捦㜶㡢㤹㥤㉡ㄸ敤㌰㠴挰㤰愲㡥〰㌷㠱㘱昰㍡㤲〷㠲晢㑢㑡㜰敢〲昰戳ㅥ捥挵戹〸晣晦〹㘰ㄱ㍡戰㙥摤㍡换搷㜰㉥晥㙤㈸㌹捡敥㔹搱捣㤸搹㑣ㅦ㍥㜶〲㜶攴攲摦〲㈰㐷㙢㘲㤳ㅣ㈵〵㝥㐴捣ㅡ㠳摥㐱㉡づっㅡ搸搴〷て㡥㜷㍦㉣㐵ㅤ扣昷㐰攰捣㈲㘹晦㔹㤰昳捦㐱㠱捥㈲㄰㌰晤愴㌷攰㥦㘷㘶㍤攸㐱敤㌶㙢摣摦㘳㈰ㄳ攸㔴㠵㙣㕣挸㐰捣㕤㘲㐵摣扥愸㉡て㐳ㄴ愲㔵㘲捤㈸戰〰戰换㘶㌱㑢㌵ㅦㄶ愰㡦昰㐰挰慤㝢ㄹ㠷敡㄰㕥戸㕤㍣㕦敡戳敢㉢㌱㠶戵搰戲㈴搸㡤昱㥢㐳㘲ㅡ晥㤱㔵换㔶攲捤㈰㄰挰㘸搸㍦ㅦ挵〲㄰㍣㕡搴㘷㈲㥢ち㙣㉡昷㑡慡㠱攳㉤㤷愳ㅡ㕣㑣㌴㔱攸ㄴ㘵搱㤸㌵㥥敤捥换晤㔴㑢㠱㐲搲㘷㡣㤷昶㔲㉤〳〶㉦っ搰㉡㜶㡣㈷㤱㔸㑤慥㑦愴㈳挸㄰㜳愷慢㈰攰㡥收㜵㐳㘵㠱摢㥣改晡㤸摡慤ㅡ㌱㔱ㅦ㤶㠴挲㐲ㅢ戵愹㔹㍢㐸ㄵ㜰〰ㅡ昸㠱㘳㔵㔲㠷㠷㘹搶㘶㡣㐹㌵て㌳㐸挴扥〸㉥㠴ㅤ㘰搸つㄷ㘱㉥挳ㄷ㜶㈶户戱ぢ挵攴扤㐲ち昰昹㌸㌸㐲攴挴搸〸敤㠹晦㍤ㅣ扥捦搸戱晤㔱㝥ㄷっㄳ戹愳〲㕣㈰〹攰攳㈲挸㜴㡣㕡捥㠶㐴㤵昵攳㤱晡㙣㐳㍥㌳㘰ㅤ扦搸㈵戲㘰㙡愲㔱挰㘰㌸㠸户戹㤴㐶搹㤵捤挷㌲㉣昸㕡慢㙡㐳晤慡㍡㠴搷㠸㜲ㄹ㜳晡㈰愵〶㕥戱㑡㘵昳㝥㠸㘹㔸㈳户㝢捡㔵捡㍡㜵愸挴㜰㤹㠵搲摥㙡㐸戹攳㕡㠶攵挸慢戰㌴㜸〵㍢㜲摦㠶敤㌵㤱昲愶㍢摥戹晡㠵敤㑦㕥㜳ㄱ㜹挵㔲㤴㉣搲㍡㥦扢敥㜰挷昵ぢ摥扡㜲㐳昹戹ㅡ㡦捣㜳㕣㥥慦ㄲ㉡㔶攴挶㑦㐵㑡㌴㈴㕡㥡㘳㠶捦搲扥ㅣ搸㌹挴㍤搹㤲㕣㙡㄰㘶ㅤ㉢换戵㙡㘲㔶戲㝣昰㑣戳㙡㈷ㅤ㠰ㄸ愷㔷搵㐵っ㌵换㜲㈹㑤㔰㜴㈴㈸㈵㔳㌸㜵㑡㡥ㄱㄲ㥦㡢㠸㡡づ摤戰㤳㠸改㡡ㅣ〶慦挰㍣㜹㔹㘹ㄵ㠶昵㉦挴愹㐰㠳㌱ㅦ㜶㉣〸㐷㌸㡥昸㌸摦〹㕡戹换㕢〳㘸㕥昳㔶つ㈹捥搵㠰ㄲ〵戰㈹㔸㈹㡦慥攲㈸㡥慣㈸っ挱攱挱つ㘲㈲〲㜵摢搱晢㜸攸挶摣㝥㉤戶㔹〴愲扤㜵㑤㘲攲搶昴戹㍥攰昰攸摣㡥㍢ㅥ挲㤳㔸㙥㕡つ挶㐸㐸搳㝥戶昹㤸㉢戶挴㐰㡥搵㐱愳㉣㥦㐸挶㈱㈴づ收㍡㠵㝥㉡挵㔵㑤ㄶ㡣㜲㌳㠳慣㈵㠳㤷戰㜴攰搷㘴〱慤っ㍦㤶〰㙦㐹搴㤷㙢捥ㅢ㙡㤷愸昸㜳㈰㤸㈹㕡㐵挲㈸ㄴ〹愳慣㈸㤸㕢㡤㜷ㅣ搳㜵〲㤶㍡㈰〰摢つ捡㘲挶㠷ㄹ扣㠷㝣㈱捣ㄳㄸ㡤〵晣戰愰昸㌰ㅢ〵ㄲづㄵ㤱户昹㙤〰戶㍢っ㍥ㄲ㤷づ户ㅦ㡣㤸㈳㕥昸㈳㈷ㄸ㐰㐲挰挴戸挹㝦ㅥ愰昱㐸攰ㄸ㐱戱攷愳戱て㤲ㅦ㕤づ㈵㈶晦捥挳ち昰昳㘳㠰㠴〹晣㔵㘲昰㠰㑤扤昵㈰㑥㠹㐶搲㈶㑦㡥搱慤ㄷ㡦㐶㌹ㄴ㑦戲昱㑡㡣㌵戰㡤扦ㄱ〵㕥摡㉢㤱搳㐳㤸㕢㠲攲㝣ㄴ㑢㔱㉣㐳㜱〱㡡ぢ㔱㕣㠴攲慢㈸㤶愳㔸㠱㘲㈵㡡㈶ㄴ捤㈸㈲㈸愲㈸㘲㈸㕡㔰挴㔱戴愲㘸㐳㤱㐰搱㡥愲〳㐵㈷㡡㉥ㄴ摤㈰捡扣〴㑦ㄸ㑥捥摦〳㘲散攱㜱㤵㡥戹㌱戸㥢㠱ㅣ㙥㔱搲㈸㐸㜰㉣㌰㠹晥挴㑣戱㥢㍦㉢㘳昱㌲㝣㈷昴ㄴ〷慢攳㙤㌱ㅥ㉤戵つ挰㔱㠳ㄶ挰㍦ち扥挳戱㍤捥㘰㈲挶挷㌶昸㜸㔷㠱㤸搹㈵㘶㌴㔵㔷㜳㐶㈸〹㉣ㅦ挲慢㜲づ㈲摦㘶戲て㄰㔹㜴捥㉡㠳㔸〰㉢㔱㠹㍢㡥㌳昳㈷㐱㤴戹㐹㈳扣搰昱㝡㔳㤸㙦㤶愴搰㤸敢搴扤㙢戰㘸捡昷㑤㙦ㅦㄴ㉤㠲搳㑡㐳㐹〸て㐳㔱〸㙦㐳㜱㐹ㅤ搱搳敤㜹愹㤰㕥㤶㙥愸㙢愸㑢㉢㜴愴㔹搷攵昰愸愴换攴㐱换㉢扥晦搴㈵挱攵㌳㙥㡦晣㘰晤㡡つ戳收㥤晤㍥㜹挰㔲ㄴ㝦㠳㈴㘸㌸㌸㈶搳愴搱昹㥡㡥㜷慦搵㘰㥡攳扤挷㔲ㄴ㍢㕥㠲搶㌷㡥攴㕤て㌹㜷戳㉥㥢㘸㜷㌹愱摤㘹㈹㉥㝢㙣㡢昴愹扦慥敢㠶㐷ㅢ晡㕥㍦㔷㙣㈰㘸挶攳㘸㝥㐴㌳㤱㙥㜷㐲扡捤㔲摣㕢摤昰捡攱愷㕦敢㜹攸戲㉦搷扣㔴扤晢㈰挱戳㘰㠷戴换〹改㔶㑢昱昴挳昷晤㘸㐷㐷慥昹㤱㑦ㄷ㝣搳㔷㜹摦㜳〴て㤴ㅤ搲捤㑥㐸㌷㔹㡡敢慢㌳㕢昶扤扣慦昳愶挱扤㤷㜴㙣晤㥤㠷攰愹戴㐳摡改㠴㜴㠳愵昸搷㔷ㄶ慣㐹敤扣戶攳㠹㑦㌶㌵㙥攴㕥ㄸ㈴㜸戴敤㤰㜶㌸㈱㕤㙢㈹㑥扢戱敥搹㐳㠱晤㙤㔷扦㕥晤捡㤶昸㜳戳〹昲㠳ㅤ搲㜶㈷愴慢㉤挵ㄳ戳㝦㤸㝡㘱摦戵㑤晢㜷㙦昹摢愷敢昶扦㑢㤰㘴散㤰扥敤㠴戴捤㔲㝣㐷㔲㙦扢晢挸换㕤て㙤慡㝡㜱搶戶㕤敤〴㤹捡づ㘹慢ㄳ搲攵㤶愲㙡挷搰搲昸ㅦㅦ㙦㌹戰㜰㘷散ㅤ㌲攳㜴㠲㜴㘷㠷昴㑤㈷愴换㉣㐵㘵敢戶㘸换㡡慡搶㥦㍥㕣戸㜳攵㙦㍢扥㐷㥡ㅣ㤰㐶㥤㤰㐶㉣挵戳㡦搵㜴扦昶昴挱挴㑦攴挵㜷扣㜹昰㔰㠲㈰昱摡㡤挹㜰㐲搲㉤挵㉦㥥晤㜷㤷㍦晢㝣挷晤ㅦ㔴㔶捥㑡挵扦㑢㤰扤敤㤰㠶㥤㤰㔴㑢㜱换扡㡡搲戵摢昷戴㕦昷㑢搲扣㘴敦㠵扢〸扡〰㍢㈴挹〹㘹挸㔲㉣㝤慦敢㡥昷㤲㘲㘴㑦攲愱慥〲扦昱㈰㐱㍦㘲㠷㌴攸㠴㌴㘰㈹摥㍥攷捥て扥㜵昸愳㤶㈷〲〹捦扣〳㤱㑤〴㥤㤱ㅤ㔲搶〹㈹㘳㈹づ慤摡户慤攳㝡愵改㡡〷攷摦ㄵ㜹晣㐵㡤愰㐷戳㐳摡攰㠴㤴戶ㄴ㡦㍣㤵晣㔵㙡捦㔵搱晤ㅦ摥㝦昷㠶㔷㑦扦㤱愰㕢戴㐳㕡攷㠴昴㜵㑢昱㤷㝦〴户㈵㥥っ㜵散㍤㌸㔷㍤愳敦㥡晤〴㝤慢ㅤ搲挵㑥㐸㙢㉤㐵㐹敤慦㍢㉦挹扥搱㜶敢㈹㝤㠷㍦㝣㝢搱㍣㠲づ摡づ㈹攵㠴㤴戴ㄴ㡦㉣㑢晣愱攵捤㜳攲昷搴㝤晦愶㉦扤晥挹㑥㠲㕥摥づ愹搷〹愹挷㔲昸㌹攵攰㌳㕢㝦ㅣ扦㔲昱搴搵敥㤰づ㄰っㄵ散㤰㍡㥤㤰㍡㉣挵昳昷捥㜹㙣㝤㕦㈴戱敢㄰晦昱摦慢㘷昴ㄱ㡣㌷散㤰摡㥣㤰㕡㉤挵挵㡤㉦扥㝦㕥昹㑢昱㥢㕦㍡摣戹昵昱昶つ〴㠳ㄶ㍢愴㤸ㄳ㔲搴㔲扣㝣捡〳㡤㈵㔷㕤搳扤㝢收晣摥戹昵㉢㜷ㄱ㡣㝣散㤰㥡㥣㤰㔶㕡㡡昲㐵㝦晤摡づ捦摥挴㉤ㅦ晦扣敡㡡㐳搹昵㤵㘳㌱ㄳ㡦戱挲㐵㐵㠱散愴㉦户㤳〲挲㥡攲敦敢㉤昰扤扣㠰ㄱ愲ㅢ扥㠰昱㉣㡡昷㜰ㄷ㥥ㄸ搶搸㘷㘶扣㍢昱㉢㘰搴㥦〳㘷㙡㐸㠵㠸㜸㙦昲㍦㠳搰㈸㡡愳㌵っ昷攲㌸㡦愲て㡥愵愵ㄸ㡥愵㜶晦慣改㍦㡤摦㘸㉥晤ㅦ晤昶慦㠴
A34: Decisioneering:7.3.0.0 | B34: Decisioneering:7.0.0.0
B35: CB_Block_7.0.0.0:6
B37: Decisioneering:7.0.0.0
B38: CB_Block_7.0.0.0:5
B40: Decisioneering:7.0.0.0
B41: CB_Block_7.0.0.0:4
B43: Decisioneering:7.0.0.0
B44: CB_Block_7.0.0.0:3
B46: Decisioneering:7.0.0.0
B47: CB_Block_7.0.0.0:2
B49: Decisioneering:7.0.0.0
B50: CB_Block_7.0.0.0:1
B52: Decisioneering:7.0.0.0

Sheet Overview
B2: Financial Model of a Nodules Mining Concession

Sheet User Interface
A1: =IF(OR(Cost_sens<>0,Yield_sens<>0,Price_sens<>0)," Sensitivity Variables are currently not at baseline levels.","") ->  | M1: Expanded Outputs
B2: Financial Model of a Nodules Mining Concession
M3: Royalty and Tax Revenues | Q3: IRRs & Net Cash Flows for Nodule Collector | Y3: NO EQUALIZATION
B4: Payment System | C4: Variable Ad Valorem | M4: Royalty Revenue | N4: =IF($C$4=$B$16,'Financial Model'!AR$56,IF($C$4=$B$18,'Financial Model'!AR$61,'Financial Model'!AR57)) -> 4060.244864 | O4: million | Q4: Collector IRR (post-tax) | R4: =G7 -> 0.1563982901 | U4: ETR | X4: Tax rate = 25% | Y4: Key Results: Ad Valorem 2.5%/ 7% | AC4: Key Results: Variable Ad Valorem2.5%/4.5%->9.5% | AI4: Key Results: Blended 2.5%/15%
B5: Number of Collectors | C5: 2 | M5: Corporate Tax Revenue | N5: =IF($C$4=$B$16,-SUM('Financial Model'!AJ255:CG255),IF($C$4=$B$18,-SUM('Financial Model'!AJ603:CG603),-SUM('Financial Model'!AJ333:CG333))) -> 3690.781035 | O5: million | Q5: Net Cash Flow (post-tax) | R5: =IF($C$4=$B$16,'Financial Model'!AX$56,IF($C$4=$B$18,'Financial Model'!AX$61,'Financial Model'!AX57)) -> 10381.18988 | S5: million | U5: Collector Gross Revenue | Y5: Collector IRR | Z5: 0.1591760068 | AC5: Collector IRR | AD5: 0.159237656 | AI5: Collector IRR | AJ5: 0.1597773923
B6: Maximum Collectors per Mining Vessel | C6: 1 | F6: ="Key Results: "&IF(C4=B16,TEXT(C4,0)&" "&C17*100&"%/ "&D17*100&"%",IF(C4=B18,TEXT(C4,0)&" "&C19*100&"%/"&D19*100&"%",TEXT(C4,0)&C21*100&"%/"&D21*100&"%->"&D23*100&"%")) -> Key Results: Variable Ad Valorem2.5%/4.5%->9.5% | M6: Withholding Tax Revenue | N6: =IF($C$4=$B$16,-SUM('Financial Model'!AJ259:CG259),IF($C$4=$B$18,-SUM('Financial Model'!AJ606:CG606),-SUM('Financial Model'!AJ337:CG337))) -> 0 | O6: million | Q6: Discounted Cash Flow (post-tax)* | R6: =IF($C$4=$B$16,'Financial Model'!AJ$56,IF($C$4=$B$18,'Financial Model'!AJ$61,'Financial Model'!AJ57)) -> 40.54505549 | S6: million | U6: Collector OPEX | Y6: Sponsoring State Tax Revenue | Z6: $3,624 million | AC6: Sponsoring State Tax Revenue | AD6: $3,627 million | AI6: Sponsoring State Tax Revenue | AJ6: $3,603 million
B7: Annual Production Level | C7: ='Output to Cashflow'!C4/1000000 -> 3.855762193 | D7: million dry tons/yr | F7: Collector IRR | G7: =IF($C$4=$B$16,'Financial Model'!AK56,IF($C$4=$B$18,'Financial Model'!AK61,vavA_IRR)) -> 0.1563982901 | M7: Additional Profits Tax Revenue | N7: =IF($C$4=$B$16,-SUM('Financial Model'!AJ261:CG261),IF($C$4=$B$18,-SUM('Financial Model'!AJ608:CG608),-SUM('Financial Model'!AJ339:CG339))) -> 0 | O7: million | Q7: Collector IRR (pre-tax) | R7: =IF($C$4=$B$16,IRR('Financial Model'!AJ49:CG49),IF($C$4=$B$18,IRR('Financial Model'!AJ52:CG52),IRR('Financial Model'!AJ50:CG50))) -> 0.2143461476 | U7: Collector Net Revenue | Y7: Royalty Revenue | Z7: $3,695 million | AC7: Royalty Revenue | AD7: $3,682 million | AI7: Royalty Revenue | AJ7: $3,674 million
F8: Sponsoring State Tax Revenue | G8: ="$"&FIXED(IF($C$4=$B$16,'Financial Model'!AZ$56,IF($C$4=$B$18,'Financial Model'!AZ$61,'Financial Model'!AZ57)),0)&" million" -> $3,691 million | M8: Total Tax Revenue | N8: =IF($C$4=$B$16,'Financial Model'!AZ$56,IF($C$4=$B$18,'Financial Model'!AZ$61,'Financial Model'!AZ57)) -> 3690.781035 | O8: million | Q8: Net Cash Flow (pre-tax) | R8: =IF($C$4=$B$16,'Financial Model'!AW$56,'Financial Model'!AW$61) -> 18530.04123 | S8: million | U8: Royalties | Y8: NPV of Royalties* | Z8: $1,556 million | AC8: NPV of Royalties* | AD8: $1,551 million | AI8: NPV of Royalties* | AJ8: $1,519 million
B9: Financial Payment System Variables | F9: Royalty Revenue | G9: ="$"&FIXED(IF($C$4=$B$16,'Financial Model'!AR$56,IF($C$4=$B$18,'Financial Model'!AR$61,'Financial Model'!AR57)),0)&" million" -> $4,060 million | M9: Nodule Royalty Rate Equivalent | N9: =IF(C4="Ad Valorem",'Financial Model'!BG56,IF(C4="Blended",'Financial Model'!BG61,'Financial Model'!BG57)) -> 0.11638656 | Q9: Discounted Cash Flow (pre-tax)* | R9: =IF($C$4=$B$16,'Financial Model'!AJ49+NPV('Financial Model'!D79,'Financial Model'!AK49:CG49),IF($C$4=$B$18,'Financial Model'!AJ52+NPV('Financial Model'!D79,'Financial Model'!AK52:CG52),'Financial Model'!AJ50+NPV('Financial Model'!D79,'Financial Model'!AK50:CG50))) -> 493.8537011 | S9: million | U9: Sponsor state | Y9: Effective Tax Rate (collector) | Z9: 0.425453776 | AC9: Effective Tax Rate (collector) | AD9: 0.4249224483 | AI9: Effective Tax Rate (collector) | AJ9: 0.4255920576
B10: Manganese Cost & Revenues Basis (metal vs ore prices) | C10: Ore | F10: NPV of Royalties* | G10: ="$"&FIXED(IF($C$4=$B$16,'Financial Model'!AP$56,IF($C$4=$B$18,'Financial Model'!AP$61,'Financial Model'!AP57)),0)&" million" -> $1,742 million | R10: *collector discount rate = 15% | U10: Equalization
B11: Manganese Price Royalty Basis (metal vs ore prices) | C11: Ore | F11: Effective Tax Rate (collector) | G11: =IF($C$4=$B$16,'Financial Model'!AM$56,IF($C$4=$B$18,'Financial Model'!AM$61,'Financial Model'!AM57)) -> 0.4428365362 | M11: Production & Revenues | Q11: Collector Costs | U11: Other Fund | Y11: Overall System Financials | AC11: Overall System Financials | AI11: Overall System Financials
M12: Total Lifetime Production | N12: =SUM('Financial Model'!AJ7:CG7) -> 94.65896184 | O12: million dry tons | Q12: Average Cost Per Dry Ton Nodules | R12: =C54 -> 140.078899 | S12: /dry ton | U12: IRR | Y12: CAPEX | Z12: $4,047 million | AC12: CAPEX | AD12: $4,047 million | AI12: CAPEX | AJ12: $4,047 million
B13: Financial Payment System Variables | F13: Overall System Financials | M13: Maximum Annual Production | N13: =C7 -> 3.855762193 | O13: million dry tons/yr | Q13: Collector CAPEX | R13: =G46 -> 2331.174613 | S13: million | Y13: OPEX | Z13: $786 million/yr | AC13: OPEX | AD13: $786 million/yr | AI13: OPEX | AJ13: $786 million/yr
F14: CAPEX | G14: =" $"&FIXED(G48,0)&" million " -> $4,047 million | M14: Average Nodule Transfer Price | N14: =IF($C$4=$B$16,'Financial Model'!AN$155,IF($C$4=$B$18,'Financial Model'!AN$160,'Financial Model'!AN156)) -> 368.0742012 | O14: /dry ton | Y14: Annual Metal Revenue | Z14: $2,131 million/yr | AC14: Annual Metal Revenue | AD14: $2,131 million/yr | AI14: Annual Metal Revenue | AJ14: $2,131 million/yr
C15: 1st Stage | D15: iii | F15: OPEX | G15: =" $"&FIXED(G56,0)&" million/yr" -> $786 million/yr | M15: Collector Gross Revenues | N15: =IF($C$4=$B$16,SUM('Financial Model'!AJ27:CG27),IF($C$4=$B$18,SUM('Financial Model'!AJ32:CG32),SUM('Financial Model'!AJ28:CG28))) -> 34841.52176 | O15: million
B16: Ad Valorem | C16: of GVM† | D16: of GVM† | F16: Annual Metal Revenue | G16: =" $"&FIXED(G81,0)&" million/yr" -> $2,131 million/yr | M16: Collector Turnover (annual) | N16: =N13*N14 -> 1419.206589 | O16: million/yr | Y16: Collector Financials | AC16: Collector Financials | AI16: Collector Financials
C17: 0.025 | D17: 0.07 | Y17: CAPEX | Z17: $2,331 million | AC17: CAPEX | AD17: $2,331 million | AI17: CAPEX | AJ17: $2,331 million
B18: Blended | C18: of GVM† | D18: of BTP‡ | F18: Collector Financials | Y18: OPEX | Z18: $540 million/yr | AC18: OPEX | AD18: $540 million/yr | AI18: OPEX | AJ18: $540 million/yr
C19: 0.025 | D19: 0.15 | F19: CAPEX | G19: =" $"&FIXED(G46,0)&" million " -> $2,331 million | Y19: Annual Nodule Revenue | Z19: $1,409 million/yr | AC19: Annual Nodule Revenue | AD19: $1,409 million/yr | AI19: Annual Nodule Revenue | AJ19: $1,405 million/yr
B20: Variable Ad Valorem | C20: of GVM† | D20: of GVM† | F20: OPEX | G20: =" $"&FIXED(G54,0)&" million/yr" -> $540 million/yr
B21: Floor Rate | C21: 0.025 | D21: 0.045 | F21: Annual Nodule Revenue | G21: =" $"&FIXED(N14*C7,0)&" million/yr" -> $1,419 million/yr | Y21: Total Equalization Payment | Z21: 0 | AA21: million | AC21: Total Equalization Payment | AD21: 0 | AE21: million | AI21: Total Equalization Payment | AJ21: 0 | AK21: million
B22: Price for Floor Rate | D22: 510 | F22: Total Paid to the Authority | G22: ="$"&FIXED(IF($C$4=$B$16,SUM('Financial Model'!AY$56:BA$56),IF($C$4=$B$18,SUM('Financial Model'!AY$61:BA$61),SUM('Financial Model'!AY57:BA57))),0)&" million" -> $8,251 million
B23: Maximum Rate | D23: 0.095 | F23: Total Equalization Payment | G23: =IF($C$4=$B$16,SUM('Financial Model'!AJ298:CG298),IF($C$4=$B$18,SUM('Financial Model'!AJ645:CG645),SUM('Financial Model'!AJ376:CG376))) -> 378.4607074 | H23: million
B24: Price for Max Rate | D24: 720 | F24: add'l payment (lifetime) | G24: =IF(C4="Ad Valorem",'Financial Model'!AI299,'Financial Model'!AI361) -> 0 | H24: million | Y24: IGF SYSTEM
B25: † GVM = Gross metal value in nodules | C25: ‡ BTP = Before tax profit | F25: * social discount rate = 3.75% | X25: Tax rate = 0% | Y25: Key Results: Ad Valorem 2.5%/ 7% | AC25: Key Results: Variable Ad Valorem2.5%/4.5%->9.5% | AI25: Key Results: Blended 2.5%/15%
F26: ="Equal Type = "&D111 -> Equal Type = 3 | G26: =CHOOSE(D111,D112,D114,D115," -- none --") -> 0.07 | Y26: Collector IRR | Z26: 0.1624522933 | AC26: Collector IRR | AD26: 0.162133525 | AI26: Collector IRR | AJ26: 0.1633477212
Y27: Sponsoring State Tax Revenue | Z27: $0 million | AC27: Sponsoring State Tax Revenue | AD27: $0 million | AI27: Sponsoring State Tax Revenue | AJ27: $0 million
B28: Project Timing | F28: Exploitation Contract Period (years) | Y28: Royalty Revenue | Z28: $7,219 million | AC28: Royalty Revenue | AD28: $7,196 million | AI28: Royalty Revenue | AJ28: $7,122 million
C29: Start Year | D29: End Year | Y29: NPV of Royalties* | Z29: $3,010 million | AC29: NPV of Royalties* | AD29: $3,001 million | AI29: NPV of Royalties* | AJ29: $2,941 million
B30: Prefeasibility | C30: 1 | D30: 6 | F30: =B32 -> Design & Build | G30: =D32-C32+1 -> 4 | Y30: Effective Tax Rate (collector) | Z30: 0.4271385487 | AC30: Effective Tax Rate (collector) | AD30: 0.4270742026 | AI30: Effective Tax Rate (collector) | AJ30: 0.425417273
B31: Feasibility | C31: 4 | D31: 7 | F31: =B33 -> Ramp-Up | G31: =D33-C33+1 -> 2
B32: Design & Build | C32: 8 | D32: 11 | F32: =B34 -> Full Operations | G32: =D34-C34+1 -> 23 | Y32: Overall System Financials | AC32: Overall System Financials | AI32: Overall System Financials
B33: Ramp-Up | C33: 12 | D33: 13 | F33: =B35 -> Shut Down | G33: =D35-C35+1 -> 1 | Y33: CAPEX | Z33: $4,047 million | AC33: CAPEX | AD33: $4,047 million | AI33: CAPEX | AJ33: $4,047 million
B34: Full Operations | C34: 14 | D34: 36 | F34: TOTAL | G34: =SUM(G30:G33) -> 30 | Y34: OPEX | Z34: $786 million/yr | AC34: OPEX | AD34: $786 million/yr | AI34: OPEX | AJ34: $786 million/yr
B35: Shut Down | C35: =D34+1 -> 37 | D35: =C35 -> 37 | Y35: Annual Metal Revenue | Z35: $2,131 million/yr | AC35: Annual Metal Revenue | AD35: $2,131 million/yr | AI35: Annual Metal Revenue | AJ35: $2,131 million/yr
Y37: Collector Financials | AC37: Collector Financials | AI37: Collector Financials
B38: Production Factors: Ramp-up, Abundance, Number of Collectors | Y38: CAPEX | Z38: $2,331 million | AC38: CAPEX | AD38: $2,331 million | AI38: CAPEX | AJ38: $2,331 million
B39: Production Levels During Ramp-up | C39: 1st Year | D39: 0.7 | Y39: OPEX | Z39: $540 million/yr | AC39: OPEX | AD39: $540 million/yr | AI39: OPEX | AJ39: $540 million/yr
C40: 2nd Year | D40: 0.85 | Y40: Annual Nodule Revenue | Z40: $1,396 million/yr | AC40: Annual Nodule Revenue | AD40: $1,394 million/yr | AI40: Annual Nodule Revenue | AJ40: $1,390 million/yr | AK40: million
C41: 3rd Year | D41: 1 | AK41: million
C42: 4th Year | D42: 1 | Y42: Total Equalization Payment | Z42: 3523.699872 | AA42: million | AC42: Total Equalization Payment | AD42: 3513.737853 | AE42: million | AI42: Total Equalization Payment | AJ42: 3493.813816
Y43: add'l payment (lifetime) | Z43: 0 | AA43: million | AC43: add'l payment (lifetime) | AD43: 0 | AE43: million | AI43: add'l payment (lifetime) | AJ43: 0
B44: Upfront Project Capital Expenditures (US $millions) | Y44: * social discount rate = 3.75% | AC44: * social discount rate = 3.75% | AI44: * social discount rate = 3.75%
A45: 1 | C45: CAPEX | D45: % Nodule Collector | F45: Total CAPEX (US $millions) | Y45: Equal Type = 1 | Z45: 0.195 | AC45: Equal Type = 1 | AD45: 0.195 | AI45: Equal Type = 1 | AJ45: 0.195
B46: Pre-Feasibility Phase | C46: ='Output to Cashflow'!D8*$A$45 -> 44.8099208 | D46: ='Cost Model'!S5 -> 0.4652132231 | F46: Nodule Collector | G46: =SUMPRODUCT(C46:C51,D46:D51) -> 2331.174613
B47: Feasibility Phase | C47: ='Output to Cashflow'!D9*$A$45 -> 359.5901778 | D47: ='Cost Model'!S6 -> 0.627691441 | F47: Metals Processor | G47: =SUM(C46:C51)-G46 -> 1716.308478
B48: Collection System | C48: ='Output to Cashflow'!D10*$A$45 -> 834.9367685 | D48: 1 | F48: TOTAL | G48: =G47+G46 -> 4047.483091 | X48: Tax rate = 25% | Y48: Key Results: Ad Valorem 2.5%/ 7% | AC48: Key Results: Variable Ad Valorem2.5%/4.5%->9.5% | AI48: Key Results: Blended 2.5%/15%
B49: Mining Support Vessel | C49: ='Output to Cashflow'!D11*$A$45 -> 1107 | D49: 1 | Y49: Collector IRR | Z49: 0.1566678007 | AC49: Collector IRR | AD49: 0.1567475586 | AI49: Collector IRR | AJ49: 0.1575190574
B50: Transport Vessels | C50: ='Output to Cashflow'!D12*$A$45 -> 142.68 | D50: 1 | Y50: Sponsoring State Tax Revenue | Z50: $3,688 million | AC50: Sponsoring State Tax Revenue | AD50: $3,691 million | AI50: Sponsoring State Tax Revenue | AJ50: $3,659 million
B51: Metallurgical Processing Plant | C51: ='Output to Cashflow'!D13*$A$45 -> 1558.466223 | D51: 0 | Y51: Royalty Revenue | Z51: $4,020 million | AC51: Royalty Revenue | AD51: $4,005 million | AI51: Royalty Revenue | AJ51: $4,015 million
Y52: NPV of Royalties* | Z52: $1,725 million | AC52: NPV of Royalties* | AD52: $1,719 million | AI52: NPV of Royalties* | AJ52: $1,690 million
B53: Project Annual Operational Expenditures | F53: Total Annual OPEX (US $millions) | Y53: Effective Tax Rate (collector) | Z53: 0.4405089192 | AC53: Effective Tax Rate (collector) | AD53: 0.4398850579 | AI53: Effective Tax Rate (collector) | AJ53: 0.441100518
B54: Nodule Collectors | C54: ='Output to Cashflow'!D18*$A$45 -> 140.078899 | D54: /ton nodules/yr | F54: Nodule Collector | G54: =C54*$C$7 -> 540.1109227
B55: Metals Processors | C55: ='Output to Cashflow'!D19*$A$45 -> 63.83818225 | D55: /ton nodules/yr | F55: Metals Processor | G55: =C55*$C$7 -> 246.1448496 | Y55: Overall System Financials | AC55: Overall System Financials | AI55: Overall System Financials
F56: TOTAL | G56: =G54+G55 -> 786.2557723 | Y56: CAPEX | Z56: $4,047 million | AC56: CAPEX | AD56: $4,047 million | AI56: CAPEX | AJ56: $4,047 million
B57: Ongoing/Maintenance Capital Expenditures (US $millions) | Y57: OPEX | Z57: $786 million/yr | AC57: OPEX | AD57: $786 million/yr | AI57: OPEX | AJ57: $786 million/yr
C58: CAPEX | D58: Interval (yrs) | Y58: Annual Metal Revenue | Z58: $2,131 million/yr | AC58: Annual Metal Revenue | AD58: $2,131 million/yr | AI58: Annual Metal Revenue | AJ58: $2,131 million/yr
B59: Collectors | C59: ='Output to Cashflow'!C24/1000000*$A$45 -> 49.2 | D59: ='Output to Cashflow'!D24 -> 2
B60: Risers | C60: ='Output to Cashflow'!C25/1000000*$A$45 -> 51.9675 | D60: ='Output to Cashflow'!D25 -> 5 | Y60: Collector Financials | AC60: Collector Financials | AI60: Collector Financials
B61: Moorings | C61: ='Output to Cashflow'!C26/1000000*$A$45 -> 5.8425 | D61: ='Output to Cashflow'!D26 -> 5 | Y61: CAPEX | Z61: $2,331 million | AC61: CAPEX | AD61: $2,331 million | AI61: CAPEX | AJ61: $2,331 million
Y62: OPEX | Z62: $540 million/yr | AC62: OPEX | AD62: $540 million/yr | AI62: OPEX | AJ62: $540 million/yr
Y63: Annual Nodule Revenue | Z63: $1,419 million/yr | AC63: Annual Nodule Revenue | AD63: $1,419 million/yr | AI63: Annual Nodule Revenue | AJ63: $1,415 million/yr | AK63: million
B64: Metals Compositions & Yields | F64: Annual Recovered Metal (Full Production) | AK64: million
C65: Composition | D65: Yields | G65: Annual Metal (kt/yr) | Y65: Total Equalization Payment | Z65: 325.3279533 | AA65: million | AC65: Total Equalization Payment | AD65: 323.4681264 | AE65: million | AI65: Total Equalization Payment | AJ65: 307.6438099
B66: Manganese | C66: 0.284 | D66: =IF(MnProdType="Ore",0.99,0.9) -> 0.99 | F66: Manganese | G66: =$C$7*C66*D66*1000 -> 1084.086098 | Y66: add'l payment (lifetime) | Z66: 0 | AA66: million | AC66: add'l payment (lifetime) | AD66: 0 | AE66: million | AI66: add'l payment (lifetime) | AJ66: 0
B67: Nickel | C67: 0.013 | D67: 0.9 | F67: Nickel | G67: =$C$7*C67*D67*1000 -> 45.11241766 | Y67: * social discount rate = 3.75% | AC67: * social discount rate = 3.75% | AI67: * social discount rate = 3.75%
B68: Cobalt | C68: 0.002 | D68: 0.8 | F68: Cobalt | G68: =$C$7*C68*D68*1000 -> 6.169219509 | Y68: Equal Type = 1 | Z68: 0.195 | AC68: Equal Type = 1 | AD68: 0.195 | AI68: Equal Type = 1 | AJ68: 0.195
B69: Copper | C69: 0.011 | D69: 0.9 | F69: Copper | G69: =$C$7*C69*D69*1000 -> 38.17204571
B71: Metals Price Forecasts | Y71: CONTRACTOR SYSTEM
B72: Use Override Prices | C72: 2 | X72: Tax rate = 0% | Y72: Key Results: Ad Valorem 2.5%/ 7% | AC72: Key Results: Variable Ad Valorem2.5%/4.5%->9.5% | AI72: Key Results: Blended 2.5%/15%
B73: 0 = default modeled prices; 1 = model prices with user provided long-term price; 2 = fixed overrides | Y73: Collector IRR | Z73: 0.1591760068 | AC73: Collector IRR | AD73: 0.159237656 | AI73: Collector IRR | AJ73: 0.1597773923
C74: User-provided | D74: Fixed Price | F74: Annual Metal Revenue at Full Production ($million/yr) | Y74: Sponsoring State Tax Revenue | Z74: $0 million | AC74: Sponsoring State Tax Revenue | AD74: $0 million | AI74: Sponsoring State Tax Revenue | AJ74: $0 million
A75: 1 | C75: Long Term Price | D75: Override | Y75: Royalty Revenue | Z75: $7,318 million | AC75: Royalty Revenue | AD75: $7,309 million | AI75: Royalty Revenue | AJ75: $7,278 million
C76: ($/ton) | D76: ($/ton) | G76: Avg. Annual Revenue | Y76: NPV of Royalties* | Z76: $3,090 million | AC76: NPV of Royalties* | AD76: $3,086 million | AI76: NPV of Royalties* | AJ76: $3,051 million
A77: 1560 | B77: Manganese Metal Price | C77: 1560 | D77: =$A$75*A77 -> 1560 | F77: Manganese Fraction | G77: ='Financial Model'!CH133*$C$7 -> 514.9408967 | Y77: Effective Tax Rate (collector) | Z77: 0.425453776 | AC77: Effective Tax Rate (collector) | AD77: 0.4249224483 | AI77: Effective Tax Rate (collector) | AJ77: 0.4255920576
A78: 475 | B78: Manganese Ore Price | C78: 475 | D78: =$A$75*A78 -> 475 | F78: Nickel | G78: ='Financial Model'!CH134*$C$7 -> 902.2483532
A79: 20000 | B79: Nickel | C79: 20000 | D79: =$A$75*A79 -> 20000 | F79: Cobalt | G79: ='Financial Model'!CH135*$C$7 -> 370.1531705 | Y79: Overall System Financials | AC79: Overall System Financials | AI79: Overall System Financials
A80: 60000 | B80: Cobalt | C80: 60000 | D80: =$A$75*A80 -> 60000 | F80: Copper | G80: ='Financial Model'!CH136*$C$7 -> 343.5484114 | Y80: CAPEX | Z80: $4,047 million | AC80: CAPEX | AD80: $4,047 million | AI80: CAPEX | AJ80: $4,047 million
A81: 9000 | B81: Copper | C81: 9000 | D81: =$A$75*A81 -> 9000 | F81: TOTAL | G81: =SUM(G77:G80) -> 2130.890832 | Y81: OPEX | Z81: $786 million/yr | AC81: OPEX | AD81: $786 million/yr | AI81: OPEX | AJ81: $786 million/yr
B82: Prepare Price Projections --> | Y82: Annual Metal Revenue | Z82: $2,131 million/yr | AC82: Annual Metal Revenue | AD82: $2,131 million/yr | AI82: Annual Metal Revenue | AJ82: $2,131 million/yr
Y84: Collector Financials | AC84: Collector Financials | AI84: Collector Financials
Y85: CAPEX | Z85: $2,331 million | AC85: CAPEX | AD85: $2,331 million | AI85: CAPEX | AJ85: $2,331 million
B86: Exploration Contract Fees | Y86: OPEX | Z86: $540 million/yr | AC86: OPEX | AD86: $540 million/yr | AI86: OPEX | AJ86: $540 million/yr
B87: Exploration Contract Application Fee | D87: 500000 | Y87: Annual Nodule Revenue | Z87: $1,409 million/yr | AC87: Annual Nodule Revenue | AD87: $1,409 million/yr | AI87: Annual Nodule Revenue | AJ87: $1,405 million/yr | AK87: million
B88: Annual Administrative Fee During Exploration Contract | D88: 60000 | AK88: million
Y89: Total Equalization Payment | Z89: 3623.667244 | AA89: million | AC89: Total Equalization Payment | AD89: 3626.921941 | AE89: million | AI89: Total Equalization Payment | AJ89: 3603.256896
B90: Exploitation Contract Fees | Y90: add'l payment (lifetime) | Z90: 0 | AA90: million | AC90: add'l payment (lifetime) | AD90: 0 | AE90: million | AI90: add'l payment (lifetime) | AJ90: 0
B91: Exploitation Contract Application Fee | D91: 1000000 | Y91: * social discount rate = 3.75% | AC91: * social discount rate = 3.75% | AI91: * social discount rate = 3.75%
B92: Annual Administrative Fee During Exploitation Contract | D92: 100000 | Y92: Equal Type = 2 | Z92: 0.25 | AC92: Equal Type = 2 | AD92: 0.25 | AI92: Equal Type = 2 | AJ92: 0.25
B94: Environmental Sustainability Funds
B95: Annual Payment (% of Gross Metal Value) | D95: 0.01
B96: Lifetime Maximum (US $million) | D96: 500
Y97: AFRICAN SYSTEM
B98: Taxes | X98: Tax rate = 0% | Y98: Key Results: Ad Valorem 2.5%/ 7% | AC98: Key Results: Variable Ad Valorem2.5%/4.5%->9.5% | AI98: Key Results: Blended 2.5%/15%
B99: Corporate Tax Rate | D99: 0.25 | Y99: Collector IRR | Z99: 0.1633975849 | AC99: Collector IRR | AD99: 0.1634809735 | AI99: Collector IRR | AJ99: 0.1641184903
B100: Additional Profit Tax Rate | D100: 0 | Y100: Sponsoring State Tax Revenue | Z100: $0 million | AC100: Sponsoring State Tax Revenue | AD100: $0 million | AI100: Sponsoring State Tax Revenue | AJ100: $0 million
B101: Additional Profit Tax IRR Threshold | D101: 0.2 | Y101: Royalty Revenue | Z101: $7,174 million | AC101: Royalty Revenue | AD101: $7,161 million | AI101: Royalty Revenue | AJ101: $7,095 million
B102: Withholding Tax | D102: 0 | Y102: NPV of Royalties* | Z102: $2,977 million | AC102: NPV of Royalties* | AD102: $2,972 million | AI102: NPV of Royalties* | AJ102: $2,916 million
B103: Percent of OPEX Subject to Withholding Tax | D103: 0.5 | Y103: Effective Tax Rate (collector) | Z103: 0.4271112703 | AC103: Effective Tax Rate (collector) | AD103: 0.4263867195 | AI103: Effective Tax Rate (collector) | AJ103: 0.4263215804
B104: Percent of Profits Subject to Withholding Tax | D104: 0.9
B105: Unlimited Carryover Loss? | D105: Yes | Y105: Overall System Financials | AC105: Overall System Financials | AI105: Overall System Financials
B106: Metal Processor Host Nation Tax Rate | D106: 0.25 | Y106: CAPEX | Z106: $4,047 million | AC106: CAPEX | AD106: $4,047 million | AI106: CAPEX | AJ106: $4,047 million
B107: Additional Ad Valorem | D107: 0 | Y107: OPEX | Z107: $786 million/yr | AC107: OPEX | AD107: $786 million/yr | AI107: OPEX | AJ107: $786 million/yr
Y108: Annual Metal Revenue | Z108: $2,131 million/yr | AC108: Annual Metal Revenue | AD108: $2,131 million/yr | AI108: Annual Metal Revenue | AJ108: $2,131 million/yr
B110: Equalization Payment Parameters | Y110: Collector Financials | AC110: Collector Financials | AI110: Collector Financials
B111: Equalization Payment Type | D111: 3 | E111: (1 = CCF; 2=PB; 3=MV; 4=none) | Y111: CAPEX | Z111: $2,331 million | AC111: CAPEX | AD111: $2,331 million | AI111: CAPEX | AJ111: $2,331 million
B112: Cumulative Cash-flow (CCF) based equalization rate | D112: 0.25 | Y112: OPEX | Z112: $540 million/yr | AC112: OPEX | AD112: $540 million/yr | AI112: OPEX | AJ112: $540 million/yr
B113: Uplift of Accumulated Negative Net Revenues | D113: 0 | Y113: Annual Nodule Revenue | Z113: $1,392 million/yr | AC113: Annual Nodule Revenue | AD113: $1,392 million/yr | AI113: Annual Nodule Revenue | AJ113: $1,386 million/yr
B114: Minimum profit-based (PB) tax rate | D114: 0.25
B115: Mined- value (MV) based rate | D115: 0.07 | Y115: Total Equalization Payment | Z115: 3479.567043 | AA115: million | AC115: Total Equalization Payment | AD115: 3479.567043 | AE115: million | AI115: Total Equalization Payment | AJ115: 3479.567043 | AK115: million
Y116: add'l payment (lifetime) | Z116: 0 | AA116: million | AC116: add'l payment (lifetime) | AD116: 0 | AE116: million | AI116: add'l payment (lifetime) | AJ116: 0 | AK116: million
Y117: * social discount rate = 3.75% | AC117: * social discount rate = 3.75% | AI117: * social discount rate = 3.75%
Y118: Equal Type = 3 | Z118: 0.07 | AC118: Equal Type = 3 | AD118: 0.07 | AI118: Equal Type = 3 | AJ118: 0.07
B119: Deduction Multiplier | C119: 1
X121: Tax rate = 25% | Y121: Key Results: Ad Valorem 2.5%/ 7% | AC121: Key Results: Variable Ad Valorem2.5%/4.5%->9.5% | AI121: Key Results: Blended 2.5%/15%
Y122: Collector IRR | Z122: 0.1563178073 | AC122: Collector IRR | AD122: 0.1563982901 | AI122: Collector IRR | AJ122: 0.1571215779
Y123: Sponsoring State Tax Revenue | Z123: $3,688 million | AC123: Sponsoring State Tax Revenue | AD123: $3,691 million | AI123: Sponsoring State Tax Revenue | AJ123: $3,659 million
Y124: Royalty Revenue | Z124: $4,075 million | AC124: Royalty Revenue | AD124: $4,060 million | AI124: Royalty Revenue | AJ124: $4,077 million
Y125: NPV of Royalties* | Z125: $1,748 million | AC125: NPV of Royalties* | AD125: $1,742 million | AI125: NPV of Royalties* | AJ125: $1,715 million
Y126: Effective Tax Rate (collector) | Z126: 0.4434770338 | AC126: Effective Tax Rate (collector) | AD126: 0.4428365362 | AI126: Effective Tax Rate (collector) | AJ126: 0.4444552209
Y128: Overall System Financials | AC128: Overall System Financials | AI128: Overall System Financials
Y129: CAPEX | Z129: $4,047 million | AC129: CAPEX | AD129: $4,047 million | AI129: CAPEX | AJ129: $4,047 million
Y130: OPEX | Z130: $786 million/yr | AC130: OPEX | AD130: $786 million/yr | AI130: OPEX | AJ130: $786 million/yr
Y131: Annual Metal Revenue | Z131: $2,131 million/yr | AC131: Annual Metal Revenue | AD131: $2,131 million/yr | AI131: Annual Metal Revenue | AJ131: $2,131 million/yr
Y133: Collector Financials | AC133: Collector Financials | AI133: Collector Financials
Y134: CAPEX | Z134: $2,331 million | AC134: CAPEX | AD134: $2,331 million | AI134: CAPEX | AJ134: $2,331 million
Y135: OPEX | Z135: $540 million/yr | AC135: OPEX | AD135: $540 million/yr | AI135: OPEX | AJ135: $540 million/yr
Y136: Annual Nodule Revenue | Z136: $1,419 million/yr | AC136: Annual Nodule Revenue | AD136: $1,419 million/yr | AI136: Annual Nodule Revenue | AJ136: $1,415 million/yr
Y138: Total Equalization Payment | Z138: 380.6305055 | AA138: million | AC138: Total Equalization Payment | AD138: 378.4607074 | AE138: million | AI138: Total Equalization Payment | AJ138: 369.8065921 | AK138: million
Y139: add'l payment (lifetime) | Z139: 0 | AA139: million | AC139: add'l payment (lifetime) | AD139: 0 | AE139: million | AI139: add'l payment (lifetime) | AJ139: 0 | AK139: million
Y140: * social discount rate = 3.75% | AC140: * social discount rate = 3.75% | AI140: * social discount rate = 3.75%
Y141: Equal Type = 3 | Z141: 0.07 | AC141: Equal Type = 3 | AD141: 0.07 | AI141: Equal Type = 3 | AJ141: 0.07

Sheet Financial Model
B1: Financial Model of a Nodules Mining Concession | G1: abc | H1: = Cells whose values are set on User Interface Sheet | AH1: =$B$1 -> Financial Model of a Nodules Mining Concession | CM1: Financial Model of a Nodules Mining Concession
G2: abc | H2: = Cells whosse values are set on this sheet | P2: WORKING CALCULATIONS for STOCHASTIC VARIABLES --- To be hidden when model is distributed
B3: Production Related Parameters | AH3: Cash Flow Model | CM3: Calculations for Plots
B4: Project Scale | S4: Stocastic Multiplier | T4: Likely Multipler | U4: Stochastic MIN | V4: Stochastic MAX | AH4: Summary | AJ4: =IF(AJ6<'User Interface'!$C$33,0,IF(AJ6>'User Interface'!$D$33,1,CHOOSE(AJ6-'User Interface'!$C$33+1,'User Interface'!$D$39,'User Interface'!$D$40,'User Interface'!$D$41,'User Interface'!$D$42))) -> 0 | AK4: =IF(AK6<'User Interface'!$C$33,0,IF(AK6>'User Interface'!$D$33,1,CHOOSE(AK6-'User Interface'!$C$33+1,'User Interface'!$D$39,'User Interface'!$D$40,'User Interface'!$D$41,'User Interface'!$D$42))) -> 0 | AL4: =IF(AL6<'User Interface'!$C$33,0,IF(AL6>'User Interface'!$D$33,1,CHOOSE(AL6-'User Interface'!$C$33+1,'User Interface'!$D$39,'User Interface'!$D$40,'User Interface'!$D$41,'User Interface'!$D$42))) -> 0 | AM4: =IF(AM6<'User Interface'!$C$33,0,IF(AM6>'User Interface'!$D$33,1,CHOOSE(AM6-'User Interface'!$C$33+1,'User Interface'!$D$39,'User Interface'!$D$40,'User Interface'!$D$41,'User Interface'!$D$42))) -> 0 | AN4: =IF(AN6<'User Interface'!$C$33,0,IF(AN6>'User Interface'!$D$33,1,CHOOSE(AN6-'User Interface'!$C$33+1,'User Interface'!$D$39,'User Interface'!$D$40,'User Interface'!$D$41,'User Interface'!$D$42))) -> 0 | AO4: =IF(AO6<'User Interface'!$C$33,0,IF(AO6>'User Interface'!$D$33,1,CHOOSE(AO6-'User Interface'!$C$33+1,'User Interface'!$D$39,'User Interface'!$D$40,'User Interface'!$D$41,'User Interface'!$D$42))) -> 0 | AP4: =IF(AP6<'User Interface'!$C$33,0,IF(AP6>'User Interface'!$D$33,1,CHOOSE(AP6-'User Interface'!$C$33+1,'User Interface'!$D$39,'User Interface'!$D$40,'User Interface'!$D$41,'User Interface'!$D$42))) -> 0 | AQ4: =IF(AQ6<'User Interface'!$C$33,0,IF(AQ6>'User Interface'!$D$33,1,CHOOSE(AQ6-'User Interface'!$C$33+1,'User Interface'!$D$39,'User Interface'!$D$40,'User Interface'!$D$41,'User Interface'!$D$42))) -> 0 | AR4: =IF(AR6<'User Interface'!$C$33,0,IF(AR6>'User Interface'!$D$33,1,CHOOSE(AR6-'User Interface'!$C$33+1,'User Interface'!$D$39,'User Interface'!$D$40,'User Interface'!$D$41,'User Interface'!$D$42))) -> 0 | AS4: =IF(AS6<'User Interface'!$C$33,0,IF(AS6>'User Interface'!$D$33,1,CHOOSE(AS6-'User Interface'!$C$33+1,'User Interface'!$D$39,'User Interface'!$D$40,'User Interface'!$D$41,'User Interface'!$D$42))) -> 0 | AT4: =IF(AT6<'User Interface'!$C$33,0,IF(AT6>'User Interface'!$D$33,1,CHOOSE(AT6-'User Interface'!$C$33+1,'User Interface'!$D$39,'User Interface'!$D$40,'User Interface'!$D$41,'User Interface'!$D$42))) -> 0 | AU4: =IF(AU6<'User Interface'!$C$33,0,IF(AU6>'User Interface'!$D$33,1,CHOOSE(AU6-'User Interface'!$C$33+1,'User Interface'!$D$39,'User Interface'!$D$40,'User Interface'!$D$41,'User Interface'!$D$42))) -> 0.7 | AV4: =IF(AV6<'User Interface'!$C$33,0,IF(AV6>'User Interface'!$D$33,1,CHOOSE(AV6-'User Interface'!$C$33+1,'User Interface'!$D$39,'User Interface'!$D$40,'User Interface'!$D$41,'User Interface'!$D$42))) -> 0.85 | AW4: =IF(AW6<'User Interface'!$C$33,0,IF(AW6>'User Interface'!$D$33,1,CHOOSE(AW6-'User Interface'!$C$33+1,'User Interface'!$D$39,'User Interface'!$D$40,'User Interface'!$D$41,'User Interface'!$D$42))) -> 1 | AX4: =IF(AX6<'User Interface'!$C$33,0,IF(AX6>'User Interface'!$D$33,1,CHOOSE(AX6-'User Interface'!$C$33+1,'User Interface'!$D$39,'User Interface'!$D$40,'User Interface'!$D$41,'User Interface'!$D$42))) -> 1 | AY4: =IF(AY6<'User Interface'!$C$33,0,IF(AY6>'User Interface'!$D$33,1,CHOOSE(AY6-'User Interface'!$C$33+1,'User Interface'!$D$39,'User Interface'!$D$40,'User Interface'!$D$41,'User Interface'!$D$42))) -> 1 | AZ4: =IF(AZ6<'User Interface'!$C$33,0,IF(AZ6>'User Interface'!$D$33,1,CHOOSE(AZ6-'User Interface'!$C$33+1,'User Interface'!$D$39,'User Interface'!$D$40,'User Interface'!$D$41,'User Interface'!$D$42))) -> 1 | BA4: =IF(BA6<'User Interface'!$C$33,0,IF(BA6>'User Interface'!$D$33,1,CHOOSE(BA6-'User Interface'!$C$33+1,'User Interface'!$D$39,'User Interface'!$D$40,'User Interface'!$D$41,'User Interface'!$D$42))) -> 1 | BB4: =IF(BB6<'User Interface'!$C$33,0,IF(BB6>'User Interface'!$D$33,1,CHOOSE(BB6-'User Interface'!$C$33+1,'User Interface'!$D$39,'User Interface'!$D$40,'User Interface'!$D$41,'User Interface'!$D$42))) -> 1 | BC4: =IF(BC6<'User Interface'!$C$33,0,IF(BC6>'User Interface'!$D$33,1,CHOOSE(BC6-'User Interface'!$C$33+1,'User Interface'!$D$39,'User Interface'!$D$40,'User Interface'!$D$41,'User Interface'!$D$42))) -> 1 | BD4: =IF(BD6<'User Interface'!$C$33,0,IF(BD6>'User Interface'!$D$33,1,CHOOSE(BD6-'User Interface'!$C$33+1,'User Interface'!$D$39,'User Interface'!$D$40,'User Interface'!$D$41,'User Interface'!$D$42))) -> 1 | BE4: =IF(BE6<'User Interface'!$C$33,0,IF(BE6>'User Interface'!$D$33,1,CHOOSE(BE6-'User Interface'!$C$33+1,'User Interface'!$D$39,'User Interface'!$D$40,'User Interface'!$D$41,'User Interface'!$D$42))) -> 1 | BF4: =IF(BF6<'User Interface'!$C$33,0,IF(BF6>'User Interface'!$D$33,1,CHOOSE(BF6-'User Interface'!$C$33+1,'User Interface'!$D$39,'User Interface'!$D$40,'User Interface'!$D$41,'User Interface'!$D$42))) -> 1 | BG4: =IF(BG6<'User Interface'!$C$33,0,IF(BG6>'User Interface'!$D$33,1,CHOOSE(BG6-'User Interface'!$C$33+1,'User Interface'!$D$39,'User Interface'!$D$40,'User Interface'!$D$41,'User Interface'!$D$42))) -> 1 | BH4: =IF(BH6<'User Interface'!$C$33,0,IF(BH6>'User Interface'!$D$33,1,CHOOSE(BH6-'User Interface'!$C$33+1,'User Interface'!$D$39,'User Interface'!$D$40,'User Interface'!$D$41,'User Interface'!$D$42))) -> 1 | BI4: =IF(BI6<'User Interface'!$C$33,0,IF(BI6>'User Interface'!$D$33,1,CHOOSE(BI6-'User Interface'!$C$33+1,'User Interface'!$D$39,'User Interface'!$D$40,'User Interface'!$D$41,'User Interface'!$D$42))) -> 1 | BJ4: =IF(BJ6<'User Interface'!$C$33,0,IF(BJ6>'User Interface'!$D$33,1,CHOOSE(BJ6-'User Interface'!$C$33+1,'User Interface'!$D$39,'User Interface'!$D$40,'User Interface'!$D$41,'User Interface'!$D$42))) -> 1 | BK4: =IF(BK6<'User Interface'!$C$33,0,IF(BK6>'User Interface'!$D$33,1,CHOOSE(BK6-'User Interface'!$C$33+1,'User Interface'!$D$39,'User Interface'!$D$40,'User Interface'!$D$41,'User Interface'!$D$42))) -> 1 | BL4: =IF(BL6<'User Interface'!$C$33,0,IF(BL6>'User Interface'!$D$33,1,CHOOSE(BL6-'User Interface'!$C$33+1,'User Interface'!$D$39,'User Interface'!$D$40,'User Interface'!$D$41,'User Interface'!$D$42))) -> 1 | BM4: =IF(BM6<'User Interface'!$C$33,0,IF(BM6>'User Interface'!$D$33,1,CHOOSE(BM6-'User Interface'!$C$33+1,'User Interface'!$D$39,'User Interface'!$D$40,'User Interface'!$D$41,'User Interface'!$D$42))) -> 1 | BN4: =IF(BN6<'User Interface'!$C$33,0,IF(BN6>'User Interface'!$D$33,1,CHOOSE(BN6-'User Interface'!$C$33+1,'User Interface'!$D$39,'User Interface'!$D$40,'User Interface'!$D$41,'User Interface'!$D$42))) -> 1 | BO4: =IF(BO6<'User Interface'!$C$33,0,IF(BO6>'User Interface'!$D$33,1,CHOOSE(BO6-'User Interface'!$C$33+1,'User Interface'!$D$39,'User Interface'!$D$40,'User Interface'!$D$41,'User Interface'!$D$42))) -> 1 | BP4: =IF(BP6<'User Interface'!$C$33,0,IF(BP6>'User Interface'!$D$33,1,CHOOSE(BP6-'User Interface'!$C$33+1,'User Interface'!$D$39,'User Interface'!$D$40,'User Interface'!$D$41,'User Interface'!$D$42))) -> 1 | BQ4: =IF(BQ6<'User Interface'!$C$33,0,IF(BQ6>'User Interface'!$D$33,1,CHOOSE(BQ6-'User Interface'!$C$33+1,'User Interface'!$D$39,'User Interface'!$D$40,'User Interface'!$D$41,'User Interface'!$D$42))) -> 1 | BR4: =IF(BR6<'User Interface'!$C$33,0,IF(BR6>'User Interface'!$D$33,1,CHOOSE(BR6-'User Interface'!$C$33+1,'User Interface'!$D$39,'User Interface'!$D$40,'User Interface'!$D$41,'User Interface'!$D$42))) -> 1 | BS4: =IF(BS6<'User Interface'!$C$33,0,IF(BS6>'User Interface'!$D$33,1,CHOOSE(BS6-'User Interface'!$C$33+1,'User Interface'!$D$39,'User Interface'!$D$40,'User Interface'!$D$41,'User Interface'!$D$42))) -> 1 | BT4: =IF(BT6<'User Interface'!$C$33,0,IF(BT6>'User Interface'!$D$33,1,CHOOSE(BT6-'User Interface'!$C$33+1,'User Interface'!$D$39,'User Interface'!$D$40,'User Interface'!$D$41,'User Interface'!$D$42))) -> 1 | BU4: =IF(BU6<'User Interface'!$C$33,0,IF(BU6>'User Interface'!$D$33,1,CHOOSE(BU6-'User Interface'!$C$33+1,'User Interface'!$D$39,'User Interface'!$D$40,'User Interface'!$D$41,'User Interface'!$D$42))) -> 1 | BV4: =IF(BV6<'User Interface'!$C$33,0,IF(BV6>'User Interface'!$D$33,1,CHOOSE(BV6-'User Interface'!$C$33+1,'User Interface'!$D$39,'User Interface'!$D$40,'User Interface'!$D$41,'User Interface'!$D$42))) -> 1 | BW4: =IF(BW6<'User Interface'!$C$33,0,IF(BW6>'User Interface'!$D$33,1,CHOOSE(BW6-'User Interface'!$C$33+1,'User Interface'!$D$39,'User Interface'!$D$40,'User Interface'!$D$41,'User Interface'!$D$42))) -> 1 | BX4: =IF(BX6<'User Interface'!$C$33,0,IF(BX6>'User Interface'!$D$33,1,CHOOSE(BX6-'User Interface'!$C$33+1,'User Interface'!$D$39,'User Interface'!$D$40,'User Interface'!$D$41,'User Interface'!$D$42))) -> 1 | BY4: =IF(BY6<'User Interface'!$C$33,0,IF(BY6>'User Interface'!$D$33,1,CHOOSE(BY6-'User Interface'!$C$33+1,'User Interface'!$D$39,'User Interface'!$D$40,'User Interface'!$D$41,'User Interface'!$D$42))) -> 1 | BZ4: =IF(BZ6<'User Interface'!$C$33,0,IF(BZ6>'User Interface'!$D$33,1,CHOOSE(BZ6-'User Interface'!$C$33+1,'User Interface'!$D$39,'User Interface'!$D$40,'User Interface'!$D$41,'User Interface'!$D$42))) -> 1 | CA4: =IF(CA6<'User Interface'!$C$33,0,IF(CA6>'User Interface'!$D$33,1,CHOOSE(CA6-'User Interface'!$C$33+1,'User Interface'!$D$39,'User Interface'!$D$40,'User Interface'!$D$41,'User Interface'!$D$42))) -> 1 | CB4: =IF(CB6<'User Interface'!$C$33,0,IF(CB6>'User Interface'!$D$33,1,CHOOSE(CB6-'User Interface'!$C$33+1,'User Interface'!$D$39,'User Interface'!$D$40,'User Interface'!$D$41,'User Interface'!$D$42))) -> 1 | CC4: =IF(CC6<'User Interface'!$C$33,0,IF(CC6>'User Interface'!$D$33,1,CHOOSE(CC6-'User Interface'!$C$33+1,'User Interface'!$D$39,'User Interface'!$D$40,'User Interface'!$D$41,'User Interface'!$D$42))) -> 1 | CD4: =IF(CD6<'User Interface'!$C$33,0,IF(CD6>'User Interface'!$D$33,1,CHOOSE(CD6-'User Interface'!$C$33+1,'User Interface'!$D$39,'User Interface'!$D$40,'User Interface'!$D$41,'User Interface'!$D$42))) -> 1 | CE4: =IF(CE6<'User Interface'!$C$33,0,IF(CE6>'User Interface'!$D$33,1,CHOOSE(CE6-'User Interface'!$C$33+1,'User Interface'!$D$39,'User Interface'!$D$40,'User Interface'!$D$41,'User Interface'!$D$42))) -> 1 | CF4: =IF(CF6<'User Interface'!$C$33,0,IF(CF6>'User Interface'!$D$33,1,CHOOSE(CF6-'User Interface'!$C$33+1,'User Interface'!$D$39,'User Interface'!$D$40,'User Interface'!$D$41,'User Interface'!$D$42))) -> 1 | CG4: =IF(CG6<'User Interface'!$C$33,0,IF(CG6>'User Interface'!$D$33,1,CHOOSE(CG6-'User Interface'!$C$33+1,'User Interface'!$D$39,'User Interface'!$D$40,'User Interface'!$D$41,'User Interface'!$D$42))) -> 1 | CN4: Metals Revenue | CO4: Processor OPEx | CP4: Processor Taxes | CQ4: Processor Profit | CR4: Nodules | CS4: Collector OPEx | CT4: Net Op Revenue | CU4: ISA Take | CV4: SS Take | CW4: Other Take | CX4: Collector Take
D5: Production Minimum (for simulation) | E5: Production Maximum (for simulation) | P5: Average Production | Q5: =F7 -> million tonnes dry nodules/annum | R5: =C7*S5 -> 3.855762193 | S5: 1 | T5: 1 | U5: =D7 -> 0.9 | V5: =E7 -> 1.1 | AA5: Payment System Types | AC5: Manganese Production Types | AH5: Production | AJ5: =DEC2BIN(AJ6,7) -> 0000001 | AK5: 0000010 | AL5: 0000011 | AM5: 0000100 | AN5: 0000101 | AO5: 0000110 | AP5: 0000111 | AQ5: 0001000 | AR5: 0001001 | AS5: 0001010 | AT5: 0001011 | AU5: 0001100 | AV5: 0001101 | AW5: 0001110 | AX5: 0001111 | AY5: 0010000 | AZ5: 0010001 | BA5: 0010010 | BB5: 0010011 | BC5: 0010100 | BD5: 0010101 | BE5: 0010110 | BF5: 0010111 | BG5: 0011000 | BH5: 0011001 | BI5: 0011010 | BJ5: 0011011 | BK5: 0011100 | BL5: 0011101 | BM5: 0011110 | BN5: 0011111 | BO5: 0100000 | BP5: 0100001 | BQ5: 0100010 | BR5: 0100011 | BS5: 0100100 | BT5: 0100101 | BU5: 0100110 | BV5: 0100111 | BW5: 0101000 | BX5: 0101001 | BY5: 0101010 | BZ5: 0101011 | CA5: 0101100 | CB5: 0101101 | CC5: 0101110 | CD5: 0101111 | CE5: 0110000 | CF5: 0110001 | CG5: =DEC2BIN(CG6,7) -> 0110010 | CM5: Blank | CO5: =CP5+CP8 -> 44787.22303 | CP5: =CQ5+CQ9 -> 42300.79771 | CQ5: =CR10 -> 34841.52176 | CS5: =CT12 -> 18632.21578 | CU5: =CV5+CV14 -> 14571.97092 | CV5: =CW5+CW15 -> 10881.18988 | CW5: =CX16 -> 10381.18988
C6: Expected | D6: % of expected | E6: % of expected | AA6: Ad Valorem | AC6: Ore | AH6: Output | AI6: Year | AJ6: 1 | AK6: 2 | AL6: 3 | AM6: 4 | AN6: 5 | AO6: 6 | AP6: 7 | AQ6: 8 | AR6: 9 | AS6: 10 | AT6: 11 | AU6: 12 | AV6: 13 | AW6: 14 | AX6: 15 | AY6: 16 | AZ6: 17 | BA6: 18 | BB6: 19 | BC6: 20 | BD6: 21 | BE6: 22 | BF6: 23 | BG6: 24 | BH6: 25 | BI6: 26 | BJ6: 27 | BK6: 28 | BL6: 29 | BM6: 30 | BN6: 31 | BO6: 32 | BP6: 33 | BQ6: 34 | BR6: 35 | BS6: 36 | BT6: 37 | BU6: 38 | BV6: 39 | BW6: 40 | BX6: 41 | BY6: 42 | BZ6: 43 | CA6: 44 | CB6: 45 | CC6: 46 | CD6: 47 | CE6: 48 | CF6: 49 | CG6: 50 | CM6: Metals Revenue | CN6: =CN37 -> 52313.36992
B7: Average Production | C7: ='User Interface'!C7 -> 3.855762193 | D7: 0.9 | E7: 1.1 | F7: million tonnes dry nodules/annum | AA7: Blended | AC7: Metal | AH7: Nodules Recovered | AI7: million tonnes | AJ7: =IF(AJ109,$R$5,IF(AJ108,$R$5*AJ1,0)) -> 0 | AK7: =IF(AK109,$R$5,IF(AK108,$R$5*AK4,0)) -> 0 | AL7: 0 | AM7: 0 | AN7: 0 | AO7: 0 | AP7: 0 | AQ7: 0 | AR7: 0 | AS7: 0 | AT7: =IF(AT109,$R$5,IF(AT108,$R$5*AT4,0)) -> 0 | AU7: =IF(AU109,$R$5,IF(AU108,$R$5*AU4,0)) -> 2.699033535 | AV7: 3.277397864 | AW7: 3.855762193 | AX7: 3.855762193 | AY7: 3.855762193 | AZ7: 3.855762193 | BA7: 3.855762193 | BB7: 3.855762193 | BC7: 3.855762193 | BD7: 3.855762193 | BE7: 3.855762193 | BF7: 3.855762193 | BG7: 3.855762193 | BH7: 3.855762193 | BI7: 3.855762193 | BJ7: 3.855762193 | BK7: 3.855762193 | BL7: 3.855762193 | BM7: 3.855762193 | BN7: 3.855762193 | BO7: 3.855762193 | BP7: 3.855762193 | BQ7: 3.855762193 | BR7: 3.855762193 | BS7: 3.855762193 | BT7: 0 | BU7: 0 | BV7: 0 | BW7: 0 | BX7: 0 | BY7: 0 | BZ7: 0 | CA7: 0 | CB7: 0 | CC7: 0 | CD7: 0 | CE7: 0 | CF7: 0 | CG7: 0 | CM7: Processor Operating Costs | CO7: =-CN38 -> 7526.14689
B8: Design Capacity | C8: 3 | D8: - n/a - | E8: - n/a - | F8: million tonnes dry nodules/annum | AA8: Variable Ad Valorem | AH8: Copper | AI8: million tonnes | AJ8: =AJ116 -> 0 | AK8: 0 | AL8: 0 | AM8: 0 | AN8: 0 | AO8: 0 | AP8: 0 | AQ8: 0 | AR8: 0 | AS8: 0 | AT8: 0 | AU8: 0.026720432 | AV8: 0.03244623886 | AW8: 0.03817204571 | AX8: 0.03817204571 | AY8: 0.03817204571 | AZ8: 0.03817204571 | BA8: 0.03817204571 | BB8: 0.03817204571 | BC8: 0.03817204571 | BD8: 0.03817204571 | BE8: 0.03817204571 | BF8: 0.03817204571 | BG8: 0.03817204571 | BH8: 0.03817204571 | BI8: 0.03817204571 | BJ8: 0.03817204571 | BK8: 0.03817204571 | BL8: 0.03817204571 | BM8: 0.03817204571 | BN8: 0.03817204571 | BO8: 0.03817204571 | BP8: =BP116 -> 0.03817204571 | BQ8: 0.03817204571 | BR8: 0.03817204571 | BS8: 0.03817204571 | BT8: 0 | BU8: 0 | BV8: 0 | BW8: 0 | BX8: 0 | BY8: 0 | BZ8: 0 | CA8: 0 | CB8: 0 | CC8: 0 | CD8: 0 | CE8: 0 | CF8: 0 | CG8: 0 | CM8: Processor Taxes | CP8: =-CN39 -> 2486.425317
AH9: Cobalt | AI9: million tonnes | AJ9: =AJ117 -> 0 | AK9: 0 | AL9: 0 | AM9: 0 | AN9: 0 | AO9: 0 | AP9: 0 | AQ9: 0 | AR9: 0 | AS9: 0 | AT9: 0 | AU9: 0.004318453656 | AV9: 0.005243836583 | AW9: 0.006169219509 | AX9: 0.006169219509 | AY9: 0.006169219509 | AZ9: 0.006169219509 | BA9: 0.006169219509 | BB9: 0.006169219509 | BC9: 0.006169219509 | BD9: 0.006169219509 | BE9: 0.006169219509 | BF9: 0.006169219509 | BG9: 0.006169219509 | BH9: 0.006169219509 | BI9: 0.006169219509 | BJ9: 0.006169219509 | BK9: 0.006169219509 | BL9: 0.006169219509 | BM9: 0.006169219509 | BN9: 0.006169219509 | BO9: 0.006169219509 | BP9: =BP117 -> 0.006169219509 | BQ9: 0.006169219509 | BR9: 0.006169219509 | BS9: 0.006169219509 | BT9: 0 | BU9: 0 | BV9: 0 | BW9: 0 | BX9: 0 | BY9: 0 | BZ9: 0 | CA9: 0 | CB9: 0 | CC9: 0 | CD9: 0 | CE9: 0 | CF9: 0 | CG9: 0 | CM9: Profit | CQ9: =CN40 -> 7459.27595
B10: Project Scheduling | AH10: Nickel | AI10: million tonnes | AJ10: =AJ118 -> 0 | AK10: 0 | AL10: 0 | AM10: 0 | AN10: 0 | AO10: 0 | AP10: 0 | AQ10: 0 | AR10: 0 | AS10: 0 | AT10: 0 | AU10: 0.03157869236 | AV10: 0.03834555501 | AW10: 0.04511241766 | AX10: 0.04511241766 | AY10: 0.04511241766 | AZ10: 0.04511241766 | BA10: 0.04511241766 | BB10: 0.04511241766 | BC10: 0.04511241766 | BD10: 0.04511241766 | BE10: 0.04511241766 | BF10: 0.04511241766 | BG10: 0.04511241766 | BH10: 0.04511241766 | BI10: 0.04511241766 | BJ10: 0.04511241766 | BK10: 0.04511241766 | BL10: 0.04511241766 | BM10: 0.04511241766 | BN10: 0.04511241766 | BO10: 0.04511241766 | BP10: =BP118 -> 0.04511241766 | BQ10: 0.04511241766 | BR10: 0.04511241766 | BS10: 0.04511241766 | BT10: 0 | BU10: 0 | BV10: 0 | BW10: 0 | BX10: 0 | BY10: 0 | BZ10: 0 | CA10: 0 | CB10: 0 | CC10: 0 | CD10: 0 | CE10: 0 | CF10: 0 | CG10: 0 | CM10: Revenue from Nodules | CR10: =CN43 -> 34841.52176
D11: Phase Duration | AH11: Manganese | AI11: million tonnes | AJ11: =AJ115 -> 0 | AK11: 0 | AL11: 0 | AM11: 0 | AN11: 0 | AO11: 0 | AP11: 0 | AQ11: 0 | AR11: 0 | AS11: 0 | AT11: 0 | AU11: 0.7588602688 | AV11: 0.9214731835 | AW11: 1.084086098 | AX11: 1.084086098 | AY11: 1.084086098 | AZ11: 1.084086098 | BA11: 1.084086098 | BB11: 1.084086098 | BC11: 1.084086098 | BD11: 1.084086098 | BE11: 1.084086098 | BF11: 1.084086098 | BG11: 1.084086098 | BH11: 1.084086098 | BI11: 1.084086098 | BJ11: 1.084086098 | BK11: 1.084086098 | BL11: 1.084086098 | BM11: 1.084086098 | BN11: 1.084086098 | BO11: 1.084086098 | BP11: =BP115 -> 1.084086098 | BQ11: 1.084086098 | BR11: 1.084086098 | BS11: 1.084086098 | BT11: 0 | BU11: 0 | BV11: 0 | BW11: 0 | BX11: 0 | BY11: 0 | BZ11: 0 | CA11: 0 | CB11: 0 | CC11: 0 | CD11: 0 | CE11: 0 | CF11: 0 | CG11: 0 | CM11: Operating Costs | CS11: =-CN44 -> 16209.30598
C12: Phase Planned Start | D12: Expected | E12: Shortest Possible (for simulation) | F12: Longest Possible (for simulation) | G12: Can Overlap With Previous? | H12: Modeled Start | P12: Project Scheduling Inputs | CM12: Net Operating Revenue | CT12: =CN45 -> 18632.21578
C13: year | D13: years | E13: years | F13: years | H13: year | Q13: Duration (yrs) | R13: Stochastic Add | S13: Min | T13: Max | CM13: ISA Take | CU13: =CN46 -> 4060.244864
B14: Pre Feasibility | C14: ='User Interface'!C30 -> 1 | D14: =('User Interface'!D30-'User Interface'!C30+1) -> 6 | E14: 5 | F14: 7 | G14: - n/a - | H14: =C14 -> 1 | P14: Pre Feasibility | Q14: =D14+R14 -> 6 | R14: 0 | S14: =E14-D14 -> -1 | T14: =F14-D14 -> 1 | AH14: Cash Flows: Independent Collector | CM14: SS Take | CV14: =CN47 -> 3690.781035
B15: Feasibility | C15: ='User Interface'!C31 -> 4 | D15: =('User Interface'!D31-'User Interface'!C31+1) -> 4 | E15: 3 | F15: 5 | G15: YES | H15: =IF(EXACT(UPPER(TRIM(G15)),"YES"),C15,IF(C15<(H14+Q14),H14+Q14,C15)) -> 4 | P15: Feasibility Start | Q15: =D15+R15 -> 4 | R15: 0 | S15: =E15-D15 -> -1 | T15: =F15-D15 -> 1 | AH15: Expenditure | AI15: Year | AJ15: 1 | AK15: 2 | AL15: 3 | AM15: 4 | AN15: 5 | AO15: 6 | AP15: 7 | AQ15: 8 | AR15: 9 | AS15: 10 | AT15: 11 | AU15: 12 | AV15: 13 | AW15: 14 | AX15: 15 | AY15: 16 | AZ15: 17 | BA15: 18 | BB15: 19 | BC15: 20 | BD15: 21 | BE15: 22 | BF15: 23 | BG15: 24 | BH15: 25 | BI15: 26 | BJ15: 27 | BK15: 28 | BL15: 29 | BM15: 30 | BN15: 31 | BO15: 32 | BP15: 33 | BQ15: 34 | BR15: 35 | BS15: 36 | BT15: 37 | BU15: 38 | BV15: 39 | BW15: 40 | BX15: 41 | BY15: 42 | BZ15: 43 | CA15: 44 | CB15: 45 | CC15: 46 | CD15: 47 | CE15: 48 | CF15: 49 | CG15: 50 | CM15: Other Take | CW15: =CN48 -> 500
B16: Total Active Exploitation Period | D16: ='User Interface'!G34 -> 30 | P16: Total Active Exploitation Period | Q16: =D16 -> 30 | AH16: Capital & Maintenance Costs | AI16: million USD | AJ16: =-SUM(AJ176:AJ181) -> -3.474361281 | AK16: -3.474361281 | AL16: -3.474361281 | AM16: -59.90228049 | AN16: -59.90228049 | AO16: -59.90228049 | AP16: -56.42791921 | AQ16: -521.1541921 | AR16: -521.1541921 | AS16: -521.1541921 | AT16: -521.1541921 | AU16: 0 | AV16: -49.2 | AW16: 0 | AX16: -49.2 | AY16: -57.81 | AZ16: -49.2 | BA16: 0 | BB16: -49.2 | BC16: 0 | BD16: -107.01 | BE16: 0 | BF16: -49.2 | BG16: 0 | BH16: -49.2 | BI16: -57.81 | BJ16: -49.2 | BK16: 0 | BL16: -49.2 | BM16: 0 | BN16: -107.01 | BO16: 0 | BP16: =-SUM(BP176:BP181) -> -49.2 | BQ16: 0 | BR16: -49.2 | BS16: -57.81 | BT16: 262.6925153 | BU16: 0 | BV16: 0 | BW16: 0 | BX16: 0 | BY16: 0 | BZ16: 0 | CA16: 0 | CB16: 0 | CC16: 0 | CD16: 0 | CE16: 0 | CF16: 0 | CG16: 0 | CM16: Collector Take | CX16: =CN49 -> 10381.18988
B17: Design and Build | C17: ='User Interface'!C32 -> 8 | D17: =('User Interface'!D32-'User Interface'!C32+1) -> 4 | E17: 3 | F17: 4 | G17: NO | H17: =IF(EXACT(UPPER(TRIM(G17)),"YES"),C17,IF(C17<(H15+Q15),H15+Q15,C17)) -> 8 | P17: Design and Build Start | Q17: =D17+R17 -> 4 | R17: 0 | S17: =E17-D17 -> -1 | T17: =F17-D17 -> 0 | AH17: Operating Costs | AI17: million USD | AJ17: =-SUM(AJ184:AJ185) -> 0 | AK17: 0 | AL17: 0 | AM17: 0 | AN17: 0 | AO17: 0 | AP17: 0 | AQ17: 0 | AR17: 0 | AS17: 0 | AT17: 0 | AU17: -399.1571714 | AV17: -439.6654906 | AW17: -540.1109227 | AX17: -540.1109227 | AY17: -540.1109227 | AZ17: -540.1109227 | BA17: -540.1109227 | BB17: -540.1109227 | BC17: -540.1109227 | BD17: -540.1109227 | BE17: -540.1109227 | BF17: -540.1109227 | BG17: -540.1109227 | BH17: -540.1109227 | BI17: -540.1109227 | BJ17: -540.1109227 | BK17: -540.1109227 | BL17: -540.1109227 | BM17: -540.1109227 | BN17: -540.1109227 | BO17: -540.1109227 | BP17: =-SUM(BP184:BP185) -> -540.1109227 | BQ17: -540.1109227 | BR17: -540.1109227 | BS17: -540.1109227 | BT17: 0 | BU17: 0 | BV17: 0 | BW17: 0 | BX17: 0 | BY17: 0 | BZ17: 0 | CA17: 0 | CB17: 0 | CC17: 0 | CD17: 0 | CE17: 0 | CF17: 0 | CG17: 0
B18: Operation Phase | C18: total duration -> | D18: =D20+D19 -> 25 | G18: NO | P18: Operation Duration | Q18: =Q20+Q19 -> 25 | AH18: Financing Cost | AI18: million USD | AJ18: =IF(UPPER(TRIM($D$81))="YES",AJ230,0) -> 0 | AK18: 0 | AL18: 0 | AM18: 0 | AN18: 0 | AO18: 0 | AP18: 0 | AQ18: 0 | AR18: 0 | AS18: 0 | AT18: 0 | AU18: 0 | AV18: 0 | AW18: 0 | AX18: 0 | AY18: 0 | AZ18: 0 | BA18: 0 | BB18: 0 | BC18: 0 | BD18: 0 | BE18: 0 | BF18: 0 | BG18: 0 | BH18: 0 | BI18: 0 | BJ18: 0 | BK18: 0 | BL18: 0 | BM18: 0 | BN18: 0 | BO18: 0 | BP18: =IF(UPPER(TRIM($D$81))="YES",BP230,0) -> 0 | BQ18: 0 | BR18: 0 | BS18: 0 | BT18: 0 | BU18: 0 | BV18: 0 | BW18: 0 | BX18: 0 | BY18: 0 | BZ18: 0 | CA18: 0 | CB18: 0 | CC18: 0 | CD18: 0 | CE18: 0 | CF18: 0 | CG18: 0
B19: Ramp Up | C19: ='User Interface'!C33 -> 12 | D19: =('User Interface'!D33-'User Interface'!C33+1) -> 2 | E19: 2 | F19: 2 | G19: NO | H19: =IF(EXACT(UPPER(TRIM(G19)),"YES"),C19,IF(C19<(H17+Q17),H17+Q17,C19)) -> 12 | P19: Ramp Up | Q19: =D19+R19 -> 2 | R19: 0 | S19: =E19-D19 -> 0 | T19: =F19-D19 -> 0 | AG19: *** | AH19: Fees | AI19: million USD | AJ19: =-AJ198 -> -0.56 | AK19: =-AK198 -> -0.06 | AL19: -0.06 | AM19: -1.16 | AN19: -0.16 | AO19: -0.16 | AP19: -0.1 | AQ19: -0.1 | AR19: -0.1 | AS19: -0.1 | AT19: -0.1 | AU19: -0.1 | AV19: -0.1 | AW19: -0.1 | AX19: -0.1 | AY19: -0.1 | AZ19: -0.1 | BA19: -0.1 | BB19: -0.1 | BC19: -0.1 | BD19: -0.1 | BE19: -0.1 | BF19: -0.1 | BG19: -0.1 | BH19: -0.1 | BI19: -0.1 | BJ19: -0.1 | BK19: -0.1 | BL19: -0.1 | BM19: -0.1 | BN19: -0.1 | BO19: -0.1 | BP19: -0.1 | BQ19: -0.1 | BR19: -0.1 | BS19: -0.1 | BT19: 0 | BU19: 0 | BV19: 0 | BW19: 0 | BX19: 0 | BY19: 0 | BZ19: 0 | CA19: 0 | CB19: 0 | CC19: 0 | CD19: 0 | CE19: 0 | CF19: 0 | CG19: 0 | CM19: Expenditure
B20: Full Operation | C20: =H20 -> 14 | D20: =D16-(D17+D19+D21) -> 23 | G20: NO | H20: =H19+Q19 -> 14 | P20: Full Operation | Q20: =Q16-(Q17+Q19+Q21) -> 23 | AG20: *** | AH20: Taxes (Ad Valorem) | AI20: million USD | AJ20: =AJ255+AJ256+AJ259+AJ261 -> 0 | AK20: 0 | AL20: 0 | AM20: 0 | AN20: 0 | AO20: 0 | AP20: 0 | AQ20: 0 | AR20: 0 | AS20: 0 | AT20: 0 | AU20: -81.14632249 | AV20: -110.3853782 | AW20: -148.5751556 | AX20: -136.2751556 | AY20: -107.493316 | AZ20: -109.645816 | BA20: -121.945816 | BB20: -109.645816 | BC20: -121.945816 | BD20: -95.19331597 | BE20: -172.4078684 | BF20: -160.1078684 | BG20: -172.4078684 | BH20: -160.1078684 | BI20: -157.9553684 | BJ20: -160.1078684 | BK20: -172.4078684 | BL20: -160.1078684 | BM20: -172.4078684 | BN20: -145.6553684 | BO20: -172.4078684 | BP20: =BP255+BP256+BP259+BP261 -> -165.295751 | BQ20: -178.3254994 | BR20: -166.0254994 | BS20: -163.8729994 | BT20: -65.67312882 | BU20: 0 | BV20: 0 | BW20: 0 | BX20: 0 | BY20: 0 | BZ20: 0 | CA20: 0 | CB20: 0 | CC20: 0 | CD20: 0 | CE20: 0 | CF20: 0 | CG20: 0 | CO20: 0 | CP20: 1 | CQ20: 2 | CR20: 3 | CS20: 4 | CT20: 5 | CU20: 6 | CV20: 7 | CW20: 8 | CX20: 9 | CY20: 10 | CZ20: 11 | DA20: 12 | DB20: 13 | DC20: 14 | DD20: 15 | DE20: 16 | DF20: 17 | DG20: 18 | DH20: 19 | DI20: 20 | DJ20: 21 | DK20: 22 | DL20: 23 | DM20: 24 | DN20: 25 | DO20: 26 | DP20: 27 | DQ20: 28 | DR20: 29 | DS20: 30 | DT20: 31 | DU20: 32 | DV20: 33 | DW20: 34 | DX20: 35 | DY20: 36 | DZ20: 37 | EA20: 38 | EB20: 39 | EC20: 40 | ED20: 41 | EE20: 42 | EF20: 43 | EG20: 44 | EH20: 45 | EI20: 46 | EJ20: 47 | EK20: 48 | EL20: 49
B21: Shutdown | C21: - n/a - | D21: =('User Interface'!D35-'User Interface'!C35+1) -> 1 | E21: 1 | F21: 1 | G21: NO | H21: =H20+Q20 -> 37 | P21: Shutdown | Q21: =D21+R21 -> 1 | R21: 0 | S21: =E21-D21 -> 0 | T21: =F21-D21 -> 0 | AH21: Taxes (Var. Ad Valorem (A)) | AI21: million USD | AJ21: =AJ333+AJ334+AJ337+AJ339 -> 0 | AK21: 0 | AL21: 0 | AM21: 0 | AN21: 0 | AO21: 0 | AP21: 0 | AQ21: 0 | AR21: 0 | AS21: 0 | AT21: 0 | AU21: -81.14632249 | AV21: -110.3853782 | AW21: -148.5751556 | AX21: -136.2751556 | AY21: -107.6483015 | AZ21: -109.8008015 | BA21: -122.1008015 | BB21: -109.8008015 | BC21: -122.1008015 | BD21: -95.34830154 | BE21: -172.562854 | BF21: -160.262854 | BG21: -172.562854 | BH21: -160.262854 | BI21: -158.110354 | BJ21: -160.262854 | BK21: -172.562854 | BL21: -160.262854 | BM21: -172.562854 | BN21: -145.810354 | BO21: -172.562854 | BP21: =BP333+BP334+BP337+BP339 -> -165.4507366 | BQ21: -178.480485 | BR21: -166.180485 | BS21: -164.027985 | BT21: -65.67312882 | BU21: 0 | BV21: 0 | BW21: 0 | BX21: 0 | BY21: 0 | BZ21: 0 | CA21: 0 | CB21: 0 | CC21: 0 | CD21: 0 | CE21: 0 | CF21: 0 | CG21: 0 | CM21: Capital & Maint Costs | CN21: million USD | CO21: ='Financial Model'!AJ16 -> -3.474361281 | CP21: ='Financial Model'!AK16 -> -3.474361281 | CQ21: ='Financial Model'!AL16 -> -3.474361281 | CR21: ='Financial Model'!AM16 -> -59.90228049 | CS21: ='Financial Model'!AN16 -> -59.90228049 | CT21: ='Financial Model'!AO16 -> -59.90228049 | CU21: ='Financial Model'!AP16 -> -56.42791921 | CV21: ='Financial Model'!AQ16 -> -521.1541921 | CW21: ='Financial Model'!AR16 -> -521.1541921 | CX21: ='Financial Model'!AS16 -> -521.1541921 | CY21: ='Financial Model'!AT16 -> -521.1541921 | CZ21: ='Financial Model'!AU16 -> 0 | DA21: ='Financial Model'!AV16 -> -49.2 | DB21: ='Financial Model'!AW16 -> 0 | DC21: ='Financial Model'!AX16 -> -49.2 | DD21: ='Financial Model'!AY16 -> -57.81 | DE21: ='Financial Model'!AZ16 -> -49.2 | DF21: ='Financial Model'!BA16 -> 0 | DG21: ='Financial Model'!BB16 -> -49.2 | DH21: ='Financial Model'!BC16 -> 0 | DI21: ='Financial Model'!BD16 -> -107.01 | DJ21: ='Financial Model'!BE16 -> 0 | DK21: ='Financial Model'!BF16 -> -49.2 | DL21: ='Financial Model'!BG16 -> 0 | DM21: ='Financial Model'!BH16 -> -49.2 | DN21: ='Financial Model'!BI16 -> -57.81 | DO21: ='Financial Model'!BJ16 -> -49.2 | DP21: ='Financial Model'!BK16 -> 0 | DQ21: ='Financial Model'!BL16 -> -49.2 | DR21: ='Financial Model'!BM16 -> 0 | DS21: ='Financial Model'!BN16 -> -107.01 | DT21: ='Financial Model'!BO16 -> 0 | DU21: ='Financial Model'!BP16 -> -49.2 | DV21: ='Financial Model'!BQ16 -> 0 | DW21: ='Financial Model'!BR16 -> -49.2 | DX21: ='Financial Model'!BS16 -> -57.81 | DY21: ='Financial Model'!BT16 -> 262.6925153 | DZ21: ='Financial Model'!BU16 -> 0 | EA21: ='Financial Model'!BV16 -> 0 | EB21: ='Financial Model'!BW16 -> 0 | EC21: ='Financial Model'!BX16 -> 0 | ED21: ='Financial Model'!BY16 -> 0 | EE21: ='Financial Model'!BZ16 -> 0 | EF21: ='Financial Model'!CA16 -> 0 | EG21: ='Financial Model'!CB16 -> 0 | EH21: ='Financial Model'!CC16 -> 0 | EI21: ='Financial Model'!CD16 -> 0 | EJ21: ='Financial Model'!CE16 -> 0 | EK21: ='Financial Model'!CF16 -> 0 | EL21: ='Financial Model'!CG16 -> 0
AH22: Taxes (Var. Ad Valorem (B)) | AI22: million USD | AJ22: =AJ401+AJ402+AJ405+AJ407 -> 0 | AK22: 0 | AL22: 0 | AM22: 0 | AN22: 0 | AO22: 0 | AP22: 0 | AQ22: 0 | AR22: 0 | AS22: 0 | AT22: 0 | AU22: -77.39083873 | AV22: -105.8251479 | AW22: -143.2101788 | AX22: -130.9101788 | AY22: -128.7576788 | AZ22: -130.9101788 | BA22: -143.2101788 | BB22: -130.9101788 | BC22: -143.2101788 | BD22: -116.4576788 | BE22: -193.6722312 | BF22: -181.3722312 | BG22: -193.6722312 | BH22: -181.3722312 | BI22: -179.2197312 | BJ22: -181.3722312 | BK22: -193.6722312 | BL22: -181.3722312 | BM22: -193.6722312 | BN22: -166.9197312 | BO22: -193.6722312 | BP22: =BP401+BP402+BP405+BP407 -> -186.5601138 | BQ22: -199.5898623 | BR22: -187.2898623 | BS22: -185.1373623 | BT22: -65.67312882 | BU22: 0 | BV22: 0 | BW22: 0 | BX22: 0 | BY22: 0 | BZ22: 0 | CA22: 0 | CB22: 0 | CC22: 0 | CD22: 0 | CE22: 0 | CF22: 0 | CG22: 0 | CM22: Operating Costs | CN22: million USD | CO22: ='Financial Model'!AJ17 -> 0 | CP22: ='Financial Model'!AK17 -> 0 | CQ22: ='Financial Model'!AL17 -> 0 | CR22: ='Financial Model'!AM17 -> 0 | CS22: ='Financial Model'!AN17 -> 0 | CT22: ='Financial Model'!AO17 -> 0 | CU22: ='Financial Model'!AP17 -> 0 | CV22: ='Financial Model'!AQ17 -> 0 | CW22: ='Financial Model'!AR17 -> 0 | CX22: ='Financial Model'!AS17 -> 0 | CY22: ='Financial Model'!AT17 -> 0 | CZ22: ='Financial Model'!AU17 -> -399.1571714 | DA22: ='Financial Model'!AV17 -> -439.6654906 | DB22: ='Financial Model'!AW17 -> -540.1109227 | DC22: ='Financial Model'!AX17 -> -540.1109227 | DD22: ='Financial Model'!AY17 -> -540.1109227 | DE22: ='Financial Model'!AZ17 -> -540.1109227 | DF22: ='Financial Model'!BA17 -> -540.1109227 | DG22: ='Financial Model'!BB17 -> -540.1109227 | DH22: ='Financial Model'!BC17 -> -540.1109227 | DI22: ='Financial Model'!BD17 -> -540.1109227 | DJ22: ='Financial Model'!BE17 -> -540.1109227 | DK22: ='Financial Model'!BF17 -> -540.1109227 | DL22: ='Financial Model'!BG17 -> -540.1109227 | DM22: ='Financial Model'!BH17 -> -540.1109227 | DN22: ='Financial Model'!BI17 -> -540.1109227 | DO22: ='Financial Model'!BJ17 -> -540.1109227 | DP22: ='Financial Model'!BK17 -> -540.1109227 | DQ22: ='Financial Model'!BL17 -> -540.1109227 | DR22: ='Financial Model'!BM17 -> -540.1109227 | DS22: ='Financial Model'!BN17 -> -540.1109227 | DT22: ='Financial Model'!BO17 -> -540.1109227 | DU22: ='Financial Model'!BP17 -> -540.1109227 | DV22: ='Financial Model'!BQ17 -> -540.1109227 | DW22: ='Financial Model'!BR17 -> -540.1109227 | DX22: ='Financial Model'!BS17 -> -540.1109227 | DY22: ='Financial Model'!BT17 -> 0 | DZ22: ='Financial Model'!BU17 -> 0 | EA22: ='Financial Model'!BV17 -> 0 | EB22: ='Financial Model'!BW17 -> 0 | EC22: ='Financial Model'!BX17 -> 0 | ED22: ='Financial Model'!BY17 -> 0 | EE22: ='Financial Model'!BZ17 -> 0 | EF22: ='Financial Model'!CA17 -> 0 | EG22: ='Financial Model'!CB17 -> 0 | EH22: ='Financial Model'!CC17 -> 0 | EI22: ='Financial Model'!CD17 -> 0 | EJ22: ='Financial Model'!CE17 -> 0 | EK22: ='Financial Model'!CF17 -> 0 | EL22: ='Financial Model'!CG17 -> 0
AH23: Taxes (Before Tax) | AI23: million USD | AJ23: =AJ469+AJ470+AJ472+AJ474 -> 0 | AK23: 0 | AL23: 0 | AM23: 0 | AN23: 0 | AO23: 0 | AP23: 0 | AQ23: 0 | AR23: 0 | AS23: 0 | AT23: 0 | AU23: -68.38509812 | AV23: -91.33443831 | AW23: -120.5492837 | AX23: -111.9392837 | AY23: -110.4325337 | AZ23: -111.9392837 | BA23: -120.5492837 | BB23: -111.9392837 | BC23: -120.5492837 | BD23: -101.8225337 | BE23: -155.8727204 | BF23: -147.2627204 | BG23: -155.8727204 | BH23: -147.2627204 | BI23: -145.7559704 | BJ23: -147.2627204 | BK23: -155.8727204 | BL23: -147.2627204 | BM23: -155.8727204 | BN23: -137.1459704 | BO23: -155.8727204 | BP23: =BP469+BP470+BP472+BP474 -> -150.8942383 | BQ23: -160.0150622 | BR23: -151.4050622 | BS23: -149.8983122 | BT23: -45.97119017 | BU23: 0 | BV23: 0 | BW23: 0 | BX23: 0 | BY23: 0 | BZ23: 0 | CA23: 0 | CB23: 0 | CC23: 0 | CD23: 0 | CE23: 0 | CF23: 0 | CG23: 0 | CM23: Financing Cost | CN23: million USD | CO23: ='Financial Model'!AJ18 -> 0 | CP23: ='Financial Model'!AK18 -> 0 | CQ23: ='Financial Model'!AL18 -> 0 | CR23: ='Financial Model'!AM18 -> 0 | CS23: ='Financial Model'!AN18 -> 0 | CT23: ='Financial Model'!AO18 -> 0 | CU23: ='Financial Model'!AP18 -> 0 | CV23: ='Financial Model'!AQ18 -> 0 | CW23: ='Financial Model'!AR18 -> 0 | CX23: ='Financial Model'!AS18 -> 0 | CY23: ='Financial Model'!AT18 -> 0 | CZ23: ='Financial Model'!AU18 -> 0 | DA23: ='Financial Model'!AV18 -> 0 | DB23: ='Financial Model'!AW18 -> 0 | DC23: ='Financial Model'!AX18 -> 0 | DD23: ='Financial Model'!AY18 -> 0 | DE23: ='Financial Model'!AZ18 -> 0 | DF23: ='Financial Model'!BA18 -> 0 | DG23: ='Financial Model'!BB18 -> 0 | DH23: ='Financial Model'!BC18 -> 0 | DI23: ='Financial Model'!BD18 -> 0 | DJ23: ='Financial Model'!BE18 -> 0 | DK23: ='Financial Model'!BF18 -> 0 | DL23: ='Financial Model'!BG18 -> 0 | DM23: ='Financial Model'!BH18 -> 0 | DN23: ='Financial Model'!BI18 -> 0 | DO23: ='Financial Model'!BJ18 -> 0 | DP23: ='Financial Model'!BK18 -> 0 | DQ23: ='Financial Model'!BL18 -> 0 | DR23: ='Financial Model'!BM18 -> 0 | DS23: ='Financial Model'!BN18 -> 0 | DT23: ='Financial Model'!BO18 -> 0 | DU23: ='Financial Model'!BP18 -> 0 | DV23: ='Financial Model'!BQ18 -> 0 | DW23: ='Financial Model'!BR18 -> 0 | DX23: ='Financial Model'!BS18 -> 0 | DY23: ='Financial Model'!BT18 -> 0 | DZ23: ='Financial Model'!BU18 -> 0 | EA23: ='Financial Model'!BV18 -> 0 | EB23: ='Financial Model'!BW18 -> 0 | EC23: ='Financial Model'!BX18 -> 0 | ED23: ='Financial Model'!BY18 -> 0 | EE23: ='Financial Model'!BZ18 -> 0 | EF23: ='Financial Model'!CA18 -> 0 | EG23: ='Financial Model'!CB18 -> 0 | EH23: ='Financial Model'!CC18 -> 0 | EI23: ='Financial Model'!CD18 -> 0 | EJ23: ='Financial Model'!CE18 -> 0 | EK23: ='Financial Model'!CF18 -> 0 | EL23: ='Financial Model'!CG18 -> 0
B24: Cost-related parameters | AH24: Taxes (Specific) | AI24: million USD | AJ24: =AJ536+AJ537+AJ539+AJ541 -> 0 | AK24: 0 | AL24: 0 | AM24: 0 | AN24: 0 | AO24: 0 | AP24: 0 | AQ24: 0 | AR24: 0 | AS24: 0 | AT24: 0 | AU24: -71.05597969 | AV24: -98.13281904 | AW24: -134.1603802 | AX24: -121.8603802 | AY24: -119.7078802 | AZ24: -121.8603802 | BA24: -134.1603802 | BB24: -121.8603802 | BC24: -134.1603802 | BD24: -107.4078802 | BE24: -184.6224326 | BF24: -172.3224326 | BG24: -184.6224326 | BH24: -172.3224326 | BI24: -170.1699326 | BJ24: -172.3224326 | BK24: -184.6224326 | BL24: -172.3224326 | BM24: -184.6224326 | BN24: -157.8699326 | BO24: -184.6224326 | BP24: =BP536+BP537+BP539+BP541 -> -177.5103152 | BQ24: -190.5400636 | BR24: -178.2400636 | BS24: -176.0875636 | BT24: -65.67312882 | BU24: 0 | BV24: 0 | BW24: 0 | BX24: 0 | BY24: 0 | BZ24: 0 | CA24: 0 | CB24: 0 | CC24: 0 | CD24: 0 | CE24: 0 | CF24: 0 | CG24: 0 | CM24: Fees | CN24: million USD | CO24: ='Financial Model'!AJ19 -> -0.56 | CP24: ='Financial Model'!AK19 -> -0.06 | CQ24: ='Financial Model'!AL19 -> -0.06 | CR24: ='Financial Model'!AM19 -> -1.16 | CS24: ='Financial Model'!AN19 -> -0.16 | CT24: ='Financial Model'!AO19 -> -0.16 | CU24: ='Financial Model'!AP19 -> -0.1 | CV24: ='Financial Model'!AQ19 -> -0.1 | CW24: ='Financial Model'!AR19 -> -0.1 | CX24: ='Financial Model'!AS19 -> -0.1 | CY24: ='Financial Model'!AT19 -> -0.1 | CZ24: ='Financial Model'!AU19 -> -0.1 | DA24: ='Financial Model'!AV19 -> -0.1 | DB24: ='Financial Model'!AW19 -> -0.1 | DC24: ='Financial Model'!AX19 -> -0.1 | DD24: ='Financial Model'!AY19 -> -0.1 | DE24: ='Financial Model'!AZ19 -> -0.1 | DF24: ='Financial Model'!BA19 -> -0.1 | DG24: ='Financial Model'!BB19 -> -0.1 | DH24: ='Financial Model'!BC19 -> -0.1 | DI24: ='Financial Model'!BD19 -> -0.1 | DJ24: ='Financial Model'!BE19 -> -0.1 | DK24: ='Financial Model'!BF19 -> -0.1 | DL24: ='Financial Model'!BG19 -> -0.1 | DM24: ='Financial Model'!BH19 -> -0.1 | DN24: ='Financial Model'!BI19 -> -0.1 | DO24: ='Financial Model'!BJ19 -> -0.1 | DP24: ='Financial Model'!BK19 -> -0.1 | DQ24: ='Financial Model'!BL19 -> -0.1 | DR24: ='Financial Model'!BM19 -> -0.1 | DS24: ='Financial Model'!BN19 -> -0.1 | DT24: ='Financial Model'!BO19 -> -0.1 | DU24: ='Financial Model'!BP19 -> -0.1 | DV24: ='Financial Model'!BQ19 -> -0.1 | DW24: ='Financial Model'!BR19 -> -0.1 | DX24: ='Financial Model'!BS19 -> -0.1 | DY24: ='Financial Model'!BT19 -> 0 | DZ24: ='Financial Model'!BU19 -> 0 | EA24: ='Financial Model'!BV19 -> 0 | EB24: ='Financial Model'!BW19 -> 0 | EC24: ='Financial Model'!BX19 -> 0 | ED24: ='Financial Model'!BY19 -> 0 | EE24: ='Financial Model'!BZ19 -> 0 | EF24: ='Financial Model'!CA19 -> 0 | EG24: ='Financial Model'!CB19 -> 0 | EH24: ='Financial Model'!CC19 -> 0 | EI24: ='Financial Model'!CD19 -> 0 | EJ24: ='Financial Model'!CE19 -> 0 | EK24: ='Financial Model'!CF19 -> 0 | EL24: ='Financial Model'!CG19 -> 0
B25: Cost Discounts | AH25: Taxes (Blended) | AI25: million USD | AJ25: =AJ603+AJ604+AJ606+AJ608 -> 0 | AK25: 0 | AL25: 0 | AM25: 0 | AN25: 0 | AO25: 0 | AP25: 0 | AQ25: 0 | AR25: 0 | AS25: 0 | AT25: 0 | AU25: -80.41799067 | AV25: -109.5009752 | AW25: -147.5346815 | AX25: -135.2346815 | AY25: -113.1198543 | AZ25: -114.9494793 | BA25: -125.4044793 | BB25: -114.9494793 | BC25: -125.4044793 | BD25: -102.6648543 | BE25: -168.2972239 | BF25: -157.8422239 | BG25: -168.2972239 | BH25: -157.8422239 | BI25: -156.0125989 | BJ25: -157.8422239 | BK25: -168.2972239 | BL25: -157.8422239 | BM25: -168.2972239 | BN25: -145.5575989 | BO25: -168.2972239 | BP25: =BP603+BP604+BP606+BP608 -> -162.2519241 | BQ25: -173.3272103 | BR25: -162.8722103 | BS25: -161.0425853 | BT25: -55.8221595 | BU25: 0 | BV25: 0 | BW25: 0 | BX25: 0 | BY25: 0 | BZ25: 0 | CA25: 0 | CB25: 0 | CC25: 0 | CD25: 0 | CE25: 0 | CF25: 0 | CG25: 0 | CM25: Sponsoring State Tax | CN25: million USD | CO25: =IF('User Interface'!$C$4="Ad Valorem",AJ20,IF('User Interface'!$C$4="Blended",AJ25,AJ21)) -> 0 | CP25: =IF('User Interface'!$C$4="Ad Valorem",AK20,IF('User Interface'!$C$4="Blended",AK25,AK21)) -> 0 | CQ25: =IF('User Interface'!$C$4="Ad Valorem",AL20,IF('User Interface'!$C$4="Blended",AL25,AL21)) -> 0 | CR25: =IF('User Interface'!$C$4="Ad Valorem",AM20,IF('User Interface'!$C$4="Blended",AM25,AM21)) -> 0 | CS25: =IF('User Interface'!$C$4="Ad Valorem",AN20,IF('User Interface'!$C$4="Blended",AN25,AN21)) -> 0 | CT25: =IF('User Interface'!$C$4="Ad Valorem",AO20,IF('User Interface'!$C$4="Blended",AO25,AO21)) -> 0 | CU25: =IF('User Interface'!$C$4="Ad Valorem",AP20,IF('User Interface'!$C$4="Blended",AP25,AP21)) -> 0 | CV25: =IF('User Interface'!$C$4="Ad Valorem",AQ20,IF('User Interface'!$C$4="Blended",AQ25,AQ21)) -> 0 | CW25: =IF('User Interface'!$C$4="Ad Valorem",AR20,IF('User Interface'!$C$4="Blended",AR25,AR21)) -> 0 | CX25: =IF('User Interface'!$C$4="Ad Valorem",AS20,IF('User Interface'!$C$4="Blended",AS25,AS21)) -> 0 | CY25: =IF('User Interface'!$C$4="Ad Valorem",AT20,IF('User Interface'!$C$4="Blended",AT25,AT21)) -> 0 | CZ25: =IF('User Interface'!$C$4="Ad Valorem",AU20,IF('User Interface'!$C$4="Blended",AU25,AU21)) -> -81.14632249 | DA25: =IF('User Interface'!$C$4="Ad Valorem",AV20,IF('User Interface'!$C$4="Blended",AV25,AV21)) -> -110.3853782 | DB25: =IF('User Interface'!$C$4="Ad Valorem",AW20,IF('User Interface'!$C$4="Blended",AW25,AW21)) -> -148.5751556 | DC25: =IF('User Interface'!$C$4="Ad Valorem",AX20,IF('User Interface'!$C$4="Blended",AX25,AX21)) -> -136.2751556 | DD25: =IF('User Interface'!$C$4="Ad Valorem",AY20,IF('User Interface'!$C$4="Blended",AY25,AY21)) -> -107.6483015 | DE25: =IF('User Interface'!$C$4="Ad Valorem",AZ20,IF('User Interface'!$C$4="Blended",AZ25,AZ21)) -> -109.8008015 | DF25: =IF('User Interface'!$C$4="Ad Valorem",BA20,IF('User Interface'!$C$4="Blended",BA25,BA21)) -> -122.1008015 | DG25: =IF('User Interface'!$C$4="Ad Valorem",BB20,IF('User Interface'!$C$4="Blended",BB25,BB21)) -> -109.8008015 | DH25: =IF('User Interface'!$C$4="Ad Valorem",BC20,IF('User Interface'!$C$4="Blended",BC25,BC21)) -> -122.1008015 | DI25: =IF('User Interface'!$C$4="Ad Valorem",BD20,IF('User Interface'!$C$4="Blended",BD25,BD21)) -> -95.34830154 | DJ25: =IF('User Interface'!$C$4="Ad Valorem",BE20,IF('User Interface'!$C$4="Blended",BE25,BE21)) -> -172.562854 | DK25: =IF('User Interface'!$C$4="Ad Valorem",BF20,IF('User Interface'!$C$4="Blended",BF25,BF21)) -> -160.262854 | DL25: =IF('User Interface'!$C$4="Ad Valorem",BG20,IF('User Interface'!$C$4="Blended",BG25,BG21)) -> -172.562854 | DM25: =IF('User Interface'!$C$4="Ad Valorem",BH20,IF('User Interface'!$C$4="Blended",BH25,BH21)) -> -160.262854 | DN25: =IF('User Interface'!$C$4="Ad Valorem",BI20,IF('User Interface'!$C$4="Blended",BI25,BI21)) -> -158.110354 | DO25: =IF('User Interface'!$C$4="Ad Valorem",BJ20,IF('User Interface'!$C$4="Blended",BJ25,BJ21)) -> -160.262854 | DP25: =IF('User Interface'!$C$4="Ad Valorem",BK20,IF('User Interface'!$C$4="Blended",BK25,BK21)) -> -172.562854 | DQ25: =IF('User Interface'!$C$4="Ad Valorem",BL20,IF('User Interface'!$C$4="Blended",BL25,BL21)) -> -160.262854 | DR25: =IF('User Interface'!$C$4="Ad Valorem",BM20,IF('User Interface'!$C$4="Blended",BM25,BM21)) -> -172.562854 | DS25: =IF('User Interface'!$C$4="Ad Valorem",BN20,IF('User Interface'!$C$4="Blended",BN25,BN21)) -> -145.810354 | DT25: =IF('User Interface'!$C$4="Ad Valorem",BO20,IF('User Interface'!$C$4="Blended",BO25,BO21)) -> -172.562854 | DU25: =IF('User Interface'!$C$4="Ad Valorem",BP20,IF('User Interface'!$C$4="Blended",BP25,BP21)) -> -165.4507366 | DV25: =IF('User Interface'!$C$4="Ad Valorem",BQ20,IF('User Interface'!$C$4="Blended",BQ25,BQ21)) -> -178.480485 | DW25: =IF('User Interface'!$C$4="Ad Valorem",BR20,IF('User Interface'!$C$4="Blended",BR25,BR21)) -> -166.180485 | DX25: =IF('User Interface'!$C$4="Ad Valorem",BS20,IF('User Interface'!$C$4="Blended",BS25,BS21)) -> -164.027985 | DY25: =IF('User Interface'!$C$4="Ad Valorem",BT20,IF('User Interface'!$C$4="Blended",BT25,BT21)) -> -65.67312882 | DZ25: =IF('User Interface'!$C$4="Ad Valorem",BU20,IF('User Interface'!$C$4="Blended",BU25,BU21)) -> 0 | EA25: =IF('User Interface'!$C$4="Ad Valorem",BV20,IF('User Interface'!$C$4="Blended",BV25,BV21)) -> 0 | EB25: =IF('User Interface'!$C$4="Ad Valorem",BW20,IF('User Interface'!$C$4="Blended",BW25,BW21)) -> 0 | EC25: =IF('User Interface'!$C$4="Ad Valorem",BX20,IF('User Interface'!$C$4="Blended",BX25,BX21)) -> 0 | ED25: =IF('User Interface'!$C$4="Ad Valorem",BY20,IF('User Interface'!$C$4="Blended",BY25,BY21)) -> 0 | EE25: =IF('User Interface'!$C$4="Ad Valorem",BZ20,IF('User Interface'!$C$4="Blended",BZ25,BZ21)) -> 0 | EF25: =IF('User Interface'!$C$4="Ad Valorem",CA20,IF('User Interface'!$C$4="Blended",CA25,CA21)) -> 0 | EG25: =IF('User Interface'!$C$4="Ad Valorem",CB20,IF('User Interface'!$C$4="Blended",CB25,CB21)) -> 0 | EH25: =IF('User Interface'!$C$4="Ad Valorem",CC20,IF('User Interface'!$C$4="Blended",CC25,CC21)) -> 0 | EI25: =IF('User Interface'!$C$4="Ad Valorem",CD20,IF('User Interface'!$C$4="Blended",CD25,CD21)) -> 0 | EJ25: =IF('User Interface'!$C$4="Ad Valorem",CE20,IF('User Interface'!$C$4="Blended",CE25,CE21)) -> 0 | EK25: =IF('User Interface'!$C$4="Ad Valorem",CF20,IF('User Interface'!$C$4="Blended",CF25,CF21)) -> 0 | EL25: =IF('User Interface'!$C$4="Ad Valorem",CG20,IF('User Interface'!$C$4="Blended",CG25,CG21)) -> 0
B26: Cost Savings Relative to First Mover | C26: % | D26: 0 | E26: out of first mover costs | S26: Stocastic Multiplier | T26: Likely Multipler | U26: Stochastic MIN | V26: Stochastic MAX | AH26: Environmental Levies | AI26: million USD | AJ26: =AJ209 -> 0 | AK26: 0 | AL26: 0 | AM26: 0 | AN26: 0 | AO26: 0 | AP26: 0 | AQ26: 0 | AR26: 0 | AS26: 0 | AT26: 0 | AU26: -23.6705241 | AV26: -23.6705241 | AW26: -23.6705241 | AX26: -23.6705241 | AY26: -23.6705241 | AZ26: -23.6705241 | BA26: -23.6705241 | BB26: -23.6705241 | BC26: -23.6705241 | BD26: -23.6705241 | BE26: -23.6705241 | BF26: -23.6705241 | BG26: -23.6705241 | BH26: -23.6705241 | BI26: -23.6705241 | BJ26: -23.6705241 | BK26: -23.6705241 | BL26: -23.6705241 | BM26: -23.6705241 | BN26: -23.6705241 | BO26: -23.6705241 | BP26: =BP209 -> -2.918993814 | BQ26: 0 | BR26: 0 | BS26: 0 | BT26: 0 | BU26: 0 | BV26: 0 | BW26: 0 | BX26: 0 | BY26: 0 | BZ26: 0 | CA26: 0 | CB26: 0 | CC26: 0 | CD26: 0 | CE26: 0 | CF26: 0 | CG26: 0
C27: % | D27: =1-D26 -> 1 | E27: percent of first mover costs | P27: Cost Uncertainty Factor | S27: 1 | T27: 1 | U27: =E31 -> 0.71 | V27: =F31 -> 1.29 | AH27: Revenues (Ad Valorem) | AI27: million USD | AJ27: =AJ241 -> 0 | AK27: 0 | AL27: 0 | AM27: 0 | AN27: 0 | AO27: 0 | AP27: 0 | AQ27: 0 | AR27: 0 | AS27: 0 | AT27: 0 | AU27: 993.4446124 | AV27: 1206.325601 | AW27: 1419.206589 | AX27: 1419.206589 | AY27: 1419.206589 | AZ27: 1419.206589 | BA27: 1419.206589 | BB27: 1419.206589 | BC27: 1419.206589 | BD27: 1419.206589 | BE27: 1419.206589 | BF27: 1419.206589 | BG27: 1419.206589 | BH27: 1419.206589 | BI27: 1419.206589 | BJ27: 1419.206589 | BK27: 1419.206589 | BL27: 1419.206589 | BM27: 1419.206589 | BN27: 1419.206589 | BO27: 1419.206589 | BP27: =BP241 -> 1419.206589 | BQ27: 1419.206589 | BR27: 1419.206589 | BS27: 1419.206589 | BT27: 0 | BU27: 0 | BV27: 0 | BW27: 0 | BX27: 0 | BY27: 0 | BZ27: 0 | CA27: 0 | CB27: 0 | CC27: 0 | CD27: 0 | CE27: 0 | CF27: 0 | CG27: 0 | CM27: Environmental Levies | CN27: million USD | CO27: ='Financial Model'!AJ26 -> 0 | CP27: ='Financial Model'!AK26 -> 0 | CQ27: ='Financial Model'!AL26 -> 0 | CR27: ='Financial Model'!AM26 -> 0 | CS27: ='Financial Model'!AN26 -> 0 | CT27: ='Financial Model'!AO26 -> 0 | CU27: ='Financial Model'!AP26 -> 0 | CV27: ='Financial Model'!AQ26 -> 0 | CW27: ='Financial Model'!AR26 -> 0 | CX27: ='Financial Model'!AS26 -> 0 | CY27: ='Financial Model'!AT26 -> 0 | CZ27: ='Financial Model'!AU26 -> -23.6705241 | DA27: ='Financial Model'!AV26 -> -23.6705241 | DB27: ='Financial Model'!AW26 -> -23.6705241 | DC27: ='Financial Model'!AX26 -> -23.6705241 | DD27: ='Financial Model'!AY26 -> -23.6705241 | DE27: ='Financial Model'!AZ26 -> -23.6705241 | DF27: ='Financial Model'!BA26 -> -23.6705241 | DG27: ='Financial Model'!BB26 -> -23.6705241 | DH27: ='Financial Model'!BC26 -> -23.6705241 | DI27: ='Financial Model'!BD26 -> -23.6705241 | DJ27: ='Financial Model'!BE26 -> -23.6705241 | DK27: ='Financial Model'!BF26 -> -23.6705241 | DL27: ='Financial Model'!BG26 -> -23.6705241 | DM27: ='Financial Model'!BH26 -> -23.6705241 | DN27: ='Financial Model'!BI26 -> -23.6705241 | DO27: ='Financial Model'!BJ26 -> -23.6705241 | DP27: ='Financial Model'!BK26 -> -23.6705241 | DQ27: ='Financial Model'!BL26 -> -23.6705241 | DR27: ='Financial Model'!BM26 -> -23.6705241 | DS27: ='Financial Model'!BN26 -> -23.6705241 | DT27: ='Financial Model'!BO26 -> -23.6705241 | DU27: ='Financial Model'!BP26 -> -2.918993814 | DV27: ='Financial Model'!BQ26 -> 0 | DW27: ='Financial Model'!BR26 -> 0 | DX27: ='Financial Model'!BS26 -> 0 | DY27: ='Financial Model'!BT26 -> 0 | DZ27: ='Financial Model'!BU26 -> 0 | EA27: ='Financial Model'!BV26 -> 0 | EB27: ='Financial Model'!BW26 -> 0 | EC27: ='Financial Model'!BX26 -> 0 | ED27: ='Financial Model'!BY26 -> 0 | EE27: ='Financial Model'!BZ26 -> 0 | EF27: ='Financial Model'!CA26 -> 0 | EG27: ='Financial Model'!CB26 -> 0 | EH27: ='Financial Model'!CC26 -> 0 | EI27: ='Financial Model'!CD26 -> 0 | EJ27: ='Financial Model'!CE26 -> 0 | EK27: ='Financial Model'!CF26 -> 0 | EL27: ='Financial Model'!CG26 -> 0
B28: Capital Expenses and Duration [CAPEX] | AH28: Revenues (Var. Ad Valorem (A)) | AI28: million USD | AJ28: =AJ319 -> 0 | AK28: 0 | AL28: 0 | AM28: 0 | AN28: 0 | AO28: 0 | AP28: 0 | AQ28: 0 | AR28: 0 | AS28: 0 | AT28: 0 | AU28: 993.4446124 | AV28: 1206.325601 | AW28: 1419.206589 | AX28: 1419.206589 | AY28: 1419.206589 | AZ28: 1419.206589 | BA28: 1419.206589 | BB28: 1419.206589 | BC28: 1419.206589 | BD28: 1419.206589 | BE28: 1419.206589 | BF28: 1419.206589 | BG28: 1419.206589 | BH28: 1419.206589 | BI28: 1419.206589 | BJ28: 1419.206589 | BK28: 1419.206589 | BL28: 1419.206589 | BM28: 1419.206589 | BN28: 1419.206589 | BO28: 1419.206589 | BP28: =BP319 -> 1419.206589 | BQ28: 1419.206589 | BR28: 1419.206589 | BS28: 1419.206589 | BT28: 0 | BU28: 0 | BV28: 0 | BW28: 0 | BX28: 0 | BY28: 0 | BZ28: 0 | CA28: 0 | CB28: 0 | CC28: 0 | CD28: 0 | CE28: 0 | CF28: 0 | CG28: 0 | CM28: Revenues from Nodules | CN28: million USD | CO28: =IF('User Interface'!$C$4="Ad Valorem",AJ27,IF('User Interface'!$C$4="Blended",AJ32,AJ28)) -> 0 | CP28: =IF('User Interface'!$C$4="Ad Valorem",AK27,IF('User Interface'!$C$4="Blended",AK32,AK28)) -> 0 | CQ28: =IF('User Interface'!$C$4="Ad Valorem",AL27,IF('User Interface'!$C$4="Blended",AL32,AL28)) -> 0 | CR28: =IF('User Interface'!$C$4="Ad Valorem",AM27,IF('User Interface'!$C$4="Blended",AM32,AM28)) -> 0 | CS28: =IF('User Interface'!$C$4="Ad Valorem",AN27,IF('User Interface'!$C$4="Blended",AN32,AN28)) -> 0 | CT28: =IF('User Interface'!$C$4="Ad Valorem",AO27,IF('User Interface'!$C$4="Blended",AO32,AO28)) -> 0 | CU28: =IF('User Interface'!$C$4="Ad Valorem",AP27,IF('User Interface'!$C$4="Blended",AP32,AP28)) -> 0 | CV28: =IF('User Interface'!$C$4="Ad Valorem",AQ27,IF('User Interface'!$C$4="Blended",AQ32,AQ28)) -> 0 | CW28: =IF('User Interface'!$C$4="Ad Valorem",AR27,IF('User Interface'!$C$4="Blended",AR32,AR28)) -> 0 | CX28: =IF('User Interface'!$C$4="Ad Valorem",AS27,IF('User Interface'!$C$4="Blended",AS32,AS28)) -> 0 | CY28: =IF('User Interface'!$C$4="Ad Valorem",AT27,IF('User Interface'!$C$4="Blended",AT32,AT28)) -> 0 | CZ28: =IF('User Interface'!$C$4="Ad Valorem",AU27,IF('User Interface'!$C$4="Blended",AU32,AU28)) -> 993.4446124 | DA28: =IF('User Interface'!$C$4="Ad Valorem",AV27,IF('User Interface'!$C$4="Blended",AV32,AV28)) -> 1206.325601 | DB28: =IF('User Interface'!$C$4="Ad Valorem",AW27,IF('User Interface'!$C$4="Blended",AW32,AW28)) -> 1419.206589 | DC28: =IF('User Interface'!$C$4="Ad Valorem",AX27,IF('User Interface'!$C$4="Blended",AX32,AX28)) -> 1419.206589 | DD28: =IF('User Interface'!$C$4="Ad Valorem",AY27,IF('User Interface'!$C$4="Blended",AY32,AY28)) -> 1419.206589 | DE28: =IF('User Interface'!$C$4="Ad Valorem",AZ27,IF('User Interface'!$C$4="Blended",AZ32,AZ28)) -> 1419.206589 | DF28: =IF('User Interface'!$C$4="Ad Valorem",BA27,IF('User Interface'!$C$4="Blended",BA32,BA28)) -> 1419.206589 | DG28: =IF('User Interface'!$C$4="Ad Valorem",BB27,IF('User Interface'!$C$4="Blended",BB32,BB28)) -> 1419.206589 | DH28: =IF('User Interface'!$C$4="Ad Valorem",BC27,IF('User Interface'!$C$4="Blended",BC32,BC28)) -> 1419.206589 | DI28: =IF('User Interface'!$C$4="Ad Valorem",BD27,IF('User Interface'!$C$4="Blended",BD32,BD28)) -> 1419.206589 | DJ28: =IF('User Interface'!$C$4="Ad Valorem",BE27,IF('User Interface'!$C$4="Blended",BE32,BE28)) -> 1419.206589 | DK28: =IF('User Interface'!$C$4="Ad Valorem",BF27,IF('User Interface'!$C$4="Blended",BF32,BF28)) -> 1419.206589 | DL28: =IF('User Interface'!$C$4="Ad Valorem",BG27,IF('User Interface'!$C$4="Blended",BG32,BG28)) -> 1419.206589 | DM28: =IF('User Interface'!$C$4="Ad Valorem",BH27,IF('User Interface'!$C$4="Blended",BH32,BH28)) -> 1419.206589 | DN28: =IF('User Interface'!$C$4="Ad Valorem",BI27,IF('User Interface'!$C$4="Blended",BI32,BI28)) -> 1419.206589 | DO28: =IF('User Interface'!$C$4="Ad Valorem",BJ27,IF('User Interface'!$C$4="Blended",BJ32,BJ28)) -> 1419.206589 | DP28: =IF('User Interface'!$C$4="Ad Valorem",BK27,IF('User Interface'!$C$4="Blended",BK32,BK28)) -> 1419.206589 | DQ28: =IF('User Interface'!$C$4="Ad Valorem",BL27,IF('User Interface'!$C$4="Blended",BL32,BL28)) -> 1419.206589 | DR28: =IF('User Interface'!$C$4="Ad Valorem",BM27,IF('User Interface'!$C$4="Blended",BM32,BM28)) -> 1419.206589 | DS28: =IF('User Interface'!$C$4="Ad Valorem",BN27,IF('User Interface'!$C$4="Blended",BN32,BN28)) -> 1419.206589 | DT28: =IF('User Interface'!$C$4="Ad Valorem",BO27,IF('User Interface'!$C$4="Blended",BO32,BO28)) -> 1419.206589 | DU28: =IF('User Interface'!$C$4="Ad Valorem",BP27,IF('User Interface'!$C$4="Blended",BP32,BP28)) -> 1419.206589 | DV28: =IF('User Interface'!$C$4="Ad Valorem",BQ27,IF('User Interface'!$C$4="Blended",BQ32,BQ28)) -> 1419.206589 | DW28: =IF('User Interface'!$C$4="Ad Valorem",BR27,IF('User Interface'!$C$4="Blended",BR32,BR28)) -> 1419.206589 | DX28: =IF('User Interface'!$C$4="Ad Valorem",BS27,IF('User Interface'!$C$4="Blended",BS32,BS28)) -> 1419.206589 | DY28: =IF('User Interface'!$C$4="Ad Valorem",BT27,IF('User Interface'!$C$4="Blended",BT32,BT28)) -> 0 | DZ28: =IF('User Interface'!$C$4="Ad Valorem",BU27,IF('User Interface'!$C$4="Blended",BU32,BU28)) -> 0 | EA28: =IF('User Interface'!$C$4="Ad Valorem",BV27,IF('User Interface'!$C$4="Blended",BV32,BV28)) -> 0 | EB28: =IF('User Interface'!$C$4="Ad Valorem",BW27,IF('User Interface'!$C$4="Blended",BW32,BW28)) -> 0 | EC28: =IF('User Interface'!$C$4="Ad Valorem",BX27,IF('User Interface'!$C$4="Blended",BX32,BX28)) -> 0 | ED28: =IF('User Interface'!$C$4="Ad Valorem",BY27,IF('User Interface'!$C$4="Blended",BY32,BY28)) -> 0 | EE28: =IF('User Interface'!$C$4="Ad Valorem",BZ27,IF('User Interface'!$C$4="Blended",BZ32,BZ28)) -> 0 | EF28: =IF('User Interface'!$C$4="Ad Valorem",CA27,IF('User Interface'!$C$4="Blended",CA32,CA28)) -> 0 | EG28: =IF('User Interface'!$C$4="Ad Valorem",CB27,IF('User Interface'!$C$4="Blended",CB32,CB28)) -> 0 | EH28: =IF('User Interface'!$C$4="Ad Valorem",CC27,IF('User Interface'!$C$4="Blended",CC32,CC28)) -> 0 | EI28: =IF('User Interface'!$C$4="Ad Valorem",CD27,IF('User Interface'!$C$4="Blended",CD32,CD28)) -> 0 | EJ28: =IF('User Interface'!$C$4="Ad Valorem",CE27,IF('User Interface'!$C$4="Blended",CE32,CE28)) -> 0 | EK28: =IF('User Interface'!$C$4="Ad Valorem",CF27,IF('User Interface'!$C$4="Blended",CF32,CF28)) -> 0 | EL28: =IF('User Interface'!$C$4="Ad Valorem",CG27,IF('User Interface'!$C$4="Blended",CG32,CG28)) -> 0
C29: First Mover Investment (expected) | D29: Modeled Investment (expected) | E29: Investment Possible Minimum (for simulation) | F29: Investment Possible Maximum (for simulation) | G29: Deployment Period | H29: Nodule Collection Allocation | I29: Nodule Processing Allocation | J29: Costs are spread uniformly? | K29: Percent Equity Finance | L29: Residual Value | P29: Capital Expenses and Duration [CAPEX] | R29: Stochastic Modeled Investment | X29: Collection | Y29: Processing | AH29: Revenues (Var. Ad Valorem (B)) | AI29: million USD | AJ29: =AJ387 -> 0 | AK29: 0 | AL29: 0 | AM29: 0 | AN29: 0 | AO29: 0 | AP29: 0 | AQ29: 0 | AR29: 0 | AS29: 0 | AT29: 0 | AU29: 970.1379939 | AV29: 1178.024707 | AW29: 1385.91142 | AX29: 1385.91142 | AY29: 1385.91142 | AZ29: 1385.91142 | BA29: 1385.91142 | BB29: 1385.91142 | BC29: 1385.91142 | BD29: 1385.91142 | BE29: 1385.91142 | BF29: 1385.91142 | BG29: 1385.91142 | BH29: 1385.91142 | BI29: 1385.91142 | BJ29: 1385.91142 | BK29: 1385.91142 | BL29: 1385.91142 | BM29: 1385.91142 | BN29: 1385.91142 | BO29: 1385.91142 | BP29: =BP387 -> 1385.91142 | BQ29: 1385.91142 | BR29: 1385.91142 | BS29: 1385.91142 | BT29: 0 | BU29: 0 | BV29: 0 | BW29: 0 | BX29: 0 | BY29: 0 | BZ29: 0 | CA29: 0 | CB29: 0 | CC29: 0 | CD29: 0 | CE29: 0 | CF29: 0 | CG29: 0 | CM29: Royalties and Fees | CO29: =IF('User Interface'!$C$4="Ad Valorem",AJ34,IF('User Interface'!$C$4="Blended",AJ39,AJ35))+CO24 -> -0.56 | CP29: =IF('User Interface'!$C$4="Ad Valorem",AK34,IF('User Interface'!$C$4="Blended",AK39,AK35))+CP24 -> -0.06 | CQ29: =IF('User Interface'!$C$4="Ad Valorem",AL34,IF('User Interface'!$C$4="Blended",AL39,AL35))+CQ24 -> -0.06 | CR29: =IF('User Interface'!$C$4="Ad Valorem",AM34,IF('User Interface'!$C$4="Blended",AM39,AM35))+CR24 -> -1.16 | CS29: =IF('User Interface'!$C$4="Ad Valorem",AN34,IF('User Interface'!$C$4="Blended",AN39,AN35))+CS24 -> -0.16 | CT29: =IF('User Interface'!$C$4="Ad Valorem",AO34,IF('User Interface'!$C$4="Blended",AO39,AO35))+CT24 -> -0.16 | CU29: =IF('User Interface'!$C$4="Ad Valorem",AP34,IF('User Interface'!$C$4="Blended",AP39,AP35))+CU24 -> -0.1 | CV29: =IF('User Interface'!$C$4="Ad Valorem",AQ34,IF('User Interface'!$C$4="Blended",AQ39,AQ35))+CV24 -> -0.1 | CW29: =IF('User Interface'!$C$4="Ad Valorem",AR34,IF('User Interface'!$C$4="Blended",AR39,AR35))+CW24 -> -0.1 | CX29: =IF('User Interface'!$C$4="Ad Valorem",AS34,IF('User Interface'!$C$4="Blended",AS39,AS35))+CX24 -> -0.1 | CY29: =IF('User Interface'!$C$4="Ad Valorem",AT34,IF('User Interface'!$C$4="Blended",AT39,AT35))+CY24 -> -0.1 | CZ29: =IF('User Interface'!$C$4="Ad Valorem",AU34,IF('User Interface'!$C$4="Blended",AU39,AU35))+CZ24 -> -41.52341718 | DA29: =IF('User Interface'!$C$4="Ad Valorem",AV34,IF('User Interface'!$C$4="Blended",AV39,AV35))+DA24 -> -50.39986372 | DB29: =IF('User Interface'!$C$4="Ad Valorem",AW34,IF('User Interface'!$C$4="Blended",AW39,AW35))+DB24 -> -59.27631026 | DC29: =IF('User Interface'!$C$4="Ad Valorem",AX34,IF('User Interface'!$C$4="Blended",AX39,AX35))+DC24 -> -59.27631026 | DD29: =IF('User Interface'!$C$4="Ad Valorem",AY34,IF('User Interface'!$C$4="Blended",AY39,AY35))+DD24 -> -223.2190936 | DE29: =IF('User Interface'!$C$4="Ad Valorem",AZ34,IF('User Interface'!$C$4="Blended",AZ39,AZ35))+DE24 -> -221.0665936 | DF29: =IF('User Interface'!$C$4="Ad Valorem",BA34,IF('User Interface'!$C$4="Blended",BA39,BA35))+DF24 -> -208.7665936 | DG29: =IF('User Interface'!$C$4="Ad Valorem",BB34,IF('User Interface'!$C$4="Blended",BB39,BB35))+DG24 -> -221.0665936 | DH29: =IF('User Interface'!$C$4="Ad Valorem",BC34,IF('User Interface'!$C$4="Blended",BC39,BC35))+DH24 -> -208.7665936 | DI29: =IF('User Interface'!$C$4="Ad Valorem",BD34,IF('User Interface'!$C$4="Blended",BD39,BD35))+DI24 -> -235.5190936 | DJ29: =IF('User Interface'!$C$4="Ad Valorem",BE34,IF('User Interface'!$C$4="Blended",BE39,BE35))+DJ24 -> -165.1737264 | DK29: =IF('User Interface'!$C$4="Ad Valorem",BF34,IF('User Interface'!$C$4="Blended",BF39,BF35))+DK24 -> -170.6045412 | DL29: =IF('User Interface'!$C$4="Ad Valorem",BG34,IF('User Interface'!$C$4="Blended",BG39,BG35))+DL24 -> -165.1737264 | DM29: =IF('User Interface'!$C$4="Ad Valorem",BH34,IF('User Interface'!$C$4="Blended",BH39,BH35))+DM24 -> -170.6045412 | DN29: =IF('User Interface'!$C$4="Ad Valorem",BI34,IF('User Interface'!$C$4="Blended",BI39,BI35))+DN24 -> -172.7570412 | DO29: =IF('User Interface'!$C$4="Ad Valorem",BJ34,IF('User Interface'!$C$4="Blended",BJ39,BJ35))+DO24 -> -170.6045412 | DP29: =IF('User Interface'!$C$4="Ad Valorem",BK34,IF('User Interface'!$C$4="Blended",BK39,BK35))+DP24 -> -165.1737264 | DQ29: =IF('User Interface'!$C$4="Ad Valorem",BL34,IF('User Interface'!$C$4="Blended",BL39,BL35))+DQ24 -> -170.6045412 | DR29: =IF('User Interface'!$C$4="Ad Valorem",BM34,IF('User Interface'!$C$4="Blended",BM39,BM35))+DR24 -> -165.1737264 | DS29: =IF('User Interface'!$C$4="Ad Valorem",BN34,IF('User Interface'!$C$4="Blended",BN39,BN35))+DS24 -> -185.0570412 | DT29: =IF('User Interface'!$C$4="Ad Valorem",BO34,IF('User Interface'!$C$4="Blended",BO39,BO35))+DT24 -> -165.1737264 | DU29: =IF('User Interface'!$C$4="Ad Valorem",BP34,IF('User Interface'!$C$4="Blended",BP39,BP35))+DU24 -> -165.4166586 | DV29: =IF('User Interface'!$C$4="Ad Valorem",BQ34,IF('User Interface'!$C$4="Blended",BQ39,BQ35))+DV24 -> -165.1737264 | DW29: =IF('User Interface'!$C$4="Ad Valorem",BR34,IF('User Interface'!$C$4="Blended",BR39,BR35))+DW24 -> -165.1737264 | DX29: =IF('User Interface'!$C$4="Ad Valorem",BS34,IF('User Interface'!$C$4="Blended",BS39,BS35))+DX24 -> -166.8394101 | DY29: =IF('User Interface'!$C$4="Ad Valorem",BT34,IF('User Interface'!$C$4="Blended",BT39,BT35))+DY24 -> 0 | DZ29: =IF('User Interface'!$C$4="Ad Valorem",BU34,IF('User Interface'!$C$4="Blended",BU39,BU35))+DZ24 -> 0 | EA29: =IF('User Interface'!$C$4="Ad Valorem",BV34,IF('User Interface'!$C$4="Blended",BV39,BV35))+EA24 -> 0 | EB29: =IF('User Interface'!$C$4="Ad Valorem",BW34,IF('User Interface'!$C$4="Blended",BW39,BW35))+EB24 -> 0 | EC29: =IF('User Interface'!$C$4="Ad Valorem",BX34,IF('User Interface'!$C$4="Blended",BX39,BX35))+EC24 -> 0 | ED29: =IF('User Interface'!$C$4="Ad Valorem",BY34,IF('User Interface'!$C$4="Blended",BY39,BY35))+ED24 -> 0 | EE29: =IF('User Interface'!$C$4="Ad Valorem",BZ34,IF('User Interface'!$C$4="Blended",BZ39,BZ35))+EE24 -> 0 | EF29: =IF('User Interface'!$C$4="Ad Valorem",CA34,IF('User Interface'!$C$4="Blended",CA39,CA35))+EF24 -> 0 | EG29: =IF('User Interface'!$C$4="Ad Valorem",CB34,IF('User Interface'!$C$4="Blended",CB39,CB35))+EG24 -> 0 | EH29: =IF('User Interface'!$C$4="Ad Valorem",CC34,IF('User Interface'!$C$4="Blended",CC39,CC35))+EH24 -> 0 | EI29: =IF('User Interface'!$C$4="Ad Valorem",CD34,IF('User Interface'!$C$4="Blended",CD39,CD35))+EI24 -> 0 | EJ29: =IF('User Interface'!$C$4="Ad Valorem",CE34,IF('User Interface'!$C$4="Blended",CE39,CE35))+EJ24 -> 0 | EK29: =IF('User Interface'!$C$4="Ad Valorem",CF34,IF('User Interface'!$C$4="Blended",CF39,CF35))+EK24 -> 0 | EL29: =IF('User Interface'!$C$4="Ad Valorem",CG34,IF('User Interface'!$C$4="Blended",CG39,CG35))+EL24 -> 0
B30: Operation Stage | C30: million USD | D30: million USD | E30: % of expected | F30: % of expected | G30: Years | H30: % of Investment | I30: % of Investment | J30: * see note | K30: % | L30: % of Investment | R30: mlllion USD | S30: Stocastic Multiplier | T30: Likely Multipler | U30: Stochastic MIN | V30: Stochastic MAX | X30: mlllion USD | Y30: mlllion USD | AH30: Revenues (Before Tax profit) | AI30: million USD | AJ30: =AJ455 -> 0 | AK30: 0 | AL30: 0 | AM30: 0 | AN30: 0 | AO30: 0 | AP30: 0 | AQ30: 0 | AR30: 0 | AS30: 0 | AT30: 0 | AU30: 1018.207895 | AV30: 1236.395301 | AW30: 1454.582706 | AX30: 1454.582706 | AY30: 1454.582706 | AZ30: 1454.582706 | BA30: 1454.582706 | BB30: 1454.582706 | BC30: 1454.582706 | BD30: 1454.582706 | BE30: 1454.582706 | BF30: 1454.582706 | BG30: 1454.582706 | BH30: 1454.582706 | BI30: 1454.582706 | BJ30: 1454.582706 | BK30: 1454.582706 | BL30: 1454.582706 | BM30: 1454.582706 | BN30: 1454.582706 | BO30: 1454.582706 | BP30: =BP455 -> 1454.582706 | BQ30: 1454.582706 | BR30: 1454.582706 | BS30: 1454.582706 | BT30: 0 | BU30: 0 | BV30: 0 | BW30: 0 | BX30: 0 | BY30: 0 | BZ30: 0 | CA30: 0 | CB30: 0 | CC30: 0 | CD30: 0 | CE30: 0 | CF30: 0 | CG30: 0 | CM30: Zero Line | CO30: 0 | CP30: 0 | CQ30: 0 | CR30: 0 | CS30: 0 | CT30: 0 | CU30: 0 | CV30: 0 | CW30: 0 | CX30: 0 | CY30: 0 | CZ30: 0 | DA30: 0 | DB30: 0 | DC30: 0 | DD30: 0 | DE30: 0 | DF30: 0 | DG30: 0 | DH30: 0 | DI30: 0 | DJ30: 0 | DK30: 0 | DL30: 0 | DM30: 0 | DN30: 0 | DO30: 0 | DP30: 0 | DQ30: 0 | DR30: 0 | DS30: 0 | DT30: 0 | DU30: 0 | DV30: 0 | DW30: 0 | DX30: 0 | DY30: 0 | DZ30: 0 | EA30: 0 | EB30: 0 | EC30: 0 | ED30: 0 | EE30: 0 | EF30: 0 | EG30: 0 | EH30: 0 | EI30: 0 | EJ30: 0 | EK30: 0 | EL30: 0
B31: Pre-Feasibility Phase | C31: ='User Interface'!C46 -> 44.8099208 | D31: =C31*$D$27 -> 44.8099208 | E31: 0.71 | F31: 1.29 | G31: =Q14 -> 6 | H31: ='User Interface'!D46 -> 0.4652132231 | I31: =1-H31 -> 0.5347867769 | J31: Yes | K31: 1 | L31: 0 | P31: Pre-Feasibility Phase | R31: =D31*S31 -> 44.8099208 | S31: =$S$27 -> 1 | T31: 1 | U31: =E31 -> 0.71 | V31: 1.29 | W31: =P31 -> Pre-Feasibility Phase | X31: =R31*H31 -> 20.84616769 | Y31: =R31*I31 -> 23.96375312 | AH31: Revenues (Specific) | AI31: million USD | AJ31: =AJ522 -> 0 | AK31: 0 | AL31: 0 | AM31: 0 | AN31: 0 | AO31: 0 | AP31: 0 | AQ31: 0 | AR31: 0 | AS31: 0 | AT31: 0 | AU31: 1000.727931 | AV31: 1215.16963 | AW31: 1429.61133 | AX31: 1429.61133 | AY31: 1429.61133 | AZ31: 1429.61133 | BA31: 1429.61133 | BB31: 1429.61133 | BC31: 1429.61133 | BD31: 1429.61133 | BE31: 1429.61133 | BF31: 1429.61133 | BG31: 1429.61133 | BH31: 1429.61133 | BI31: 1429.61133 | BJ31: 1429.61133 | BK31: 1429.61133 | BL31: 1429.61133 | BM31: 1429.61133 | BN31: 1429.61133 | BO31: 1429.61133 | BP31: =BP522 -> 1429.61133 | BQ31: 1429.61133 | BR31: 1429.61133 | BS31: 1429.61133 | BT31: 0 | BU31: 0 | BV31: 0 | BW31: 0 | BX31: 0 | BY31: 0 | BZ31: 0 | CA31: 0 | CB31: 0 | CC31: 0 | CD31: 0 | CE31: 0 | CF31: 0 | CG31: 0 | CN31: Total | CO31: =SUM(CO21:CO28)+CO29 -> -4.594361281 | CP31: -3.594361281 | CQ31: -3.594361281 | CR31: -62.22228049 | CS31: -60.22228049 | CT31: -60.22228049 | CU31: -56.62791921 | CV31: -521.3541921 | CW31: -521.3541921 | CX31: -521.3541921 | CY31: -521.3541921 | CZ31: 447.8471773 | DA31: 532.9043442 | DB31: 647.4736765 | DC31: 610.5736765 | DD31: 466.6477472 | DE31: 475.2577472 | DF31: 524.4577472 | DG31: 475.2577472 | DH31: 524.4577472 | DI31: 417.4477472 | DJ31: 517.588562 | DK31: 475.2577472 | DL31: 517.588562 | DM31: 475.2577472 | DN31: 466.6477472 | DO31: 475.2577472 | DP31: 517.588562 | DQ31: 475.2577472 | DR31: 517.588562 | DS31: 417.4477472 | DT31: 517.588562 | DU31: =SUM(DU21:DU28)+DU29 -> 496.0092775 | DV31: 535.341455 | DW31: 498.441455 | DX31: 490.3182713 | DY31: 197.0193865 | DZ31: 0 | EA31: 0 | EB31: 0 | EC31: 0 | ED31: 0 | EE31: 0 | EF31: 0 | EG31: 0 | EH31: 0 | EI31: 0 | EJ31: 0 | EK31: 0 | EL31: 0
B32: Feasibility Phase | C32: ='User Interface'!C47 -> 359.5901778 | D32: =C32*$D$27 -> 359.5901778 | E32: 0.8 | F32: 1.2 | G32: =Q15 -> 4 | H32: ='User Interface'!D47 -> 0.627691441 | I32: =1-H32 -> 0.372308559 | J32: Yes | K32: 1 | L32: 0 | P32: Feasibility Phase | R32: =D32*S32 -> 359.5901778 | S32: =$S$27 -> 1 | T32: 1 | U32: 0.8 | V32: 1.2 | W32: Feasibility Phase | X32: =R32*H32 -> 225.7116769 | Y32: =R32*I32 -> 133.8785009 | AH32: Revenues (Blended) | AI32: million USD | AJ32: =AJ589 -> 0 | AK32: 0 | AL32: 0 | AM32: 0 | AN32: 0 | AO32: 0 | AP32: 0 | AQ32: 0 | AR32: 0 | AS32: 0 | AT32: 0 | AU32: 990.5312851 | AV32: 1202.787989 | AW32: 1415.044693 | AX32: 1415.044693 | AY32: 1415.044693 | AZ32: 1415.044693 | BA32: 1415.044693 | BB32: 1415.044693 | BC32: 1415.044693 | BD32: 1415.044693 | BE32: 1415.044693 | BF32: 1415.044693 | BG32: 1415.044693 | BH32: 1415.044693 | BI32: 1415.044693 | BJ32: 1415.044693 | BK32: 1415.044693 | BL32: 1415.044693 | BM32: 1415.044693 | BN32: 1415.044693 | BO32: 1415.044693 | BP32: =BP589 -> 1415.044693 | BQ32: 1415.044693 | BR32: 1415.044693 | BS32: 1415.044693 | BT32: 0 | BU32: 0 | BV32: 0 | BW32: 0 | BX32: 0 | BY32: 0 | BZ32: 0 | CA32: 0 | CB32: 0 | CC32: 0 | CD32: 0 | CE32: 0 | CF32: 0 | CG32: 0 | CN32: Total Cumulative | CO32: =CO31 -> -4.594361281 | CP32: =CO32+CP31 -> -8.188722562 | CQ32: -11.78308384 | CR32: -74.00536434 | CS32: -134.2276448 | CT32: -194.4499253 | CU32: -251.0778445 | CV32: -772.4320367 | CW32: -1293.786229 | CX32: -1815.140421 | CY32: -2336.494613 | CZ32: -1888.647436 | DA32: -1355.743092 | DB32: -708.269415 | DC32: -97.69573849 | DD32: 368.9520087 | DE32: 844.209756 | DF32: 1368.667503 | DG32: 1843.92525 | DH32: 2368.382998 | DI32: 2785.830745 | DJ32: 3303.419307 | DK32: 3778.677054 | DL32: 4296.265616 | DM32: 4771.523363 | DN32: 5238.17111 | DO32: 5713.428858 | DP32: 6231.01742 | DQ32: 6706.275167 | DR32: 7223.863729 | DS32: 7641.311476 | DT32: 8158.900038 | DU32: 8654.909316 | DV32: =DU32+DV31 -> 9190.250771 | DW32: 9688.692226 | DX32: 10179.0105 | DY32: 10376.02988 | DZ32: 10376.02988 | EA32: 10376.02988 | EB32: 10376.02988 | EC32: 10376.02988 | ED32: 10376.02988 | EE32: 10376.02988 | EF32: 10376.02988 | EG32: 10376.02988 | EH32: 10376.02988 | EI32: 10376.02988 | EJ32: 10376.02988 | EK32: 10376.02988 | EL32: 10376.02988
B33: Design & Build - Collection System | C33: ='User Interface'!C48 -> 834.9367685 | D33: =C33*$D$27 -> 834.9367685 | E33: 0.8 | F33: 1.2 | G33: =Q17 -> 4 | H33: ='User Interface'!D48 -> 1 | I33: =1-H33 -> 0 | J33: Yes | K33: 1 | L33: 0.15 | P33: Design & Build - Collection System | R33: =D33*S33 -> 834.9367685 | S33: =$S$27 -> 1 | T33: 1 | U33: 0.8 | V33: 1.2 | W33: Design & Build - Collection System | X33: =R33*H33 -> 834.9367685 | Y33: =R33*I33 -> 0 | AH33: Royalties & Levies
B34: Design & Build - Surface Vessels | C34: ='User Interface'!C49+'User Interface'!C50 -> 1249.68 | D34: =C34 -> 1249.68 | E34: 0.8 | F34: 1.2 | G34: =Q17 -> 4 | H34: =SUMPRODUCT('User Interface'!C49:C50,'User Interface'!D49:D50)/SUM('User Interface'!C49:C50) -> 1 | I34: =1-H34 -> 0 | J34: Yes | K34: 1 | L34: 0.15 | P34: Design & Build - Surface Vessels | R34: =D34*S34 -> 1249.68 | S34: =$S$27 -> 1 | T34: 1 | U34: 0.8 | V34: 1.2 | W34: Design & Build - Surface Vessels | X34: =R34*H34 -> 1249.68 | Y34: =R34*I34 -> 0 | AH34: ="(Ad Valorem - "&TEXT(E132,"##.0%")&"/"&TEXT(E134,"##.0%")&")" -> (Ad Valorem - 2.5%/7.0%) | AI34: million USD | AJ34: =AJ251+AJ253+AJ262 -> 0 | AK34: =AK251+AK253+AK262 -> 0 | AL34: 0 | AM34: 0 | AN34: 0 | AO34: 0 | AP34: 0 | AQ34: 0 | AR34: 0 | AS34: 0 | AT34: 0 | AU34: -41.42341718 | AV34: -50.29986372 | AW34: -59.17631026 | AX34: -59.17631026 | AY34: -223.8940215 | AZ34: -221.7415215 | BA34: -209.4415215 | BB34: -221.7415215 | BC34: -209.4415215 | BD34: -236.1940215 | BE34: -165.6936687 | BF34: -171.279469 | BG34: -165.6936687 | BH34: -171.279469 | BI34: -173.431969 | BJ34: -171.279469 | BK34: -165.6936687 | BL34: -171.279469 | BM34: -165.6936687 | BN34: -185.731969 | BO34: -165.6936687 | BP34: -166.0915865 | BQ34: -165.6936687 | BR34: -165.6936687 | BS34: -167.514338 | BT34: 0 | BU34: 0 | BV34: 0 | BW34: 0 | BX34: 0 | BY34: 0 | BZ34: 0 | CA34: 0 | CB34: 0 | CC34: 0 | CD34: 0 | CE34: 0 | CF34: 0 | CG34: 0
B35: Design & Build - Processing plant | C35: ='User Interface'!C51 -> 1558.466223 | D35: =C35*$D$27 -> 1558.466223 | E35: 0.8 | F35: 1.2 | G35: =Q17 -> 4 | H35: ='User Interface'!D51 -> 0 | I35: =1-H35 -> 1 | J35: Yes | K35: 1 | L35: 0.15 | P35: Design & Build - Processing plant | R35: =D35*S35 -> 1558.466223 | S35: =$S$27 -> 1 | T35: 1 | U35: 0.8 | V35: 1.2 | W35: Design & Build - Processing plant | X35: =R35*H35 -> 0 | Y35: =R35*I35 -> 1558.466223 | AH35: (Var. Ad Valorem (A)) | AI35: million USD | AJ35: =AJ329+AJ331+AJ340 -> 0 | AK35: =AK329+AK331+AK340 -> 0 | AL35: 0 | AM35: 0 | AN35: 0 | AO35: 0 | AP35: 0 | AQ35: 0 | AR35: 0 | AS35: 0 | AT35: 0 | AU35: -41.42341718 | AV35: -50.29986372 | AW35: -59.17631026 | AX35: -59.17631026 | AY35: -223.1190936 | AZ35: -220.9665936 | BA35: -208.6665936 | BB35: -220.9665936 | BC35: -208.6665936 | BD35: -235.4190936 | BE35: -165.0737264 | BF35: -170.5045412 | BG35: -165.0737264 | BH35: -170.5045412 | BI35: -172.6570412 | BJ35: -170.5045412 | BK35: -165.0737264 | BL35: -170.5045412 | BM35: -165.0737264 | BN35: -184.9570412 | BO35: -165.0737264 | BP35: -165.3166586 | BQ35: -165.0737264 | BR35: -165.0737264 | BS35: -166.7394101 | BT35: 0 | BU35: 0 | BV35: 0 | BW35: 0 | BX35: 0 | BY35: 0 | BZ35: 0 | CA35: 0 | CB35: 0 | CC35: 0 | CD35: 0 | CE35: 0 | CF35: 0 | CG35: 0 | CN35: Lifetime Revenue
L36: * Note: If "yes", then investments are assumed to occur uniformly over the deployment period. | P36: Residual Value | R36: =-SUMPRODUCT(R31:R35,L31:L35) -> -546.4624488 | W36: Residual Value | X36: =-SUMPRODUCT(X31:X35,L31:L35) -> -312.6925153 | Y36: =-SUMPRODUCT(Y31:Y35,L31:L35) -> -233.7699335 | AH36: (Var. Ad Valorem (B)) | AI36: million USD | AJ36: =AJ397+AJ399+AJ408 -> 0 | AK36: =AK397+AK399+AK408 -> 0 | AL36: 0 | AM36: 0 | AN36: 0 | AO36: 0 | AP36: 0 | AQ36: 0 | AR36: 0 | AS36: 0 | AT36: 0 | AU36: -33.13873375 | AV36: -40.23989098 | AW36: -47.34104821 | AX36: -47.34104821 | AY36: -84.27703815 | AZ36: -82.12453815 | BA36: -69.82453815 | BB36: -82.12453815 | BC36: -69.82453815 | BD36: -96.57703815 | BE36: -47.34104821 | BF36: -47.34104821 | BG36: -47.34104821 | BH36: -47.34104821 | BI36: -47.34104821 | BJ36: -47.34104821 | BK36: -47.34104821 | BL36: -47.34104821 | BM36: -47.34104821 | BN36: -47.34104821 | BO36: -47.34104821 | BP36: -47.34104821 | BQ36: -47.34104821 | BR36: -47.34104821 | BS36: -47.34104821 | BT36: 0 | BU36: 0 | BV36: 0 | BW36: 0 | BX36: 0 | BY36: 0 | BZ36: 0 | CA36: 0 | CB36: 0 | CC36: 0 | CD36: 0 | CE36: 0 | CF36: 0 | CG36: 0 | CN36: millions
B37: Maintenance CapEx (recurring replacements) | AH37: ="(Before Tax Profit - "&TEXT(E148,"#0.0%")&"/"&TEXT(E150,"#0.0%")&")" -> (Before Tax Profit - 30.0%/30.0%) | AI37: million USD | AJ37: =AJ465+AJ467+AJ475 -> 0 | AK37: =AK465+AK467+AK475 -> 0 | AL37: 0 | AM37: 0 | AN37: 0 | AO37: 0 | AP37: 0 | AQ37: 0 | AR37: 0 | AS37: 0 | AT37: 0 | AU37: -117.2315968 | AV37: -156.5733228 | AW37: -206.655915 | AX37: -191.895915 | AY37: -244.57405 | AZ37: -245.6503 | BA37: -251.8003 | BB37: -245.6503 | BC37: -251.8003 | BD37: -238.42405 | BE37: -277.0313262 | BF37: -270.8813262 | BG37: -277.0313262 | BH37: -270.8813262 | BI37: -269.8050762 | BJ37: -270.8813262 | BK37: -277.0313262 | BL37: -270.8813262 | BM37: -277.0313262 | BN37: -263.6550762 | BO37: -277.0313262 | BP37: -273.4752675 | BQ37: -279.9901417 | BR37: -273.8401417 | BS37: -272.7638917 | BT37: -78.80775458 | BU37: 0 | BV37: 0 | BW37: 0 | BX37: 0 | BY37: 0 | BZ37: 0 | CA37: 0 | CB37: 0 | CC37: 0 | CD37: 0 | CE37: 0 | CF37: 0 | CG37: 0 | CM37: Metals Revenue | CN37: =IF('User Interface'!$C$4="Ad Valorem",AU$95,IF('User Interface'!$C$4="Blended",AU$100,AU$96)) -> 52313.36992
C38: Investment (expected) | D38: Investment Possible Minimum (for simulation) | E38: Investment Possible Maximum (for simulation) | F38: Frequency (expected) | G38: Frequency Possible Minimum (for simulation) | H38: Frequency Possible Maximum (for simulation) | I38: Nodule Collection Allocation | J38: Nodule Processing Allocation | AH38: ="(Specific - "&TEXT(E152,"##")&" cents/lb nodule)" -> (Specific - 2 cents/lb nodule) | AI38: million USD | AJ38: =AJ532+AJ534+AJ542 -> 0 | AK38: =AK532+AK534+AK542 -> 0 | AL38: 0 | AM38: 0 | AN38: 0 | AO38: 0 | AP38: 0 | AQ38: 0 | AR38: 0 | AS38: 0 | AT38: 0 | AU38: -133.9976951 | AV38: -150.8609289 | AW38: -158.7734409 | AX38: -171.0734409 | AY38: -173.2259409 | AZ38: -171.0734409 | BA38: -158.7734409 | BB38: -171.0734409 | BC38: -158.7734409 | BD38: -185.5259409 | BE38: -127.2401524 | BF38: -127.2401524 | BG38: -127.2401524 | BH38: -127.2401524 | BI38: -127.2401524 | BJ38: -127.2401524 | BK38: -127.2401524 | BL38: -127.2401524 | BM38: -127.2401524 | BN38: -135.0638885 | BO38: -127.2401524 | BP38: -127.2401524 | BQ38: -127.2401524 | BR38: -127.2401524 | BS38: -127.2401524 | BT38: 0 | BU38: 0 | BV38: 0 | BW38: 0 | BX38: 0 | BY38: 0 | BZ38: 0 | CA38: 0 | CB38: 0 | CC38: 0 | CD38: 0 | CE38: 0 | CF38: 0 | CG38: 0 | CM38: Processor Operating Costs | CN38: =IF('User Interface'!$C$4="Ad Valorem",AV$95,IF('User Interface'!$C$4="Blended",AV$100,AV$96)) -> -7526.14689
B39: Capital Expenditure Type | C39: million USD | D39: % of expected | E39: % of expected | F39: Years* (integer only) | G39: Years* (integer only) | H39: Years* (integer only) | I39: % of Investment | J39: % of Investment | P39: Maintenance CapEx (recurring replacements) | R39: million USD | S39: Stocastic Multiplier | T39: Likely Multipler | U39: Stochastic MIN | V39: Stochastic MAX | W39: Frequency (yrs) | X39: Stocastic Add | Y39: Stochastic MIN | Z39: Stochastic MAX | AH39: ="(Blended: "&"Ad Val - "&TEXT(E158,"#0.0%")&"/"&TEXT(G158,"#0.0%")&"; "&"Profit - "&TEXT(E159,"#0.0%")&"/"&TEXT(G159,"#0.0%")&"; "&"Specific - "&TEXT(E160,"##")&" cents/lb nodule)" -> (Blended: Ad Val - 2.5%/2.5%; Profit - 0.0%/15.0%; Specific - 2 cents/lb nodule) | AI39: million USD | AJ39: =AJ599+AJ601+AJ609 -> 0 | AK39: =AK599+AK601+AK609 -> 0 | AL39: 0 | AM39: 0 | AN39: 0 | AO39: 0 | AP39: 0 | AQ39: 0 | AR39: 0 | AS39: 0 | AT39: 0 | AU39: -41.42341718 | AV39: -50.29986372 | AW39: -59.17631026 | AX39: -59.17631026 | AY39: -191.5994336 | AZ39: -191.0613086 | BA39: -187.9863086 | BB39: -191.0613086 | BC39: -187.9863086 | BD39: -194.6744336 | BE39: -177.9743507 | BF39: -178.4457955 | BG39: -177.9743507 | BH39: -178.4457955 | BI39: -178.9839205 | BJ39: -178.4457955 | BK39: -177.9743507 | BL39: -178.4457955 | BM39: -177.9743507 | BN39: -182.0589205 | BO39: -177.9743507 | BP39: -177.1488248 | BQ39: -181.5249293 | BR39: -176.9663877 | BS39: -177.5045127 | BT39: -39.40387729 | BU39: 0 | BV39: 0 | BW39: 0 | BX39: 0 | BY39: 0 | BZ39: 0 | CA39: 0 | CB39: 0 | CC39: 0 | CD39: 0 | CE39: 0 | CF39: 0 | CG39: 0 | CM39: Processor Taxes | CN39: =IF('User Interface'!$C$4="Ad Valorem",AW$95,IF('User Interface'!$C$4="Blended",AW$100,AW$96)) -> -2486.425317
B40: Operations - Collectors | C40: ='User Interface'!C59 -> 49.2 | D40: 0.8 | E40: 1.2 | F40: ='User Interface'!D59 -> 2 | G40: 2 | H40: 3 | I40: 1 | J40: =1-I40 -> 0 | P40: Operations - Collectors | R40: =C40*S40 -> 49.2 | S40: =$S$27 -> 1 | T40: 1 | U40: =D40 -> 0.8 | V40: 1.2 | W40: =IF(F40=0,0,F40+X40) -> 2 | X40: 0 | Y40: =G40-$F40 -> 0 | Z40: 1 | AH40: Net Cash Flow After Royalties | CM40: Profit | CN40: =IF('User Interface'!$C$4="Ad Valorem",AY$95,IF('User Interface'!$C$4="Blended",AY$100,AY$96)) -> 7459.27595
B41: Operations - Risers | C41: ='User Interface'!C60 -> 51.9675 | D41: 0.8 | E41: 1.2 | F41: ='User Interface'!D60 -> 5 | G41: 4 | H41: 5 | I41: 1 | J41: =1-I41 -> 0 | P41: Operations - Risers | R41: =C41*S41 -> 51.9675 | S41: =$S$27 -> 1 | T41: 1 | U41: 0.8 | V41: 1.2 | W41: =F41+X41 -> 5 | X41: 0 | Y41: -1 | Z41: 0 | AH41: ="Net Cash Flow "&AH34 -> Net Cash Flow (Ad Valorem - 2.5%/7.0%) | AI41: million USD | AJ41: =SUM(AJ$16:AJ$19)+AJ20+AJ26+AJ27+AJ34 -> -4.034361281 | AK41: -3.534361281 | AL41: -3.534361281 | AM41: -61.06228049 | AN41: -60.06228049 | AO41: -60.06228049 | AP41: -56.52791921 | AQ41: -521.2541921 | AR41: -521.2541921 | AS41: -521.2541921 | AT41: -521.2541921 | AU41: 447.9471773 | AV41: 533.0043442 | AW41: 647.5736765 | AX41: 610.6736765 | AY41: 466.1278049 | AZ41: 474.7378049 | BA41: 523.9378049 | BB41: 474.7378049 | BC41: 523.9378049 | BD41: 416.9278049 | BE41: 517.2236052 | BF41: 474.7378049 | BG41: 517.2236052 | BH41: 474.7378049 | BI41: 466.1278049 | BJ41: 474.7378049 | BK41: 517.2236052 | BL41: 474.7378049 | BM41: 517.2236052 | BN41: 416.9278049 | BO41: 517.2236052 | BP41: =SUM(BP$16:BP$19)+BP20+BP26+BP27+BP34 -> 495.4893352 | BQ41: 534.9764983 | BR41: 498.0764983 | BS41: 489.798329 | BT41: 197.0193865 | BU41: 0 | BV41: 0 | BW41: 0 | BX41: 0 | BY41: 0 | BZ41: 0 | CA41: 0 | CB41: 0 | CC41: 0 | CD41: 0 | CE41: 0 | CF41: 0 | CG41: 0 | CM41: Payment for Nodules | CN41: =IF('User Interface'!$C$4="Ad Valorem",AX$95,IF('User Interface'!$C$4="Blended",AX$100,AX$96)) -> -34841.52176
B42: Operations - Moorings | C42: ='User Interface'!C61 -> 5.8425 | D42: 0.8 | E42: 1.2 | F42: ='User Interface'!D61 -> 5 | G42: 4 | H42: 5 | I42: 1 | J42: =1-I42 -> 0 | P42: Operations - Maintenance Item 3 | R42: =C42*S42 -> 5.8425 | S42: =$S$27 -> 1 | T42: 1 | U42: 0.8 | V42: 1.2 | W42: =F42+X42 -> 5 | X42: 0 | Y42: -1 | Z42: 0 | AH42: Net Cash Flow (Var. Ad Valorem (A)) | AI42: million USD | AJ42: =SUM(AJ$16:AJ$19)+AJ21+AJ$26+AJ28+AJ35 -> -4.034361281 | AK42: =SUM(AK$16:AK$19)+AK21+AK26+AK28+AK35 -> -3.534361281 | AL42: -3.534361281 | AM42: -61.06228049 | AN42: -60.06228049 | AO42: -60.06228049 | AP42: -56.52791921 | AQ42: -521.2541921 | AR42: -521.2541921 | AS42: -521.2541921 | AT42: -521.2541921 | AU42: 447.9471773 | AV42: 533.0043442 | AW42: 647.5736765 | AX42: 610.6736765 | AY42: 466.7477472 | AZ42: 475.3577472 | BA42: 524.5577472 | BB42: 475.3577472 | BC42: 524.5577472 | BD42: 417.5477472 | BE42: 517.688562 | BF42: 475.3577472 | BG42: 517.688562 | BH42: 475.3577472 | BI42: 466.7477472 | BJ42: 475.3577472 | BK42: 517.688562 | BL42: 475.3577472 | BM42: 517.688562 | BN42: 417.5477472 | BO42: 517.688562 | BP42: =SUM(BP$16:BP$19)+BP21+BP26+BP28+BP35 -> 496.1092775 | BQ42: 535.441455 | BR42: 498.541455 | BS42: 490.4182713 | BT42: 197.0193865 | BU42: 0 | BV42: 0 | BW42: 0 | BX42: 0 | BY42: 0 | BZ42: 0 | CA42: 0 | CB42: 0 | CC42: 0 | CD42: 0 | CE42: 0 | CF42: 0 | CG42: 0 | CN42: Collector
B43: Operations - Maintenance Item 4 | C43: 0 | D43: 0.8 | E43: 1.2 | F43: 0 | G43: 0 | H43: 1 | I43: 0 | J43: =1-I43 -> 1 | P43: Operations - Maintenance Item 4 | R43: =C43*S43 -> 0 | S43: 1 | T43: 1 | U43: 0.8 | V43: 1.2 | W43: =F43+X43 -> 0 | X43: 0 | Y43: 0 | Z43: 1 | AH43: Net Cash Flow (Var. Ad Valorem (B)) | AI43: million USD | AJ43: =SUM(AJ$16:AJ$19)+AJ22+AJ$26+AJ29+AJ36 -> -4.034361281 | AK43: =SUM(AK$16:AK$19)+AK22+AK$26+AK29+AK36 -> -3.534361281 | AL43: -3.534361281 | AM43: -61.06228049 | AN43: -60.06228049 | AO43: -60.06228049 | AP43: -56.52791921 | AQ43: -521.2541921 | AR43: -521.2541921 | AS43: -521.2541921 | AT43: -521.2541921 | AU43: 436.680726 | AV43: 519.3236534 | AW43: 631.4787461 | AX43: 594.5787461 | AY43: 551.1852562 | AZ43: 559.7952562 | BA43: 608.9952562 | BB43: 559.7952562 | BC43: 608.9952562 | BD43: 501.9852562 | BE43: 581.0166937 | BF43: 544.1166937 | BG43: 581.0166937 | BH43: 544.1166937 | BI43: 537.6591937 | BJ43: 544.1166937 | BK43: 581.0166937 | BL43: 544.1166937 | BM43: 581.0166937 | BN43: 500.7591937 | BO43: 581.0166937 | BP43: 559.6803414 | BQ43: 598.7695868 | BR43: 561.8695868 | BS43: 555.4120868 | BT43: 197.0193865 | BU43: 0 | BV43: 0 | BW43: 0 | BX43: 0 | BY43: 0 | BZ43: 0 | CA43: 0 | CB43: 0 | CC43: 0 | CD43: 0 | CE43: 0 | CF43: 0 | CG43: 0 | CM43: Revenue from Nodules | CN43: =IF('User Interface'!$C$4="Ad Valorem",AU$56,IF('User Interface'!$C$4="Blended",AU$61,AU$57)) -> 34841.52176
B44: Operations - Maintenance Item 5 | C44: 0 | D44: 0.8 | E44: 1.2 | F44: 0 | G44: 0 | H44: 1 | I44: 0 | J44: =1-I44 -> 1 | P44: Operations - Maintenance Item 5 | R44: =C44*S44 -> 0 | S44: 1 | T44: 1 | U44: 0.8 | V44: 1.2 | W44: =F44+X44 -> 0 | X44: 0 | Y44: 0 | Z44: 1 | AH44: ="Net Cash Flow "&AH37 -> Net Cash Flow (Before Tax Profit - 30.0%/30.0%) | AI44: million USD | AJ44: =SUM(AJ$16:AJ$19,AJ30)+AJ37+AJ23+AJ26 -> -4.034361281 | AK44: -3.534361281 | AL44: -3.534361281 | AM44: -61.06228049 | AN44: -60.06228049 | AO44: -60.06228049 | AP44: -56.52791921 | AQ44: -521.2541921 | AR44: -521.2541921 | AS44: -521.2541921 | AT44: -521.2541921 | AU44: 409.6635042 | AV44: 475.8515247 | AW44: 563.496061 | AX44: 537.666061 | AY44: 477.884676 | AZ44: 483.911676 | BA44: 518.351676 | BB44: 483.911676 | BC44: 518.351676 | BD44: 443.444676 | BE44: 457.7972131 | BF44: 423.3572131 | BG44: 457.7972131 | BH44: 423.3572131 | BI44: 417.3302131 | BJ44: 423.3572131 | BK44: 457.7972131 | BL44: 423.3572131 | BM44: 457.7972131 | BN44: 382.8902131 | BO44: 457.7972131 | BP44: =SUM(BP$16:BP$19,BP30)+BP37+BP23+BP26 -> 437.8832843 | BQ44: 474.3665799 | BR44: 439.9265799 | BS44: 433.8995799 | BT44: 137.9135705 | BU44: 0 | BV44: 0 | BW44: 0 | BX44: 0 | BY44: 0 | BZ44: 0 | CA44: 0 | CB44: 0 | CC44: 0 | CD44: 0 | CE44: 0 | CF44: 0 | CG44: 0 | CM44: Operating Costs | CN44: =IF('User Interface'!$C$4="Ad Valorem",AV$56,IF('User Interface'!$C$4="Blended",AV$61,AV$57)) -> -16209.30598
F45: * Years between replacement. If years are 0, then no recurring CapEx is modeled | P45: Operations Cost | S45: Stocastic Multiplier | T45: Likely Multipler | U45: Stochastic MIN | V45: Stochastic MAX | CM45: Net Operating Revenue | CN45: =IF('User Interface'!$C$4="Ad Valorem",AW$56,IF('User Interface'!$C$4="Blended",AW$61,AW$57)) -> 18632.21578
P46: Integrated | Q46: Normal OPEX (USD/ tonne/ year) | R46: =R48+R50 -> 203.9170812 | S46: 1 | T46: 1 | U46: =U48 -> 0.8 | V46: =V48 -> 1.2 | AH46: ="Net Cash Flow "&AH38 -> Net Cash Flow (Specific - 2 cents/lb nodule) | AI46: million USD | AJ46: =SUM(AJ$16:AJ$19)+AJ31+AJ38+AJ24+AJ26 -> -4.034361281 | AK46: -3.534361281 | AL46: -3.534361281 | AM46: -61.06228049 | AN46: -60.06228049 | AO46: -60.06228049 | AP46: -56.52791921 | AQ46: -521.2541921 | AR46: -521.2541921 | AS46: -521.2541921 | AT46: -521.2541921 | AU46: 372.7465604 | AV46: 453.5398675 | AW46: 572.7960617 | AX46: 523.5960617 | AY46: 514.9860617 | AZ46: 523.5960617 | BA46: 572.7960617 | BB46: 523.5960617 | BC46: 572.7960617 | BD46: 465.7860617 | BE46: 553.8672978 | BF46: 516.9672978 | BG46: 553.8672978 | BH46: 516.9672978 | BI46: 510.5097978 | BJ46: 516.9672978 | BK46: 553.8672978 | BL46: 516.9672978 | BM46: 553.8672978 | BN46: 465.7860617 | BO46: 553.8672978 | BP46: =SUM(BP$16:BP$19)+BP31+BP38+BP24+BP26 -> 532.5309455 | BQ46: 571.6201909 | BR46: 534.7201909 | BS46: 528.2626909 | BT46: 197.0193865 | BU46: 0 | BV46: 0 | BW46: 0 | BX46: 0 | BY46: 0 | BZ46: 0 | CA46: 0 | CB46: 0 | CC46: 0 | CD46: 0 | CE46: 0 | CF46: 0 | CG46: 0 | CM46: ISA Take | CN46: =IF('User Interface'!$C$4="Ad Valorem",AR$56,IF('User Interface'!$C$4="Blended",AR$61,AR$57)) -> 4060.244864
B47: Operational Expenses [OPEX} | P47: Integrated | Q47: Fixed (ratio - during ramp) | R47: =(R48*R49+R50*R51)/(R48+R50) -> 0.5 | S47: 1 | AH47: Net Cash Flow: Blended | AI47: million USD | AJ47: =SUM(AJ$16:AJ$19)+AJ32+AJ39+AJ25+AJ26 -> -4.034361281 | AK47: -3.534361281 | AL47: -3.534361281 | AM47: -61.06228049 | AN47: -60.06228049 | AO47: -60.06228049 | AP47: -56.52791921 | AQ47: -521.2541921 | AR47: -521.2541921 | AS47: -521.2541921 | AT47: -521.2541921 | AU47: 445.7621818 | AV47: 530.3511354 | AW47: 644.4522544 | AX47: 607.5522544 | AY47: 488.6339583 | AZ47: 495.9524583 | BA47: 537.7724583 | BB47: 495.9524583 | BC47: 537.7724583 | BD47: 446.8139583 | BE47: 504.8916717 | BF47: 465.6752268 | BG47: 504.8916717 | BH47: 465.6752268 | BI47: 458.3567268 | BJ47: 465.6752268 | BK47: 504.8916717 | BL47: 465.6752268 | BM47: 504.8916717 | BN47: 416.5367268 | BO47: 504.8916717 | BP47: =SUM(BP$16:BP$19)+BP32+BP39+BP25+BP26 -> 483.3140276 | BQ47: 519.9816308 | BR47: 485.7951723 | BS47: 478.4766723 | BT47: 167.4664785 | BU47: 0 | BV47: 0 | BW47: 0 | BX47: 0 | BY47: 0 | BZ47: 0 | CA47: 0 | CB47: 0 | CC47: 0 | CD47: 0 | CE47: 0 | CF47: 0 | CG47: 0 | CM47: SS Take | CN47: =IF('User Interface'!$C$4="Ad Valorem",AZ$56,IF('User Interface'!$C$4="Blended",AZ$61,AZ$57)) -> 3690.781035
C48: First Mover OPEX Cost (expected) | D48: Modeled OPEX Cost (expected) | E48: OpEx Possible Minimum (for simulation) | F48: OpEx Possible Maximum (for simulation) | G48: Fraction Fixed (During Ramp) | H48: Fraction Variable (During Ramp) | P48: Collection & Transport | Q48: Normal OPEX (USD/ tonne/ year) | R48: =D50*S48 -> 140.078899 | S48: =$S$27 -> 1 | T48: 1 | U48: =E50 -> 0.8 | V48: =F50 -> 1.2 | CM48: Other Take | CN48: =IF('User Interface'!$C$4="Ad Valorem",BA$56,IF('User Interface'!$C$4="Blended",BA$61,BA$57)) -> 500
B49: Operation Stage | C49: USD/ tonne/ year | D49: USD/ tonne/ year | E49: % of expected | F49: % of expected | G49: ratio | H49: ratio | P49: Collection & Transport | Q49: Fixed (ratio - during ramp) | R49: =G50*S49 -> 0.5 | S49: =$S$27 -> 1 | AH49: Net Cash Flow Pre-Tax (Ad Valorem) | AI49: million USD | AJ49: =SUM(AJ$16:AJ$18)+AJ27 -> -3.474361281 | AK49: -3.474361281 | AL49: -3.474361281 | AM49: -59.90228049 | AN49: -59.90228049 | AO49: -59.90228049 | AP49: -56.42791921 | AQ49: -521.1541921 | AR49: -521.1541921 | AS49: -521.1541921 | AT49: -521.1541921 | AU49: 594.287441 | AV49: 717.4601102 | AW49: 879.0956665 | AX49: 829.8956665 | AY49: 821.2856665 | AZ49: 829.8956665 | BA49: 879.0956665 | BB49: 829.8956665 | BC49: 879.0956665 | BD49: 772.0856665 | BE49: 879.0956665 | BF49: 829.8956665 | BG49: 879.0956665 | BH49: 829.8956665 | BI49: 821.2856665 | BJ49: 829.8956665 | BK49: 879.0956665 | BL49: 829.8956665 | BM49: 879.0956665 | BN49: 772.0856665 | BO49: 879.0956665 | BP49: =SUM(BP$16:BP$18)+BP27 -> 829.8956665 | BQ49: 879.0956665 | BR49: 829.8956665 | BS49: 821.2856665 | BT49: 262.6925153 | BU49: 0 | BV49: 0 | BW49: 0 | BX49: 0 | BY49: 0 | BZ49: 0 | CA49: 0 | CB49: 0 | CC49: 0 | CD49: 0 | CE49: 0 | CF49: 0 | CG49: 0 | CM49: Collector Take | CN49: =IF('User Interface'!$C$4="Ad Valorem",AX$56,IF('User Interface'!$C$4="Blended",AX$61,AX$57)) -> 10381.18988
B50: Nodule Collection & Transport Op Cost | C50: ='User Interface'!C54 -> 140.078899 | D50: =C50*28%*D27+C50*(1-28%) -> 140.078899 | E50: 0.8 | F50: 1.2 | G50: 0.5 | H50: =1-G50 -> 0.5 | P50: Processing | Q50: Normal OPEX (USD/ tonne/ year) | R50: =D51*S50 -> 63.83818225 | S50: =$S$27 -> 1 | T50: 1 | U50: =E51 -> 0.8 | V50: =F51 -> 1.2 | AH50: Net Cash Flow Pre-Tax (Var. Ad Valorem) (A) | AI50: million USD | AJ50: =SUM(AJ$16:AJ$18)+AJ28 -> -3.474361281 | AK50: -3.474361281 | AL50: -3.474361281 | AM50: -59.90228049 | AN50: -59.90228049 | AO50: -59.90228049 | AP50: -56.42791921 | AQ50: -521.1541921 | AR50: -521.1541921 | AS50: -521.1541921 | AT50: -521.1541921 | AU50: 594.287441 | AV50: 717.4601102 | AW50: 879.0956665 | AX50: 829.8956665 | AY50: 821.2856665 | AZ50: 829.8956665 | BA50: 879.0956665 | BB50: 829.8956665 | BC50: 879.0956665 | BD50: 772.0856665 | BE50: 879.0956665 | BF50: 829.8956665 | BG50: 879.0956665 | BH50: 829.8956665 | BI50: 821.2856665 | BJ50: 829.8956665 | BK50: 879.0956665 | BL50: 829.8956665 | BM50: 879.0956665 | BN50: 772.0856665 | BO50: 879.0956665 | BP50: =SUM(BP$16:BP$18)+BP28 -> 829.8956665 | BQ50: 879.0956665 | BR50: 829.8956665 | BS50: 821.2856665 | BT50: 262.6925153 | BU50: 0 | BV50: 0 | BW50: 0 | BX50: 0 | BY50: 0 | BZ50: 0 | CA50: 0 | CB50: 0 | CC50: 0 | CD50: 0 | CE50: 0 | CF50: 0 | CG50: 0
B51: Nodule Processing Operations Cost | C51: ='User Interface'!C55 -> 63.83818225 | D51: =C51 -> 63.83818225 | E51: 0.8 | F51: 1.2 | G51: 0.5 | H51: =1-G51 -> 0.5 | P51: Processing | Q51: Fixed (ratio - during ramp) | R51: =G51*S51 -> 0.5 | S51: =$S$27 -> 1 | AH51: Net Cash Flow Pre-Tax (Var. Ad Valorem) (B) | AI51: million USD | AJ51: -3.474361281 | AK51: -3.474361281 | AL51: -3.474361281 | AM51: -59.90228049 | AN51: -59.90228049 | AO51: -59.90228049 | AP51: -56.42791921 | AQ51: -521.1541921 | AR51: -521.1541921 | AS51: -521.1541921 | AT51: -521.1541921 | AU51: 570.9808226 | AV51: 689.1592164 | AW51: 845.8004972 | AX51: 796.6004972 | AY51: 787.9904972 | AZ51: 796.6004972 | BA51: 845.8004972 | BB51: 796.6004972 | BC51: 845.8004972 | BD51: 738.7904972 | BE51: 845.8004972 | BF51: 796.6004972 | BG51: 845.8004972 | BH51: 796.6004972 | BI51: 787.9904972 | BJ51: 796.6004972 | BK51: 845.8004972 | BL51: 796.6004972 | BM51: 845.8004972 | BN51: 738.7904972 | BO51: 845.8004972 | BP51: 796.6004972 | BQ51: 845.8004972 | BR51: 796.6004972 | BS51: 787.9904972 | BT51: 262.6925153 | BU51: 0 | BV51: 0 | BW51: =SUM(BW$16:BW$18)+BW29 -> 0 | BX51: 0 | BY51: 0 | BZ51: 0 | CA51: 0 | CB51: 0 | CC51: 0 | CD51: 0 | CE51: 0 | CF51: 0 | CG51: 0
AH52: Net Cash Flow Pre-Tax (Blended) | AI52: million USD | AJ52: =SUM(AJ$16:AJ$18)+AJ32 -> -3.474361281 | AK52: -3.474361281 | AL52: -3.474361281 | AM52: -59.90228049 | AN52: -59.90228049 | AO52: -59.90228049 | AP52: -56.42791921 | AQ52: -521.1541921 | AR52: -521.1541921 | AS52: -521.1541921 | AT52: -521.1541921 | AU52: 591.3741137 | AV52: 713.9224985 | AW52: 874.9337703 | AX52: 825.7337703 | AY52: 817.1237703 | AZ52: 825.7337703 | BA52: 874.9337703 | BB52: 825.7337703 | BC52: 874.9337703 | BD52: 767.9237703 | BE52: 874.9337703 | BF52: 825.7337703 | BG52: 874.9337703 | BH52: 825.7337703 | BI52: 817.1237703 | BJ52: 825.7337703 | BK52: 874.9337703 | BL52: 825.7337703 | BM52: 874.9337703 | BN52: 767.9237703 | BO52: 874.9337703 | BP52: =SUM(BP$16:BP$18)+BP32 -> 825.7337703 | BQ52: 874.9337703 | BR52: 825.7337703 | BS52: 817.1237703 | BT52: 262.6925153 | BU52: 0 | BV52: 0 | BW52: 0 | BX52: 0 | BY52: 0 | BZ52: 0 | CA52: 0 | CB52: 0 | CC52: 0 | CD52: 0 | CE52: 0 | CF52: 0 | CG52: 0
B53: Site restoration cost | C53: =50*'Financial Model'!$E$171 -> 50 | D53: million USD
AU54: CumRev_Coll | AV54: CumCost_Coll | AW54: CumNetCF_Coll | AX54: CollCumNetCF | AY54: ISACumRev_Coll | AZ54: SSCumRev_Coll | BA54: OthCumRev_Coll | BB54: Coll_Take | BC54: ISA Take_Coll | BD54: SS Take_Coll | BE54: Oth Take_Coll
B55: Revenue-related Parameters | AH55: Contractor Cash Flow: Independent Collector | AJ55: Collector NPV | AK55: Collector IRR | AL55: Collector Take (Post Tax) | AM55: Collector Effective Tax Rate | AN55: ISA Metrics | AO55: Average Revenue to ISA | AP55: ISA Revenue NPV (excl Env Levies) (million USD) | AQ55: ISA Revenue (first 5 years only) | AR55: ISA Cumulative Revenues | AS55: Other Metrics | AT55: Collector | AU55: Collector Cumulative Undiscounted Revenue | AV55: Cumulative Undisc. Costs (excl tax,fees & rylty) | AW55: Cumulative Net Cash Flows (excl tax, fees, & rylty) | AX55: Collector's Net Cash Flow | AY55: ISA Revenues | AZ55: Sponsoring State Revenues | BA55: Other | BB55: Collector's Take (Post Tax) | BC55: ISA Take | BD55: Sponsoring State Take | BE55: Other Take | BG55: Equivalent Royalty Rate per Nodule Transfer Price | BI55: Phase 1 | BJ55: Phase 2 | BL55: ISA Revenue NPV (INCL Env Levies) (million USD)
B56: Nodule Metal Content and Yield | P56: Nodule Metal Content and Yield | AH56: Coll: Ad Valorem | AI56: ="("&TEXT(E$132,"##.0%")&"/"&TEXT(E$134,"##.0%")&")" -> (2.5%/7.0%) | AJ56: =AJ41+NPV($D$79,AK41:CG41) -> 40.01761092 | AK56: =IFERROR(IRR(AJ41:CG41),-1%) -> 0.1563178073 | AL56: =BB56 -> 0.5565229662 | AM56: =1-AL56 -> 0.4434770338 | AO56: =-SUM(AJ34:CG34)/$D$18 -> 162.810938 | AP56: =-$AJ$19-NPV($D$82,$AK$19:$CG$19)-$AJ34-NPV($D$82,$AK34:$CG34) -> 1748.005541 | AQ56: =-SUM(OFFSET($AJ$19,0,0,1,H$19-1+5))-SUM(OFFSET($AJ34,0,0,1,H$19-1+5)) -> 437.1299229 | AR56: =AY56 -> 4075.43345 | AT56: AV | AU56: =SUM(AJ27:CG27) -> 34841.52176 | AV56: =SUM(AJ$16:CG$18) -> -16209.30598 | AW56: =AU56+AV56 -> 18632.21578 | AX56: =SUM(AJ301:CG301) -> 10369.25599 | AY56: =SUM(AJ302:CG302) -> 4075.43345 | AZ56: =SUM(AJ303:CG303) -> 3687.526338 | BA56: =SUM(AJ304:CG304) -> 500 | BB56: =AX56/$AW56 -> 0.5565229662 | BC56: 0.2187304772 | BD56: 0.1979113156 | BE56: 0.02683524095 | BG56: =-SUM(AJ34:CG34)/SUM(AJ27:CG27) -> 0.1168224935 | BI56: =-SUM(AU34:AX34)/SUM(AU27:AX27) -> 0.04169675558 | BJ56: =-SUM(AY34:CG34)/SUM(AY27:CG27) -> 0.1295223206 | BL56: =-$AJ$19-NPV($D$82,$AK$19:$CG$19)-$AJ$26-NPV($D$82,$AK$26:$CG$26)-$AJ34-NPV($D$82,$AK34:$CG34) -> 1984.091791
C57: Content | E57: Yield | M57: 2000 | Q57: Content | T57: Yield | AH57: Coll: Var. Ad Valorem (A) | AJ57: =AJ42+NPV($D$79,AK42:CG42) -> 40.54505549 | AK57: =IFERROR(IRR(AJ42:CG42),-1%) -> 0.1563982901 | AL57: 0.5571634638 | AM57: 0.4428365362 | AO57: 162.2033946 | AP57: 1741.748707 | AQ57: 436.354995 | AR57: 4060.244864 | AT57: VAV | AU57: 34841.52176 | AV57: -16209.30598 | AW57: 18632.21578 | AX57: =SUM(AJ379:CG379) -> 10381.18988 | AY57: =SUM(AJ380:CG380) -> 4060.244864 | AZ57: =SUM(AJ381:CG381) -> 3690.781035 | BA57: =SUM(AJ382:CG382) -> 500 | BB57: =AX57/$AW57 -> 0.5571634638 | BC57: 0.2179152985 | BD57: 0.1980859968 | BE57: 0.02683524095 | BG57: 0.11638656 | BI57: 0.04169675558 | BJ57: 0.1290126936 | BL57: 1977.834957
C58: All values are mass fraction of dry nodule | E58: All values are mass fraction of process metal | M58: 25000 | R58: Uncertainty | S58: Uncertainty | U58: Uncertainty | V58: Uncertainty | W58: Uncertainty | AH58: Coll: Var. Ad Valorem (B) | AJ58: =AJ43+NPV($D$79,AK43:CG43) -> 99.70185562 | AK58: =IFERROR(IRR(AJ43:CG43),-1%) -> 0.1649015394 | AL58: 0.6641492212 | AM58: 0.3358507788 | AO58: 54.51714693 | AP58: 620.2871563 | AQ58: 255.4977593 | AR58: 1368.088673 | AT58: VAVB | AU58: 34024.12536 | AV58: -16209.30598 | AW58: 17814.81938 | AX58: =SUM(AJ447:CG447) -> 11831.69841 | AY58: =SUM(AJ448:CG448) -> 1368.088673 | AZ58: =SUM(AJ449:CG449) -> 4115.03229 | BA58: =SUM(AJ450:CG450) -> 500 | BB58: 0.6641492212 | BC58: 0.07679497862 | BD58: 0.2309892794 | BE58: 0.02806652088 | BG58: 0.04005771372 | BI58: 0.03415878355 | BJ58: 0.04105491382 | BL58: 856.3734067
B59: Metal | C59: Nominal Value (expected) | D59: Std Deviation | E59: Nominal Value (expected) | F59: Min | G59: Max | M59: 50000 | Q59: Modeled Value | R59: Multiplier | S59: Std Deviation | T59: Modeled Value | U59: Expected Value | V59: Min | W59: Max | X59: Net Recovery | AH59: Coll: Before Tax Profit | AI59: ="("&TEXT(E$148,"#0.0%")&"/"&TEXT(E$150,"#0.0%")&")" -> (30.0%/30.0%) | AJ59: =AJ44+NPV($D$79,AK44:CG44) -> -18.84005631 | AK59: =IFERROR(IRR(AJ44:CG44),-1%) -> 0.1469610271 | AL59: 0.476153358 | AM59: 0.523846642 | AO59: 253.2510134 | AP59: 2705.341243 | AQ59: 920.0907995 | AR59: 6336.435335 | AT59: BTP | AU59: 35710.00544 | AV59: -16209.30598 | AW59: 19500.69946 | AX59: =SUM($AJ514:$CG514) -> 9285.323532 | AY59: =SUM($AJ515:$CG515) -> 6336.435335 | AZ59: =SUM($AJ516:$CG516) -> 3378.940596 | BA59: =SUM($AJ517:$CG517) -> 500 | BB59: 0.476153358 | BC59: 0.3249337464 | BD59: 0.1732727897 | BE59: 0.02564010593 | BG59: 0.177296958 | BI59: 0.1302065992 | BJ59: 0.185257471 | BL59: 2941.427494
B60: Manganese | C60: ='User Interface'!C66 -> 0.284 | D60: 0.038 | E60: ='User Interface'!D66 -> 0.99 | F60: 0.83 | G60: 0.97 | M60: 7000 | P60: Manganese | Q60: =C60*R60 -> 0.284 | R60: 1 | S60: =D60/C60 -> 0.1338028169 | T60: =E60+U60 -> 0.99 | U60: 0 | V60: =F60-E60 -> -0.16 | W60: =G60-E60 -> -0.02 | X60: =Q60*T60 -> 0.28116 | AH60: Coll: Scpecifc | AI60: ="( "&TEXT(E$152,"##")&" cents/lb nodule)" -> ( 2 cents/lb nodule) | AJ60: =AJ46+NPV($D$79,AK46:CG46) -> 24.91537605 | AK60: =IFERROR(IRR(AJ46:CG46),-1%) -> 0.1537614885 | AL60: 0.5792173194 | AM60: 0.4207826806 | AO60: 141.9830869 | AP60: 1617.955819 | AQ60: 791.0914468 | AR60: 3554.737173 | AT60: SPC | AU60: 35096.95814 | AV60: -16209.30598 | AW60: 18887.65216 | AX60: =SUM($AJ581:$CG581) -> 10940.05525 | AY60: =SUM($AJ582:$CG582) -> 3554.737173 | AZ60: =SUM($AJ583:$CG583) -> 3892.859733 | BA60: =SUM($AJ584:$CG584) -> 500 | BB60: 0.5792173194 | BC60: 0.1882042905 | BD60: 0.2061060687 | BE60: 0.02647232148 | BG60: 0.1011363195 | BI60: 0.1211213684 | BJ60: 0.09775789461 | BL60: 1854.04207
B61: Nickel | C61: ='User Interface'!C67 -> 0.013 | D61: 0.002 | E61: ='User Interface'!D67 -> 0.9 | F61: 0.83 | G61: 0.97 | P61: Nickel | Q61: =C61*R61 -> 0.013 | R61: 1 | S61: =D61/C61 -> 0.1538461538 | T61: =E61+U61 -> 0.9 | U61: =U60 -> 0 | V61: =F61-E61 -> -0.07 | W61: =G61-E61 -> 0.07 | X61: =Q61*T61 -> 0.0117 | AH61: Coll: Blended | AI61: ="("&TEXT(E158,"#0.0%")&"/"&TEXT(G158,"#0.0%")&"; "&"Profit - "&TEXT(E159,"#0.0%")&"/"&TEXT(G159,"#0.0%")&"; "&"Specific - "&TEXT(E160,"##")&" cents/lb nodule)" -> (2.5%/2.5%; Profit - 0.0%/15.0%; Specific - 2 cents/lb nodule) | AJ61: =AJ47+NPV($D$79,AK47:CG47) -> 45.05488457 | AK61: =IFERROR(IRR(AJ47:CG47),-1%) -> 0.1571215779 | AL61: 0.5555447791 | AM61: 0.4444552209 | AO61: 162.8676524 | AP61: 1715.186897 | AQ61: 404.835335 | AR61: 4076.851311 | AT61: BLD | AU61: 34739.34721 | AV61: -16209.30598 | AW61: 18530.04123 | AX61: =SUM($AJ648:$CG648) -> 10294.26766 | AY61: =SUM($AJ649:$CG649) -> 4076.851311 | AZ61: =SUM($AJ650:$CG650) -> 3658.922257 | BA61: =SUM($AJ651:$CG651) -> 500 | BB61: 0.5555447791 | BC61: 0.2200130728 | BD61: 0.1974589377 | BE61: 0.02698321033 | BG61: 0.1172069033 | BI61: 0.04181939309 | BJ61: 0.1299509825 | BL61: 1951.273148
B62: Cobalt | C62: ='User Interface'!C68 -> 0.002 | D62: 0.0005 | E62: ='User Interface'!D68 -> 0.8 | F62: 0.73 | G62: 0.87 | P62: Cobalt | Q62: =C62*R62 -> 0.002 | R62: 1 | S62: =D62/C62 -> 0.25 | T62: =E62+U62 -> 0.8 | U62: =U60 -> 0 | V62: =F62-E62 -> -0.07 | W62: =G62-E62 -> 0.07 | X62: =Q62*T62 -> 0.0016
B63: Copper | C63: ='User Interface'!C69 -> 0.011 | D63: 0.0024 | E63: ='User Interface'!D69 -> 0.9 | F63: 0.83 | G63: 0.97 | P63: Copper | Q63: =C63*R63 -> 0.011 | R63: 1 | S63: =D63/C63 -> 0.2181818182 | T63: =E63+U63 -> 0.9 | U63: =U60 -> 0 | V63: =F63-E63 -> -0.07 | W63: =G63-E63 -> 0.07 | X63: =Q63*T63 -> 0.0099 | AV63: No equal | AW63: 18376.77941 | AX63: 10568.07331 | AY63: 3681.784156 | AZ63: 3626.921941 | BA63: 500 | BB63: =1-AX63/AW63 -> 0.4249224483 | BC63: =AY63+AZ63+BA63 -> 7808.706098
AV64: Equal, w 25% | AW64: 18478.95396 | AX64: 10442.85601 | AY64: 3883.632366 | AZ64: 3652.465579 | BA64: 500 | BB64: =1-AX64/AW64 -> 0.4348784008 | BC64: =AY64+AZ64+BA64 -> 8036.097945
B65: Use Override Prices | C65: ='User Interface'!C72 -> 2 | D65: (0 = No, use default modeled prices; 1 = Yes, model prices with user provided long-term price; 2 = Yes, use fixed overrides from section below) | AV65: Equal, w 0% | AW65: 17508.29573 | AX65: 10421.18376 | AY65: 6587.111969 | AZ65: 0 | BA65: 500 | BB65: =1-AX65/AW65 -> 0.4047859414 | BC65: 7087.111969
B66: Price Scenario (percentile of observations) | C66: 0 | D66: Only applicable when Use Override Prices = 0 or 1 (0% = Average, Values greater than 0% and less than or equal to 100%) | AV66: Equal, w 0%, no uplift | AW66: 17968.0812 | AX66: 10339.72279 | AY66: 7128.358418 | AZ66: 0 | BA66: 500 | BB66: =1-AX66/AW66 -> 0.4245505311 | BC66: =AY66+AZ66+BA66 -> 7628.358418
AH67: Cash Flows: Independent Processor | AW67: 18632.21578 | AX67: 10381.18988 | AY67: 4060.244864 | AZ67: 3690.781035 | BA67: 500 | BB67: =1-AX67/AW67 -> 0.4428365362 | BC67: =AY67+AZ67+BA67 -> 8251.025899
B68: Price Overrides | D68: Modeled | E68: Fixed | P68: Index Used to Randomly Choose Among Price Series | AH68: Expenditure | AI68: Year | AJ68: 1 | AK68: 2 | AL68: 3 | AM68: 4 | AN68: 5 | AO68: 6 | AP68: 7 | AQ68: 8 | AR68: 9 | AS68: 10 | AT68: 11 | AU68: 12 | AV68: 13 | AW68: 14 | AX68: 15 | AY68: 16 | AZ68: 17 | BA68: 18 | BB68: 19 | BC68: 20 | BD68: 21 | BE68: 22 | BF68: 23 | BG68: 24 | BH68: 25 | BI68: 26 | BJ68: 27 | BK68: 28 | BL68: 29 | BM68: 30 | BN68: 31 | BO68: 32 | BP68: 33 | BQ68: 34 | BR68: 35 | BS68: 36 | BT68: 37 | BU68: 38 | BV68: 39 | BW68: 40 | BX68: 41 | BY68: 42 | BZ68: 43 | CA68: 44 | CB68: 45 | CC68: 46 | CD68: 47 | CE68: 48 | CF68: 49 | CG68: 50
D69: Long-term Value | E69: Price Override | Q69: Index | R69: Min Index | S69: Max Index | U69: Index | V69: Price Series | AH69: Capital & Maintenance Costs | AI69: million USD | AJ69: =AJ685+AJ688 -> -3.993958853 | AK69: -3.993958853 | AL69: -3.993958853 | AM69: -37.46358408 | AN69: -37.46358408 | AO69: -37.46358408 | AP69: -33.46962523 | AQ69: -389.6165559 | AR69: -389.6165559 | AS69: -389.6165559 | AT69: -389.6165559 | AU69: 0 | AV69: 0 | AW69: 0 | AX69: 0 | AY69: 0 | AZ69: 0 | BA69: 0 | BB69: 0 | BC69: 0 | BD69: 0 | BE69: 0 | BF69: 0 | BG69: 0 | BH69: 0 | BI69: 0 | BJ69: 0 | BK69: 0 | BL69: 0 | BM69: 0 | BN69: 0 | BO69: 0 | BP69: =BP685+BP688 -> 0 | BQ69: 0 | BR69: 0 | BS69: 0 | BT69: 233.7699335 | BU69: 0 | BV69: 0 | BW69: 0 | BX69: 0 | BY69: 0 | BZ69: 0 | CA69: 0 | CB69: 0 | CC69: 0 | CD69: 0 | CE69: 0 | CF69: 0 | CG69: 0
D70: $/tonne | E70: $/tonne | P70: Manganese | Q70: 4 | R70: 4 | S70: 1004 | U70: 0 | V70: 5% -tile | AH70: Operating Costs | AI70: million USD | AJ70: =AJ687 -> 0 | AK70: 0 | AL70: 0 | AM70: 0 | AN70: 0 | AO70: 0 | AP70: 0 | AQ70: 0 | AR70: 0 | AS70: 0 | AT70: 0 | AU70: -181.9079707 | AV70: -200.3688345 | AW70: -246.1448496 | AX70: -246.1448496 | AY70: -246.1448496 | AZ70: -246.1448496 | BA70: -246.1448496 | BB70: -246.1448496 | BC70: -246.1448496 | BD70: -246.1448496 | BE70: -246.1448496 | BF70: -246.1448496 | BG70: -246.1448496 | BH70: -246.1448496 | BI70: -246.1448496 | BJ70: -246.1448496 | BK70: -246.1448496 | BL70: -246.1448496 | BM70: -246.1448496 | BN70: -246.1448496 | BO70: -246.1448496 | BP70: =BP687 -> -246.1448496 | BQ70: -246.1448496 | BR70: -246.1448496 | BS70: -246.1448496 | BT70: 0 | BU70: 0 | BV70: 0 | BW70: 0 | BX70: 0 | BY70: 0 | BZ70: 0 | CA70: 0 | CB70: 0 | CC70: 0 | CD70: 0 | CE70: 0 | CF70: 0 | CG70: 0
B71: Manganese Metal Price | D71: ='User Interface'!C77 -> 1560 | E71: ='User Interface'!D77 -> 1560 | F71: Add if statements | P71: Nickel | Q71: =$Q$70 -> 4 | U71: 1 | V71: Median | AH71: Financing Costs | AI71: million USD | AJ71: =IF(UPPER(TRIM($D$81))="YES",AJ689,0) -> 0 | AK71: 0 | AL71: 0 | AM71: 0 | AN71: 0 | AO71: 0 | AP71: 0 | AQ71: 0 | AR71: 0 | AS71: 0 | AT71: 0 | AU71: 0 | AV71: 0 | AW71: 0 | AX71: 0 | AY71: 0 | AZ71: 0 | BA71: 0 | BB71: 0 | BC71: 0 | BD71: 0 | BE71: 0 | BF71: 0 | BG71: 0 | BH71: 0 | BI71: 0 | BJ71: 0 | BK71: 0 | BL71: 0 | BM71: 0 | BN71: 0 | BO71: 0 | BP71: =IF(UPPER(TRIM($D$81))="YES",BP689,0) -> 0 | BQ71: 0 | BR71: 0 | BS71: 0 | BT71: 0 | BU71: 0 | BV71: 0 | BW71: 0 | BX71: 0 | BY71: 0 | BZ71: 0 | CA71: 0 | CB71: 0 | CC71: 0 | CD71: 0 | CE71: 0 | CF71: 0 | CG71: 0
B72: Manganese Ore Price | D72: ='User Interface'!C78 -> 475 | E72: ='User Interface'!D78 -> 475 | P72: Cobalt | Q72: =$Q$70 -> 4 | U72: 2 | V72: 75%-tile | AH72: Nodules Cost (Ad Valorem) | AI72: million USD | AJ72: =AJ704 -> 0 | AK72: 0 | AL72: 0 | AM72: 0 | AN72: 0 | AO72: 0 | AP72: 0 | AQ72: 0 | AR72: 0 | AS72: 0 | AT72: 0 | AU72: -993.4446124 | AV72: -1206.325601 | AW72: -1419.206589 | AX72: -1419.206589 | AY72: -1419.206589 | AZ72: -1419.206589 | BA72: -1419.206589 | BB72: -1419.206589 | BC72: -1419.206589 | BD72: -1419.206589 | BE72: -1419.206589 | BF72: -1419.206589 | BG72: -1419.206589 | BH72: -1419.206589 | BI72: -1419.206589 | BJ72: -1419.206589 | BK72: -1419.206589 | BL72: -1419.206589 | BM72: -1419.206589 | BN72: -1419.206589 | BO72: -1419.206589 | BP72: =BP704 -> -1419.206589 | BQ72: -1419.206589 | BR72: -1419.206589 | BS72: -1419.206589 | BT72: 0 | BU72: 0 | BV72: 0 | BW72: 0 | BX72: 0 | BY72: 0 | BZ72: 0 | CA72: 0 | CB72: 0 | CC72: 0 | CD72: 0 | CE72: 0 | CF72: 0 | CG72: 0
B73: Nickel | D73: ='User Interface'!C79 -> 20000 | E73: ='User Interface'!D79 -> 20000 | P73: Copper | Q73: =$Q$70 -> 4 | U73: 3 | V73: 95%-tile | AH73: Nodules Cost (Var. Ad Valorem (A)) | AI73: million USD | AJ73: =AJ728 -> 0 | AK73: 0 | AL73: 0 | AM73: 0 | AN73: 0 | AO73: 0 | AP73: 0 | AQ73: 0 | AR73: 0 | AS73: 0 | AT73: 0 | AU73: -993.4446124 | AV73: -1206.325601 | AW73: -1419.206589 | AX73: -1419.206589 | AY73: -1419.206589 | AZ73: -1419.206589 | BA73: -1419.206589 | BB73: -1419.206589 | BC73: -1419.206589 | BD73: -1419.206589 | BE73: -1419.206589 | BF73: -1419.206589 | BG73: -1419.206589 | BH73: -1419.206589 | BI73: -1419.206589 | BJ73: -1419.206589 | BK73: -1419.206589 | BL73: -1419.206589 | BM73: -1419.206589 | BN73: -1419.206589 | BO73: -1419.206589 | BP73: =BP728 -> -1419.206589 | BQ73: -1419.206589 | BR73: -1419.206589 | BS73: -1419.206589 | BT73: 0 | BU73: 0 | BV73: 0 | BW73: 0 | BX73: 0 | BY73: 0 | BZ73: 0 | CA73: 0 | CB73: 0 | CC73: 0 | CD73: 0 | CE73: 0 | CF73: 0 | CG73: 0
B74: Cobalt | D74: ='User Interface'!C80 -> 60000 | E74: ='User Interface'!D80 -> 60000 | U74: 4 | V74: Mean (average) | AH74: Nodules Cost (Var. Ad Valorem (B)) | AI74: million USD | AJ74: =AJ751 -> 0 | AK74: 0 | AL74: 0 | AM74: 0 | AN74: 0 | AO74: 0 | AP74: 0 | AQ74: 0 | AR74: 0 | AS74: 0 | AT74: 0 | AU74: -970.1379939 | AV74: -1178.024707 | AW74: -1385.91142 | AX74: -1385.91142 | AY74: -1385.91142 | AZ74: -1385.91142 | BA74: -1385.91142 | BB74: -1385.91142 | BC74: -1385.91142 | BD74: -1385.91142 | BE74: -1385.91142 | BF74: -1385.91142 | BG74: -1385.91142 | BH74: -1385.91142 | BI74: -1385.91142 | BJ74: -1385.91142 | BK74: -1385.91142 | BL74: -1385.91142 | BM74: -1385.91142 | BN74: -1385.91142 | BO74: -1385.91142 | BP74: =BP751 -> -1385.91142 | BQ74: -1385.91142 | BR74: -1385.91142 | BS74: -1385.91142 | BT74: 0 | BU74: 0 | BV74: 0 | BW74: 0 | BX74: 0 | BY74: 0 | BZ74: 0 | CA74: 0 | CB74: 0 | CC74: 0 | CD74: 0 | CE74: 0 | CF74: 0 | CG74: 0
B75: Copper | D75: ='User Interface'!C81 -> 9000 | E75: ='User Interface'!D81 -> 9000 | U75: 5…1004 | V75: Simulation 1…1000 | AH75: Nodules Cost (Before Tax) | AI75: million USD | AJ75: =AJ774 -> 0 | AK75: 0 | AL75: 0 | AM75: 0 | AN75: 0 | AO75: 0 | AP75: 0 | AQ75: 0 | AR75: 0 | AS75: 0 | AT75: 0 | AU75: -1018.207895 | AV75: -1236.395301 | AW75: -1454.582706 | AX75: -1454.582706 | AY75: -1454.582706 | AZ75: -1454.582706 | BA75: -1454.582706 | BB75: -1454.582706 | BC75: -1454.582706 | BD75: -1454.582706 | BE75: -1454.582706 | BF75: -1454.582706 | BG75: -1454.582706 | BH75: -1454.582706 | BI75: -1454.582706 | BJ75: -1454.582706 | BK75: -1454.582706 | BL75: -1454.582706 | BM75: -1454.582706 | BN75: -1454.582706 | BO75: -1454.582706 | BP75: =BP774 -> -1454.582706 | BQ75: -1454.582706 | BR75: -1454.582706 | BS75: -1454.582706 | BT75: 0 | BU75: 0 | BV75: 0 | BW75: 0 | BX75: 0 | BY75: 0 | BZ75: 0 | CA75: 0 | CB75: 0 | CC75: 0 | CD75: 0 | CE75: 0 | CF75: 0 | CG75: 0
AH76: Nodules Cost (Specific) | AI76: million USD | AJ76: =AJ798 -> 0 | AK76: 0 | AL76: 0 | AM76: 0 | AN76: 0 | AO76: 0 | AP76: 0 | AQ76: 0 | AR76: 0 | AS76: 0 | AT76: 0 | AU76: -1000.727931 | AV76: -1215.16963 | AW76: -1429.61133 | AX76: -1429.61133 | AY76: -1429.61133 | AZ76: -1429.61133 | BA76: -1429.61133 | BB76: -1429.61133 | BC76: -1429.61133 | BD76: -1429.61133 | BE76: -1429.61133 | BF76: -1429.61133 | BG76: -1429.61133 | BH76: -1429.61133 | BI76: -1429.61133 | BJ76: -1429.61133 | BK76: -1429.61133 | BL76: -1429.61133 | BM76: -1429.61133 | BN76: -1429.61133 | BO76: -1429.61133 | BP76: =BP798 -> -1429.61133 | BQ76: -1429.61133 | BR76: -1429.61133 | BS76: -1429.61133 | BT76: 0 | BU76: 0 | BV76: 0 | BW76: 0 | BX76: 0 | BY76: 0 | BZ76: 0 | CA76: 0 | CB76: 0 | CC76: 0 | CD76: 0 | CE76: 0 | CF76: 0 | CG76: 0
AH77: Nodules Cost (Blended) | AI77: million USD | AJ77: =AJ822 -> 0 | AK77: 0 | AL77: 0 | AM77: 0 | AN77: 0 | AO77: 0 | AP77: 0 | AQ77: 0 | AR77: 0 | AS77: 0 | AT77: 0 | AU77: -990.5312851 | AV77: -1202.787989 | AW77: -1415.044693 | AX77: -1415.044693 | AY77: -1415.044693 | AZ77: -1415.044693 | BA77: -1415.044693 | BB77: -1415.044693 | BC77: -1415.044693 | BD77: -1415.044693 | BE77: -1415.044693 | BF77: -1415.044693 | BG77: -1415.044693 | BH77: -1415.044693 | BI77: -1415.044693 | BJ77: -1415.044693 | BK77: -1415.044693 | BL77: -1415.044693 | BM77: -1415.044693 | BN77: -1415.044693 | BO77: -1415.044693 | BP77: =BP822 -> -1415.044693 | BQ77: -1415.044693 | BR77: -1415.044693 | BS77: -1415.044693 | BT77: 0 | BU77: 0 | BV77: 0 | BW77: 0 | BX77: 0 | BY77: 0 | BZ77: 0 | CA77: 0 | CB77: 0 | CC77: 0 | CD77: 0 | CE77: 0 | CF77: 0 | CG77: 0
B78: OTHER PROJECT FINANCIAL CHARACTERISTICS
B79: Contractor Discount Rate | D79: 0.15 | AH79: Taxes (Ad Valorem) | AI79: million USD | AJ79: =AJ711 -> 0 | AK79: 0 | AL79: 0 | AM79: 0 | AN79: 0 | AO79: 0 | AP79: 0 | AQ79: 0 | AR79: 0 | AS79: 0 | AT79: 0 | AU79: 0 | AV79: 0 | AW79: 0 | AX79: 0 | AY79: -100.2858681 | AZ79: -116.3848483 | BA79: -116.3848483 | BB79: -116.3848483 | BC79: -116.3848483 | BD79: -116.3848483 | BE79: -116.3848483 | BF79: -116.3848483 | BG79: -116.3848483 | BH79: -116.3848483 | BI79: -116.3848483 | BJ79: -116.3848483 | BK79: -116.3848483 | BL79: -116.3848483 | BM79: -116.3848483 | BN79: -116.3848483 | BO79: -116.3848483 | BP79: =BP711 -> -116.3848483 | BQ79: -116.3848483 | BR79: -116.3848483 | BS79: -116.3848483 | BT79: -58.44248338 | BU79: 0 | BV79: 0 | BW79: 0 | BX79: 0 | BY79: 0 | BZ79: 0 | CA79: 0 | CB79: 0 | CC79: 0 | CD79: 0 | CE79: 0 | CF79: 0 | CG79: 0
B80: Financing Interest Rate | D80: 0.07 | AH80: Taxes (Var. Ad Valorem (A)) | AI80: million USD | AJ80: =AJ735 -> 0 | AK80: 0 | AL80: 0 | AM80: 0 | AN80: 0 | AO80: 0 | AP80: 0 | AQ80: 0 | AR80: 0 | AS80: 0 | AT80: 0 | AU80: 0 | AV80: 0 | AW80: 0 | AX80: 0 | AY80: -100.2858681 | AZ80: -116.3848483 | BA80: -116.3848483 | BB80: -116.3848483 | BC80: -116.3848483 | BD80: -116.3848483 | BE80: -116.3848483 | BF80: -116.3848483 | BG80: -116.3848483 | BH80: -116.3848483 | BI80: -116.3848483 | BJ80: -116.3848483 | BK80: -116.3848483 | BL80: -116.3848483 | BM80: -116.3848483 | BN80: -116.3848483 | BO80: -116.3848483 | BP80: =BP735 -> -116.3848483 | BQ80: -116.3848483 | BR80: -116.3848483 | BS80: -116.3848483 | BT80: -58.44248338 | BU80: 0 | BV80: 0 | BW80: 0 | BX80: 0 | BY80: 0 | BZ80: 0 | CA80: 0 | CB80: 0 | CC80: 0 | CD80: 0 | CE80: 0 | CF80: 0 | CG80: 0
B81: Include Finance Cost in IRR & NPV Calcs? | D81: No | E81: (always included in tax calculations) | AH81: Taxes (Var. Ad Valorem (B)) | AI81: million USD | AJ81: =AJ758 -> 0 | AK81: 0 | AL81: 0 | AM81: 0 | AN81: 0 | AO81: 0 | AP81: 0 | AQ81: 0 | AR81: 0 | AS81: 0 | AT81: 0 | AU81: 0 | AV81: 0 | AW81: 0 | AX81: -13.45048258 | AY81: -124.7086406 | AZ81: -124.7086406 | BA81: -124.7086406 | BB81: -124.7086406 | BC81: -124.7086406 | BD81: -124.7086406 | BE81: -124.7086406 | BF81: -124.7086406 | BG81: -124.7086406 | BH81: -124.7086406 | BI81: -124.7086406 | BJ81: -124.7086406 | BK81: -124.7086406 | BL81: -124.7086406 | BM81: -124.7086406 | BN81: -124.7086406 | BO81: -124.7086406 | BP81: =BP758 -> -124.7086406 | BQ81: -124.7086406 | BR81: -124.7086406 | BS81: -124.7086406 | BT81: -58.44248338 | BU81: 0 | BV81: 0 | BW81: 0 | BX81: 0 | BY81: 0 | BZ81: 0 | CA81: 0 | CB81: 0 | CC81: 0 | CD81: 0 | CE81: 0 | CF81: 0 | CG81: 0
B82: Societal Discount Rate | D82: 0.0375 | E82: to assess NPV to common heritage | AH82: Taxes (Before Tax) | AI82: million USD | AJ82: =AJ781 -> 0 | AK82: 0 | AL82: 0 | AM82: 0 | AN82: 0 | AO82: 0 | AP82: 0 | AQ82: 0 | AR82: 0 | AS82: 0 | AT82: 0 | AU82: 0 | AV82: 0 | AW82: 0 | AX82: 0 | AY82: -60.04553467 | AZ82: -107.5408189 | BA82: -107.5408189 | BB82: -107.5408189 | BC82: -107.5408189 | BD82: -107.5408189 | BE82: -107.5408189 | BF82: -107.5408189 | BG82: -107.5408189 | BH82: -107.5408189 | BI82: -107.5408189 | BJ82: -107.5408189 | BK82: -107.5408189 | BL82: -107.5408189 | BM82: -107.5408189 | BN82: -107.5408189 | BO82: -107.5408189 | BP82: =BP781 -> -107.5408189 | BQ82: -107.5408189 | BR82: -107.5408189 | BS82: -107.5408189 | BT82: -58.44248338 | BU82: 0 | BV82: 0 | BW82: 0 | BX82: 0 | BY82: 0 | BZ82: 0 | CA82: 0 | CB82: 0 | CC82: 0 | CD82: 0 | CE82: 0 | CF82: 0 | CG82: 0
AH83: Taxes (Specific) | AI83: million USD | AJ83: =AJ805 -> 0 | AK83: 0 | AL83: 0 | AM83: 0 | AN83: 0 | AO83: 0 | AP83: 0 | AQ83: 0 | AR83: 0 | AS83: 0 | AT83: 0 | AU83: 0 | AV83: 0 | AW83: 0 | AX83: 0 | AY83: -88.45047594 | AZ83: -113.7836632 | BA83: -113.7836632 | BB83: -113.7836632 | BC83: -113.7836632 | BD83: -113.7836632 | BE83: -113.7836632 | BF83: -113.7836632 | BG83: -113.7836632 | BH83: -113.7836632 | BI83: -113.7836632 | BJ83: -113.7836632 | BK83: -113.7836632 | BL83: -113.7836632 | BM83: -113.7836632 | BN83: -113.7836632 | BO83: -113.7836632 | BP83: =BP805 -> -113.7836632 | BQ83: -113.7836632 | BR83: -113.7836632 | BS83: -113.7836632 | BT83: -58.44248338 | BU83: 0 | BV83: 0 | BW83: 0 | BX83: 0 | BY83: 0 | BZ83: 0 | CA83: 0 | CB83: 0 | CC83: 0 | CD83: 0 | CE83: 0 | CF83: 0 | CG83: 0
B84: Accounting Parameters for Depreciation | D84: =IF(UPPER(E115)="YES","(Depreciation costs irrelevant with unlimited carryforward)","") -> (Depreciation costs irrelevant with unlimited carryforward) | AH84: Taxes (Blended) | AI84: million USD | AJ84: =AJ829 -> 0 | AK84: 0 | AL84: 0 | AM84: 0 | AN84: 0 | AO84: 0 | AP84: 0 | AQ84: 0 | AR84: 0 | AS84: 0 | AT84: 0 | AU84: 0 | AV84: 0 | AW84: 0 | AX84: 0 | AY84: -105.020025 | AZ84: -117.4253223 | BA84: -117.4253223 | BB84: -117.4253223 | BC84: -117.4253223 | BD84: -117.4253223 | BE84: -117.4253223 | BF84: -117.4253223 | BG84: -117.4253223 | BH84: -117.4253223 | BI84: -117.4253223 | BJ84: -117.4253223 | BK84: -117.4253223 | BL84: -117.4253223 | BM84: -117.4253223 | BN84: -117.4253223 | BO84: -117.4253223 | BP84: =BP829 -> -117.4253223 | BQ84: -117.4253223 | BR84: -117.4253223 | BS84: -117.4253223 | BT84: -58.44248338 | BU84: 0 | BV84: 0 | BW84: 0 | BX84: 0 | BY84: 0 | BZ84: 0 | CA84: 0 | CB84: 0 | CC84: 0 | CD84: 0 | CE84: 0 | CF84: 0 | CG84: 0
E85: Depreciation Method
A86: XXX | B86: Asset | E86: SL, DB,DDB, SYD‡ | F86: Accounting Life | G86: Start Acquisition | H86: Spread Years | I86: Service Yr | J86: Salvage | AH86: Revenues | AI86: million USD | AJ86: =AJ686 -> 0 | AK86: 0 | AL86: 0 | AM86: 0 | AN86: 0 | AO86: 0 | AP86: 0 | AQ86: 0 | AR86: 0 | AS86: 0 | AT86: 0 | AU86: 1491.623582 | AV86: 1811.257207 | AW86: 2130.890832 | AX86: 2130.890832 | AY86: 2130.890832 | AZ86: 2130.890832 | BA86: 2130.890832 | BB86: 2130.890832 | BC86: 2130.890832 | BD86: 2130.890832 | BE86: 2130.890832 | BF86: 2130.890832 | BG86: 2130.890832 | BH86: 2130.890832 | BI86: 2130.890832 | BJ86: 2130.890832 | BK86: 2130.890832 | BL86: 2130.890832 | BM86: 2130.890832 | BN86: 2130.890832 | BO86: 2130.890832 | BP86: =BP686 -> 2130.890832 | BQ86: 2130.890832 | BR86: 2130.890832 | BS86: 2130.890832 | BT86: 0 | BU86: 0 | BV86: 0 | BW86: 0 | BX86: 0 | BY86: 0 | BZ86: 0 | CA86: 0 | CB86: 0 | CC86: 0 | CD86: 0 | CE86: 0 | CF86: 0 | CG86: 0
B87: =B31 -> Pre-Feasibility Phase | E87: SL | F87: 10 | G87: =H14 -> 1 | H87: =IF(UPPER(TRIM(J31))="YES",G31,0) -> 6 | I87: =H19 -> 12 | J87: =L31 -> 0 | AH87: Net Cash Flow (Ad Valorem) | AI87: million USD | AJ87: =SUM(AJ$69:AJ$71)+AJ72+AJ79+AJ$86 -> -3.993958853 | AK87: -3.993958853 | AL87: -3.993958853 | AM87: -37.46358408 | AN87: -37.46358408 | AO87: -37.46358408 | AP87: -33.46962523 | AQ87: -389.6165559 | AR87: -389.6165559 | AS87: -389.6165559 | AT87: -389.6165559 | AU87: 316.2709991 | AV87: 404.5627718 | AW87: 465.539393 | AX87: 465.539393 | AY87: 365.2535249 | AZ87: 349.1545448 | BA87: 349.1545448 | BB87: 349.1545448 | BC87: 349.1545448 | BD87: 349.1545448 | BE87: 349.1545448 | BF87: 349.1545448 | BG87: 349.1545448 | BH87: 349.1545448 | BI87: 349.1545448 | BJ87: 349.1545448 | BK87: 349.1545448 | BL87: 349.1545448 | BM87: 349.1545448 | BN87: 349.1545448 | BO87: 349.1545448 | BP87: =SUM(BP$69:BP$71)+BP72+BP79+BP$86 -> 349.1545448 | BQ87: 349.1545448 | BR87: 349.1545448 | BS87: 349.1545448 | BT87: 175.3274501 | BU87: 0 | BV87: 0 | BW87: 0 | BX87: 0 | BY87: 0 | BZ87: 0 | CA87: 0 | CB87: 0 | CC87: 0 | CD87: 0 | CE87: 0 | CF87: 0 | CG87: 0
B88: =B32 -> Feasibility Phase | E88: SL | F88: 10 | G88: =H15 -> 4 | H88: =IF(UPPER(TRIM(J32))="YES",G32,0) -> 4 | I88: =H19 -> 12 | J88: =L32 -> 0 | AH88: Net Cash Flow (Var. Ad Valorem (A)) | AI88: million USD | AJ88: =SUM(AJ$69:AJ$71)+AJ73+AJ80+AJ$86 -> -3.993958853 | AK88: =SUM(AK$69:AK$71)+AK73+AK80+AK$86 -> -3.993958853 | AL88: -3.993958853 | AM88: -37.46358408 | AN88: -37.46358408 | AO88: -37.46358408 | AP88: -33.46962523 | AQ88: -389.6165559 | AR88: -389.6165559 | AS88: -389.6165559 | AT88: -389.6165559 | AU88: 316.2709991 | AV88: 404.5627718 | AW88: 465.539393 | AX88: 465.539393 | AY88: 365.2535249 | AZ88: 349.1545448 | BA88: 349.1545448 | BB88: 349.1545448 | BC88: 349.1545448 | BD88: 349.1545448 | BE88: 349.1545448 | BF88: 349.1545448 | BG88: 349.1545448 | BH88: 349.1545448 | BI88: 349.1545448 | BJ88: 349.1545448 | BK88: 349.1545448 | BL88: 349.1545448 | BM88: 349.1545448 | BN88: 349.1545448 | BO88: 349.1545448 | BP88: =SUM(BP$69:BP$71)+BP73+BP80+BP$86 -> 349.1545448 | BQ88: 349.1545448 | BR88: 349.1545448 | BS88: 349.1545448 | BT88: 175.3274501 | BU88: 0 | BV88: 0 | BW88: 0 | BX88: 0 | BY88: 0 | BZ88: 0 | CA88: 0 | CB88: 0 | CC88: 0 | CD88: 0 | CE88: 0 | CF88: 0 | CG88: 0
B89: =B33 -> Design & Build - Collection System | E89: SL | F89: 10 | G89: =H17 -> 8 | H89: =IF(UPPER(TRIM(J33))="YES",G33,0) -> 4 | I89: =H19 -> 12 | J89: =L33 -> 0.15 | AH89: Net Cash Flow (Var. Ad Valorem (B)) | AI89: million USD | AJ89: =SUM(AJ$69:AJ$71)+AJ74+AJ81+AJ$86 -> -3.993958853 | AK89: =SUM(AK$69:AK$71)+AK74+AK81+AK$86 -> -3.993958853 | AL89: -3.993958853 | AM89: -37.46358408 | AN89: -37.46358408 | AO89: -37.46358408 | AP89: -33.46962523 | AQ89: -389.6165559 | AR89: -389.6165559 | AS89: -389.6165559 | AT89: -389.6165559 | AU89: 339.5776176 | AV89: 432.8636657 | AW89: 498.8345623 | AX89: 485.3840797 | AY89: 374.1259217 | AZ89: 374.1259217 | BA89: 374.1259217 | BB89: 374.1259217 | BC89: 374.1259217 | BD89: 374.1259217 | BE89: 374.1259217 | BF89: 374.1259217 | BG89: 374.1259217 | BH89: 374.1259217 | BI89: 374.1259217 | BJ89: 374.1259217 | BK89: 374.1259217 | BL89: 374.1259217 | BM89: 374.1259217 | BN89: 374.1259217 | BO89: 374.1259217 | BP89: 374.1259217 | BQ89: 374.1259217 | BR89: 374.1259217 | BS89: 374.1259217 | BT89: 175.3274501 | BU89: 0 | BV89: 0 | BW89: 0 | BX89: 0 | BY89: 0 | BZ89: 0 | CA89: 0 | CB89: 0 | CC89: 0 | CD89: 0 | CE89: 0 | CF89: 0 | CG89: 0
B90: =B34 -> Design & Build - Surface Vessels | E90: SL | F90: 10 | G90: =G89 -> 8 | H90: =IF(UPPER(TRIM(J34))="YES",G34,0) -> 4 | I90: =I89 -> 12 | J90: =L34 -> 0.15 | AH90: Net Cash Flow (Before Tax) | AI90: million USD | AJ90: =SUM(AJ$69:AJ$71)+AJ75+AJ82+AJ$86 -> -3.993958853 | AK90: -3.993958853 | AL90: -3.993958853 | AM90: -37.46358408 | AN90: -37.46358408 | AO90: -37.46358408 | AP90: -33.46962523 | AQ90: -389.6165559 | AR90: -389.6165559 | AS90: -389.6165559 | AT90: -389.6165559 | AU90: 291.507717 | AV90: 374.4930721 | AW90: 430.1632757 | AX90: 430.1632757 | AY90: 370.117741 | AZ90: 322.6224568 | BA90: 322.6224568 | BB90: 322.6224568 | BC90: 322.6224568 | BD90: 322.6224568 | BE90: 322.6224568 | BF90: 322.6224568 | BG90: 322.6224568 | BH90: 322.6224568 | BI90: 322.6224568 | BJ90: 322.6224568 | BK90: 322.6224568 | BL90: 322.6224568 | BM90: 322.6224568 | BN90: 322.6224568 | BO90: 322.6224568 | BP90: =SUM(BP$69:BP$71)+BP75+BP82+BP$86 -> 322.6224568 | BQ90: 322.6224568 | BR90: 322.6224568 | BS90: 322.6224568 | BT90: 175.3274501 | BU90: 0 | BV90: 0 | BW90: 0 | BX90: 0 | BY90: 0 | BZ90: 0 | CA90: 0 | CB90: 0 | CC90: 0 | CD90: 0 | CE90: 0 | CF90: 0 | CG90: 0
B91: =B35 -> Design & Build - Processing plant | E91: SL | F91: 10 | G91: =G90 -> 8 | H91: =IF(UPPER(TRIM(J35))="YES",G35,0) -> 4 | I91: =I90 -> 12 | J91: =L35 -> 0.15 | AH91: Net Cash Flow (Specific) | AI91: million USD | AJ91: =SUM(AJ$69:AJ$71)+AJ76+AJ83+AJ$86 -> -3.993958853 | AK91: -3.993958853 | AL91: -3.993958853 | AM91: -37.46358408 | AN91: -37.46358408 | AO91: -37.46358408 | AP91: -33.46962523 | AQ91: -389.6165559 | AR91: -389.6165559 | AS91: -389.6165559 | AT91: -389.6165559 | AU91: 308.9876808 | AV91: 395.7187425 | AW91: 455.1346527 | AX91: 455.1346527 | AY91: 366.6841767 | AZ91: 341.3509895 | BA91: 341.3509895 | BB91: 341.3509895 | BC91: 341.3509895 | BD91: 341.3509895 | BE91: 341.3509895 | BF91: 341.3509895 | BG91: 341.3509895 | BH91: 341.3509895 | BI91: 341.3509895 | BJ91: 341.3509895 | BK91: 341.3509895 | BL91: 341.3509895 | BM91: 341.3509895 | BN91: 341.3509895 | BO91: 341.3509895 | BP91: =SUM(BP$69:BP$71)+BP76+BP83+BP$86 -> 341.3509895 | BQ91: 341.3509895 | BR91: 341.3509895 | BS91: 341.3509895 | BT91: 175.3274501 | BU91: 0 | BV91: 0 | BW91: 0 | BX91: 0 | BY91: 0 | BZ91: 0 | CA91: 0 | CB91: 0 | CC91: 0 | CD91: 0 | CE91: 0 | CF91: 0 | CG91: 0
H92: ‡ SL = Straight-line depreciation; DB = declining balance depreciation; DDB = double declining balance depreciation; SYD = sum of years digits depreciation. See: | I92: Excel Financial Functions | AH92: Net Cash Flow (Blended) | AI92: million USD | AJ92: =SUM(AJ$69:AJ$71)+AJ77+AJ84+AJ$86 -> -3.993958853 | AK92: -3.993958853 | AL92: -3.993958853 | AM92: -37.46358408 | AN92: -37.46358408 | AO92: -37.46358408 | AP92: -33.46962523 | AQ92: -389.6165559 | AR92: -389.6165559 | AS92: -389.6165559 | AT92: -389.6165559 | AU92: 319.1843264 | AV92: 408.1003835 | AW92: 469.7012892 | AX92: 469.7012892 | AY92: 364.6812642 | AZ92: 352.2759669 | BA92: 352.2759669 | BB92: 352.2759669 | BC92: 352.2759669 | BD92: 352.2759669 | BE92: 352.2759669 | BF92: 352.2759669 | BG92: 352.2759669 | BH92: 352.2759669 | BI92: 352.2759669 | BJ92: 352.2759669 | BK92: 352.2759669 | BL92: 352.2759669 | BM92: 352.2759669 | BN92: 352.2759669 | BO92: 352.2759669 | BP92: =SUM(BP$69:BP$71)+BP77+BP84+BP$86 -> 352.2759669 | BQ92: 352.2759669 | BR92: 352.2759669 | BS92: 352.2759669 | BT92: 175.3274501 | BU92: 0 | BV92: 0 | BW92: 0 | BX92: 0 | BY92: 0 | BZ92: 0 | CA92: 0 | CB92: 0 | CC92: 0 | CD92: 0 | CE92: 0 | CF92: 0 | CG92: 0
AH94: Contractor Cash Flow: Independent Processor | AJ94: NPV | AK94: IRR | AU94: Processor Cumulative Undiscounted Revenue | AV94: Cumulative Undisc. Costs (excl tax & nodules) | AW94: Cumulative Undisc. Taxes | AX94: Cumulative Undisc. Cost of Nodules | AY94: Cumulative Undisc. Net Cash Flows
B95: FINANCIAL PAYMENT REGIME | AH95: Proc: Ad Valorem | AI95: ="("&TEXT(E$132,"##.0%")&"/"&TEXT(E$134,"##.0%")&")" -> (2.5%/7.0%) | AJ95: =AJ87+NPV($D$79,AK87:CG87) -> 29.13443879 | AK95: =IFERROR(IRR(AJ87:CG87),-1%) -> 0.1563843684 | AU95: =SUM(AJ$86:CG$86) -> 52313.36992 | AV95: =SUM(AJ$69:CG$71) -> -7526.14689 | AW95: =SUM(AJ79:CG79) -> -2486.425317 | AX95: =SUM(AJ72:CG72) -> -34841.52176 | AY95: =SUM(AU95:AX95) -> 7459.27595
B96: Non-royalty Taxes and Fees | AH96: Proc: Var. Ad Valorem (A) | AJ96: 29.13443879 | AK96: 0.1563843684 | AU96: =SUM(AJ$86:CG$86) -> 52313.36992 | AV96: =SUM(AJ$69:CG$71) -> -7526.14689 | AW96: =SUM(AJ80:CG80) -> -2486.425317 | AX96: =SUM(AJ73:CG73) -> -34841.52176 | AY96: =SUM(AU96:AX96) -> 7459.27595
B97: EXPLORATION | E97: Amount | AH97: Proc: Var. Ad Valorem (B) | AJ97: 67.94898034 | AK97: 0.164601888
B98: Exploration License Application Fee | E98: ='User Interface'!D87/1000000 -> 0.5 | F98: million USD | AH98: Proc: Before Tax Profit | AI98: ="("&TEXT(E$148,"#0.0%")&"/"&TEXT(E$150,"#0.0%")&")" -> (30.0%/30.0%) | AJ98: -12.36945691 | AK98: 0.1472303583 | AU98: =SUM(AJ$86:CG$86) -> 52313.36992 | AV98: =SUM(AJ$69:CG$71) -> -7526.14689 | AW98: =SUM(AJ82:CG82) -> -2269.304397 | AX98: =SUM(AJ75:CG75) -> -35710.00544 | AY98: =SUM(AU98:AX98) -> 6807.91319
B99: Annual admin fee during Exploration License | E99: ='User Interface'!D88/1000000 -> 0.06 | F99: million USD/annum | AH99: Proc: Scpecifc | AI99: ="( "&TEXT(E$152,"##")&" cents/lb nodule)" -> ( 2 cents/lb nodule) | AJ99: 16.92741064 | AK99: 0.1537325029 | AU99: =SUM(AJ$86:CG$86) -> 52313.36992 | AV99: =SUM(AJ$69:CG$71) -> -7526.14689 | AW99: =SUM(AJ83:CG83) -> -2422.566223 | AX99: =SUM(AJ76:CG76) -> -35096.95814 | AY99: =SUM(AU99:AX99) -> 7267.698668
AH100: ="Proc: "&AH$39 -> Proc: (Blended: Ad Val - 2.5%/2.5%; Profit - 0.0%/15.0%; Specific - 2 cents/lb nodule) | AJ100: 34.01725005 | AK100: 0.1574360676 | AU100: =SUM(AJ$86:CG$86) -> 52313.36992 | AV100: =SUM(AJ$69:CG$71) -> -7526.14689 | AW100: =SUM(AJ84:CG84) -> -2511.968954 | AX100: =SUM(AJ77:CG77) -> -34739.34721 | AY100: =SUM(AU100:AX100) -> 7535.906863
B101: EXPLOITATION | E101: Amount [million USD]
B102: Exploitation License Application Fee | E102: ='User Interface'!D91/1000000 -> 1 | F102: million USD
B103: Annual admin fee during Exploitation License | E103: ='User Interface'!D92/1000000 -> 0.1 | F103: million USD/annum | AH103: Project Schedule
B104: Minimum Fixed fee during Exploitation License | E104: 1 | F104: million USD/annum | AH104: Stage | AI104: Year | AJ104: 1 | AK104: 2 | AL104: 3 | AM104: 4 | AN104: 5 | AO104: 6 | AP104: 7 | AQ104: 8 | AR104: 9 | AS104: 10 | AT104: 11 | AU104: 12 | AV104: 13 | AW104: 14 | AX104: 15 | AY104: 16 | AZ104: 17 | BA104: 18 | BB104: 19 | BC104: 20 | BD104: 21 | BE104: 22 | BF104: 23 | BG104: 24 | BH104: 25 | BI104: 26 | BJ104: 27 | BK104: 28 | BL104: 29 | BM104: 30 | BN104: 31 | BO104: 32 | BP104: 33 | BQ104: 34 | BR104: 35 | BS104: 36 | BT104: 37 | BU104: 38 | BV104: 39 | BW104: 40 | BX104: 41 | BY104: 42 | BZ104: 43 | CA104: 44 | CB104: 45 | CC104: 46 | CD104: 47 | CE104: 48 | CF104: 49 | CG104: 50
AH105: Pre Feasibility | AJ105: =IF(AJ$104<$H14,0,IF(AJ$104>=($H14+$Q14),0,1)) -> 1 | AK105: 1 | AL105: 1 | AM105: 1 | AN105: 1 | AO105: 1 | AP105: 0 | AQ105: 0 | AR105: 0 | AS105: 0 | AT105: 0 | AU105: 0 | AV105: 0 | AW105: 0 | AX105: 0 | AY105: 0 | AZ105: 0 | BA105: 0 | BB105: 0 | BC105: 0 | BD105: 0 | BE105: 0 | BF105: 0 | BG105: 0 | BH105: 0 | BI105: 0 | BJ105: 0 | BK105: 0 | BL105: 0 | BM105: 0 | BN105: 0 | BO105: 0 | BP105: =IF(BP$104<$H14,0,IF(BP$104>=($H14+$Q14),0,1)) -> 0 | BQ105: 0 | BR105: 0 | BS105: 0 | BT105: 0 | BU105: 0 | BV105: 0 | BW105: 0 | BX105: 0 | BY105: 0 | BZ105: 0 | CA105: 0 | CB105: 0 | CC105: 0 | CD105: 0 | CE105: 0 | CF105: 0 | CG105: 0
E106: Rate [% of Gross Value Mined] | F106: Maximum Fund Value [million USD] | AH106: Feasibility | AJ106: =IF(AJ$104<$H15,0,IF(AJ$104>=($H15+$Q15),0,1)) -> 0 | AK106: 0 | AL106: 0 | AM106: 1 | AN106: 1 | AO106: 1 | AP106: 1 | AQ106: 0 | AR106: 0 | AS106: 0 | AT106: 0 | AU106: 0 | AV106: 0 | AW106: 0 | AX106: 0 | AY106: 0 | AZ106: 0 | BA106: 0 | BB106: 0 | BC106: 0 | BD106: 0 | BE106: 0 | BF106: 0 | BG106: 0 | BH106: 0 | BI106: 0 | BJ106: 0 | BK106: 0 | BL106: 0 | BM106: 0 | BN106: 0 | BO106: 0 | BP106: =IF(BP$104<$H15,0,IF(BP$104>=($H15+$Q15),0,1)) -> 0 | BQ106: 0 | BR106: 0 | BS106: 0 | BT106: 0 | BU106: 0 | BV106: 0 | BW106: 0 | BX106: 0 | BY106: 0 | BZ106: 0 | CA106: 0 | CB106: 0 | CC106: 0 | CD106: 0 | CE106: 0 | CF106: 0 | CG106: 0 | CL106: ='User Interface'!C79 -> 20000
B107: Seabed Sustainability Fund | E107: 0 | F107: 0 | AH107: Design and Build | AJ107: =IF(AJ$104<$H17,0,IF(AJ$104>=($H17+$Q17),0,1)) -> 0 | AK107: 0 | AL107: 0 | AM107: 0 | AN107: 0 | AO107: 0 | AP107: 0 | AQ107: 1 | AR107: 1 | AS107: 1 | AT107: 1 | AU107: 0 | AV107: 0 | AW107: 0 | AX107: 0 | AY107: 0 | AZ107: 0 | BA107: 0 | BB107: 0 | BC107: 0 | BD107: 0 | BE107: 0 | BF107: 0 | BG107: 0 | BH107: 0 | BI107: 0 | BJ107: 0 | BK107: 0 | BL107: 0 | BM107: 0 | BN107: 0 | BO107: 0 | BP107: =IF(BP$104<$H17,0,IF(BP$104>=($H17+$Q17),0,1)) -> 0 | BQ107: 0 | BR107: 0 | BS107: 0 | BT107: 0 | BU107: 0 | BV107: 0 | BW107: 0 | BX107: 0 | BY107: 0 | BZ107: 0 | CA107: 0 | CB107: 0 | CC107: 0 | CD107: 0 | CE107: 0 | CF107: 0 | CG107: 0 | CL107: ='User Interface'!C80 -> 60000
B108: Environmental Liability Trust Fund | E108: ='User Interface'!D95 -> 0.01 | F108: ='User Interface'!D96 -> 500 | AH108: Ramp Up | AJ108: =IF(AJ$104<$H19,0,IF(AJ$104>=($H19+$Q19),0,1)) -> 0 | AK108: 0 | AL108: 0 | AM108: 0 | AN108: 0 | AO108: 0 | AP108: 0 | AQ108: 0 | AR108: 0 | AS108: 0 | AT108: 0 | AU108: 1 | AV108: 1 | AW108: 0 | AX108: 0 | AY108: 0 | AZ108: 0 | BA108: 0 | BB108: 0 | BC108: 0 | BD108: 0 | BE108: 0 | BF108: 0 | BG108: 0 | BH108: 0 | BI108: 0 | BJ108: 0 | BK108: 0 | BL108: 0 | BM108: 0 | BN108: 0 | BO108: 0 | BP108: =IF(BP$104<$H19,0,IF(BP$104>=($H19+$Q19),0,1)) -> 0 | BQ108: 0 | BR108: 0 | BS108: 0 | BT108: 0 | BU108: 0 | BV108: 0 | BW108: 0 | BX108: 0 | BY108: 0 | BZ108: 0 | CA108: 0 | CB108: 0 | CC108: 0 | CD108: 0 | CE108: 0 | CF108: 0 | CG108: 0 | CL108: ='User Interface'!C81 -> 9000
B109: Fund is returned if unused | E109: No | AH109: Full Operation | AJ109: =IF(AJ$104<$H20,0,IF(AJ$104>=($H20+$Q20),0,1)) -> 0 | AK109: 0 | AL109: 0 | AM109: 0 | AN109: 0 | AO109: 0 | AP109: 0 | AQ109: 0 | AR109: 0 | AS109: 0 | AT109: 0 | AU109: 0 | AV109: 0 | AW109: 1 | AX109: 1 | AY109: 1 | AZ109: 1 | BA109: 1 | BB109: 1 | BC109: 1 | BD109: 1 | BE109: 1 | BF109: 1 | BG109: 1 | BH109: 1 | BI109: 1 | BJ109: 1 | BK109: 1 | BL109: 1 | BM109: 1 | BN109: 1 | BO109: 1 | BP109: =IF(BP$104<$H20,0,IF(BP$104>=($H20+$Q20),0,1)) -> 1 | BQ109: 1 | BR109: 1 | BS109: 1 | BT109: 0 | BU109: 0 | BV109: 0 | BW109: 0 | BX109: 0 | BY109: 0 | BZ109: 0 | CA109: 0 | CB109: 0 | CC109: 0 | CD109: 0 | CE109: 0 | CF109: 0 | CG109: 0
E110: Interest [%] | F110: Bond [million USD] | AH110: Shutdown | AJ110: =IF(AJ$104<$H21,0,IF(AJ$104>=($H21+$Q21),0,1)) -> 0 | AK110: 0 | AL110: 0 | AM110: 0 | AN110: 0 | AO110: 0 | AP110: 0 | AQ110: 0 | AR110: 0 | AS110: 0 | AT110: 0 | AU110: 0 | AV110: 0 | AW110: 0 | AX110: 0 | AY110: 0 | AZ110: 0 | BA110: 0 | BB110: 0 | BC110: 0 | BD110: 0 | BE110: 0 | BF110: 0 | BG110: 0 | BH110: 0 | BI110: 0 | BJ110: 0 | BK110: 0 | BL110: 0 | BM110: 0 | BN110: 0 | BO110: 0 | BP110: =IF(BP$104<$H21,0,IF(BP$104>=($H21+$Q21),0,1)) -> 0 | BQ110: 0 | BR110: 0 | BS110: 0 | BT110: 1 | BU110: 0 | BV110: 0 | BW110: 0 | BX110: 0 | BY110: 0 | BZ110: 0 | CA110: 0 | CB110: 0 | CC110: 0 | CD110: 0 | CE110: 0 | CF110: 0 | CG110: 0
B111: Environmental Bond | E111: 0 | F111: 0
AH112: Production Levels
B113: SPONSORING STATE | E113: Rate [%] | P113: =B132 -> Ad-Valorem - Stage 1 | Q113: =E132 -> 0.025 | AH113: Nodule Collection | AI113: dry ton nodules / annum | AJ113: =AJ7*1000000 -> 0 | AK113: 0 | AL113: 0 | AM113: 0 | AN113: 0 | AO113: 0 | AP113: 0 | AQ113: 0 | AR113: 0 | AS113: 0 | AT113: 0 | AU113: 2699033.535 | AV113: 3277397.864 | AW113: 3855762.193 | AX113: 3855762.193 | AY113: 3855762.193 | AZ113: 3855762.193 | BA113: 3855762.193 | BB113: 3855762.193 | BC113: 3855762.193 | BD113: 3855762.193 | BE113: 3855762.193 | BF113: 3855762.193 | BG113: 3855762.193 | BH113: 3855762.193 | BI113: 3855762.193 | BJ113: 3855762.193 | BK113: 3855762.193 | BL113: 3855762.193 | BM113: 3855762.193 | BN113: 3855762.193 | BO113: 3855762.193 | BP113: =BP7*1000000 -> 3855762.193 | BQ113: 3855762.193 | BR113: 3855762.193 | BS113: 3855762.193 | BT113: 0 | BU113: 0 | BV113: 0 | BW113: 0 | BX113: 0 | BY113: 0 | BZ113: 0 | CA113: 0 | CB113: 0 | CC113: 0 | CD113: 0 | CE113: 0 | CF113: 0 | CG113: 0
B114: Corporate Income Tax Rate | E114: ='User Interface'!D99 -> 0.25 | F114: % of profit declared in SS | P114: =B133 -> Ad-Valorem - Stage 2 (additional royalty) | Q114: =E133 -> 0.045 | AI114: dry Mton nodules / annum | AJ114: =AJ113/1000000 -> 0 | AK114: =AK113/1000000 -> 0 | AL114: 0 | AM114: 0 | AN114: 0 | AO114: 0 | AP114: 0 | AQ114: 0 | AR114: 0 | AS114: 0 | AT114: 0 | AU114: 2.699033535 | AV114: 3.277397864 | AW114: 3.855762193 | AX114: 3.855762193 | AY114: 3.855762193 | AZ114: 3.855762193 | BA114: 3.855762193 | BB114: 3.855762193 | BC114: 3.855762193 | BD114: 3.855762193 | BE114: 3.855762193 | BF114: 3.855762193 | BG114: 3.855762193 | BH114: 3.855762193 | BI114: 3.855762193 | BJ114: 3.855762193 | BK114: 3.855762193 | BL114: 3.855762193 | BM114: 3.855762193 | BN114: 3.855762193 | BO114: 3.855762193 | BP114: 3.855762193 | BQ114: 3.855762193 | BR114: 3.855762193 | BS114: 3.855762193 | BT114: 0 | BU114: 0 | BV114: 0 | BW114: 0 | BX114: 0 | BY114: 0 | BZ114: 0 | CA114: 0 | CB114: 0 | CC114: 0 | CD114: 0 | CE114: 0 | CF114: 0 | CG114: 0
B115: Unlimited Carryforward of Losses? | E115: ='User Interface'!D105 -> Yes | F115: (If Yes, depreciation not considered in accounting profit) | AH115: Production: Manganese | AI115: Mton metal / annum | AJ115: =AJ$114*$X60 -> 0 | AK115: 0 | AL115: 0 | AM115: 0 | AN115: 0 | AO115: 0 | AP115: 0 | AQ115: 0 | AR115: 0 | AS115: 0 | AT115: 0 | AU115: 0.7588602688 | AV115: 0.9214731835 | AW115: 1.084086098 | AX115: 1.084086098 | AY115: 1.084086098 | AZ115: 1.084086098 | BA115: 1.084086098 | BB115: 1.084086098 | BC115: 1.084086098 | BD115: 1.084086098 | BE115: 1.084086098 | BF115: 1.084086098 | BG115: 1.084086098 | BH115: 1.084086098 | BI115: 1.084086098 | BJ115: 1.084086098 | BK115: 1.084086098 | BL115: 1.084086098 | BM115: 1.084086098 | BN115: 1.084086098 | BO115: 1.084086098 | BP115: =BP$114*$X60 -> 1.084086098 | BQ115: 1.084086098 | BR115: 1.084086098 | BS115: 1.084086098 | BT115: 0 | BU115: 0 | BV115: 0 | BW115: 0 | BX115: 0 | BY115: 0 | BZ115: 0 | CA115: 0 | CB115: 0 | CC115: 0 | CD115: 0 | CE115: 0 | CF115: 0 | CG115: 0
B116: Administrative Tax | E116: 0 | F116: % of (Basket) Revenue | AH116: Production: Copper | AI116: Mton metal / annum | AJ116: =AJ$114*$X63 -> 0 | AK116: 0 | AL116: 0 | AM116: 0 | AN116: 0 | AO116: 0 | AP116: 0 | AQ116: 0 | AR116: 0 | AS116: 0 | AT116: 0 | AU116: 0.026720432 | AV116: 0.03244623886 | AW116: 0.03817204571 | AX116: 0.03817204571 | AY116: 0.03817204571 | AZ116: 0.03817204571 | BA116: 0.03817204571 | BB116: 0.03817204571 | BC116: 0.03817204571 | BD116: 0.03817204571 | BE116: 0.03817204571 | BF116: 0.03817204571 | BG116: 0.03817204571 | BH116: 0.03817204571 | BI116: 0.03817204571 | BJ116: 0.03817204571 | BK116: 0.03817204571 | BL116: 0.03817204571 | BM116: 0.03817204571 | BN116: 0.03817204571 | BO116: 0.03817204571 | BP116: =BP$114*$X63 -> 0.03817204571 | BQ116: 0.03817204571 | BR116: 0.03817204571 | BS116: 0.03817204571 | BT116: 0 | BU116: 0 | BV116: 0 | BW116: 0 | BX116: 0 | BY116: 0 | BZ116: 0 | CA116: 0 | CB116: 0 | CC116: 0 | CD116: 0 | CE116: 0 | CF116: 0 | CG116: 0 | CQ116: 55 | CR116: =CQ116/CQ117 -> 0.4782608696
B117: Additional Profit Tax | E117: ='User Interface'!D100 -> 0 | P117: BTP Royalty - Stage 1 | Q117: =E148 -> 0.3 | AH117: Production: Cobalt | AI117: Mton metal / annum | AJ117: =AJ$114*$X62 -> 0 | AK117: 0 | AL117: 0 | AM117: 0 | AN117: 0 | AO117: 0 | AP117: 0 | AQ117: 0 | AR117: 0 | AS117: 0 | AT117: 0 | AU117: 0.004318453656 | AV117: 0.005243836583 | AW117: 0.006169219509 | AX117: 0.006169219509 | AY117: 0.006169219509 | AZ117: 0.006169219509 | BA117: 0.006169219509 | BB117: 0.006169219509 | BC117: 0.006169219509 | BD117: 0.006169219509 | BE117: 0.006169219509 | BF117: 0.006169219509 | BG117: 0.006169219509 | BH117: 0.006169219509 | BI117: 0.006169219509 | BJ117: 0.006169219509 | BK117: 0.006169219509 | BL117: 0.006169219509 | BM117: 0.006169219509 | BN117: 0.006169219509 | BO117: 0.006169219509 | BP117: =BP$114*$X62 -> 0.006169219509 | BQ117: 0.006169219509 | BR117: 0.006169219509 | BS117: 0.006169219509 | BT117: 0 | BU117: 0 | BV117: 0 | BW117: 0 | BX117: 0 | BY117: 0 | BZ117: 0 | CA117: 0 | CB117: 0 | CC117: 0 | CD117: 0 | CE117: 0 | CF117: 0 | CG117: 0 | CQ117: 115
B118: Percent of Previous Loss Deductible in Calculation of Additional Profit | E118: =1+'User Interface'!D101 -> 1.2 | P118: BTP Royalty - Stage 2 (additional) | Q118: =E149 -> 0 | AH118: Production: Nickel | AI118: Mton metal / annum | AJ118: =AJ$114*$X61 -> 0 | AK118: 0 | AL118: 0 | AM118: 0 | AN118: 0 | AO118: 0 | AP118: 0 | AQ118: 0 | AR118: 0 | AS118: 0 | AT118: 0 | AU118: 0.03157869236 | AV118: 0.03834555501 | AW118: 0.04511241766 | AX118: 0.04511241766 | AY118: 0.04511241766 | AZ118: 0.04511241766 | BA118: 0.04511241766 | BB118: 0.04511241766 | BC118: 0.04511241766 | BD118: 0.04511241766 | BE118: 0.04511241766 | BF118: 0.04511241766 | BG118: 0.04511241766 | BH118: 0.04511241766 | BI118: 0.04511241766 | BJ118: 0.04511241766 | BK118: 0.04511241766 | BL118: 0.04511241766 | BM118: 0.04511241766 | BN118: 0.04511241766 | BO118: 0.04511241766 | BP118: =BP$114*$X61 -> 0.04511241766 | BQ118: 0.04511241766 | BR118: 0.04511241766 | BS118: 0.04511241766 | BT118: 0 | BU118: 0 | BV118: 0 | BW118: 0 | BX118: 0 | BY118: 0 | BZ118: 0 | CA118: 0 | CB118: 0 | CC118: 0 | CD118: 0 | CE118: 0 | CF118: 0 | CG118: 0
B119: Withholding Tax | E119: ='User Interface'!D102 -> 0
B120: Percent of OPEX Subject to Withholding Tax | E120: ='User Interface'!D103 -> 0.5 | AH120: Prices
B121: Percent of Profits Subject to Withholding Tax | E121: ='User Interface'!D104 -> 0.9 | AH121: Metal Unit Price | AJ121: 1 | AK121: 2 | AL121: 3 | AM121: 4 | AN121: 5 | AO121: 6 | AP121: 7 | AQ121: 8 | AR121: 9 | AS121: 10 | AT121: 11 | AU121: 12 | AV121: 13 | AW121: 14 | AX121: 15 | AY121: 16 | AZ121: 17 | BA121: 18 | BB121: 19 | BC121: 20 | BD121: 21 | BE121: 22 | BF121: 23 | BG121: 24 | BH121: 25 | BI121: 26 | BJ121: 27 | BK121: 28 | BL121: 29 | BM121: 30 | BN121: 31 | BO121: 32 | BP121: 33 | BQ121: 34 | BR121: 35 | BS121: 36 | BT121: 37 | BU121: 38 | BV121: 39 | BW121: 40 | BX121: 41 | BY121: 42 | BZ121: 43 | CA121: 44 | CB121: 45 | CC121: 46 | CD121: 47 | CE121: 48 | CF121: 49 | CG121: 50 | CH121: Average
B123: PROCESSING STATE | AH123: ="Manganese (Used for Revenue) - "&MnProdType -> Manganese (Used for Revenue) - Ore | AI123: USD MN content/tonne | AJ123: =IF(MnProdType="Ore",AJ125,AJ124) -> 475 | AK123: 475 | AL123: 475 | AM123: 475 | AN123: 475 | AO123: 475 | AP123: 475 | AQ123: 475 | AR123: 475 | AS123: 475 | AT123: 475 | AU123: 475 | AV123: 475 | AW123: 475 | AX123: 475 | AY123: 475 | AZ123: 475 | BA123: 475 | BB123: 475 | BC123: 475 | BD123: 475 | BE123: 475 | BF123: 475 | BG123: 475 | BH123: 475 | BI123: 475 | BJ123: 475 | BK123: 475 | BL123: 475 | BM123: 475 | BN123: 475 | BO123: 475 | BP123: =IF(MnProdType="Ore",BP125,BP124) -> 475 | BQ123: 475 | BR123: 475 | BS123: 475 | BT123: 475 | BU123: 475 | BV123: 475 | BW123: 475 | BX123: 475 | BY123: 475 | BZ123: 475 | CA123: 475 | CB123: 475 | CC123: 475 | CD123: 475 | CE123: 475 | CF123: 475 | CG123: 475 | CH123: =SUMPRODUCT(AJ123:CG123,AJ7:CG7)/SUM(AJ7:CG7) -> 475
B124: Corporate Income Tax Rate | E124: ='User Interface'!D106 -> 0.25 | F124: % of profit declared in SS | AH124: Manganese - Metal | AI124: USD MN content/tonne | AJ124: =IF(over_price?=2,$E71,IF(over_price?=0,INDEX('Material prices'!AB$5:AB$1009,$Q70+1),INDEX('Material prices'!KR$5:KR$1009,$Q70+1))) -> 1560 | AK124: =IF(over_price?=2,$E71,IF(over_price?=0,INDEX('Material prices'!AC$5:AC$1009,$Q70+1),INDEX('Material prices'!KS$5:KS$1009,$Q70+1))) -> 1560 | AL124: =IF(over_price?=2,$E71,IF(over_price?=0,INDEX('Material prices'!AD$5:AD$1009,$Q70+1),INDEX('Material prices'!KT$5:KT$1009,$Q70+1))) -> 1560 | AM124: =IF(over_price?=2,$E71,IF(over_price?=0,INDEX('Material prices'!AE$5:AE$1009,$Q70+1),INDEX('Material prices'!KU$5:KU$1009,$Q70+1))) -> 1560 | AN124: =IF(over_price?=2,$E71,IF(over_price?=0,INDEX('Material prices'!AF$5:AF$1009,$Q70+1),INDEX('Material prices'!KV$5:KV$1009,$Q70+1))) -> 1560 | AO124: =IF(over_price?=2,$E71,IF(over_price?=0,INDEX('Material prices'!AG$5:AG$1009,$Q70+1),INDEX('Material prices'!KW$5:KW$1009,$Q70+1))) -> 1560 | AP124: =IF(over_price?=2,$E71,IF(over_price?=0,INDEX('Material prices'!AH$5:AH$1009,$Q70+1),INDEX('Material prices'!KX$5:KX$1009,$Q70+1))) -> 1560 | AQ124: =IF(over_price?=2,$E71,IF(over_price?=0,INDEX('Material prices'!AI$5:AI$1009,$Q70+1),INDEX('Material prices'!KY$5:KY$1009,$Q70+1))) -> 1560 | AR124: =IF(over_price?=2,$E71,IF(over_price?=0,INDEX('Material prices'!AJ$5:AJ$1009,$Q70+1),INDEX('Material prices'!KZ$5:KZ$1009,$Q70+1))) -> 1560 | AS124: =IF(over_price?=2,$E71,IF(over_price?=0,INDEX('Material prices'!AK$5:AK$1009,$Q70+1),INDEX('Material prices'!LA$5:LA$1009,$Q70+1))) -> 1560 | AT124: =IF(over_price?=2,$E71,IF(over_price?=0,INDEX('Material prices'!AL$5:AL$1009,$Q70+1),INDEX('Material prices'!LB$5:LB$1009,$Q70+1))) -> 1560 | AU124: =IF(over_price?=2,$E71,IF(over_price?=0,INDEX('Material prices'!AM$5:AM$1009,$Q70+1),INDEX('Material prices'!LC$5:LC$1009,$Q70+1))) -> 1560 | AV124: =IF(over_price?=2,$E71,IF(over_price?=0,INDEX('Material prices'!AN$5:AN$1009,$Q70+1),INDEX('Material prices'!LD$5:LD$1009,$Q70+1))) -> 1560 | AW124: =IF(over_price?=2,$E71,IF(over_price?=0,INDEX('Material prices'!AO$5:AO$1009,$Q70+1),INDEX('Material prices'!LE$5:LE$1009,$Q70+1))) -> 1560 | AX124: =IF(over_price?=2,$E71,IF(over_price?=0,INDEX('Material prices'!AP$5:AP$1009,$Q70+1),INDEX('Material prices'!LF$5:LF$1009,$Q70+1))) -> 1560 | AY124: =IF(over_price?=2,$E71,IF(over_price?=0,INDEX('Material prices'!AQ$5:AQ$1009,$Q70+1),INDEX('Material prices'!LG$5:LG$1009,$Q70+1))) -> 1560 | AZ124: =IF(over_price?=2,$E71,IF(over_price?=0,INDEX('Material prices'!AR$5:AR$1009,$Q70+1),INDEX('Material prices'!LH$5:LH$1009,$Q70+1))) -> 1560 | BA124: =IF(over_price?=2,$E71,IF(over_price?=0,INDEX('Material prices'!AS$5:AS$1009,$Q70+1),INDEX('Material prices'!LI$5:LI$1009,$Q70+1))) -> 1560 | BB124: =IF(over_price?=2,$E71,IF(over_price?=0,INDEX('Material prices'!AT$5:AT$1009,$Q70+1),INDEX('Material prices'!LJ$5:LJ$1009,$Q70+1))) -> 1560 | BC124: =IF(over_price?=2,$E71,IF(over_price?=0,INDEX('Material prices'!AU$5:AU$1009,$Q70+1),INDEX('Material prices'!LK$5:LK$1009,$Q70+1))) -> 1560 | BD124: =IF(over_price?=2,$E71,IF(over_price?=0,INDEX('Material prices'!AV$5:AV$1009,$Q70+1),INDEX('Material prices'!LL$5:LL$1009,$Q70+1))) -> 1560 | BE124: =IF(over_price?=2,$E71,IF(over_price?=0,INDEX('Material prices'!AW$5:AW$1009,$Q70+1),INDEX('Material prices'!LM$5:LM$1009,$Q70+1))) -> 1560 | BF124: =IF(over_price?=2,$E71,IF(over_price?=0,INDEX('Material prices'!AX$5:AX$1009,$Q70+1),INDEX('Material prices'!LN$5:LN$1009,$Q70+1))) -> 1560 | BG124: =IF(over_price?=2,$E71,IF(over_price?=0,INDEX('Material prices'!AY$5:AY$1009,$Q70+1),INDEX('Material prices'!LO$5:LO$1009,$Q70+1))) -> 1560 | BH124: =IF(over_price?=2,$E71,IF(over_price?=0,INDEX('Material prices'!AZ$5:AZ$1009,$Q70+1),INDEX('Material prices'!LP$5:LP$1009,$Q70+1))) -> 1560 | BI124: =IF(over_price?=2,$E71,IF(over_price?=0,INDEX('Material prices'!BA$5:BA$1009,$Q70+1),INDEX('Material prices'!LQ$5:LQ$1009,$Q70+1))) -> 1560 | BJ124: =IF(over_price?=2,$E71,IF(over_price?=0,INDEX('Material prices'!BB$5:BB$1009,$Q70+1),INDEX('Material prices'!LR$5:LR$1009,$Q70+1))) -> 1560 | BK124: =IF(over_price?=2,$E71,IF(over_price?=0,INDEX('Material prices'!BC$5:BC$1009,$Q70+1),INDEX('Material prices'!LS$5:LS$1009,$Q70+1))) -> 1560 | BL124: =IF(over_price?=2,$E71,IF(over_price?=0,INDEX('Material prices'!BD$5:BD$1009,$Q70+1),INDEX('Material prices'!LT$5:LT$1009,$Q70+1))) -> 1560 | BM124: =IF(over_price?=2,$E71,IF(over_price?=0,INDEX('Material prices'!BE$5:BE$1009,$Q70+1),INDEX('Material prices'!LU$5:LU$1009,$Q70+1))) -> 1560 | BN124: =IF(over_price?=2,$E71,IF(over_price?=0,INDEX('Material prices'!BF$5:BF$1009,$Q70+1),INDEX('Material prices'!LV$5:LV$1009,$Q70+1))) -> 1560 | BO124: =IF(over_price?=2,$E71,IF(over_price?=0,INDEX('Material prices'!BG$5:BG$1009,$Q70+1),INDEX('Material prices'!LW$5:LW$1009,$Q70+1))) -> 1560 | BP124: =IF(over_price?=2,$E71,IF(over_price?=0,INDEX('Material prices'!BH$5:BH$1009,$Q70+1),INDEX('Material prices'!LX$5:LX$1009,$Q70+1))) -> 1560 | BQ124: =IF(over_price?=2,$E71,IF(over_price?=0,INDEX('Material prices'!BI$5:BI$1009,$Q70+1),INDEX('Material prices'!LY$5:LY$1009,$Q70+1))) -> 1560 | BR124: =IF(over_price?=2,$E71,IF(over_price?=0,INDEX('Material prices'!BJ$5:BJ$1009,$Q70+1),INDEX('Material prices'!LZ$5:LZ$1009,$Q70+1))) -> 1560 | BS124: =IF(over_price?=2,$E71,IF(over_price?=0,INDEX('Material prices'!BK$5:BK$1009,$Q70+1),INDEX('Material prices'!MA$5:MA$1009,$Q70+1))) -> 1560 | BT124: =IF(over_price?=2,$E71,IF(over_price?=0,INDEX('Material prices'!BL$5:BL$1009,$Q70+1),INDEX('Material prices'!MB$5:MB$1009,$Q70+1))) -> 1560 | BU124: =IF(over_price?=2,$E71,IF(over_price?=0,INDEX('Material prices'!BM$5:BM$1009,$Q70+1),INDEX('Material prices'!MC$5:MC$1009,$Q70+1))) -> 1560 | BV124: =IF(over_price?=2,$E71,IF(over_price?=0,INDEX('Material prices'!BN$5:BN$1009,$Q70+1),INDEX('Material prices'!MD$5:MD$1009,$Q70+1))) -> 1560 | BW124: =IF(over_price?=2,$E71,IF(over_price?=0,INDEX('Material prices'!BO$5:BO$1009,$Q70+1),INDEX('Material prices'!ME$5:ME$1009,$Q70+1))) -> 1560 | BX124: =IF(over_price?=2,$E71,IF(over_price?=0,INDEX('Material prices'!BP$5:BP$1009,$Q70+1),INDEX('Material prices'!MF$5:MF$1009,$Q70+1))) -> 1560 | BY124: =IF(over_price?=2,$E71,IF(over_price?=0,INDEX('Material prices'!BQ$5:BQ$1009,$Q70+1),INDEX('Material prices'!MG$5:MG$1009,$Q70+1))) -> 1560 | BZ124: =IF(over_price?=2,$E71,IF(over_price?=0,INDEX('Material prices'!BR$5:BR$1009,$Q70+1),INDEX('Material prices'!MH$5:MH$1009,$Q70+1))) -> 1560 | CA124: =IF(over_price?=2,$E71,IF(over_price?=0,INDEX('Material prices'!BS$5:BS$1009,$Q70+1),INDEX('Material prices'!MI$5:MI$1009,$Q70+1))) -> 1560 | CB124: =IF(over_price?=2,$E71,IF(over_price?=0,INDEX('Material prices'!BT$5:BT$1009,$Q70+1),INDEX('Material prices'!MJ$5:MJ$1009,$Q70+1))) -> 1560 | CC124: =IF(over_price?=2,$E71,IF(over_price?=0,INDEX('Material prices'!BU$5:BU$1009,$Q70+1),INDEX('Material prices'!MK$5:MK$1009,$Q70+1))) -> 1560 | CD124: =IF(over_price?=2,$E71,IF(over_price?=0,INDEX('Material prices'!BV$5:BV$1009,$Q70+1),INDEX('Material prices'!ML$5:ML$1009,$Q70+1))) -> 1560 | CE124: =IF(over_price?=2,$E71,IF(over_price?=0,INDEX('Material prices'!BW$5:BW$1009,$Q70+1),INDEX('Material prices'!MM$5:MM$1009,$Q70+1))) -> 1560 | CF124: =IF(over_price?=2,$E71,IF(over_price?=0,INDEX('Material prices'!BX$5:BX$1009,$Q70+1),INDEX('Material prices'!MN$5:MN$1009,$Q70+1))) -> 1560 | CG124: =IF(over_price?=2,$E71,IF(over_price?=0,INDEX('Material prices'!BY$5:BY$1009,$Q70+1),INDEX('Material prices'!MO$5:MO$1009,$Q70+1))) -> 1560 | CH124: =SUMPRODUCT(AJ124:CG124,AJ$7:CG$7)/SUM(AJ$7:CG$7) -> 1560
B125: Unlimited Carryforward of All Expenses? | E125: ='User Interface'!D105 -> Yes | F125: (If Yes, depreciation not considered in accounting profit) | AH125: Managese - Ore | AI125: USD MN content/tonne | AJ125: =IF(over_price?=2,$E72,IF(over_price?=0,INDEX('Material prices'!CE$5:CE$1009,$Q70+1),INDEX('Material prices'!MV$5:MV$1009,$Q70+1))) -> 475 | AK125: =IF(over_price?=2,$E72,IF(over_price?=0,INDEX('Material prices'!CF$5:CF$1009,$Q70+1),INDEX('Material prices'!MW$5:MW$1009,$Q70+1))) -> 475 | AL125: =IF(over_price?=2,$E72,IF(over_price?=0,INDEX('Material prices'!CG$5:CG$1009,$Q70+1),INDEX('Material prices'!MX$5:MX$1009,$Q70+1))) -> 475 | AM125: =IF(over_price?=2,$E72,IF(over_price?=0,INDEX('Material prices'!CH$5:CH$1009,$Q70+1),INDEX('Material prices'!MY$5:MY$1009,$Q70+1))) -> 475 | AN125: =IF(over_price?=2,$E72,IF(over_price?=0,INDEX('Material prices'!CI$5:CI$1009,$Q70+1),INDEX('Material prices'!MZ$5:MZ$1009,$Q70+1))) -> 475 | AO125: =IF(over_price?=2,$E72,IF(over_price?=0,INDEX('Material prices'!CJ$5:CJ$1009,$Q70+1),INDEX('Material prices'!NA$5:NA$1009,$Q70+1))) -> 475 | AP125: =IF(over_price?=2,$E72,IF(over_price?=0,INDEX('Material prices'!CK$5:CK$1009,$Q70+1),INDEX('Material prices'!NB$5:NB$1009,$Q70+1))) -> 475 | AQ125: =IF(over_price?=2,$E72,IF(over_price?=0,INDEX('Material prices'!CL$5:CL$1009,$Q70+1),INDEX('Material prices'!NC$5:NC$1009,$Q70+1))) -> 475 | AR125: =IF(over_price?=2,$E72,IF(over_price?=0,INDEX('Material prices'!CM$5:CM$1009,$Q70+1),INDEX('Material prices'!ND$5:ND$1009,$Q70+1))) -> 475 | AS125: =IF(over_price?=2,$E72,IF(over_price?=0,INDEX('Material prices'!CN$5:CN$1009,$Q70+1),INDEX('Material prices'!NE$5:NE$1009,$Q70+1))) -> 475 | AT125: =IF(over_price?=2,$E72,IF(over_price?=0,INDEX('Material prices'!CO$5:CO$1009,$Q70+1),INDEX('Material prices'!NF$5:NF$1009,$Q70+1))) -> 475 | AU125: =IF(over_price?=2,$E72,IF(over_price?=0,INDEX('Material prices'!CP$5:CP$1009,$Q70+1),INDEX('Material prices'!NG$5:NG$1009,$Q70+1))) -> 475 | AV125: =IF(over_price?=2,$E72,IF(over_price?=0,INDEX('Material prices'!CQ$5:CQ$1009,$Q70+1),INDEX('Material prices'!NH$5:NH$1009,$Q70+1))) -> 475 | AW125: =IF(over_price?=2,$E72,IF(over_price?=0,INDEX('Material prices'!CR$5:CR$1009,$Q70+1),INDEX('Material prices'!NI$5:NI$1009,$Q70+1))) -> 475 | AX125: =IF(over_price?=2,$E72,IF(over_price?=0,INDEX('Material prices'!CS$5:CS$1009,$Q70+1),INDEX('Material prices'!NJ$5:NJ$1009,$Q70+1))) -> 475 | AY125: =IF(over_price?=2,$E72,IF(over_price?=0,INDEX('Material prices'!CT$5:CT$1009,$Q70+1),INDEX('Material prices'!NK$5:NK$1009,$Q70+1))) -> 475 | AZ125: =IF(over_price?=2,$E72,IF(over_price?=0,INDEX('Material prices'!CU$5:CU$1009,$Q70+1),INDEX('Material prices'!NL$5:NL$1009,$Q70+1))) -> 475 | BA125: =IF(over_price?=2,$E72,IF(over_price?=0,INDEX('Material prices'!CV$5:CV$1009,$Q70+1),INDEX('Material prices'!NM$5:NM$1009,$Q70+1))) -> 475 | BB125: =IF(over_price?=2,$E72,IF(over_price?=0,INDEX('Material prices'!CW$5:CW$1009,$Q70+1),INDEX('Material prices'!NN$5:NN$1009,$Q70+1))) -> 475 | BC125: =IF(over_price?=2,$E72,IF(over_price?=0,INDEX('Material prices'!CX$5:CX$1009,$Q70+1),INDEX('Material prices'!NO$5:NO$1009,$Q70+1))) -> 475 | BD125: =IF(over_price?=2,$E72,IF(over_price?=0,INDEX('Material prices'!CY$5:CY$1009,$Q70+1),INDEX('Material prices'!NP$5:NP$1009,$Q70+1))) -> 475 | BE125: =IF(over_price?=2,$E72,IF(over_price?=0,INDEX('Material prices'!CZ$5:CZ$1009,$Q70+1),INDEX('Material prices'!NQ$5:NQ$1009,$Q70+1))) -> 475 | BF125: =IF(over_price?=2,$E72,IF(over_price?=0,INDEX('Material prices'!DA$5:DA$1009,$Q70+1),INDEX('Material prices'!NR$5:NR$1009,$Q70+1))) -> 475 | BG125: =IF(over_price?=2,$E72,IF(over_price?=0,INDEX('Material prices'!DB$5:DB$1009,$Q70+1),INDEX('Material prices'!NS$5:NS$1009,$Q70+1))) -> 475 | BH125: =IF(over_price?=2,$E72,IF(over_price?=0,INDEX('Material prices'!DC$5:DC$1009,$Q70+1),INDEX('Material prices'!NT$5:NT$1009,$Q70+1))) -> 475 | BI125: =IF(over_price?=2,$E72,IF(over_price?=0,INDEX('Material prices'!DD$5:DD$1009,$Q70+1),INDEX('Material prices'!NU$5:NU$1009,$Q70+1))) -> 475 | BJ125: =IF(over_price?=2,$E72,IF(over_price?=0,INDEX('Material prices'!DE$5:DE$1009,$Q70+1),INDEX('Material prices'!NV$5:NV$1009,$Q70+1))) -> 475 | BK125: =IF(over_price?=2,$E72,IF(over_price?=0,INDEX('Material prices'!DF$5:DF$1009,$Q70+1),INDEX('Material prices'!NW$5:NW$1009,$Q70+1))) -> 475 | BL125: =IF(over_price?=2,$E72,IF(over_price?=0,INDEX('Material prices'!DG$5:DG$1009,$Q70+1),INDEX('Material prices'!NX$5:NX$1009,$Q70+1))) -> 475 | BM125: =IF(over_price?=2,$E72,IF(over_price?=0,INDEX('Material prices'!DH$5:DH$1009,$Q70+1),INDEX('Material prices'!NY$5:NY$1009,$Q70+1))) -> 475 | BN125: =IF(over_price?=2,$E72,IF(over_price?=0,INDEX('Material prices'!DI$5:DI$1009,$Q70+1),INDEX('Material prices'!NZ$5:NZ$1009,$Q70+1))) -> 475 | BO125: =IF(over_price?=2,$E72,IF(over_price?=0,INDEX('Material prices'!DJ$5:DJ$1009,$Q70+1),INDEX('Material prices'!OA$5:OA$1009,$Q70+1))) -> 475 | BP125: =IF(over_price?=2,$E72,IF(over_price?=0,INDEX('Material prices'!DK$5:DK$1009,$Q70+1),INDEX('Material prices'!OB$5:OB$1009,$Q70+1))) -> 475 | BQ125: =IF(over_price?=2,$E72,IF(over_price?=0,INDEX('Material prices'!DL$5:DL$1009,$Q70+1),INDEX('Material prices'!OC$5:OC$1009,$Q70+1))) -> 475 | BR125: =IF(over_price?=2,$E72,IF(over_price?=0,INDEX('Material prices'!DM$5:DM$1009,$Q70+1),INDEX('Material prices'!OD$5:OD$1009,$Q70+1))) -> 475 | BS125: =IF(over_price?=2,$E72,IF(over_price?=0,INDEX('Material prices'!DN$5:DN$1009,$Q70+1),INDEX('Material prices'!OE$5:OE$1009,$Q70+1))) -> 475 | BT125: =IF(over_price?=2,$E72,IF(over_price?=0,INDEX('Material prices'!DO$5:DO$1009,$Q70+1),INDEX('Material prices'!OF$5:OF$1009,$Q70+1))) -> 475 | BU125: =IF(over_price?=2,$E72,IF(over_price?=0,INDEX('Material prices'!DP$5:DP$1009,$Q70+1),INDEX('Material prices'!OG$5:OG$1009,$Q70+1))) -> 475 | BV125: =IF(over_price?=2,$E72,IF(over_price?=0,INDEX('Material prices'!DQ$5:DQ$1009,$Q70+1),INDEX('Material prices'!OH$5:OH$1009,$Q70+1))) -> 475 | BW125: =IF(over_price?=2,$E72,IF(over_price?=0,INDEX('Material prices'!DR$5:DR$1009,$Q70+1),INDEX('Material prices'!OI$5:OI$1009,$Q70+1))) -> 475 | BX125: =IF(over_price?=2,$E72,IF(over_price?=0,INDEX('Material prices'!DS$5:DS$1009,$Q70+1),INDEX('Material prices'!OJ$5:OJ$1009,$Q70+1))) -> 475 | BY125: =IF(over_price?=2,$E72,IF(over_price?=0,INDEX('Material prices'!DT$5:DT$1009,$Q70+1),INDEX('Material prices'!OK$5:OK$1009,$Q70+1))) -> 475 | BZ125: =IF(over_price?=2,$E72,IF(over_price?=0,INDEX('Material prices'!DU$5:DU$1009,$Q70+1),INDEX('Material prices'!OL$5:OL$1009,$Q70+1))) -> 475 | CA125: =IF(over_price?=2,$E72,IF(over_price?=0,INDEX('Material prices'!DV$5:DV$1009,$Q70+1),INDEX('Material prices'!OM$5:OM$1009,$Q70+1))) -> 475 | CB125: =IF(over_price?=2,$E72,IF(over_price?=0,INDEX('Material prices'!DW$5:DW$1009,$Q70+1),INDEX('Material prices'!ON$5:ON$1009,$Q70+1))) -> 475 | CC125: =IF(over_price?=2,$E72,IF(over_price?=0,INDEX('Material prices'!DX$5:DX$1009,$Q70+1),INDEX('Material prices'!OO$5:OO$1009,$Q70+1))) -> 475 | CD125: =IF(over_price?=2,$E72,IF(over_price?=0,INDEX('Material prices'!DY$5:DY$1009,$Q70+1),INDEX('Material prices'!OP$5:OP$1009,$Q70+1))) -> 475 | CE125: =IF(over_price?=2,$E72,IF(over_price?=0,INDEX('Material prices'!DZ$5:DZ$1009,$Q70+1),INDEX('Material prices'!OQ$5:OQ$1009,$Q70+1))) -> 475 | CF125: =IF(over_price?=2,$E72,IF(over_price?=0,INDEX('Material prices'!EA$5:EA$1009,$Q70+1),INDEX('Material prices'!OR$5:OR$1009,$Q70+1))) -> 475 | CG125: =IF(over_price?=2,$E72,IF(over_price?=0,INDEX('Material prices'!EB$5:EB$1009,$Q70+1),INDEX('Material prices'!OS$5:OS$1009,$Q70+1))) -> 475 | CH125: =SUMPRODUCT(AJ125:CG125,AJ$7:CG$7)/SUM(AJ$7:CG$7) -> 475
AH126: Nickel | AI126: USD/tonne | AJ126: =IF(over_price?=2,$E73,IFERROR(IF(over_price?=0,INDEX('Material prices'!EI$5:EI$1009,$Q71+1),INDEX('Material prices'!OY$5:OY$1009,$Q71+1)),0)) -> 20000 | AK126: =IF(over_price?=2,$E73,IFERROR(IF(over_price?=0,INDEX('Material prices'!EJ$5:EJ$1009,$Q71+1),INDEX('Material prices'!OZ$5:OZ$1009,$Q71+1)),0)) -> 20000 | AL126: =IF(over_price?=2,$E73,IFERROR(IF(over_price?=0,INDEX('Material prices'!EK$5:EK$1009,$Q71+1),INDEX('Material prices'!PA$5:PA$1009,$Q71+1)),0)) -> 20000 | AM126: =IF(over_price?=2,$E73,IFERROR(IF(over_price?=0,INDEX('Material prices'!EL$5:EL$1009,$Q71+1),INDEX('Material prices'!PB$5:PB$1009,$Q71+1)),0)) -> 20000 | AN126: =IF(over_price?=2,$E73,IFERROR(IF(over_price?=0,INDEX('Material prices'!EM$5:EM$1009,$Q71+1),INDEX('Material prices'!PC$5:PC$1009,$Q71+1)),0)) -> 20000 | AO126: =IF(over_price?=2,$E73,IFERROR(IF(over_price?=0,INDEX('Material prices'!EN$5:EN$1009,$Q71+1),INDEX('Material prices'!PD$5:PD$1009,$Q71+1)),0)) -> 20000 | AP126: =IF(over_price?=2,$E73,IFERROR(IF(over_price?=0,INDEX('Material prices'!EO$5:EO$1009,$Q71+1),INDEX('Material prices'!PE$5:PE$1009,$Q71+1)),0)) -> 20000 | AQ126: =IF(over_price?=2,$E73,IFERROR(IF(over_price?=0,INDEX('Material prices'!EP$5:EP$1009,$Q71+1),INDEX('Material prices'!PF$5:PF$1009,$Q71+1)),0)) -> 20000 | AR126: =IF(over_price?=2,$E73,IFERROR(IF(over_price?=0,INDEX('Material prices'!EQ$5:EQ$1009,$Q71+1),INDEX('Material prices'!PG$5:PG$1009,$Q71+1)),0)) -> 20000 | AS126: =IF(over_price?=2,$E73,IFERROR(IF(over_price?=0,INDEX('Material prices'!ER$5:ER$1009,$Q71+1),INDEX('Material prices'!PH$5:PH$1009,$Q71+1)),0)) -> 20000 | AT126: =IF(over_price?=2,$E73,IFERROR(IF(over_price?=0,INDEX('Material prices'!ES$5:ES$1009,$Q71+1),INDEX('Material prices'!PI$5:PI$1009,$Q71+1)),0)) -> 20000 | AU126: =IF(over_price?=2,$E73,IFERROR(IF(over_price?=0,INDEX('Material prices'!ET$5:ET$1009,$Q71+1),INDEX('Material prices'!PJ$5:PJ$1009,$Q71+1)),0)) -> 20000 | AV126: =IF(over_price?=2,$E73,IFERROR(IF(over_price?=0,INDEX('Material prices'!EU$5:EU$1009,$Q71+1),INDEX('Material prices'!PK$5:PK$1009,$Q71+1)),0)) -> 20000 | AW126: =IF(over_price?=2,$E73,IFERROR(IF(over_price?=0,INDEX('Material prices'!EV$5:EV$1009,$Q71+1),INDEX('Material prices'!PL$5:PL$1009,$Q71+1)),0)) -> 20000 | AX126: =IF(over_price?=2,$E73,IFERROR(IF(over_price?=0,INDEX('Material prices'!EW$5:EW$1009,$Q71+1),INDEX('Material prices'!PM$5:PM$1009,$Q71+1)),0)) -> 20000 | AY126: =IF(over_price?=2,$E73,IFERROR(IF(over_price?=0,INDEX('Material prices'!EX$5:EX$1009,$Q71+1),INDEX('Material prices'!PN$5:PN$1009,$Q71+1)),0)) -> 20000 | AZ126: =IF(over_price?=2,$E73,IFERROR(IF(over_price?=0,INDEX('Material prices'!EY$5:EY$1009,$Q71+1),INDEX('Material prices'!PO$5:PO$1009,$Q71+1)),0)) -> 20000 | BA126: =IF(over_price?=2,$E73,IFERROR(IF(over_price?=0,INDEX('Material prices'!EZ$5:EZ$1009,$Q71+1),INDEX('Material prices'!PP$5:PP$1009,$Q71+1)),0)) -> 20000 | BB126: =IF(over_price?=2,$E73,IFERROR(IF(over_price?=0,INDEX('Material prices'!FA$5:FA$1009,$Q71+1),INDEX('Material prices'!PQ$5:PQ$1009,$Q71+1)),0)) -> 20000 | BC126: =IF(over_price?=2,$E73,IFERROR(IF(over_price?=0,INDEX('Material prices'!FB$5:FB$1009,$Q71+1),INDEX('Material prices'!PR$5:PR$1009,$Q71+1)),0)) -> 20000 | BD126: =IF(over_price?=2,$E73,IFERROR(IF(over_price?=0,INDEX('Material prices'!FC$5:FC$1009,$Q71+1),INDEX('Material prices'!PS$5:PS$1009,$Q71+1)),0)) -> 20000 | BE126: =IF(over_price?=2,$E73,IFERROR(IF(over_price?=0,INDEX('Material prices'!FD$5:FD$1009,$Q71+1),INDEX('Material prices'!PT$5:PT$1009,$Q71+1)),0)) -> 20000 | BF126: =IF(over_price?=2,$E73,IFERROR(IF(over_price?=0,INDEX('Material prices'!FE$5:FE$1009,$Q71+1),INDEX('Material prices'!PU$5:PU$1009,$Q71+1)),0)) -> 20000 | BG126: =IF(over_price?=2,$E73,IFERROR(IF(over_price?=0,INDEX('Material prices'!FF$5:FF$1009,$Q71+1),INDEX('Material prices'!PV$5:PV$1009,$Q71+1)),0)) -> 20000 | BH126: =IF(over_price?=2,$E73,IFERROR(IF(over_price?=0,INDEX('Material prices'!FG$5:FG$1009,$Q71+1),INDEX('Material prices'!PW$5:PW$1009,$Q71+1)),0)) -> 20000 | BI126: =IF(over_price?=2,$E73,IFERROR(IF(over_price?=0,INDEX('Material prices'!FH$5:FH$1009,$Q71+1),INDEX('Material prices'!PX$5:PX$1009,$Q71+1)),0)) -> 20000 | BJ126: =IF(over_price?=2,$E73,IFERROR(IF(over_price?=0,INDEX('Material prices'!FI$5:FI$1009,$Q71+1),INDEX('Material prices'!PY$5:PY$1009,$Q71+1)),0)) -> 20000 | BK126: =IF(over_price?=2,$E73,IFERROR(IF(over_price?=0,INDEX('Material prices'!FJ$5:FJ$1009,$Q71+1),INDEX('Material prices'!PZ$5:PZ$1009,$Q71+1)),0)) -> 20000 | BL126: =IF(over_price?=2,$E73,IFERROR(IF(over_price?=0,INDEX('Material prices'!FK$5:FK$1009,$Q71+1),INDEX('Material prices'!QA$5:QA$1009,$Q71+1)),0)) -> 20000 | BM126: =IF(over_price?=2,$E73,IFERROR(IF(over_price?=0,INDEX('Material prices'!FL$5:FL$1009,$Q71+1),INDEX('Material prices'!QB$5:QB$1009,$Q71+1)),0)) -> 20000 | BN126: =IF(over_price?=2,$E73,IFERROR(IF(over_price?=0,INDEX('Material prices'!FM$5:FM$1009,$Q71+1),INDEX('Material prices'!QC$5:QC$1009,$Q71+1)),0)) -> 20000 | BO126: =IF(over_price?=2,$E73,IFERROR(IF(over_price?=0,INDEX('Material prices'!FN$5:FN$1009,$Q71+1),INDEX('Material prices'!QD$5:QD$1009,$Q71+1)),0)) -> 20000 | BP126: =IF(over_price?=2,$E73,IFERROR(IF(over_price?=0,INDEX('Material prices'!FO$5:FO$1009,$Q71+1),INDEX('Material prices'!QE$5:QE$1009,$Q71+1)),0)) -> 20000 | BQ126: =IF(over_price?=2,$E73,IFERROR(IF(over_price?=0,INDEX('Material prices'!FP$5:FP$1009,$Q71+1),INDEX('Material prices'!QF$5:QF$1009,$Q71+1)),0)) -> 20000 | BR126: =IF(over_price?=2,$E73,IFERROR(IF(over_price?=0,INDEX('Material prices'!FQ$5:FQ$1009,$Q71+1),INDEX('Material prices'!QG$5:QG$1009,$Q71+1)),0)) -> 20000 | BS126: =IF(over_price?=2,$E73,IFERROR(IF(over_price?=0,INDEX('Material prices'!FR$5:FR$1009,$Q71+1),INDEX('Material prices'!QH$5:QH$1009,$Q71+1)),0)) -> 20000 | BT126: =IF(over_price?=2,$E73,IFERROR(IF(over_price?=0,INDEX('Material prices'!FS$5:FS$1009,$Q71+1),INDEX('Material prices'!QI$5:QI$1009,$Q71+1)),0)) -> 20000 | BU126: =IF(over_price?=2,$E73,IFERROR(IF(over_price?=0,INDEX('Material prices'!FT$5:FT$1009,$Q71+1),INDEX('Material prices'!QJ$5:QJ$1009,$Q71+1)),0)) -> 20000 | BV126: =IF(over_price?=2,$E73,IFERROR(IF(over_price?=0,INDEX('Material prices'!FU$5:FU$1009,$Q71+1),INDEX('Material prices'!QK$5:QK$1009,$Q71+1)),0)) -> 20000 | BW126: =IF(over_price?=2,$E73,IFERROR(IF(over_price?=0,INDEX('Material prices'!FV$5:FV$1009,$Q71+1),INDEX('Material prices'!QL$5:QL$1009,$Q71+1)),0)) -> 20000 | BX126: =IF(over_price?=2,$E73,IFERROR(IF(over_price?=0,INDEX('Material prices'!FW$5:FW$1009,$Q71+1),INDEX('Material prices'!QM$5:QM$1009,$Q71+1)),0)) -> 20000 | BY126: =IF(over_price?=2,$E73,IFERROR(IF(over_price?=0,INDEX('Material prices'!FX$5:FX$1009,$Q71+1),INDEX('Material prices'!QN$5:QN$1009,$Q71+1)),0)) -> 20000 | BZ126: =IF(over_price?=2,$E73,IFERROR(IF(over_price?=0,INDEX('Material prices'!FY$5:FY$1009,$Q71+1),INDEX('Material prices'!QO$5:QO$1009,$Q71+1)),0)) -> 20000 | CA126: =IF(over_price?=2,$E73,IFERROR(IF(over_price?=0,INDEX('Material prices'!FZ$5:FZ$1009,$Q71+1),INDEX('Material prices'!QP$5:QP$1009,$Q71+1)),0)) -> 20000 | CB126: =IF(over_price?=2,$E73,IFERROR(IF(over_price?=0,INDEX('Material prices'!GA$5:GA$1009,$Q71+1),INDEX('Material prices'!QQ$5:QQ$1009,$Q71+1)),0)) -> 20000 | CC126: =IF(over_price?=2,$E73,IFERROR(IF(over_price?=0,INDEX('Material prices'!GB$5:GB$1009,$Q71+1),INDEX('Material prices'!QR$5:QR$1009,$Q71+1)),0)) -> 20000 | CD126: =IF(over_price?=2,$E73,IFERROR(IF(over_price?=0,INDEX('Material prices'!GC$5:GC$1009,$Q71+1),INDEX('Material prices'!QS$5:QS$1009,$Q71+1)),0)) -> 20000 | CE126: =IF(over_price?=2,$E73,IFERROR(IF(over_price?=0,INDEX('Material prices'!GD$5:GD$1009,$Q71+1),INDEX('Material prices'!QT$5:QT$1009,$Q71+1)),0)) -> 20000 | CF126: =IF(over_price?=2,$E73,IFERROR(IF(over_price?=0,INDEX('Material prices'!GE$5:GE$1009,$Q71+1),INDEX('Material prices'!QU$5:QU$1009,$Q71+1)),0)) -> 20000 | CG126: =IF(over_price?=2,$E73,IFERROR(IF(over_price?=0,INDEX('Material prices'!GF$5:GF$1009,$Q71+1),INDEX('Material prices'!QV$5:QV$1009,$Q71+1)),0)) -> 20000 | CH126: =SUMPRODUCT(AJ126:CG126,AJ$7:CG$7)/SUM(AJ$7:CG$7) -> 20000
P127: ="BLD_"&P113 -> BLD_Ad-Valorem - Stage 1 | Q127: =E158 -> 0.025 | AH127: Cobalt | AI127: USD/tonne | AJ127: =IF(over_price?=2,$E74,IFERROR(IF(over_price?=0,INDEX('Material prices'!GL$5:GL$1009,$Q72+1),INDEX('Material prices'!RB$5:RB$1009,$Q72+1)),0)) -> 60000 | AK127: =IF(over_price?=2,$E74,IFERROR(IF(over_price?=0,INDEX('Material prices'!GM$5:GM$1009,$Q72+1),INDEX('Material prices'!RC$5:RC$1009,$Q72+1)),0)) -> 60000 | AL127: =IF(over_price?=2,$E74,IFERROR(IF(over_price?=0,INDEX('Material prices'!GN$5:GN$1009,$Q72+1),INDEX('Material prices'!RD$5:RD$1009,$Q72+1)),0)) -> 60000 | AM127: =IF(over_price?=2,$E74,IFERROR(IF(over_price?=0,INDEX('Material prices'!GO$5:GO$1009,$Q72+1),INDEX('Material prices'!RE$5:RE$1009,$Q72+1)),0)) -> 60000 | AN127: =IF(over_price?=2,$E74,IFERROR(IF(over_price?=0,INDEX('Material prices'!GP$5:GP$1009,$Q72+1),INDEX('Material prices'!RF$5:RF$1009,$Q72+1)),0)) -> 60000 | AO127: =IF(over_price?=2,$E74,IFERROR(IF(over_price?=0,INDEX('Material prices'!GQ$5:GQ$1009,$Q72+1),INDEX('Material prices'!RG$5:RG$1009,$Q72+1)),0)) -> 60000 | AP127: =IF(over_price?=2,$E74,IFERROR(IF(over_price?=0,INDEX('Material prices'!GR$5:GR$1009,$Q72+1),INDEX('Material prices'!RH$5:RH$1009,$Q72+1)),0)) -> 60000 | AQ127: =IF(over_price?=2,$E74,IFERROR(IF(over_price?=0,INDEX('Material prices'!GS$5:GS$1009,$Q72+1),INDEX('Material prices'!RI$5:RI$1009,$Q72+1)),0)) -> 60000 | AR127: =IF(over_price?=2,$E74,IFERROR(IF(over_price?=0,INDEX('Material prices'!GT$5:GT$1009,$Q72+1),INDEX('Material prices'!RJ$5:RJ$1009,$Q72+1)),0)) -> 60000 | AS127: =IF(over_price?=2,$E74,IFERROR(IF(over_price?=0,INDEX('Material prices'!GU$5:GU$1009,$Q72+1),INDEX('Material prices'!RK$5:RK$1009,$Q72+1)),0)) -> 60000 | AT127: =IF(over_price?=2,$E74,IFERROR(IF(over_price?=0,INDEX('Material prices'!GV$5:GV$1009,$Q72+1),INDEX('Material prices'!RL$5:RL$1009,$Q72+1)),0)) -> 60000 | AU127: =IF(over_price?=2,$E74,IFERROR(IF(over_price?=0,INDEX('Material prices'!GW$5:GW$1009,$Q72+1),INDEX('Material prices'!RM$5:RM$1009,$Q72+1)),0)) -> 60000 | AV127: =IF(over_price?=2,$E74,IFERROR(IF(over_price?=0,INDEX('Material prices'!GX$5:GX$1009,$Q72+1),INDEX('Material prices'!RN$5:RN$1009,$Q72+1)),0)) -> 60000 | AW127: =IF(over_price?=2,$E74,IFERROR(IF(over_price?=0,INDEX('Material prices'!GY$5:GY$1009,$Q72+1),INDEX('Material prices'!RO$5:RO$1009,$Q72+1)),0)) -> 60000 | AX127: =IF(over_price?=2,$E74,IFERROR(IF(over_price?=0,INDEX('Material prices'!GZ$5:GZ$1009,$Q72+1),INDEX('Material prices'!RP$5:RP$1009,$Q72+1)),0)) -> 60000 | AY127: =IF(over_price?=2,$E74,IFERROR(IF(over_price?=0,INDEX('Material prices'!HA$5:HA$1009,$Q72+1),INDEX('Material prices'!RQ$5:RQ$1009,$Q72+1)),0)) -> 60000 | AZ127: =IF(over_price?=2,$E74,IFERROR(IF(over_price?=0,INDEX('Material prices'!HB$5:HB$1009,$Q72+1),INDEX('Material prices'!RR$5:RR$1009,$Q72+1)),0)) -> 60000 | BA127: =IF(over_price?=2,$E74,IFERROR(IF(over_price?=0,INDEX('Material prices'!HC$5:HC$1009,$Q72+1),INDEX('Material prices'!RS$5:RS$1009,$Q72+1)),0)) -> 60000 | BB127: =IF(over_price?=2,$E74,IFERROR(IF(over_price?=0,INDEX('Material prices'!HD$5:HD$1009,$Q72+1),INDEX('Material prices'!RT$5:RT$1009,$Q72+1)),0)) -> 60000 | BC127: =IF(over_price?=2,$E74,IFERROR(IF(over_price?=0,INDEX('Material prices'!HE$5:HE$1009,$Q72+1),INDEX('Material prices'!RU$5:RU$1009,$Q72+1)),0)) -> 60000 | BD127: =IF(over_price?=2,$E74,IFERROR(IF(over_price?=0,INDEX('Material prices'!HF$5:HF$1009,$Q72+1),INDEX('Material prices'!RV$5:RV$1009,$Q72+1)),0)) -> 60000 | BE127: =IF(over_price?=2,$E74,IFERROR(IF(over_price?=0,INDEX('Material prices'!HG$5:HG$1009,$Q72+1),INDEX('Material prices'!RW$5:RW$1009,$Q72+1)),0)) -> 60000 | BF127: =IF(over_price?=2,$E74,IFERROR(IF(over_price?=0,INDEX('Material prices'!HH$5:HH$1009,$Q72+1),INDEX('Material prices'!RX$5:RX$1009,$Q72+1)),0)) -> 60000 | BG127: =IF(over_price?=2,$E74,IFERROR(IF(over_price?=0,INDEX('Material prices'!HI$5:HI$1009,$Q72+1),INDEX('Material prices'!RY$5:RY$1009,$Q72+1)),0)) -> 60000 | BH127: =IF(over_price?=2,$E74,IFERROR(IF(over_price?=0,INDEX('Material prices'!HJ$5:HJ$1009,$Q72+1),INDEX('Material prices'!RZ$5:RZ$1009,$Q72+1)),0)) -> 60000 | BI127: =IF(over_price?=2,$E74,IFERROR(IF(over_price?=0,INDEX('Material prices'!HK$5:HK$1009,$Q72+1),INDEX('Material prices'!SA$5:SA$1009,$Q72+1)),0)) -> 60000 | BJ127: =IF(over_price?=2,$E74,IFERROR(IF(over_price?=0,INDEX('Material prices'!HL$5:HL$1009,$Q72+1),INDEX('Material prices'!SB$5:SB$1009,$Q72+1)),0)) -> 60000 | BK127: =IF(over_price?=2,$E74,IFERROR(IF(over_price?=0,INDEX('Material prices'!HM$5:HM$1009,$Q72+1),INDEX('Material prices'!SC$5:SC$1009,$Q72+1)),0)) -> 60000 | BL127: =IF(over_price?=2,$E74,IFERROR(IF(over_price?=0,INDEX('Material prices'!HN$5:HN$1009,$Q72+1),INDEX('Material prices'!SD$5:SD$1009,$Q72+1)),0)) -> 60000 | BM127: =IF(over_price?=2,$E74,IFERROR(IF(over_price?=0,INDEX('Material prices'!HO$5:HO$1009,$Q72+1),INDEX('Material prices'!SE$5:SE$1009,$Q72+1)),0)) -> 60000 | BN127: =IF(over_price?=2,$E74,IFERROR(IF(over_price?=0,INDEX('Material prices'!HP$5:HP$1009,$Q72+1),INDEX('Material prices'!SF$5:SF$1009,$Q72+1)),0)) -> 60000 | BO127: =IF(over_price?=2,$E74,IFERROR(IF(over_price?=0,INDEX('Material prices'!HQ$5:HQ$1009,$Q72+1),INDEX('Material prices'!SG$5:SG$1009,$Q72+1)),0)) -> 60000 | BP127: =IF(over_price?=2,$E74,IFERROR(IF(over_price?=0,INDEX('Material prices'!HR$5:HR$1009,$Q72+1),INDEX('Material prices'!SH$5:SH$1009,$Q72+1)),0)) -> 60000 | BQ127: =IF(over_price?=2,$E74,IFERROR(IF(over_price?=0,INDEX('Material prices'!HS$5:HS$1009,$Q72+1),INDEX('Material prices'!SI$5:SI$1009,$Q72+1)),0)) -> 60000 | BR127: =IF(over_price?=2,$E74,IFERROR(IF(over_price?=0,INDEX('Material prices'!HT$5:HT$1009,$Q72+1),INDEX('Material prices'!SJ$5:SJ$1009,$Q72+1)),0)) -> 60000 | BS127: =IF(over_price?=2,$E74,IFERROR(IF(over_price?=0,INDEX('Material prices'!HU$5:HU$1009,$Q72+1),INDEX('Material prices'!SK$5:SK$1009,$Q72+1)),0)) -> 60000 | BT127: =IF(over_price?=2,$E74,IFERROR(IF(over_price?=0,INDEX('Material prices'!HV$5:HV$1009,$Q72+1),INDEX('Material prices'!SL$5:SL$1009,$Q72+1)),0)) -> 60000 | BU127: =IF(over_price?=2,$E74,IFERROR(IF(over_price?=0,INDEX('Material prices'!HW$5:HW$1009,$Q72+1),INDEX('Material prices'!SM$5:SM$1009,$Q72+1)),0)) -> 60000 | BV127: =IF(over_price?=2,$E74,IFERROR(IF(over_price?=0,INDEX('Material prices'!HX$5:HX$1009,$Q72+1),INDEX('Material prices'!SN$5:SN$1009,$Q72+1)),0)) -> 60000 | BW127: =IF(over_price?=2,$E74,IFERROR(IF(over_price?=0,INDEX('Material prices'!HY$5:HY$1009,$Q72+1),INDEX('Material prices'!SO$5:SO$1009,$Q72+1)),0)) -> 60000 | BX127: =IF(over_price?=2,$E74,IFERROR(IF(over_price?=0,INDEX('Material prices'!HZ$5:HZ$1009,$Q72+1),INDEX('Material prices'!SP$5:SP$1009,$Q72+1)),0)) -> 60000 | BY127: =IF(over_price?=2,$E74,IFERROR(IF(over_price?=0,INDEX('Material prices'!IA$5:IA$1009,$Q72+1),INDEX('Material prices'!SQ$5:SQ$1009,$Q72+1)),0)) -> 60000 | BZ127: =IF(over_price?=2,$E74,IFERROR(IF(over_price?=0,INDEX('Material prices'!IB$5:IB$1009,$Q72+1),INDEX('Material prices'!SR$5:SR$1009,$Q72+1)),0)) -> 60000 | CA127: =IF(over_price?=2,$E74,IFERROR(IF(over_price?=0,INDEX('Material prices'!IC$5:IC$1009,$Q72+1),INDEX('Material prices'!SS$5:SS$1009,$Q72+1)),0)) -> 60000 | CB127: =IF(over_price?=2,$E74,IFERROR(IF(over_price?=0,INDEX('Material prices'!ID$5:ID$1009,$Q72+1),INDEX('Material prices'!ST$5:ST$1009,$Q72+1)),0)) -> 60000 | CC127: =IF(over_price?=2,$E74,IFERROR(IF(over_price?=0,INDEX('Material prices'!IE$5:IE$1009,$Q72+1),INDEX('Material prices'!SU$5:SU$1009,$Q72+1)),0)) -> 60000 | CD127: =IF(over_price?=2,$E74,IFERROR(IF(over_price?=0,INDEX('Material prices'!IF$5:IF$1009,$Q72+1),INDEX('Material prices'!SV$5:SV$1009,$Q72+1)),0)) -> 60000 | CE127: =IF(over_price?=2,$E74,IFERROR(IF(over_price?=0,INDEX('Material prices'!IG$5:IG$1009,$Q72+1),INDEX('Material prices'!SW$5:SW$1009,$Q72+1)),0)) -> 60000 | CF127: =IF(over_price?=2,$E74,IFERROR(IF(over_price?=0,INDEX('Material prices'!IH$5:IH$1009,$Q72+1),INDEX('Material prices'!SX$5:SX$1009,$Q72+1)),0)) -> 60000 | CG127: =IF(over_price?=2,$E74,IFERROR(IF(over_price?=0,INDEX('Material prices'!II$5:II$1009,$Q72+1),INDEX('Material prices'!SY$5:SY$1009,$Q72+1)),0)) -> 60000 | CH127: =SUMPRODUCT(AJ127:CG127,AJ$7:CG$7)/SUM(AJ$7:CG$7) -> 60000
B128: Royalty and Profit-share Rates | P128: ="BLD_"&P114 -> BLD_Ad-Valorem - Stage 2 (additional royalty) | Q128: =F158 -> 0 | AH128: Copper | AI128: USD/tonne | AJ128: =IF(over_price?=2,$E75,IFERROR(IF(over_price?=0,INDEX('Material prices'!IO$5:IO$1009,$Q73+1),INDEX('Material prices'!TE$5:TE$1009,$Q73+1)),0)) -> 9000 | AK128: =IF(over_price?=2,$E75,IFERROR(IF(over_price?=0,INDEX('Material prices'!IP$5:IP$1009,$Q73+1),INDEX('Material prices'!TF$5:TF$1009,$Q73+1)),0)) -> 9000 | AL128: =IF(over_price?=2,$E75,IFERROR(IF(over_price?=0,INDEX('Material prices'!IQ$5:IQ$1009,$Q73+1),INDEX('Material prices'!TG$5:TG$1009,$Q73+1)),0)) -> 9000 | AM128: =IF(over_price?=2,$E75,IFERROR(IF(over_price?=0,INDEX('Material prices'!IR$5:IR$1009,$Q73+1),INDEX('Material prices'!TH$5:TH$1009,$Q73+1)),0)) -> 9000 | AN128: =IF(over_price?=2,$E75,IFERROR(IF(over_price?=0,INDEX('Material prices'!IS$5:IS$1009,$Q73+1),INDEX('Material prices'!TI$5:TI$1009,$Q73+1)),0)) -> 9000 | AO128: =IF(over_price?=2,$E75,IFERROR(IF(over_price?=0,INDEX('Material prices'!IT$5:IT$1009,$Q73+1),INDEX('Material prices'!TJ$5:TJ$1009,$Q73+1)),0)) -> 9000 | AP128: =IF(over_price?=2,$E75,IFERROR(IF(over_price?=0,INDEX('Material prices'!IU$5:IU$1009,$Q73+1),INDEX('Material prices'!TK$5:TK$1009,$Q73+1)),0)) -> 9000 | AQ128: =IF(over_price?=2,$E75,IFERROR(IF(over_price?=0,INDEX('Material prices'!IV$5:IV$1009,$Q73+1),INDEX('Material prices'!TL$5:TL$1009,$Q73+1)),0)) -> 9000 | AR128: =IF(over_price?=2,$E75,IFERROR(IF(over_price?=0,INDEX('Material prices'!IW$5:IW$1009,$Q73+1),INDEX('Material prices'!TM$5:TM$1009,$Q73+1)),0)) -> 9000 | AS128: =IF(over_price?=2,$E75,IFERROR(IF(over_price?=0,INDEX('Material prices'!IX$5:IX$1009,$Q73+1),INDEX('Material prices'!TN$5:TN$1009,$Q73+1)),0)) -> 9000 | AT128: =IF(over_price?=2,$E75,IFERROR(IF(over_price?=0,INDEX('Material prices'!IY$5:IY$1009,$Q73+1),INDEX('Material prices'!TO$5:TO$1009,$Q73+1)),0)) -> 9000 | AU128: =IF(over_price?=2,$E75,IFERROR(IF(over_price?=0,INDEX('Material prices'!IZ$5:IZ$1009,$Q73+1),INDEX('Material prices'!TP$5:TP$1009,$Q73+1)),0)) -> 9000 | AV128: =IF(over_price?=2,$E75,IFERROR(IF(over_price?=0,INDEX('Material prices'!JA$5:JA$1009,$Q73+1),INDEX('Material prices'!TQ$5:TQ$1009,$Q73+1)),0)) -> 9000 | AW128: =IF(over_price?=2,$E75,IFERROR(IF(over_price?=0,INDEX('Material prices'!JB$5:JB$1009,$Q73+1),INDEX('Material prices'!TR$5:TR$1009,$Q73+1)),0)) -> 9000 | AX128: =IF(over_price?=2,$E75,IFERROR(IF(over_price?=0,INDEX('Material prices'!JC$5:JC$1009,$Q73+1),INDEX('Material prices'!TS$5:TS$1009,$Q73+1)),0)) -> 9000 | AY128: =IF(over_price?=2,$E75,IFERROR(IF(over_price?=0,INDEX('Material prices'!JD$5:JD$1009,$Q73+1),INDEX('Material prices'!TT$5:TT$1009,$Q73+1)),0)) -> 9000 | AZ128: =IF(over_price?=2,$E75,IFERROR(IF(over_price?=0,INDEX('Material prices'!JE$5:JE$1009,$Q73+1),INDEX('Material prices'!TU$5:TU$1009,$Q73+1)),0)) -> 9000 | BA128: =IF(over_price?=2,$E75,IFERROR(IF(over_price?=0,INDEX('Material prices'!JF$5:JF$1009,$Q73+1),INDEX('Material prices'!TV$5:TV$1009,$Q73+1)),0)) -> 9000 | BB128: =IF(over_price?=2,$E75,IFERROR(IF(over_price?=0,INDEX('Material prices'!JG$5:JG$1009,$Q73+1),INDEX('Material prices'!TW$5:TW$1009,$Q73+1)),0)) -> 9000 | BC128: =IF(over_price?=2,$E75,IFERROR(IF(over_price?=0,INDEX('Material prices'!JH$5:JH$1009,$Q73+1),INDEX('Material prices'!TX$5:TX$1009,$Q73+1)),0)) -> 9000 | BD128: =IF(over_price?=2,$E75,IFERROR(IF(over_price?=0,INDEX('Material prices'!JI$5:JI$1009,$Q73+1),INDEX('Material prices'!TY$5:TY$1009,$Q73+1)),0)) -> 9000 | BE128: =IF(over_price?=2,$E75,IFERROR(IF(over_price?=0,INDEX('Material prices'!JJ$5:JJ$1009,$Q73+1),INDEX('Material prices'!TZ$5:TZ$1009,$Q73+1)),0)) -> 9000 | BF128: =IF(over_price?=2,$E75,IFERROR(IF(over_price?=0,INDEX('Material prices'!JK$5:JK$1009,$Q73+1),INDEX('Material prices'!UA$5:UA$1009,$Q73+1)),0)) -> 9000 | BG128: =IF(over_price?=2,$E75,IFERROR(IF(over_price?=0,INDEX('Material prices'!JL$5:JL$1009,$Q73+1),INDEX('Material prices'!UB$5:UB$1009,$Q73+1)),0)) -> 9000 | BH128: =IF(over_price?=2,$E75,IFERROR(IF(over_price?=0,INDEX('Material prices'!JM$5:JM$1009,$Q73+1),INDEX('Material prices'!UC$5:UC$1009,$Q73+1)),0)) -> 9000 | BI128: =IF(over_price?=2,$E75,IFERROR(IF(over_price?=0,INDEX('Material prices'!JN$5:JN$1009,$Q73+1),INDEX('Material prices'!UD$5:UD$1009,$Q73+1)),0)) -> 9000 | BJ128: =IF(over_price?=2,$E75,IFERROR(IF(over_price?=0,INDEX('Material prices'!JO$5:JO$1009,$Q73+1),INDEX('Material prices'!UE$5:UE$1009,$Q73+1)),0)) -> 9000 | BK128: =IF(over_price?=2,$E75,IFERROR(IF(over_price?=0,INDEX('Material prices'!JP$5:JP$1009,$Q73+1),INDEX('Material prices'!UF$5:UF$1009,$Q73+1)),0)) -> 9000 | BL128: =IF(over_price?=2,$E75,IFERROR(IF(over_price?=0,INDEX('Material prices'!JQ$5:JQ$1009,$Q73+1),INDEX('Material prices'!UG$5:UG$1009,$Q73+1)),0)) -> 9000 | BM128: =IF(over_price?=2,$E75,IFERROR(IF(over_price?=0,INDEX('Material prices'!JR$5:JR$1009,$Q73+1),INDEX('Material prices'!UH$5:UH$1009,$Q73+1)),0)) -> 9000 | BN128: =IF(over_price?=2,$E75,IFERROR(IF(over_price?=0,INDEX('Material prices'!JS$5:JS$1009,$Q73+1),INDEX('Material prices'!UI$5:UI$1009,$Q73+1)),0)) -> 9000 | BO128: =IF(over_price?=2,$E75,IFERROR(IF(over_price?=0,INDEX('Material prices'!JT$5:JT$1009,$Q73+1),INDEX('Material prices'!UJ$5:UJ$1009,$Q73+1)),0)) -> 9000 | BP128: =IF(over_price?=2,$E75,IFERROR(IF(over_price?=0,INDEX('Material prices'!JU$5:JU$1009,$Q73+1),INDEX('Material prices'!UK$5:UK$1009,$Q73+1)),0)) -> 9000 | BQ128: =IF(over_price?=2,$E75,IFERROR(IF(over_price?=0,INDEX('Material prices'!JV$5:JV$1009,$Q73+1),INDEX('Material prices'!UL$5:UL$1009,$Q73+1)),0)) -> 9000 | BR128: =IF(over_price?=2,$E75,IFERROR(IF(over_price?=0,INDEX('Material prices'!JW$5:JW$1009,$Q73+1),INDEX('Material prices'!UM$5:UM$1009,$Q73+1)),0)) -> 9000 | BS128: =IF(over_price?=2,$E75,IFERROR(IF(over_price?=0,INDEX('Material prices'!JX$5:JX$1009,$Q73+1),INDEX('Material prices'!UN$5:UN$1009,$Q73+1)),0)) -> 9000 | BT128: =IF(over_price?=2,$E75,IFERROR(IF(over_price?=0,INDEX('Material prices'!JY$5:JY$1009,$Q73+1),INDEX('Material prices'!UO$5:UO$1009,$Q73+1)),0)) -> 9000 | BU128: =IF(over_price?=2,$E75,IFERROR(IF(over_price?=0,INDEX('Material prices'!JZ$5:JZ$1009,$Q73+1),INDEX('Material prices'!UP$5:UP$1009,$Q73+1)),0)) -> 9000 | BV128: =IF(over_price?=2,$E75,IFERROR(IF(over_price?=0,INDEX('Material prices'!KA$5:KA$1009,$Q73+1),INDEX('Material prices'!UQ$5:UQ$1009,$Q73+1)),0)) -> 9000 | BW128: =IF(over_price?=2,$E75,IFERROR(IF(over_price?=0,INDEX('Material prices'!KB$5:KB$1009,$Q73+1),INDEX('Material prices'!UR$5:UR$1009,$Q73+1)),0)) -> 9000 | BX128: =IF(over_price?=2,$E75,IFERROR(IF(over_price?=0,INDEX('Material prices'!KC$5:KC$1009,$Q73+1),INDEX('Material prices'!US$5:US$1009,$Q73+1)),0)) -> 9000 | BY128: =IF(over_price?=2,$E75,IFERROR(IF(over_price?=0,INDEX('Material prices'!KD$5:KD$1009,$Q73+1),INDEX('Material prices'!UT$5:UT$1009,$Q73+1)),0)) -> 9000 | BZ128: =IF(over_price?=2,$E75,IFERROR(IF(over_price?=0,INDEX('Material prices'!KE$5:KE$1009,$Q73+1),INDEX('Material prices'!UU$5:UU$1009,$Q73+1)),0)) -> 9000 | CA128: =IF(over_price?=2,$E75,IFERROR(IF(over_price?=0,INDEX('Material prices'!KF$5:KF$1009,$Q73+1),INDEX('Material prices'!UV$5:UV$1009,$Q73+1)),0)) -> 9000 | CB128: =IF(over_price?=2,$E75,IFERROR(IF(over_price?=0,INDEX('Material prices'!KG$5:KG$1009,$Q73+1),INDEX('Material prices'!UW$5:UW$1009,$Q73+1)),0)) -> 9000 | CC128: =IF(over_price?=2,$E75,IFERROR(IF(over_price?=0,INDEX('Material prices'!KH$5:KH$1009,$Q73+1),INDEX('Material prices'!UX$5:UX$1009,$Q73+1)),0)) -> 9000 | CD128: =IF(over_price?=2,$E75,IFERROR(IF(over_price?=0,INDEX('Material prices'!KI$5:KI$1009,$Q73+1),INDEX('Material prices'!UY$5:UY$1009,$Q73+1)),0)) -> 9000 | CE128: =IF(over_price?=2,$E75,IFERROR(IF(over_price?=0,INDEX('Material prices'!KJ$5:KJ$1009,$Q73+1),INDEX('Material prices'!UZ$5:UZ$1009,$Q73+1)),0)) -> 9000 | CF128: =IF(over_price?=2,$E75,IFERROR(IF(over_price?=0,INDEX('Material prices'!KK$5:KK$1009,$Q73+1),INDEX('Material prices'!VA$5:VA$1009,$Q73+1)),0)) -> 9000 | CG128: =IF(over_price?=2,$E75,IFERROR(IF(over_price?=0,INDEX('Material prices'!KL$5:KL$1009,$Q73+1),INDEX('Material prices'!VB$5:VB$1009,$Q73+1)),0)) -> 9000 | CH128: =SUMPRODUCT(AJ128:CG128,AJ$7:CG$7)/SUM(AJ$7:CG$7) -> 9000 | CQ128: 4.5 | CR128: per dmtu
B129: Production Year of Switch from Stage 1 to Stage 2 | E129: 5 | F129: Year | P129: ="BLD_"&P117 -> BLD_BTP Royalty - Stage 1 | Q129: =E159 -> 0 | CQ129: 37
P130: ="BLD_"&P118 -> BLD_BTP Royalty - Stage 2 (additional) | Q130: =F159 -> 0.15 | CM130: 289 | CQ130: =CQ128*CQ129 -> 166.5 | CR130: $ per tonne of ore
B131: Royalty Basis | E131: Rate [%] | AH131: Revenues for Processor and Integrated | CL131: =CH133/CH$138 -> 0.2416552218 | CM131: =CL131*$CM$130 -> 69.83835911 | CN131: Mn | CQ131: =CQ130/(CQ129/100) -> 450 | CR131: $ per tonne of MN in ore
B132: Ad-Valorem - Stage 1 | E132: ='User Interface'!C17 -> 0.025 | F132: % of (Basket) Revenue | AH132: Nodule Value (content and yield) | AJ132: 1 | AK132: 2 | AL132: 3 | AM132: 4 | AN132: 5 | AO132: 6 | AP132: 7 | AQ132: 8 | AR132: 9 | AS132: 10 | AT132: 11 | AU132: 12 | AV132: 13 | AW132: 14 | AX132: 15 | AY132: 16 | AZ132: 17 | BA132: 18 | BB132: 19 | BC132: 20 | BD132: 21 | BE132: 22 | BF132: 23 | BG132: 24 | BH132: 25 | BI132: 26 | BJ132: 27 | BK132: 28 | BL132: 29 | BM132: 30 | BN132: 31 | BO132: 32 | BP132: 33 | BQ132: 34 | BR132: 35 | BS132: 36 | BT132: 37 | BU132: 38 | BV132: 39 | BW132: 40 | BX132: 41 | BY132: 42 | BZ132: 43 | CA132: 44 | CB132: 45 | CC132: 46 | CD132: 47 | CE132: 48 | CF132: 49 | CG132: 50 | CH132: Average | CL132: =CH134/CH$138 -> 0.4234136915 | CM132: =CL132*$CM$130 -> 122.3665568 | CN132: Ni
B133: Ad-Valorem - Stage 2 (additional royalty) | E133: ='User Interface'!D17-'User Interface'!C17 -> 0.045 | F133: % of (Basket) Revenue | AH133: Revenues from Manganese fraction | AI133: USD/tonne nodule | AJ133: =$X$60*AJ123 -> 133.551 | AK133: 133.551 | AL133: 133.551 | AM133: 133.551 | AN133: 133.551 | AO133: 133.551 | AP133: 133.551 | AQ133: 133.551 | AR133: 133.551 | AS133: 133.551 | AT133: 133.551 | AU133: 133.551 | AV133: 133.551 | AW133: 133.551 | AX133: 133.551 | AY133: 133.551 | AZ133: 133.551 | BA133: 133.551 | BB133: 133.551 | BC133: 133.551 | BD133: 133.551 | BE133: 133.551 | BF133: 133.551 | BG133: 133.551 | BH133: 133.551 | BI133: 133.551 | BJ133: 133.551 | BK133: 133.551 | BL133: 133.551 | BM133: 133.551 | BN133: 133.551 | BO133: 133.551 | BP133: =$X$60*BP123 -> 133.551 | BQ133: 133.551 | BR133: 133.551 | BS133: 133.551 | BT133: 133.551 | BU133: 133.551 | BV133: 133.551 | BW133: 133.551 | BX133: 133.551 | BY133: 133.551 | BZ133: 133.551 | CA133: 133.551 | CB133: 133.551 | CC133: 133.551 | CD133: 133.551 | CE133: 133.551 | CF133: 133.551 | CG133: 133.551 | CH133: =SUMPRODUCT(AJ133:CG133,$AJ$109:$CG$109,$AJ$7:$CG$7)/$Q$20/$R$5 -> 133.551 | CL133: =CH135/CH$138 -> 0.1737081811 | CM133: =CL133*$CM$130 -> 50.20166434 | CN133: Co
B134: Ad-Valorem - Stage 2 | E134: =E132+E133 -> 0.07 | F134: % of (Basket) Revenue | AH134: Revenues from Nickel fraction | AI134: USD/tonne nodule | AJ134: =$X$61*AJ126 -> 234 | AK134: 234 | AL134: 234 | AM134: 234 | AN134: 234 | AO134: 234 | AP134: 234 | AQ134: 234 | AR134: 234 | AS134: 234 | AT134: 234 | AU134: 234 | AV134: 234 | AW134: 234 | AX134: 234 | AY134: 234 | AZ134: 234 | BA134: 234 | BB134: 234 | BC134: 234 | BD134: 234 | BE134: 234 | BF134: 234 | BG134: 234 | BH134: 234 | BI134: 234 | BJ134: 234 | BK134: 234 | BL134: 234 | BM134: 234 | BN134: 234 | BO134: 234 | BP134: =$X$61*BP126 -> 234 | BQ134: 234 | BR134: 234 | BS134: 234 | BT134: 234 | BU134: 234 | BV134: 234 | BW134: 234 | BX134: 234 | BY134: 234 | BZ134: 234 | CA134: 234 | CB134: 234 | CC134: 234 | CD134: 234 | CE134: 234 | CF134: 234 | CG134: 234 | CH134: =SUMPRODUCT(AJ134:CG134,$AJ$109:$CG$109,$AJ$7:$CG$7)/$Q$20/$R$5 -> 234 | CL134: =CH136/CH$138 -> 0.1612229056 | CM134: =CL134*$CM$130 -> 46.59341972 | CN134: Cu
AH135: Revenues from Cobalt fraction | AI135: USD/tonne nodule | AJ135: =$X$62*AJ127 -> 96 | AK135: 96 | AL135: 96 | AM135: 96 | AN135: 96 | AO135: 96 | AP135: 96 | AQ135: 96 | AR135: 96 | AS135: 96 | AT135: 96 | AU135: 96 | AV135: 96 | AW135: 96 | AX135: 96 | AY135: 96 | AZ135: 96 | BA135: 96 | BB135: 96 | BC135: 96 | BD135: 96 | BE135: 96 | BF135: 96 | BG135: 96 | BH135: 96 | BI135: 96 | BJ135: 96 | BK135: 96 | BL135: 96 | BM135: 96 | BN135: 96 | BO135: 96 | BP135: =$X$62*BP127 -> 96 | BQ135: 96 | BR135: 96 | BS135: 96 | BT135: 96 | BU135: 96 | BV135: 96 | BW135: 96 | BX135: 96 | BY135: 96 | BZ135: 96 | CA135: 96 | CB135: 96 | CC135: 96 | CD135: 96 | CE135: 96 | CF135: 96 | CG135: 96 | CH135: =SUMPRODUCT(AJ135:CG135,$AJ$109:$CG$109,$AJ$7:$CG$7)/$Q$20/$R$5 -> 96
AH136: Revenues from Copper fraction | AI136: USD/tonne nodule | AJ136: =$X$63*AJ128 -> 89.1 | AK136: 89.1 | AL136: 89.1 | AM136: 89.1 | AN136: 89.1 | AO136: 89.1 | AP136: 89.1 | AQ136: 89.1 | AR136: 89.1 | AS136: 89.1 | AT136: 89.1 | AU136: 89.1 | AV136: 89.1 | AW136: 89.1 | AX136: 89.1 | AY136: 89.1 | AZ136: 89.1 | BA136: 89.1 | BB136: 89.1 | BC136: 89.1 | BD136: 89.1 | BE136: 89.1 | BF136: 89.1 | BG136: 89.1 | BH136: 89.1 | BI136: 89.1 | BJ136: 89.1 | BK136: 89.1 | BL136: 89.1 | BM136: 89.1 | BN136: 89.1 | BO136: 89.1 | BP136: =$X$63*BP128 -> 89.1 | BQ136: 89.1 | BR136: 89.1 | BS136: 89.1 | BT136: 89.1 | BU136: 89.1 | BV136: 89.1 | BW136: 89.1 | BX136: 89.1 | BY136: 89.1 | BZ136: 89.1 | CA136: 89.1 | CB136: 89.1 | CC136: 89.1 | CD136: 89.1 | CE136: 89.1 | CF136: 89.1 | CG136: 89.1 | CH136: =SUMPRODUCT(AJ136:CG136,$AJ$109:$CG$109,$AJ$7:$CG$7)/$Q$20/$R$5 -> 89.1
B137: Variable Ad Valorem - Stage 1 rate | E137: ='User Interface'!C21 -> 0.025 | F137: % of (Basket) Revenue | AH137: Gross Value PN [Mouth of Mine Value - Revenue-Based] | AI137: USD/tonne nodule | AJ137: =$Q$60*AJ123+$Q$61*AJ126+$Q$62*AJ127+$Q$63*AJ128 -> 613.9 | AK137: 613.9 | AL137: 613.9 | AM137: 613.9 | AN137: 613.9 | AO137: 613.9 | AP137: 613.9 | AQ137: 613.9 | AR137: 613.9 | AS137: 613.9 | AT137: 613.9 | AU137: 613.9 | AV137: 613.9 | AW137: 613.9 | AX137: 613.9 | AY137: 613.9 | AZ137: 613.9 | BA137: 613.9 | BB137: 613.9 | BC137: 613.9 | BD137: 613.9 | BE137: 613.9 | BF137: 613.9 | BG137: 613.9 | BH137: 613.9 | BI137: 613.9 | BJ137: 613.9 | BK137: 613.9 | BL137: 613.9 | BM137: 613.9 | BN137: 613.9 | BO137: 613.9 | BP137: =$Q$60*BP123+$Q$61*BP126+$Q$62*BP127+$Q$63*BP128 -> 613.9 | BQ137: 613.9 | BR137: 613.9 | BS137: 613.9 | BT137: 613.9 | BU137: 613.9 | BV137: 613.9 | BW137: 613.9 | BX137: 613.9 | BY137: 613.9 | BZ137: 613.9 | CA137: 613.9 | CB137: 613.9 | CC137: 613.9 | CD137: 613.9 | CE137: 613.9 | CF137: 613.9 | CG137: 613.9 | CH137: =SUMPRODUCT(AJ137:CG137,AJ$7:CG$7)/SUM(AJ$7:CG$7) -> 613.9
B138: Variable Ad Valorem (A) - Floor Rate | E138: ='User Interface'!D21 -> 0.045 | F138: % of (Basket) Revenue | AH138: Net Value per tonne of Nodule (PN) - Revenue-based | AI138: USD/tonne nodule | AJ138: =SUM(AJ133:AJ136) -> 552.651 | AK138: =SUM(AK133:AK136) -> 552.651 | AL138: 552.651 | AM138: 552.651 | AN138: 552.651 | AO138: 552.651 | AP138: 552.651 | AQ138: 552.651 | AR138: 552.651 | AS138: 552.651 | AT138: =SUM(AT133:AT136) -> 552.651 | AU138: 552.651 | AV138: 552.651 | AW138: 552.651 | AX138: =SUM(AX133:AX136) -> 552.651 | AY138: 552.651 | AZ138: 552.651 | BA138: 552.651 | BB138: 552.651 | BC138: 552.651 | BD138: 552.651 | BE138: 552.651 | BF138: 552.651 | BG138: 552.651 | BH138: 552.651 | BI138: 552.651 | BJ138: 552.651 | BK138: 552.651 | BL138: 552.651 | BM138: 552.651 | BN138: 552.651 | BO138: 552.651 | BP138: 552.651 | BQ138: 552.651 | BR138: 552.651 | BS138: 552.651 | BT138: 552.651 | BU138: 552.651 | BV138: 552.651 | BW138: 552.651 | BX138: 552.651 | BY138: 552.651 | BZ138: 552.651 | CA138: 552.651 | CB138: 552.651 | CC138: 552.651 | CD138: 552.651 | CE138: 552.651 | CF138: 552.651 | CG138: =SUM(CG133:CG136) -> 552.651 | CH138: =SUMPRODUCT(AJ138:CG138,AJ$7:CG$7)/SUM(AJ$7:CG$7) -> 552.651
B139: Variable Ad Valorem (A) - Reference price 1 (Low) | E139: ='User Interface'!D22 -> 510 | F139: USD/tonne
B140: Variable Ad Valorem (A) - Max. Rate | E140: ='User Interface'!D23 -> 0.095 | F140: % of (Basket) Revenue | AH140: ="Gross Value PN [Mouth of Mine Value - "&MnAVRef&"-Based for Ad Valorem]" -> Gross Value PN [Mouth of Mine Value - Ore-Based for Ad Valorem] | AI140: USD/tonne nodule | AJ140: =$Q$60*IF(MnAVRef="Ore",AJ125,AJ124)+$Q$61*AJ126+$Q$62*AJ127+$Q$63*AJ128 -> 613.9 | AK140: 613.9 | AL140: 613.9 | AM140: 613.9 | AN140: 613.9 | AO140: 613.9 | AP140: 613.9 | AQ140: 613.9 | AR140: 613.9 | AS140: 613.9 | AT140: 613.9 | AU140: 613.9 | AV140: 613.9 | AW140: 613.9 | AX140: 613.9 | AY140: 613.9 | AZ140: 613.9 | BA140: 613.9 | BB140: 613.9 | BC140: 613.9 | BD140: 613.9 | BE140: 613.9 | BF140: 613.9 | BG140: 613.9 | BH140: 613.9 | BI140: 613.9 | BJ140: 613.9 | BK140: 613.9 | BL140: 613.9 | BM140: 613.9 | BN140: 613.9 | BO140: 613.9 | BP140: =$Q$60*IF(MnAVRef="Ore",BP125,BP124)+$Q$61*BP126+$Q$62*BP127+$Q$63*BP128 -> 613.9 | BQ140: 613.9 | BR140: 613.9 | BS140: 613.9 | BT140: 613.9 | BU140: 613.9 | BV140: 613.9 | BW140: 613.9 | BX140: 613.9 | BY140: 613.9 | BZ140: 613.9 | CA140: 613.9 | CB140: 613.9 | CC140: 613.9 | CD140: 613.9 | CE140: 613.9 | CF140: 613.9 | CG140: 613.9 | CH140: =SUMPRODUCT(AJ140:CG140,AJ$7:CG$7)/SUM(AJ$7:CG$7) -> 613.9 | CP140: 25 | CQ140: 32 | CR140: =CQ140/CP140 -> 1.28
B141: Variable Ad Valorem (A) - Reference price 2 (High) | E141: ='User Interface'!D24 -> 720 | F141: USD/tonne | CP141: 28.4 | CQ141: =CP141*CR140 -> 36.352
AH142: Production
B143: Variable Ad Valorem (B) - Floor | E143: 0.02 | F143: % of (Basket) Revenue | AI143: Year | AJ143: 1 | AK143: 2 | AL143: 3 | AM143: 4 | AN143: 5 | AO143: 6 | AP143: 7 | AQ143: 8 | AR143: 9 | AS143: 10 | AT143: 11 | AU143: 12 | AV143: 13 | AW143: 14 | AX143: 15 | AY143: 16 | AZ143: 17 | BA143: 18 | BB143: 19 | BC143: 20 | BD143: 21 | BE143: 22 | BF143: 23 | BG143: 24 | BH143: 25 | BI143: 26 | BJ143: 27 | BK143: 28 | BL143: 29 | BM143: 30 | BN143: 31 | BO143: 32 | BP143: 33 | BQ143: 34 | BR143: 35 | BS143: 36 | BT143: 37 | BU143: 38 | BV143: 39 | BW143: 40 | BX143: 41 | BY143: 42 | BZ143: 43 | CA143: 44 | CB143: 45 | CC143: 46 | CD143: 47 | CE143: 48 | CF143: 49 | CG143: 50
B144: Variable Ad Valorem (B) - Slope | E144: 0.005 | F144: %/USD | AH144: Nodules Recovered | AI144: dry Mton nodules / annum | AJ144: =AJ114 -> 0 | AK144: 0 | AL144: 0 | AM144: 0 | AN144: 0 | AO144: 0 | AP144: 0 | AQ144: 0 | AR144: 0 | AS144: 0 | AT144: 0 | AU144: 2.699033535 | AV144: 3.277397864 | AW144: 3.855762193 | AX144: 3.855762193 | AY144: 3.855762193 | AZ144: 3.855762193 | BA144: 3.855762193 | BB144: 3.855762193 | BC144: 3.855762193 | BD144: 3.855762193 | BE144: 3.855762193 | BF144: 3.855762193 | BG144: 3.855762193 | BH144: 3.855762193 | BI144: 3.855762193 | BJ144: 3.855762193 | BK144: 3.855762193 | BL144: 3.855762193 | BM144: 3.855762193 | BN144: 3.855762193 | BO144: 3.855762193 | BP144: =BP114 -> 3.855762193 | BQ144: 3.855762193 | BR144: 3.855762193 | BS144: 3.855762193 | BT144: 0 | BU144: 0 | BV144: 0 | BW144: 0 | BX144: 0 | BY144: 0 | BZ144: 0 | CA144: 0 | CB144: 0 | CC144: 0 | CD144: 0 | CE144: 0 | CF144: 0 | CG144: 0
B145: Variable Ad Valorem (B) - Trigger | E145: 800 | F145: gross value of PN USD/ton | AH145: =AH138 -> Net Value per tonne of Nodule (PN) - Revenue-based | AI145: USD/tonne nodule | AJ145: 552.651 | AK145: 552.651 | AL145: 552.651 | AM145: 552.651 | AN145: 552.651 | AO145: 552.651 | AP145: 552.651 | AQ145: 552.651 | AR145: 552.651 | AS145: 552.651 | AT145: 552.651 | AU145: 552.651 | AV145: 552.651 | AW145: 552.651 | AX145: 552.651 | AY145: 552.651 | AZ145: 552.651 | BA145: 552.651 | BB145: 552.651 | BC145: 552.651 | BD145: 552.651 | BE145: 552.651 | BF145: 552.651 | BG145: 552.651 | BH145: 552.651 | BI145: 552.651 | BJ145: 552.651 | BK145: 552.651 | BL145: 552.651 | BM145: 552.651 | BN145: =BN138 -> 552.651 | BO145: 552.651 | BP145: 552.651 | BQ145: 552.651 | BR145: 552.651 | BS145: 552.651 | BT145: 552.651 | BU145: 552.651 | BV145: 552.651 | BW145: 552.651 | BX145: 552.651 | BY145: 552.651 | BZ145: 552.651 | CA145: 552.651 | CB145: 552.651 | CC145: 552.651 | CD145: 552.651 | CE145: 552.651 | CF145: 552.651 | CG145: 552.651
AH146: Net Value | AI146: million USD | AJ146: =AJ145*AJ144 -> 0 | AK146: 0 | AL146: 0 | AM146: 0 | AN146: 0 | AO146: 0 | AP146: 0 | AQ146: 0 | AR146: 0 | AS146: 0 | AT146: 0 | AU146: 1491.623582 | AV146: 1811.257207 | AW146: 2130.890832 | AX146: 2130.890832 | AY146: 2130.890832 | AZ146: 2130.890832 | BA146: 2130.890832 | BB146: 2130.890832 | BC146: 2130.890832 | BD146: 2130.890832 | BE146: 2130.890832 | BF146: 2130.890832 | BG146: 2130.890832 | BH146: 2130.890832 | BI146: 2130.890832 | BJ146: 2130.890832 | BK146: 2130.890832 | BL146: 2130.890832 | BM146: 2130.890832 | BN146: 2130.890832 | BO146: 2130.890832 | BP146: =BP145*BP144 -> 2130.890832 | BQ146: 2130.890832 | BR146: 2130.890832 | BS146: 2130.890832 | BT146: 0 | BU146: 0 | BV146: 0 | BW146: 0 | BX146: 0 | BY146: 0 | BZ146: 0 | CA146: 0 | CB146: 0 | CC146: 0 | CD146: 0 | CE146: 0 | CF146: 0 | CG146: 0
B148: Pre-Tax Profit-Based Royalty - Stage 1 | E148: 0.3 | AH148: Revenues for Collector and Costs for Processor
B149: Pre-Tax Profit-Based Royalty - Stage 2 (additional) | E149: 0 | AH149: Nodule transfer price Calculation | AI149: Year | AJ149: 1 | AK149: 2 | AL149: 3 | AM149: 4 | AN149: 5 | AO149: 6 | AP149: 7 | AQ149: 8 | AR149: 9 | AS149: 10 | AT149: 11 | AU149: 12 | AV149: 13 | AW149: 14 | AX149: 15 | AY149: 16 | AZ149: 17 | BA149: 18 | BB149: 19 | BC149: 20 | BD149: 21 | BE149: 22 | BF149: 23 | BG149: 24 | BH149: 25 | BI149: 26 | BJ149: 27 | BK149: 28 | BL149: 29 | BM149: 30 | BN149: 31 | BO149: 32 | BP149: 33 | BQ149: 34 | BR149: 35 | BS149: 36 | BT149: 37 | BU149: 38 | BV149: 39 | BW149: 40 | BX149: 41 | BY149: 42 | BZ149: 43 | CA149: 44 | CB149: 45 | CC149: 46 | CD149: 47 | CE149: 48 | CF149: 49 | CG149: 50
B150: Pre-Tax Profit-Based Royalty - Stage 2 | E150: =E148+E149 -> 0.3 | AH150: Nodule metals value | AI150: USD/tonne of dry nodules | AJ150: =AJ138 -> 552.651 | AK150: 552.651 | AL150: 552.651 | AM150: 552.651 | AN150: 552.651 | AO150: 552.651 | AP150: 552.651 | AQ150: 552.651 | AR150: 552.651 | AS150: 552.651 | AT150: 552.651 | AU150: 552.651 | AV150: 552.651 | AW150: 552.651 | AX150: 552.651 | AY150: 552.651 | AZ150: 552.651 | BA150: 552.651 | BB150: 552.651 | BC150: 552.651 | BD150: 552.651 | BE150: 552.651 | BF150: 552.651 | BG150: 552.651 | BH150: 552.651 | BI150: 552.651 | BJ150: 552.651 | BK150: 552.651 | BL150: 552.651 | BM150: 552.651 | BN150: 552.651 | BO150: 552.651 | BP150: =BP138 -> 552.651 | BQ150: 552.651 | BR150: 552.651 | BS150: 552.651 | BT150: 552.651 | BU150: 552.651 | BV150: 552.651 | BW150: 552.651 | BX150: 552.651 | BY150: 552.651 | BZ150: 552.651 | CA150: 552.651 | CB150: 552.651 | CC150: 552.651 | CD150: 552.651 | CE150: 552.651 | CF150: 552.651 | CG150: 552.651
AH151: Nodule mass | AI151: dry tonne | AJ151: =AJ113 -> 0 | AK151: 0 | AL151: 0 | AM151: 0 | AN151: 0 | AO151: 0 | AP151: 0 | AQ151: 0 | AR151: 0 | AS151: 0 | AT151: 0 | AU151: 2699033.535 | AV151: 3277397.864 | AW151: 3855762.193 | AX151: 3855762.193 | AY151: 3855762.193 | AZ151: 3855762.193 | BA151: 3855762.193 | BB151: 3855762.193 | BC151: 3855762.193 | BD151: 3855762.193 | BE151: 3855762.193 | BF151: 3855762.193 | BG151: 3855762.193 | BH151: 3855762.193 | BI151: 3855762.193 | BJ151: 3855762.193 | BK151: 3855762.193 | BL151: 3855762.193 | BM151: 3855762.193 | BN151: 3855762.193 | BO151: 3855762.193 | BP151: =BP113 -> 3855762.193 | BQ151: 3855762.193 | BR151: 3855762.193 | BS151: 3855762.193 | BT151: 0 | BU151: 0 | BV151: 0 | BW151: 0 | BX151: 0 | BY151: 0 | BZ151: 0 | CA151: 0 | CB151: 0 | CC151: 0 | CD151: 0 | CE151: 0 | CF151: 0 | CG151: 0
B152: Specific Royalty | E152: 1.5 | F152: cents/lb nodule | AH152: Annual extracted value | AI152: million USD | AJ152: =AJ151*AJ150/1000000 -> 0 | AK152: =AK151*AK150/1000000 -> 0 | AL152: 0 | AM152: 0 | AN152: 0 | AO152: 0 | AP152: 0 | AQ152: 0 | AR152: 0 | AS152: 0 | AT152: =AT151*AT150/1000000 -> 0 | AU152: 1491.623582 | AV152: 1811.257207 | AW152: =AW151*AW150/1000000 -> 2130.890832 | AX152: 2130.890832 | AY152: 2130.890832 | AZ152: 2130.890832 | BA152: 2130.890832 | BB152: 2130.890832 | BC152: 2130.890832 | BD152: 2130.890832 | BE152: 2130.890832 | BF152: 2130.890832 | BG152: 2130.890832 | BH152: 2130.890832 | BI152: 2130.890832 | BJ152: 2130.890832 | BK152: 2130.890832 | BL152: 2130.890832 | BM152: 2130.890832 | BN152: 2130.890832 | BO152: 2130.890832 | BP152: 2130.890832 | BQ152: 2130.890832 | BR152: 2130.890832 | BS152: 2130.890832 | BT152: 0 | BU152: 0 | BV152: 0 | BW152: 0 | BX152: 0 | BY152: 0 | BZ152: 0 | CA152: 0 | CB152: 0 | CC152: 0 | CD152: 0 | CE152: 0 | CF152: 0 | CG152: 0
B154: Blended | AI154: Collector IRR | AJ154: Processor IRR | AK154: Solver result cell (IRR diff) | AL154: Solver Correction Factor | AM154: Total correction | AN154: Nodule average transfer price
C155: Choose baseline scheme | E155: 1 | F155: (0=Specifc / 1=Ad-valorem) | AH155: Ad Valorem IRR | AI155: =AK56 -> 0.1563178073 | AJ155: =AK95 -> 0.1563843684 | AK155: =AI155-AJ155 -> -6.656102531e-05 | AL155: 0.666015625 | AM155: =f_av -> 0.666015625 | AN155: =SUMPRODUCT(AJ163:CG163,$AJ$113:$CG$113)/SUM($AJ$113:$CG$113) -> 368.0742012
AH156: Var. Ad Valorem (A) IRR | AI156: 0.1563982901 | AJ156: 0.1563843684 | AK156: 1.392170051e-05 | AL156: 0.666015625 | AM156: =f_vav -> 0.666015625 | AN156: 368.0742012
E157: Stage 1 | F157: Stage 2 (+) | G157: Eff. Stage 2 | AH157: Var. Ad Valorem (B) IRR | AI157: 0.1649015394 | AJ157: 0.164601888 | AK157: 0.0002996513109 | AL157: 0.650390625 | AM157: =f_vavB -> 0.650390625 | AN157: 359.4390293
B158: Ad Valorem | D158: percentage | E158: ='User Interface'!C19 -> 0.025 | F158: 0 | G158: =F158+E158 -> 0.025 | AH158: Before tax IRR | AI158: 0.1469610271 | AJ158: 0.1472303583 | AK158: -0.0002693311888 | AL158: 0.6826171875 | AM158: =f_bt -> 0.6826171875 | AN158: 377.2490713
B159: Pre-Tax Profit | D159: percentage | E159: 0 | F159: ='User Interface'!D19 -> 0.15 | G159: =F159+E159 -> 0.15 | AH159: Specific IRR | AI159: 0.1537614885 | AJ159: 0.1537325029 | AK159: 2.898558208e-05 | AL159: 0.6708984375 | AM159: =f_sp -> 0.6708984375 | AN159: 370.7726924
B160: Specific | E160: 1.5 | F160: cents/lb nodule | AH160: Blended IRR | AI160: 0.1571215779 | AJ160: 0.1574360676 | AK160: -0.0003144896944 | AL160: 0.6640625 | AM160: =f_bl -> 0.6640625 | AN160: 366.9948047
AI162: Year | AJ162: 1 | AK162: 2 | AL162: 3 | AM162: 4 | AN162: 5 | AO162: 6 | AP162: 7 | AQ162: 8 | AR162: 9 | AS162: 10 | AT162: 11 | AU162: 12 | AV162: 13 | AW162: 14 | AX162: 15 | AY162: 16 | AZ162: 17 | BA162: 18 | BB162: 19 | BC162: 20 | BD162: 21 | BE162: 22 | BF162: 23 | BG162: 24 | BH162: 25 | BI162: 26 | BJ162: 27 | BK162: 28 | BL162: 29 | BM162: 30 | BN162: 31 | BO162: 32 | BP162: 33 | BQ162: 34 | BR162: 35 | BS162: 36 | BT162: 37 | BU162: 38 | BV162: 39 | BW162: 40 | BX162: 41 | BY162: 42 | BZ162: 43 | CA162: 44 | CB162: 45 | CC162: 46 | CD162: 47 | CE162: 48 | CF162: 49 | CG162: 50
AH163: Nodule Transfer Price (Ad Valorem IRR) | AI163: USD/tonne of dry nodules | AJ163: =AJ$150*$AM155 -> 368.0742012 | AK163: 368.0742012 | AL163: 368.0742012 | AM163: 368.0742012 | AN163: 368.0742012 | AO163: 368.0742012 | AP163: 368.0742012 | AQ163: 368.0742012 | AR163: 368.0742012 | AS163: 368.0742012 | AT163: 368.0742012 | AU163: 368.0742012 | AV163: 368.0742012 | AW163: 368.0742012 | AX163: 368.0742012 | AY163: 368.0742012 | AZ163: 368.0742012 | BA163: 368.0742012 | BB163: 368.0742012 | BC163: 368.0742012 | BD163: 368.0742012 | BE163: 368.0742012 | BF163: 368.0742012 | BG163: 368.0742012 | BH163: 368.0742012 | BI163: 368.0742012 | BJ163: 368.0742012 | BK163: 368.0742012 | BL163: 368.0742012 | BM163: 368.0742012 | BN163: 368.0742012 | BO163: 368.0742012 | BP163: =BP$150*$AM155 -> 368.0742012 | BQ163: 368.0742012 | BR163: 368.0742012 | BS163: 368.0742012 | BT163: 368.0742012 | BU163: 368.0742012 | BV163: 368.0742012 | BW163: 368.0742012 | BX163: 368.0742012 | BY163: 368.0742012 | BZ163: 368.0742012 | CA163: 368.0742012 | CB163: 368.0742012 | CC163: 368.0742012 | CD163: 368.0742012 | CE163: 368.0742012 | CF163: 368.0742012 | CG163: 368.0742012
AH164: Nodule Transfer Price (Var. Ad Valorem (A) IRR) | AI164: USD/tonne of dry nodules | AJ164: =AJ$150*$AM156 -> 368.0742012 | AK164: =AK$150*$AM156 -> 368.0742012 | AL164: 368.0742012 | AM164: 368.0742012 | AN164: 368.0742012 | AO164: 368.0742012 | AP164: 368.0742012 | AQ164: 368.0742012 | AR164: 368.0742012 | AS164: 368.0742012 | AT164: 368.0742012 | AU164: 368.0742012 | AV164: 368.0742012 | AW164: 368.0742012 | AX164: 368.0742012 | AY164: 368.0742012 | AZ164: 368.0742012 | BA164: 368.0742012 | BB164: 368.0742012 | BC164: 368.0742012 | BD164: 368.0742012 | BE164: 368.0742012 | BF164: 368.0742012 | BG164: 368.0742012 | BH164: 368.0742012 | BI164: 368.0742012 | BJ164: 368.0742012 | BK164: 368.0742012 | BL164: 368.0742012 | BM164: 368.0742012 | BN164: 368.0742012 | BO164: 368.0742012 | BP164: =BP$150*$AM156 -> 368.0742012 | BQ164: 368.0742012 | BR164: 368.0742012 | BS164: 368.0742012 | BT164: 368.0742012 | BU164: 368.0742012 | BV164: 368.0742012 | BW164: 368.0742012 | BX164: 368.0742012 | BY164: 368.0742012 | BZ164: 368.0742012 | CA164: 368.0742012 | CB164: 368.0742012 | CC164: 368.0742012 | CD164: 368.0742012 | CE164: 368.0742012 | CF164: 368.0742012 | CG164: 368.0742012
AH165: Nodule Transfer Price (Var. Ad Valorem (B) IRR) | AI165: USD/tonne of dry nodules | AJ165: =AJ$150*$AM157 -> 359.4390293 | AK165: =AK$150*$AM157 -> 359.4390293 | AL165: =AL$150*$AM157 -> 359.4390293 | AM165: 359.4390293 | AN165: 359.4390293 | AO165: 359.4390293 | AP165: 359.4390293 | AQ165: 359.4390293 | AR165: 359.4390293 | AS165: 359.4390293 | AT165: 359.4390293 | AU165: 359.4390293 | AV165: 359.4390293 | AW165: 359.4390293 | AX165: 359.4390293 | AY165: 359.4390293 | AZ165: 359.4390293 | BA165: 359.4390293 | BB165: 359.4390293 | BC165: 359.4390293 | BD165: 359.4390293 | BE165: 359.4390293 | BF165: 359.4390293 | BG165: 359.4390293 | BH165: 359.4390293 | BI165: 359.4390293 | BJ165: 359.4390293 | BK165: 359.4390293 | BL165: 359.4390293 | BM165: 359.4390293 | BN165: 359.4390293 | BO165: 359.4390293 | BP165: 359.4390293 | BQ165: 359.4390293 | BR165: 359.4390293 | BS165: 359.4390293 | BT165: 359.4390293 | BU165: 359.4390293 | BV165: 359.4390293 | BW165: 359.4390293 | BX165: 359.4390293 | BY165: 359.4390293 | BZ165: 359.4390293 | CA165: 359.4390293 | CB165: 359.4390293 | CC165: 359.4390293 | CD165: 359.4390293 | CE165: 359.4390293 | CF165: 359.4390293 | CG165: 359.4390293
B166: Additional Royalty (Ad-Valorem - Stage 2) | E166: ='User Interface'!D107 -> 0 | F166: % of (Basket) Revenue | AH166: Nodule Transfer Price (Before tax IRR) | AI166: USD/tonne of dry nodules | AJ166: =AJ$150*$AM158 -> 377.2490713 | AK166: 377.2490713 | AL166: 377.2490713 | AM166: 377.2490713 | AN166: 377.2490713 | AO166: 377.2490713 | AP166: 377.2490713 | AQ166: 377.2490713 | AR166: 377.2490713 | AS166: 377.2490713 | AT166: 377.2490713 | AU166: 377.2490713 | AV166: 377.2490713 | AW166: 377.2490713 | AX166: 377.2490713 | AY166: 377.2490713 | AZ166: 377.2490713 | BA166: 377.2490713 | BB166: 377.2490713 | BC166: 377.2490713 | BD166: 377.2490713 | BE166: 377.2490713 | BF166: 377.2490713 | BG166: 377.2490713 | BH166: 377.2490713 | BI166: 377.2490713 | BJ166: 377.2490713 | BK166: 377.2490713 | BL166: 377.2490713 | BM166: 377.2490713 | BN166: 377.2490713 | BO166: 377.2490713 | BP166: =BP$150*$AM158 -> 377.2490713 | BQ166: 377.2490713 | BR166: 377.2490713 | BS166: 377.2490713 | BT166: 377.2490713 | BU166: 377.2490713 | BV166: 377.2490713 | BW166: 377.2490713 | BX166: 377.2490713 | BY166: 377.2490713 | BZ166: 377.2490713 | CA166: 377.2490713 | CB166: 377.2490713 | CC166: 377.2490713 | CD166: 377.2490713 | CE166: 377.2490713 | CF166: 377.2490713 | CG166: 377.2490713
B167: Fraction Deductible of Sponsored State Tax Rate | E167: 1 | AH167: Nodule Transfer Price (Specific IRR) | AI167: USD/tonne of dry nodules | AJ167: =AJ$150*$AM159 -> 370.7726924 | AK167: 370.7726924 | AL167: 370.7726924 | AM167: 370.7726924 | AN167: 370.7726924 | AO167: 370.7726924 | AP167: 370.7726924 | AQ167: 370.7726924 | AR167: 370.7726924 | AS167: 370.7726924 | AT167: 370.7726924 | AU167: 370.7726924 | AV167: 370.7726924 | AW167: 370.7726924 | AX167: 370.7726924 | AY167: 370.7726924 | AZ167: 370.7726924 | BA167: 370.7726924 | BB167: 370.7726924 | BC167: 370.7726924 | BD167: 370.7726924 | BE167: 370.7726924 | BF167: 370.7726924 | BG167: 370.7726924 | BH167: 370.7726924 | BI167: 370.7726924 | BJ167: 370.7726924 | BK167: 370.7726924 | BL167: 370.7726924 | BM167: 370.7726924 | BN167: 370.7726924 | BO167: 370.7726924 | BP167: =BP$150*$AM159 -> 370.7726924 | BQ167: 370.7726924 | BR167: 370.7726924 | BS167: 370.7726924 | BT167: 370.7726924 | BU167: 370.7726924 | BV167: 370.7726924 | BW167: 370.7726924 | BX167: 370.7726924 | BY167: 370.7726924 | BZ167: 370.7726924 | CA167: 370.7726924 | CB167: 370.7726924 | CC167: 370.7726924 | CD167: 370.7726924 | CE167: 370.7726924 | CF167: 370.7726924 | CG167: 370.7726924
AH168: Nodule Transfer Price (Blended IRR) | AI168: USD/tonne of dry nodules | AJ168: =AJ$150*$AM160 -> 366.9948047 | AK168: 366.9948047 | AL168: 366.9948047 | AM168: 366.9948047 | AN168: 366.9948047 | AO168: 366.9948047 | AP168: 366.9948047 | AQ168: 366.9948047 | AR168: 366.9948047 | AS168: 366.9948047 | AT168: 366.9948047 | AU168: 366.9948047 | AV168: 366.9948047 | AW168: 366.9948047 | AX168: 366.9948047 | AY168: 366.9948047 | AZ168: 366.9948047 | BA168: 366.9948047 | BB168: 366.9948047 | BC168: 366.9948047 | BD168: 366.9948047 | BE168: 366.9948047 | BF168: 366.9948047 | BG168: 366.9948047 | BH168: 366.9948047 | BI168: 366.9948047 | BJ168: 366.9948047 | BK168: 366.9948047 | BL168: 366.9948047 | BM168: 366.9948047 | BN168: 366.9948047 | BO168: 366.9948047 | BP168: =BP$150*$AM160 -> 366.9948047 | BQ168: 366.9948047 | BR168: 366.9948047 | BS168: 366.9948047 | BT168: 366.9948047 | BU168: 366.9948047 | BV168: 366.9948047 | BW168: 366.9948047 | BX168: 366.9948047 | BY168: 366.9948047 | BZ168: 366.9948047 | CA168: 366.9948047 | CB168: 366.9948047 | CC168: 366.9948047 | CD168: 366.9948047 | CE168: 366.9948047 | CF168: 366.9948047 | CG168: 366.9948047
B171: CPI 2022 / CPI 2018 | E171: 1 | AH171: DETAILED CASH FLOWS
F173: igf, contractor, africa, off | AH173: Collector
B174: Equalization Payment Parameters | AH174: COMMON CASH FLOWS
B175: Equalization Payment Type | E175: ='User Interface'!D111 -> 3 | F175: (1 = CCF; 2=PB; 3=MV; 4=none) | AH175: Capital Expenditures | AJ175: 1 | AK175: 2 | AL175: 3 | AM175: 4 | AN175: 5 | AO175: 6 | AP175: 7 | AQ175: 8 | AR175: 9 | AS175: 10 | AT175: 11 | AU175: 12 | AV175: 13 | AW175: 14 | AX175: 15 | AY175: 16 | AZ175: 17 | BA175: 18 | BB175: 19 | BC175: 20 | BD175: 21 | BE175: 22 | BF175: 23 | BG175: 24 | BH175: 25 | BI175: 26 | BJ175: 27 | BK175: 28 | BL175: 29 | BM175: 30 | BN175: 31 | BO175: 32 | BP175: 33 | BQ175: 34 | BR175: 35 | BS175: 36 | BT175: 37 | BU175: 38 | BV175: 39 | BW175: 40 | BX175: 41 | BY175: 42 | BZ175: 43 | CA175: 44 | CB175: 45 | CC175: 46 | CD175: 47 | CE175: 48 | CF175: 49 | CG175: 50
AH176: =B31 -> Pre-Feasibility Phase | AJ176: =IF(AND(AJ105,UPPER(TRIM($J31))="YES"),($R31*$H31)/$Q$14,IF(AJ$175=$H14,$R31*$H$31,0)) -> 3.474361281 | AK176: 3.474361281 | AL176: 3.474361281 | AM176: 3.474361281 | AN176: 3.474361281 | AO176: 3.474361281 | AP176: 0 | AQ176: 0 | AR176: 0 | AS176: 0 | AT176: 0 | AU176: 0 | AV176: 0 | AW176: 0 | AX176: 0 | AY176: 0 | AZ176: 0 | BA176: 0 | BB176: 0 | BC176: 0 | BD176: 0 | BE176: 0 | BF176: 0 | BG176: 0 | BH176: 0 | BI176: 0 | BJ176: 0 | BK176: 0 | BL176: 0 | BM176: 0 | BN176: 0 | BO176: 0 | BP176: =IF(AND(BP105,UPPER(TRIM($J31))="YES"),($R31*$H31)/$Q$14,IF(BP$175=$H14,$R31*$H$31,0)) -> 0 | BQ176: 0 | BR176: 0 | BS176: 0 | BT176: 0 | BU176: 0 | BV176: 0 | BW176: 0 | BX176: 0 | BY176: 0 | BZ176: 0 | CA176: 0 | CB176: 0 | CC176: 0 | CD176: 0 | CE176: 0 | CF176: 0 | CG176: 0
B177: Cumulative Cash-flow (CCF) based equalization rate | E177: ='User Interface'!D112 -> 0.25 | AH177: =B32 -> Feasibility Phase | AJ177: =IF(AND(AJ106,UPPER(TRIM($J32))="YES"),($R32*$H$32)/$Q15,IF(AJ$175=$H15,$R32*$H$32,0)) -> 0 | AK177: 0 | AL177: 0 | AM177: 56.42791921 | AN177: 56.42791921 | AO177: 56.42791921 | AP177: 56.42791921 | AQ177: 0 | AR177: 0 | AS177: 0 | AT177: 0 | AU177: 0 | AV177: 0 | AW177: 0 | AX177: 0 | AY177: 0 | AZ177: 0 | BA177: 0 | BB177: 0 | BC177: 0 | BD177: 0 | BE177: 0 | BF177: 0 | BG177: 0 | BH177: 0 | BI177: 0 | BJ177: 0 | BK177: 0 | BL177: 0 | BM177: 0 | BN177: 0 | BO177: 0 | BP177: =IF(AND(BP106,UPPER(TRIM($J32))="YES"),($R32*$H$32)/$Q15,IF(BP$175=$H15,$R32*$H$32,0)) -> 0 | BQ177: 0 | BR177: 0 | BS177: 0 | BT177: 0 | BU177: 0 | BV177: 0 | BW177: 0 | BX177: 0 | BY177: 0 | BZ177: 0 | CA177: 0 | CB177: 0 | CC177: 0 | CD177: 0 | CE177: 0 | CF177: 0 | CG177: 0
B178: Uplift of Accumulated Negative Net Revenues | E178: ='User Interface'!$D$113 -> 0 | AH178: =B33 -> Design & Build - Collection System | AJ178: =IF(AND(AJ107,UPPER(TRIM($J33))="YES"),($R33*$H$33)/$Q17,IF(AJ$175=$H17,$R33*$H$33,0)) -> 0 | AK178: 0 | AL178: 0 | AM178: 0 | AN178: 0 | AO178: 0 | AP178: 0 | AQ178: 208.7341921 | AR178: 208.7341921 | AS178: 208.7341921 | AT178: 208.7341921 | AU178: 0 | AV178: 0 | AW178: 0 | AX178: 0 | AY178: 0 | AZ178: 0 | BA178: 0 | BB178: 0 | BC178: 0 | BD178: 0 | BE178: 0 | BF178: 0 | BG178: 0 | BH178: 0 | BI178: 0 | BJ178: 0 | BK178: 0 | BL178: 0 | BM178: 0 | BN178: 0 | BO178: 0 | BP178: =IF(AND(BP107,UPPER(TRIM($J33))="YES"),($R33*$H$33)/$Q17,IF(BP$175=$H17,$R33*$H$33,0)) -> 0 | BQ178: 0 | BR178: 0 | BS178: 0 | BT178: 0 | BU178: 0 | BV178: 0 | BW178: 0 | BX178: 0 | BY178: 0 | BZ178: 0 | CA178: 0 | CB178: 0 | CC178: 0 | CD178: 0 | CE178: 0 | CF178: 0 | CG178: 0
B179: Minimum profit-based (PB) tax rate | E179: ='User Interface'!D114 -> 0.25 | AH179: =B34 -> Design & Build - Surface Vessels | AJ179: =IF(AND(AJ107,UPPER(TRIM($J34))="YES"),($R34*$H$34)/$Q17,IF(AJ$175=$H17,$R34*$H$34,0)) -> 0 | AK179: 0 | AL179: 0 | AM179: 0 | AN179: 0 | AO179: 0 | AP179: 0 | AQ179: 312.42 | AR179: 312.42 | AS179: 312.42 | AT179: 312.42 | AU179: 0 | AV179: 0 | AW179: 0 | AX179: 0 | AY179: 0 | AZ179: 0 | BA179: 0 | BB179: 0 | BC179: 0 | BD179: 0 | BE179: 0 | BF179: 0 | BG179: 0 | BH179: 0 | BI179: 0 | BJ179: 0 | BK179: 0 | BL179: 0 | BM179: 0 | BN179: 0 | BO179: 0 | BP179: =IF(AND(BP107,UPPER(TRIM($J34))="YES"),($R34*$H$34)/$Q17,IF(BP$175=$H17,$R34*$H$34,0)) -> 0 | BQ179: 0 | BR179: 0 | BS179: 0 | BT179: 0 | BU179: 0 | BV179: 0 | BW179: 0 | BX179: 0 | BY179: 0 | BZ179: 0 | CA179: 0 | CB179: 0 | CC179: 0 | CD179: 0 | CE179: 0 | CF179: 0 | CG179: 0
AH180: Operations (Maintenance, etc) | AJ180: =IF(SUM(AJ108:AJ109)=0,0,IF($W$40,NOT(MOD(SUM($AJ$108:AJ109),$W$40)),0)*$R$40*$I$40+IF($W$41,NOT(MOD(SUM($AJ$108:AJ109),$W$41)),0)*$R$41*$I$41+IF($W$42,NOT(MOD(SUM($AJ$108:AJ109),$W$42)),0)*$R$42*$I$42+IF($W$43,NOT(MOD(SUM($AJ$108:AJ109),$W$43)),0)*$R$43*$I$43+IF($W$44,NOT(MOD(SUM($AJ$108:AJ109),$W$44)),0)*$R$44*$I$44) -> 0 | AK180: =IF(SUM(AK108:AK109)=0,0,IF($W$40,NOT(MOD(SUM($AJ$108:AK109),$W$40)),0)*$R$40*$I$40+IF($W$41,NOT(MOD(SUM($AJ$108:AK109),$W$41)),0)*$R$41*$I$41+IF($W$42,NOT(MOD(SUM($AJ$108:AK109),$W$42)),0)*$R$42*$I$42+IF($W$43,NOT(MOD(SUM($AJ$108:AK109),$W$43)),0)*$R$43*$I$43+IF($W$44,NOT(MOD(SUM($AJ$108:AK109),$W$44)),0)*$R$44*$I$44) -> 0 | AL180: =IF(SUM(AL108:AL109)=0,0,IF($W$40,NOT(MOD(SUM($AJ$108:AL109),$W$40)),0)*$R$40*$I$40+IF($W$41,NOT(MOD(SUM($AJ$108:AL109),$W$41)),0)*$R$41*$I$41+IF($W$42,NOT(MOD(SUM($AJ$108:AL109),$W$42)),0)*$R$42*$I$42+IF($W$43,NOT(MOD(SUM($AJ$108:AL109),$W$43)),0)*$R$43*$I$43+IF($W$44,NOT(MOD(SUM($AJ$108:AL109),$W$44)),0)*$R$44*$I$44) -> 0 | AM180: =IF(SUM(AM108:AM109)=0,0,IF($W$40,NOT(MOD(SUM($AJ$108:AM109),$W$40)),0)*$R$40*$I$40+IF($W$41,NOT(MOD(SUM($AJ$108:AM109),$W$41)),0)*$R$41*$I$41+IF($W$42,NOT(MOD(SUM($AJ$108:AM109),$W$42)),0)*$R$42*$I$42+IF($W$43,NOT(MOD(SUM($AJ$108:AM109),$W$43)),0)*$R$43*$I$43+IF($W$44,NOT(MOD(SUM($AJ$108:AM109),$W$44)),0)*$R$44*$I$44) -> 0 | AN180: =IF(SUM(AN108:AN109)=0,0,IF($W$40,NOT(MOD(SUM($AJ$108:AN109),$W$40)),0)*$R$40*$I$40+IF($W$41,NOT(MOD(SUM($AJ$108:AN109),$W$41)),0)*$R$41*$I$41+IF($W$42,NOT(MOD(SUM($AJ$108:AN109),$W$42)),0)*$R$42*$I$42+IF($W$43,NOT(MOD(SUM($AJ$108:AN109),$W$43)),0)*$R$43*$I$43+IF($W$44,NOT(MOD(SUM($AJ$108:AN109),$W$44)),0)*$R$44*$I$44) -> 0 | AO180: =IF(SUM(AO108:AO109)=0,0,IF($W$40,NOT(MOD(SUM($AJ$108:AO109),$W$40)),0)*$R$40*$I$40+IF($W$41,NOT(MOD(SUM($AJ$108:AO109),$W$41)),0)*$R$41*$I$41+IF($W$42,NOT(MOD(SUM($AJ$108:AO109),$W$42)),0)*$R$42*$I$42+IF($W$43,NOT(MOD(SUM($AJ$108:AO109),$W$43)),0)*$R$43*$I$43+IF($W$44,NOT(MOD(SUM($AJ$108:AO109),$W$44)),0)*$R$44*$I$44) -> 0 | AP180: =IF(SUM(AP108:AP109)=0,0,IF($W$40,NOT(MOD(SUM($AJ$108:AP109),$W$40)),0)*$R$40*$I$40+IF($W$41,NOT(MOD(SUM($AJ$108:AP109),$W$41)),0)*$R$41*$I$41+IF($W$42,NOT(MOD(SUM($AJ$108:AP109),$W$42)),0)*$R$42*$I$42+IF($W$43,NOT(MOD(SUM($AJ$108:AP109),$W$43)),0)*$R$43*$I$43+IF($W$44,NOT(MOD(SUM($AJ$108:AP109),$W$44)),0)*$R$44*$I$44) -> 0 | AQ180: =IF(SUM(AQ108:AQ109)=0,0,IF($W$40,NOT(MOD(SUM($AJ$108:AQ109),$W$40)),0)*$R$40*$I$40+IF($W$41,NOT(MOD(SUM($AJ$108:AQ109),$W$41)),0)*$R$41*$I$41+IF($W$42,NOT(MOD(SUM($AJ$108:AQ109),$W$42)),0)*$R$42*$I$42+IF($W$43,NOT(MOD(SUM($AJ$108:AQ109),$W$43)),0)*$R$43*$I$43+IF($W$44,NOT(MOD(SUM($AJ$108:AQ109),$W$44)),0)*$R$44*$I$44) -> 0 | AR180: =IF(SUM(AR108:AR109)=0,0,IF($W$40,NOT(MOD(SUM($AJ$108:AR109),$W$40)),0)*$R$40*$I$40+IF($W$41,NOT(MOD(SUM($AJ$108:AR109),$W$41)),0)*$R$41*$I$41+IF($W$42,NOT(MOD(SUM($AJ$108:AR109),$W$42)),0)*$R$42*$I$42+IF($W$43,NOT(MOD(SUM($AJ$108:AR109),$W$43)),0)*$R$43*$I$43+IF($W$44,NOT(MOD(SUM($AJ$108:AR109),$W$44)),0)*$R$44*$I$44) -> 0 | AS180: =IF(SUM(AS108:AS109)=0,0,IF($W$40,NOT(MOD(SUM($AJ$108:AS109),$W$40)),0)*$R$40*$I$40+IF($W$41,NOT(MOD(SUM($AJ$108:AS109),$W$41)),0)*$R$41*$I$41+IF($W$42,NOT(MOD(SUM($AJ$108:AS109),$W$42)),0)*$R$42*$I$42+IF($W$43,NOT(MOD(SUM($AJ$108:AS109),$W$43)),0)*$R$43*$I$43+IF($W$44,NOT(MOD(SUM($AJ$108:AS109),$W$44)),0)*$R$44*$I$44) -> 0 | AT180: =IF(SUM(AT108:AT109)=0,0,IF($W$40,NOT(MOD(SUM($AJ$108:AT109),$W$40)),0)*$R$40*$I$40+IF($W$41,NOT(MOD(SUM($AJ$108:AT109),$W$41)),0)*$R$41*$I$41+IF($W$42,NOT(MOD(SUM($AJ$108:AT109),$W$42)),0)*$R$42*$I$42+IF($W$43,NOT(MOD(SUM($AJ$108:AT109),$W$43)),0)*$R$43*$I$43+IF($W$44,NOT(MOD(SUM($AJ$108:AT109),$W$44)),0)*$R$44*$I$44) -> 0 | AU180: =IF(SUM(AU108:AU109)=0,0,IF($W$40,NOT(MOD(SUM($AJ$108:AU109),$W$40)),0)*$R$40*$I$40+IF($W$41,NOT(MOD(SUM($AJ$108:AU109),$W$41)),0)*$R$41*$I$41+IF($W$42,NOT(MOD(SUM($AJ$108:AU109),$W$42)),0)*$R$42*$I$42+IF($W$43,NOT(MOD(SUM($AJ$108:AU109),$W$43)),0)*$R$43*$I$43+IF($W$44,NOT(MOD(SUM($AJ$108:AU109),$W$44)),0)*$R$44*$I$44) -> 0 | AV180: =IF(SUM(AV108:AV109)=0,0,IF($W$40,NOT(MOD(SUM($AJ$108:AV109),$W$40)),0)*$R$40*$I$40+IF($W$41,NOT(MOD(SUM($AJ$108:AV109),$W$41)),0)*$R$41*$I$41+IF($W$42,NOT(MOD(SUM($AJ$108:AV109),$W$42)),0)*$R$42*$I$42+IF($W$43,NOT(MOD(SUM($AJ$108:AV109),$W$43)),0)*$R$43*$I$43+IF($W$44,NOT(MOD(SUM($AJ$108:AV109),$W$44)),0)*$R$44*$I$44) -> 49.2 | AW180: =IF(SUM(AW108:AW109)=0,0,IF($W$40,NOT(MOD(SUM($AJ$108:AW109),$W$40)),0)*$R$40*$I$40+IF($W$41,NOT(MOD(SUM($AJ$108:AW109),$W$41)),0)*$R$41*$I$41+IF($W$42,NOT(MOD(SUM($AJ$108:AW109),$W$42)),0)*$R$42*$I$42+IF($W$43,NOT(MOD(SUM($AJ$108:AW109),$W$43)),0)*$R$43*$I$43+IF($W$44,NOT(MOD(SUM($AJ$108:AW109),$W$44)),0)*$R$44*$I$44) -> 0 | AX180: =IF(SUM(AX108:AX109)=0,0,IF($W$40,NOT(MOD(SUM($AJ$108:AX109),$W$40)),0)*$R$40*$I$40+IF($W$41,NOT(MOD(SUM($AJ$108:AX109),$W$41)),0)*$R$41*$I$41+IF($W$42,NOT(MOD(SUM($AJ$108:AX109),$W$42)),0)*$R$42*$I$42+IF($W$43,NOT(MOD(SUM($AJ$108:AX109),$W$43)),0)*$R$43*$I$43+IF($W$44,NOT(MOD(SUM($AJ$108:AX109),$W$44)),0)*$R$44*$I$44) -> 49.2 | AY180: =IF(SUM(AY108:AY109)=0,0,IF($W$40,NOT(MOD(SUM($AJ$108:AY109),$W$40)),0)*$R$40*$I$40+IF($W$41,NOT(MOD(SUM($AJ$108:AY109),$W$41)),0)*$R$41*$I$41+IF($W$42,NOT(MOD(SUM($AJ$108:AY109),$W$42)),0)*$R$42*$I$42+IF($W$43,NOT(MOD(SUM($AJ$108:AY109),$W$43)),0)*$R$43*$I$43+IF($W$44,NOT(MOD(SUM($AJ$108:AY109),$W$44)),0)*$R$44*$I$44) -> 57.81 | AZ180: =IF(SUM(AZ108:AZ109)=0,0,IF($W$40,NOT(MOD(SUM($AJ$108:AZ109),$W$40)),0)*$R$40*$I$40+IF($W$41,NOT(MOD(SUM($AJ$108:AZ109),$W$41)),0)*$R$41*$I$41+IF($W$42,NOT(MOD(SUM($AJ$108:AZ109),$W$42)),0)*$R$42*$I$42+IF($W$43,NOT(MOD(SUM($AJ$108:AZ109),$W$43)),0)*$R$43*$I$43+IF($W$44,NOT(MOD(SUM($AJ$108:AZ109),$W$44)),0)*$R$44*$I$44) -> 49.2 | BA180: =IF(SUM(BA108:BA109)=0,0,IF($W$40,NOT(MOD(SUM($AJ$108:BA109),$W$40)),0)*$R$40*$I$40+IF($W$41,NOT(MOD(SUM($AJ$108:BA109),$W$41)),0)*$R$41*$I$41+IF($W$42,NOT(MOD(SUM($AJ$108:BA109),$W$42)),0)*$R$42*$I$42+IF($W$43,NOT(MOD(SUM($AJ$108:BA109),$W$43)),0)*$R$43*$I$43+IF($W$44,NOT(MOD(SUM($AJ$108:BA109),$W$44)),0)*$R$44*$I$44) -> 0 | BB180: =IF(SUM(BB108:BB109)=0,0,IF($W$40,NOT(MOD(SUM($AJ$108:BB109),$W$40)),0)*$R$40*$I$40+IF($W$41,NOT(MOD(SUM($AJ$108:BB109),$W$41)),0)*$R$41*$I$41+IF($W$42,NOT(MOD(SUM($AJ$108:BB109),$W$42)),0)*$R$42*$I$42+IF($W$43,NOT(MOD(SUM($AJ$108:BB109),$W$43)),0)*$R$43*$I$43+IF($W$44,NOT(MOD(SUM($AJ$108:BB109),$W$44)),0)*$R$44*$I$44) -> 49.2 | BC180: =IF(SUM(BC108:BC109)=0,0,IF($W$40,NOT(MOD(SUM($AJ$108:BC109),$W$40)),0)*$R$40*$I$40+IF($W$41,NOT(MOD(SUM($AJ$108:BC109),$W$41)),0)*$R$41*$I$41+IF($W$42,NOT(MOD(SUM($AJ$108:BC109),$W$42)),0)*$R$42*$I$42+IF($W$43,NOT(MOD(SUM($AJ$108:BC109),$W$43)),0)*$R$43*$I$43+IF($W$44,NOT(MOD(SUM($AJ$108:BC109),$W$44)),0)*$R$44*$I$44) -> 0 | BD180: =IF(SUM(BD108:BD109)=0,0,IF($W$40,NOT(MOD(SUM($AJ$108:BD109),$W$40)),0)*$R$40*$I$40+IF($W$41,NOT(MOD(SUM($AJ$108:BD109),$W$41)),0)*$R$41*$I$41+IF($W$42,NOT(MOD(SUM($AJ$108:BD109),$W$42)),0)*$R$42*$I$42+IF($W$43,NOT(MOD(SUM($AJ$108:BD109),$W$43)),0)*$R$43*$I$43+IF($W$44,NOT(MOD(SUM($AJ$108:BD109),$W$44)),0)*$R$44*$I$44) -> 107.01 | BE180: =IF(SUM(BE108:BE109)=0,0,IF($W$40,NOT(MOD(SUM($AJ$108:BE109),$W$40)),0)*$R$40*$I$40+IF($W$41,NOT(MOD(SUM($AJ$108:BE109),$W$41)),0)*$R$41*$I$41+IF($W$42,NOT(MOD(SUM($AJ$108:BE109),$W$42)),0)*$R$42*$I$42+IF($W$43,NOT(MOD(SUM($AJ$108:BE109),$W$43)),0)*$R$43*$I$43+IF($W$44,NOT(MOD(SUM($AJ$108:BE109),$W$44)),0)*$R$44*$I$44) -> 0 | BF180: =IF(SUM(BF108:BF109)=0,0,IF($W$40,NOT(MOD(SUM($AJ$108:BF109),$W$40)),0)*$R$40*$I$40+IF($W$41,NOT(MOD(SUM($AJ$108:BF109),$W$41)),0)*$R$41*$I$41+IF($W$42,NOT(MOD(SUM($AJ$108:BF109),$W$42)),0)*$R$42*$I$42+IF($W$43,NOT(MOD(SUM($AJ$108:BF109),$W$43)),0)*$R$43*$I$43+IF($W$44,NOT(MOD(SUM($AJ$108:BF109),$W$44)),0)*$R$44*$I$44) -> 49.2 | BG180: =IF(SUM(BG108:BG109)=0,0,IF($W$40,NOT(MOD(SUM($AJ$108:BG109),$W$40)),0)*$R$40*$I$40+IF($W$41,NOT(MOD(SUM($AJ$108:BG109),$W$41)),0)*$R$41*$I$41+IF($W$42,NOT(MOD(SUM($AJ$108:BG109),$W$42)),0)*$R$42*$I$42+IF($W$43,NOT(MOD(SUM($AJ$108:BG109),$W$43)),0)*$R$43*$I$43+IF($W$44,NOT(MOD(SUM($AJ$108:BG109),$W$44)),0)*$R$44*$I$44) -> 0 | BH180: =IF(SUM(BH108:BH109)=0,0,IF($W$40,NOT(MOD(SUM($AJ$108:BH109),$W$40)),0)*$R$40*$I$40+IF($W$41,NOT(MOD(SUM($AJ$108:BH109),$W$41)),0)*$R$41*$I$41+IF($W$42,NOT(MOD(SUM($AJ$108:BH109),$W$42)),0)*$R$42*$I$42+IF($W$43,NOT(MOD(SUM($AJ$108:BH109),$W$43)),0)*$R$43*$I$43+IF($W$44,NOT(MOD(SUM($AJ$108:BH109),$W$44)),0)*$R$44*$I$44) -> 49.2 | BI180: =IF(SUM(BI108:BI109)=0,0,IF($W$40,NOT(MOD(SUM($AJ$108:BI109),$W$40)),0)*$R$40*$I$40+IF($W$41,NOT(MOD(SUM($AJ$108:BI109),$W$41)),0)*$R$41*$I$41+IF($W$42,NOT(MOD(SUM($AJ$108:BI109),$W$42)),0)*$R$42*$I$42+IF($W$43,NOT(MOD(SUM($AJ$108:BI109),$W$43)),0)*$R$43*$I$43+IF($W$44,NOT(MOD(SUM($AJ$108:BI109),$W$44)),0)*$R$44*$I$44) -> 57.81 | BJ180: =IF(SUM(BJ108:BJ109)=0,0,IF($W$40,NOT(MOD(SUM($AJ$108:BJ109),$W$40)),0)*$R$40*$I$40+IF($W$41,NOT(MOD(SUM($AJ$108:BJ109),$W$41)),0)*$R$41*$I$41+IF($W$42,NOT(MOD(SUM($AJ$108:BJ109),$W$42)),0)*$R$42*$I$42+IF($W$43,NOT(MOD(SUM($AJ$108:BJ109),$W$43)),0)*$R$43*$I$43+IF($W$44,NOT(MOD(SUM($AJ$108:BJ109),$W$44)),0)*$R$44*$I$44) -> 49.2 | BK180: =IF(SUM(BK108:BK109)=0,0,IF($W$40,NOT(MOD(SUM($AJ$108:BK109),$W$40)),0)*$R$40*$I$40+IF($W$41,NOT(MOD(SUM($AJ$108:BK109),$W$41)),0)*$R$41*$I$41+IF($W$42,NOT(MOD(SUM($AJ$108:BK109),$W$42)),0)*$R$42*$I$42+IF($W$43,NOT(MOD(SUM($AJ$108:BK109),$W$43)),0)*$R$43*$I$43+IF($W$44,NOT(MOD(SUM($AJ$108:BK109),$W$44)),0)*$R$44*$I$44) -> 0 | BL180: =IF(SUM(BL108:BL109)=0,0,IF($W$40,NOT(MOD(SUM($AJ$108:BL109),$W$40)),0)*$R$40*$I$40+IF($W$41,NOT(MOD(SUM($AJ$108:BL109),$W$41)),0)*$R$41*$I$41+IF($W$42,NOT(MOD(SUM($AJ$108:BL109),$W$42)),0)*$R$42*$I$42+IF($W$43,NOT(MOD(SUM($AJ$108:BL109),$W$43)),0)*$R$43*$I$43+IF($W$44,NOT(MOD(SUM($AJ$108:BL109),$W$44)),0)*$R$44*$I$44) -> 49.2 | BM180: =IF(SUM(BM108:BM109)=0,0,IF($W$40,NOT(MOD(SUM($AJ$108:BM109),$W$40)),0)*$R$40*$I$40+IF($W$41,NOT(MOD(SUM($AJ$108:BM109),$W$41)),0)*$R$41*$I$41+IF($W$42,NOT(MOD(SUM($AJ$108:BM109),$W$42)),0)*$R$42*$I$42+IF($W$43,NOT(MOD(SUM($AJ$108:BM109),$W$43)),0)*$R$43*$I$43+IF($W$44,NOT(MOD(SUM($AJ$108:BM109),$W$44)),0)*$R$44*$I$44) -> 0 | BN180: =IF(SUM(BN108:BN109)=0,0,IF($W$40,NOT(MOD(SUM($AJ$108:BN109),$W$40)),0)*$R$40*$I$40+IF($W$41,NOT(MOD(SUM($AJ$108:BN109),$W$41)),0)*$R$41*$I$41+IF($W$42,NOT(MOD(SUM($AJ$108:BN109),$W$42)),0)*$R$42*$I$42+IF($W$43,NOT(MOD(SUM($AJ$108:BN109),$W$43)),0)*$R$43*$I$43+IF($W$44,NOT(MOD(SUM($AJ$108:BN109),$W$44)),0)*$R$44*$I$44) -> 107.01 | BO180: =IF(SUM(BO108:BO109)=0,0,IF($W$40,NOT(MOD(SUM($AJ$108:BO109),$W$40)),0)*$R$40*$I$40+IF($W$41,NOT(MOD(SUM($AJ$108:BO109),$W$41)),0)*$R$41*$I$41+IF($W$42,NOT(MOD(SUM($AJ$108:BO109),$W$42)),0)*$R$42*$I$42+IF($W$43,NOT(MOD(SUM($AJ$108:BO109),$W$43)),0)*$R$43*$I$43+IF($W$44,NOT(MOD(SUM($AJ$108:BO109),$W$44)),0)*$R$44*$I$44) -> 0 | BP180: =IF(SUM(BP108:BP109)=0,0,IF($W$40,NOT(MOD(SUM($AJ$108:BP109),$W$40)),0)*$R$40*$I$40+IF($W$41,NOT(MOD(SUM($AJ$108:BP109),$W$41)),0)*$R$41*$I$41+IF($W$42,NOT(MOD(SUM($AJ$108:BP109),$W$42)),0)*$R$42*$I$42+IF($W$43,NOT(MOD(SUM($AJ$108:BP109),$W$43)),0)*$R$43*$I$43+IF($W$44,NOT(MOD(SUM($AJ$108:BP109),$W$44)),0)*$R$44*$I$44) -> 49.2 | BQ180: =IF(SUM(BQ108:BQ109)=0,0,IF($W$40,NOT(MOD(SUM($AJ$108:BQ109),$W$40)),0)*$R$40*$I$40+IF($W$41,NOT(MOD(SUM($AJ$108:BQ109),$W$41)),0)*$R$41*$I$41+IF($W$42,NOT(MOD(SUM($AJ$108:BQ109),$W$42)),0)*$R$42*$I$42+IF($W$43,NOT(MOD(SUM($AJ$108:BQ109),$W$43)),0)*$R$43*$I$43+IF($W$44,NOT(MOD(SUM($AJ$108:BQ109),$W$44)),0)*$R$44*$I$44) -> 0 | BR180: =IF(SUM(BR108:BR109)=0,0,IF($W$40,NOT(MOD(SUM($AJ$108:BR109),$W$40)),0)*$R$40*$I$40+IF($W$41,NOT(MOD(SUM($AJ$108:BR109),$W$41)),0)*$R$41*$I$41+IF($W$42,NOT(MOD(SUM($AJ$108:BR109),$W$42)),0)*$R$42*$I$42+IF($W$43,NOT(MOD(SUM($AJ$108:BR109),$W$43)),0)*$R$43*$I$43+IF($W$44,NOT(MOD(SUM($AJ$108:BR109),$W$44)),0)*$R$44*$I$44) -> 49.2 | BS180: =IF(SUM(BS108:BS109)=0,0,IF($W$40,NOT(MOD(SUM($AJ$108:BS109),$W$40)),0)*$R$40*$I$40+IF($W$41,NOT(MOD(SUM($AJ$108:BS109),$W$41)),0)*$R$41*$I$41+IF($W$42,NOT(MOD(SUM($AJ$108:BS109),$W$42)),0)*$R$42*$I$42+IF($W$43,NOT(MOD(SUM($AJ$108:BS109),$W$43)),0)*$R$43*$I$43+IF($W$44,NOT(MOD(SUM($AJ$108:BS109),$W$44)),0)*$R$44*$I$44) -> 57.81 | BT180: =IF(SUM(BT108:BT109)=0,0,IF($W$40,NOT(MOD(SUM($AJ$108:BT109),$W$40)),0)*$R$40*$I$40+IF($W$41,NOT(MOD(SUM($AJ$108:BT109),$W$41)),0)*$R$41*$I$41+IF($W$42,NOT(MOD(SUM($AJ$108:BT109),$W$42)),0)*$R$42*$I$42+IF($W$43,NOT(MOD(SUM($AJ$108:BT109),$W$43)),0)*$R$43*$I$43+IF($W$44,NOT(MOD(SUM($AJ$108:BT109),$W$44)),0)*$R$44*$I$44) -> 0 | BU180: =IF(SUM(BU108:BU109)=0,0,IF($W$40,NOT(MOD(SUM($AJ$108:BU109),$W$40)),0)*$R$40*$I$40+IF($W$41,NOT(MOD(SUM($AJ$108:BU109),$W$41)),0)*$R$41*$I$41+IF($W$42,NOT(MOD(SUM($AJ$108:BU109),$W$42)),0)*$R$42*$I$42+IF($W$43,NOT(MOD(SUM($AJ$108:BU109),$W$43)),0)*$R$43*$I$43+IF($W$44,NOT(MOD(SUM($AJ$108:BU109),$W$44)),0)*$R$44*$I$44) -> 0 | BV180: =IF(SUM(BV108:BV109)=0,0,IF($W$40,NOT(MOD(SUM($AJ$108:BV109),$W$40)),0)*$R$40*$I$40+IF($W$41,NOT(MOD(SUM($AJ$108:BV109),$W$41)),0)*$R$41*$I$41+IF($W$42,NOT(MOD(SUM($AJ$108:BV109),$W$42)),0)*$R$42*$I$42+IF($W$43,NOT(MOD(SUM($AJ$108:BV109),$W$43)),0)*$R$43*$I$43+IF($W$44,NOT(MOD(SUM($AJ$108:BV109),$W$44)),0)*$R$44*$I$44) -> 0 | BW180: =IF(SUM(BW108:BW109)=0,0,IF($W$40,NOT(MOD(SUM($AJ$108:BW109),$W$40)),0)*$R$40*$I$40+IF($W$41,NOT(MOD(SUM($AJ$108:BW109),$W$41)),0)*$R$41*$I$41+IF($W$42,NOT(MOD(SUM($AJ$108:BW109),$W$42)),0)*$R$42*$I$42+IF($W$43,NOT(MOD(SUM($AJ$108:BW109),$W$43)),0)*$R$43*$I$43+IF($W$44,NOT(MOD(SUM($AJ$108:BW109),$W$44)),0)*$R$44*$I$44) -> 0 | BX180: =IF(SUM(BX108:BX109)=0,0,IF($W$40,NOT(MOD(SUM($AJ$108:BX109),$W$40)),0)*$R$40*$I$40+IF($W$41,NOT(MOD(SUM($AJ$108:BX109),$W$41)),0)*$R$41*$I$41+IF($W$42,NOT(MOD(SUM($AJ$108:BX109),$W$42)),0)*$R$42*$I$42+IF($W$43,NOT(MOD(SUM($AJ$108:BX109),$W$43)),0)*$R$43*$I$43+IF($W$44,NOT(MOD(SUM($AJ$108:BX109),$W$44)),0)*$R$44*$I$44) -> 0 | BY180: =IF(SUM(BY108:BY109)=0,0,IF($W$40,NOT(MOD(SUM($AJ$108:BY109),$W$40)),0)*$R$40*$I$40+IF($W$41,NOT(MOD(SUM($AJ$108:BY109),$W$41)),0)*$R$41*$I$41+IF($W$42,NOT(MOD(SUM($AJ$108:BY109),$W$42)),0)*$R$42*$I$42+IF($W$43,NOT(MOD(SUM($AJ$108:BY109),$W$43)),0)*$R$43*$I$43+IF($W$44,NOT(MOD(SUM($AJ$108:BY109),$W$44)),0)*$R$44*$I$44) -> 0 | BZ180: =IF(SUM(BZ108:BZ109)=0,0,IF($W$40,NOT(MOD(SUM($AJ$108:BZ109),$W$40)),0)*$R$40*$I$40+IF($W$41,NOT(MOD(SUM($AJ$108:BZ109),$W$41)),0)*$R$41*$I$41+IF($W$42,NOT(MOD(SUM($AJ$108:BZ109),$W$42)),0)*$R$42*$I$42+IF($W$43,NOT(MOD(SUM($AJ$108:BZ109),$W$43)),0)*$R$43*$I$43+IF($W$44,NOT(MOD(SUM($AJ$108:BZ109),$W$44)),0)*$R$44*$I$44) -> 0 | CA180: =IF(SUM(CA108:CA109)=0,0,IF($W$40,NOT(MOD(SUM($AJ$108:CA109),$W$40)),0)*$R$40*$I$40+IF($W$41,NOT(MOD(SUM($AJ$108:CA109),$W$41)),0)*$R$41*$I$41+IF($W$42,NOT(MOD(SUM($AJ$108:CA109),$W$42)),0)*$R$42*$I$42+IF($W$43,NOT(MOD(SUM($AJ$108:CA109),$W$43)),0)*$R$43*$I$43+IF($W$44,NOT(MOD(SUM($AJ$108:CA109),$W$44)),0)*$R$44*$I$44) -> 0 | CB180: =IF(SUM(CB108:CB109)=0,0,IF($W$40,NOT(MOD(SUM($AJ$108:CB109),$W$40)),0)*$R$40*$I$40+IF($W$41,NOT(MOD(SUM($AJ$108:CB109),$W$41)),0)*$R$41*$I$41+IF($W$42,NOT(MOD(SUM($AJ$108:CB109),$W$42)),0)*$R$42*$I$42+IF($W$43,NOT(MOD(SUM($AJ$108:CB109),$W$43)),0)*$R$43*$I$43+IF($W$44,NOT(MOD(SUM($AJ$108:CB109),$W$44)),0)*$R$44*$I$44) -> 0 | CC180: =IF(SUM(CC108:CC109)=0,0,IF($W$40,NOT(MOD(SUM($AJ$108:CC109),$W$40)),0)*$R$40*$I$40+IF($W$41,NOT(MOD(SUM($AJ$108:CC109),$W$41)),0)*$R$41*$I$41+IF($W$42,NOT(MOD(SUM($AJ$108:CC109),$W$42)),0)*$R$42*$I$42+IF($W$43,NOT(MOD(SUM($AJ$108:CC109),$W$43)),0)*$R$43*$I$43+IF($W$44,NOT(MOD(SUM($AJ$108:CC109),$W$44)),0)*$R$44*$I$44) -> 0 | CD180: =IF(SUM(CD108:CD109)=0,0,IF($W$40,NOT(MOD(SUM($AJ$108:CD109),$W$40)),0)*$R$40*$I$40+IF($W$41,NOT(MOD(SUM($AJ$108:CD109),$W$41)),0)*$R$41*$I$41+IF($W$42,NOT(MOD(SUM($AJ$108:CD109),$W$42)),0)*$R$42*$I$42+IF($W$43,NOT(MOD(SUM($AJ$108:CD109),$W$43)),0)*$R$43*$I$43+IF($W$44,NOT(MOD(SUM($AJ$108:CD109),$W$44)),0)*$R$44*$I$44) -> 0 | CE180: =IF(SUM(CE108:CE109)=0,0,IF($W$40,NOT(MOD(SUM($AJ$108:CE109),$W$40)),0)*$R$40*$I$40+IF($W$41,NOT(MOD(SUM($AJ$108:CE109),$W$41)),0)*$R$41*$I$41+IF($W$42,NOT(MOD(SUM($AJ$108:CE109),$W$42)),0)*$R$42*$I$42+IF($W$43,NOT(MOD(SUM($AJ$108:CE109),$W$43)),0)*$R$43*$I$43+IF($W$44,NOT(MOD(SUM($AJ$108:CE109),$W$44)),0)*$R$44*$I$44) -> 0 | CF180: =IF(SUM(CF108:CF109)=0,0,IF($W$40,NOT(MOD(SUM($AJ$108:CF109),$W$40)),0)*$R$40*$I$40+IF($W$41,NOT(MOD(SUM($AJ$108:CF109),$W$41)),0)*$R$41*$I$41+IF($W$42,NOT(MOD(SUM($AJ$108:CF109),$W$42)),0)*$R$42*$I$42+IF($W$43,NOT(MOD(SUM($AJ$108:CF109),$W$43)),0)*$R$43*$I$43+IF($W$44,NOT(MOD(SUM($AJ$108:CF109),$W$44)),0)*$R$44*$I$44) -> 0 | CG180: =IF(SUM(CG108:CG109)=0,0,IF($W$40,NOT(MOD(SUM($AJ$108:CG109),$W$40)),0)*$R$40*$I$40+IF($W$41,NOT(MOD(SUM($AJ$108:CG109),$W$41)),0)*$R$41*$I$41+IF($W$42,NOT(MOD(SUM($AJ$108:CG109),$W$42)),0)*$R$42*$I$42+IF($W$43,NOT(MOD(SUM($AJ$108:CG109),$W$43)),0)*$R$43*$I$43+IF($W$44,NOT(MOD(SUM($AJ$108:CG109),$W$44)),0)*$R$44*$I$44) -> 0
B181: Mined- value (MV) based rate | E181: ='User Interface'!D115 -> 0.07 | F181: (fraction of mined value) | AH181: Shutdown (Site restoration and Residual Value) | AJ181: =-IF(AJ110,(SUM($AJ$178:$CG$178)*$L$33+SUM($AJ$179:$CG$179)*$L$34-$C$53)/$Q$21,0) -> 0 | AK181: 0 | AL181: 0 | AM181: 0 | AN181: 0 | AO181: 0 | AP181: 0 | AQ181: 0 | AR181: 0 | AS181: 0 | AT181: 0 | AU181: 0 | AV181: 0 | AW181: 0 | AX181: 0 | AY181: 0 | AZ181: 0 | BA181: 0 | BB181: 0 | BC181: 0 | BD181: 0 | BE181: 0 | BF181: 0 | BG181: 0 | BH181: 0 | BI181: 0 | BJ181: 0 | BK181: 0 | BL181: 0 | BM181: 0 | BN181: 0 | BO181: 0 | BP181: =-IF(BP110,(SUM($AJ$178:$CG$178)*$L$33+SUM($AJ$179:$CG$179)*$L$34-$C$53)/$Q$21,0) -> 0 | BQ181: 0 | BR181: 0 | BS181: 0 | BT181: -262.6925153 | BU181: 0 | BV181: 0 | BW181: 0 | BX181: 0 | BY181: 0 | BZ181: 0 | CA181: 0 | CB181: 0 | CC181: 0 | CD181: 0 | CE181: 0 | CF181: 0 | CG181: 0
AH183: Operating Costs | AJ183: 1 | AK183: 2 | AL183: 3 | AM183: 4 | AN183: 5 | AO183: 6 | AP183: 7 | AQ183: 8 | AR183: 9 | AS183: 10 | AT183: 11 | AU183: 12 | AV183: 13 | AW183: 14 | AX183: 15 | AY183: 16 | AZ183: 17 | BA183: 18 | BB183: 19 | BC183: 20 | BD183: 21 | BE183: 22 | BF183: 23 | BG183: 24 | BH183: 25 | BI183: 26 | BJ183: 27 | BK183: 28 | BL183: 29 | BM183: 30 | BN183: 31 | BO183: 32 | BP183: 33 | BQ183: 34 | BR183: 35 | BS183: 36 | BT183: 37 | BU183: 38 | BV183: 39 | BW183: 40 | BX183: 41 | BY183: 42 | BZ183: 43 | CA183: 44 | CB183: 45 | CC183: 46 | CD183: 47 | CE183: 48 | CF183: 49 | CG183: 50
AH184: Operating Expenditures (Ramp Up) | AJ184: =AJ108*($R$48*$R$49*$C$8+$R$48*(1-$R$49)*AJ114) -> 0 | AK184: 0 | AL184: 0 | AM184: 0 | AN184: 0 | AO184: 0 | AP184: 0 | AQ184: 0 | AR184: 0 | AS184: 0 | AT184: 0 | AU184: 399.1571714 | AV184: 439.6654906 | AW184: 0 | AX184: 0 | AY184: 0 | AZ184: 0 | BA184: 0 | BB184: 0 | BC184: 0 | BD184: 0 | BE184: 0 | BF184: 0 | BG184: 0 | BH184: 0 | BI184: 0 | BJ184: 0 | BK184: 0 | BL184: 0 | BM184: 0 | BN184: 0 | BO184: 0 | BP184: =BP108*($R$48*$R$49*$C$8+$R$48*(1-$R$49)*BP114) -> 0 | BQ184: 0 | BR184: 0 | BS184: 0 | BT184: 0 | BU184: 0 | BV184: 0 | BW184: 0 | BX184: 0 | BY184: 0 | BZ184: 0 | CA184: 0 | CB184: 0 | CC184: 0 | CD184: 0 | CE184: 0 | CF184: 0 | CG184: 0
AH185: Operating Expenditures | AJ185: =AJ109*$R$48*AJ114 -> 0 | AK185: 0 | AL185: 0 | AM185: 0 | AN185: 0 | AO185: 0 | AP185: 0 | AQ185: 0 | AR185: 0 | AS185: 0 | AT185: 0 | AU185: 0 | AV185: 0 | AW185: 540.1109227 | AX185: 540.1109227 | AY185: 540.1109227 | AZ185: 540.1109227 | BA185: 540.1109227 | BB185: 540.1109227 | BC185: 540.1109227 | BD185: 540.1109227 | BE185: 540.1109227 | BF185: 540.1109227 | BG185: 540.1109227 | BH185: 540.1109227 | BI185: 540.1109227 | BJ185: 540.1109227 | BK185: 540.1109227 | BL185: 540.1109227 | BM185: 540.1109227 | BN185: 540.1109227 | BO185: 540.1109227 | BP185: =BP109*$R$48*BP114 -> 540.1109227 | BQ185: 540.1109227 | BR185: 540.1109227 | BS185: 540.1109227 | BT185: 0 | BU185: 0 | BV185: 0 | BW185: 0 | BX185: 0 | BY185: 0 | BZ185: 0 | CA185: 0 | CB185: 0 | CC185: 0 | CD185: 0 | CE185: 0 | CF185: 0 | CG185: 0
AJ187: 1 | AK187: 2 | AL187: 3 | AM187: 4 | AN187: 5 | AO187: 6 | AP187: 7 | AQ187: 8 | AR187: 9 | AS187: 10 | AT187: 11 | AU187: 12 | AV187: 13 | AW187: 14 | AX187: 15 | AY187: 16 | AZ187: 17 | BA187: 18 | BB187: 19 | BC187: 20 | BD187: 21 | BE187: 22 | BF187: 23 | BG187: 24 | BH187: 25 | BI187: 26 | BJ187: 27 | BK187: 28 | BL187: 29 | BM187: 30 | BN187: 31 | BO187: 32 | BP187: 33 | BQ187: 34 | BR187: 35 | BS187: 36 | BT187: 37 | BU187: 38 | BV187: 39 | BW187: 40 | BX187: 41 | BY187: 42 | BZ187: 43 | CA187: 44 | CB187: 45 | CC187: 46 | CD187: 47 | CE187: 48 | CF187: 49 | CG187: 50
AH188: Nodules Produced/Processed | AI188: million tonnes | AJ188: =AJ7 -> 0 | AK188: 0 | AL188: 0 | AM188: 0 | AN188: 0 | AO188: 0 | AP188: 0 | AQ188: 0 | AR188: 0 | AS188: 0 | AT188: 0 | AU188: 2.699033535 | AV188: 3.277397864 | AW188: 3.855762193 | AX188: 3.855762193 | AY188: 3.855762193 | AZ188: 3.855762193 | BA188: 3.855762193 | BB188: 3.855762193 | BC188: 3.855762193 | BD188: 3.855762193 | BE188: 3.855762193 | BF188: 3.855762193 | BG188: 3.855762193 | BH188: 3.855762193 | BI188: 3.855762193 | BJ188: 3.855762193 | BK188: 3.855762193 | BL188: 3.855762193 | BM188: 3.855762193 | BN188: 3.855762193 | BO188: 3.855762193 | BP188: =BP7 -> 3.855762193 | BQ188: 3.855762193 | BR188: 3.855762193 | BS188: 3.855762193 | BT188: 0 | BU188: 0 | BV188: 0 | BW188: 0 | BX188: 0 | BY188: 0 | BZ188: 0 | CA188: 0 | CB188: 0 | CC188: 0 | CD188: 0 | CE188: 0 | CF188: 0 | CG188: 0
B191: Total make up payment | D191: =SUM(AJ298:CG298) -> 380.6305055
AH192: Fees
AH193: Type | AI193: Year | AJ193: 1 | AK193: 2 | AL193: 3 | AM193: 4 | AN193: 5 | AO193: 6 | AP193: 7 | AQ193: 8 | AR193: 9 | AS193: 10 | AT193: 11 | AU193: 12 | AV193: 13 | AW193: 14 | AX193: 15 | AY193: 16 | AZ193: 17 | BA193: 18 | BB193: 19 | BC193: 20 | BD193: 21 | BE193: 22 | BF193: 23 | BG193: 24 | BH193: 25 | BI193: 26 | BJ193: 27 | BK193: 28 | BL193: 29 | BM193: 30 | BN193: 31 | BO193: 32 | BP193: 33 | BQ193: 34 | BR193: 35 | BS193: 36 | BT193: 37 | BU193: 38 | BV193: 39 | BW193: 40 | BX193: 41 | BY193: 42 | BZ193: 43 | CA193: 44 | CB193: 45 | CC193: 46 | CD193: 47 | CE193: 48 | CF193: 49 | CG193: 50
AH194: Exploration License Application Fee | AI194: million USD | AJ194: =IF(AJ193=MATCH(1,$AJ$105:$CG$105,0),$E$98,0) -> 0.5 | AK194: 0 | AL194: 0 | AM194: 0 | AN194: 0 | AO194: 0 | AP194: 0 | AQ194: 0 | AR194: 0 | AS194: 0 | AT194: 0 | AU194: 0 | AV194: 0 | AW194: 0 | AX194: 0 | AY194: 0 | AZ194: 0 | BA194: 0 | BB194: 0 | BC194: 0 | BD194: 0 | BE194: 0 | BF194: 0 | BG194: 0 | BH194: 0 | BI194: 0 | BJ194: 0 | BK194: 0 | BL194: 0 | BM194: 0 | BN194: 0 | BO194: 0 | BP194: =IF(BP193=MATCH(1,$AJ$105:$CG$105,0),$E$98,0) -> 0 | BQ194: 0 | BR194: 0 | BS194: 0 | BT194: 0 | BU194: 0 | BV194: 0 | BW194: 0 | BX194: 0 | BY194: 0 | BZ194: 0 | CA194: 0 | CB194: 0 | CC194: 0 | CD194: 0 | CE194: 0 | CF194: 0 | CG194: 0
AH195: Exploitation License Application Fee | AI195: million USD | AJ195: =IF(AJ193=MATCH(1,$AJ$106:$CG$106,0),$E$102,0) -> 0 | AK195: 0 | AL195: 0 | AM195: 1 | AN195: 0 | AO195: 0 | AP195: 0 | AQ195: 0 | AR195: 0 | AS195: 0 | AT195: 0 | AU195: 0 | AV195: 0 | AW195: 0 | AX195: 0 | AY195: 0 | AZ195: 0 | BA195: 0 | BB195: 0 | BC195: 0 | BD195: 0 | BE195: 0 | BF195: 0 | BG195: 0 | BH195: 0 | BI195: 0 | BJ195: 0 | BK195: 0 | BL195: 0 | BM195: 0 | BN195: 0 | BO195: 0 | BP195: =IF(BP193=MATCH(1,$AJ$106:$CG$106,0),$E$102,0) -> 0 | BQ195: 0 | BR195: 0 | BS195: 0 | BT195: 0 | BU195: 0 | BV195: 0 | BW195: 0 | BX195: 0 | BY195: 0 | BZ195: 0 | CA195: 0 | CB195: 0 | CC195: 0 | CD195: 0 | CE195: 0 | CF195: 0 | CG195: 0
AH196: Annual Exploration Admin Fees | AI196: million USD | AJ196: =IF(AJ$105=1,$E$99,0) -> 0.06 | AK196: 0.06 | AL196: 0.06 | AM196: 0.06 | AN196: 0.06 | AO196: 0.06 | AP196: 0 | AQ196: 0 | AR196: 0 | AS196: 0 | AT196: 0 | AU196: 0 | AV196: 0 | AW196: 0 | AX196: 0 | AY196: 0 | AZ196: 0 | BA196: 0 | BB196: 0 | BC196: 0 | BD196: 0 | BE196: 0 | BF196: 0 | BG196: 0 | BH196: 0 | BI196: 0 | BJ196: 0 | BK196: 0 | BL196: 0 | BM196: 0 | BN196: 0 | BO196: 0 | BP196: =IF(BP$105=1,$E$99,0) -> 0 | BQ196: 0 | BR196: 0 | BS196: 0 | BT196: 0 | BU196: 0 | BV196: 0 | BW196: 0 | BX196: 0 | BY196: 0 | BZ196: 0 | CA196: 0 | CB196: 0 | CC196: 0 | CD196: 0 | CE196: 0 | CF196: 0 | CG196: 0
AH197: Annual Exploitation Admin Fees | AI197: million USD | AJ197: =IF(SUM(AJ106:AJ109)>0,$E$103,0) -> 0 | AK197: 0 | AL197: 0 | AM197: 0.1 | AN197: 0.1 | AO197: 0.1 | AP197: 0.1 | AQ197: 0.1 | AR197: 0.1 | AS197: 0.1 | AT197: 0.1 | AU197: 0.1 | AV197: 0.1 | AW197: 0.1 | AX197: 0.1 | AY197: 0.1 | AZ197: 0.1 | BA197: 0.1 | BB197: 0.1 | BC197: 0.1 | BD197: 0.1 | BE197: 0.1 | BF197: 0.1 | BG197: 0.1 | BH197: 0.1 | BI197: 0.1 | BJ197: 0.1 | BK197: 0.1 | BL197: 0.1 | BM197: 0.1 | BN197: 0.1 | BO197: 0.1 | BP197: =IF(SUM(BP106:BP109)>0,$E$103,0) -> 0.1 | BQ197: 0.1 | BR197: 0.1 | BS197: 0.1 | BT197: 0 | BU197: 0 | BV197: 0 | BW197: 0 | BX197: 0 | BY197: 0 | BZ197: 0 | CA197: 0 | CB197: 0 | CC197: 0 | CD197: 0 | CE197: 0 | CF197: 0 | CG197: 0
AH198: Total Fees | AI198: million USD | AJ198: =SUM(AJ194:AJ197) -> 0.56 | AK198: 0.06 | AL198: 0.06 | AM198: 1.16 | AN198: 0.16 | AO198: 0.16 | AP198: 0.1 | AQ198: 0.1 | AR198: 0.1 | AS198: 0.1 | AT198: 0.1 | AU198: 0.1 | AV198: 0.1 | AW198: 0.1 | AX198: 0.1 | AY198: 0.1 | AZ198: 0.1 | BA198: 0.1 | BB198: 0.1 | BC198: 0.1 | BD198: 0.1 | BE198: 0.1 | BF198: 0.1 | BG198: 0.1 | BH198: 0.1 | BI198: 0.1 | BJ198: 0.1 | BK198: 0.1 | BL198: 0.1 | BM198: 0.1 | BN198: 0.1 | BO198: 0.1 | BP198: =SUM(BP194:BP197) -> 0.1 | BQ198: 0.1 | BR198: 0.1 | BS198: 0.1 | BT198: 0 | BU198: 0 | BV198: 0 | BW198: 0 | BX198: 0 | BY198: 0 | BZ198: 0 | CA198: 0 | CB198: 0 | CC198: 0 | CD198: 0 | CE198: 0 | CF198: 0 | CG198: 0
B200: Depreciation Methods | AH200: Environmental Fees and Levies
B201: SL | AH201: Type | AI201: Year | AJ201: 1 | AK201: 2 | AL201: 3 | AM201: 4 | AN201: 5 | AO201: 6 | AP201: 7 | AQ201: 8 | AR201: 9 | AS201: 10 | AT201: 11 | AU201: 12 | AV201: 13 | AW201: 14 | AX201: 15 | AY201: 16 | AZ201: 17 | BA201: 18 | BB201: 19 | BC201: 20 | BD201: 21 | BE201: 22 | BF201: 23 | BG201: 24 | BH201: 25 | BI201: 26 | BJ201: 27 | BK201: 28 | BL201: 29 | BM201: 30 | BN201: 31 | BO201: 32 | BP201: 33 | BQ201: 34 | BR201: 35 | BS201: 36 | BT201: 37 | BU201: 38 | BV201: 39 | BW201: 40 | BX201: 41 | BY201: 42 | BZ201: 43 | CA201: 44 | CB201: 45 | CC201: 46 | CD201: 47 | CE201: 48 | CF201: 49 | CG201: 50
B202: DB | AH202: Environmental Bond | AI202: million USD | AJ202: =IF(AJ146>0,-$E$111*$F$111,0) -> 0 | AK202: 0 | AL202: 0 | AM202: 0 | AN202: 0 | AO202: 0 | AP202: 0 | AQ202: 0 | AR202: 0 | AS202: 0 | AT202: 0 | AU202: 0 | AV202: 0 | AW202: 0 | AX202: 0 | AY202: 0 | AZ202: 0 | BA202: 0 | BB202: 0 | BC202: 0 | BD202: 0 | BE202: 0 | BF202: 0 | BG202: 0 | BH202: 0 | BI202: 0 | BJ202: 0 | BK202: 0 | BL202: 0 | BM202: 0 | BN202: 0 | BO202: 0 | BP202: =IF(BP146>0,-$E$111*$F$111,0) -> 0 | BQ202: 0 | BR202: 0 | BS202: 0 | BT202: 0 | BU202: 0 | BV202: 0 | BW202: 0 | BX202: 0 | BY202: 0 | BZ202: 0 | CA202: 0 | CB202: 0 | CC202: 0 | CD202: 0 | CE202: 0 | CF202: 0 | CG202: 0
B203: DDB | AH203: Environmental Liability Trust Fund | AI203: million USD | AJ203: =IF(AJ146>0,$E$108*AJ137*$R$5,0) -> 0 | AK203: 0 | AL203: 0 | AM203: 0 | AN203: 0 | AO203: 0 | AP203: 0 | AQ203: 0 | AR203: 0 | AS203: 0 | AT203: 0 | AU203: 23.6705241 | AV203: 23.6705241 | AW203: 23.6705241 | AX203: 23.6705241 | AY203: 23.6705241 | AZ203: 23.6705241 | BA203: 23.6705241 | BB203: 23.6705241 | BC203: 23.6705241 | BD203: 23.6705241 | BE203: 23.6705241 | BF203: 23.6705241 | BG203: 23.6705241 | BH203: 23.6705241 | BI203: 23.6705241 | BJ203: 23.6705241 | BK203: 23.6705241 | BL203: 23.6705241 | BM203: 23.6705241 | BN203: 23.6705241 | BO203: 23.6705241 | BP203: =IF(BP146>0,$E$108*BP137*$R$5,0) -> 23.6705241 | BQ203: 23.6705241 | BR203: 23.6705241 | BS203: 23.6705241 | BT203: 0 | BU203: 0 | BV203: 0 | BW203: 0 | BX203: 0 | BY203: 0 | BZ203: 0 | CA203: 0 | CB203: 0 | CC203: 0 | CD203: 0 | CE203: 0 | CF203: 0 | CG203: 0
B204: SYD | AH204: ="Environmenal Trust Fund Level"&IF(AND($F$108,$E$108)," (target: "&TEXT($F$108,"#,###")&" M USD)","") -> Environmenal Trust Fund Level (target: 500 M USD) | AI204: million USD | AJ204: 0 | AK204: =MIN(AK203+AJ204,$F$108) -> 0 | AL204: =MIN(AL203+AK204,$F$108) -> 0 | AM204: 0 | AN204: 0 | AO204: =MIN(AO203+AN204,$F$108) -> 0 | AP204: 0 | AQ204: 0 | AR204: 0 | AS204: 0 | AT204: 0 | AU204: 23.6705241 | AV204: 47.34104821 | AW204: 71.01157231 | AX204: 94.68209642 | AY204: 118.3526205 | AZ204: 142.0231446 | BA204: 165.6936687 | BB204: 189.3641928 | BC204: 213.0347169 | BD204: 236.705241 | BE204: 260.3757651 | BF204: 284.0462892 | BG204: 307.7168134 | BH204: =MIN(BH203+BG204,$F$108) -> 331.3873375 | BI204: 355.0578616 | BJ204: 378.7283857 | BK204: 402.3989098 | BL204: 426.0694339 | BM204: 449.739958 | BN204: 473.4104821 | BO204: 497.0810062 | BP204: 500 | BQ204: =MIN(BQ203+BP204,$F$108) -> 500 | BR204: 500 | BS204: 500 | BT204: 500 | BU204: 500 | BV204: 500 | BW204: 500 | BX204: 500 | BY204: 500 | BZ204: 500 | CA204: 500 | CB204: 500 | CC204: 500 | CD204: 500 | CE204: 500 | CF204: 500 | CG204: 500
B205: None | AH205: Annual Payment (-)! | AI205: million USD | AJ205: 0 | AK205: =IF(AND(UPPER($E$109)="YES",AK201=$H$21+1),AJ204,AJ204-AK204) -> 0 | AL205: 0 | AM205: 0 | AN205: 0 | AO205: 0 | AP205: 0 | AQ205: 0 | AR205: 0 | AS205: 0 | AT205: 0 | AU205: -23.6705241 | AV205: -23.6705241 | AW205: -23.6705241 | AX205: -23.6705241 | AY205: -23.6705241 | AZ205: -23.6705241 | BA205: -23.6705241 | BB205: -23.6705241 | BC205: -23.6705241 | BD205: -23.6705241 | BE205: -23.6705241 | BF205: -23.6705241 | BG205: -23.6705241 | BH205: -23.6705241 | BI205: -23.6705241 | BJ205: -23.6705241 | BK205: -23.6705241 | BL205: -23.6705241 | BM205: -23.6705241 | BN205: -23.6705241 | BO205: -23.6705241 | BP205: -2.918993814 | BQ205: =IF(AND(UPPER($E$109)="YES",BQ201=$H$21+1),BP204,BP204-BQ204) -> 0 | BR205: 0 | BS205: 0 | BT205: 0 | BU205: 0 | BV205: 0 | BW205: 0 | BX205: 0 | BY205: 0 | BZ205: 0 | CA205: 0 | CB205: 0 | CC205: 0 | CD205: 0 | CE205: 0 | CF205: 0 | CG205: 0
AH206: Seabed Sustainability Fund | AI206: million USD | AJ206: =IF(AJ146>0,$E$107*AJ137*$R$5,0) -> 0 | AK206: 0 | AL206: 0 | AM206: 0 | AN206: 0 | AO206: 0 | AP206: 0 | AQ206: 0 | AR206: 0 | AS206: 0 | AT206: 0 | AU206: 0 | AV206: 0 | AW206: 0 | AX206: 0 | AY206: 0 | AZ206: 0 | BA206: 0 | BB206: 0 | BC206: 0 | BD206: 0 | BE206: 0 | BF206: 0 | BG206: 0 | BH206: 0 | BI206: 0 | BJ206: 0 | BK206: 0 | BL206: 0 | BM206: 0 | BN206: 0 | BO206: 0 | BP206: =IF(BP146>0,$E$107*BP137*$R$5,0) -> 0 | BQ206: 0 | BR206: 0 | BS206: 0 | BT206: 0 | BU206: 0 | BV206: 0 | BW206: 0 | BX206: 0 | BY206: 0 | BZ206: 0 | CA206: 0 | CB206: 0 | CC206: 0 | CD206: 0 | CE206: 0 | CF206: 0 | CG206: 0
AH207: ="Seabed Sustainability Fund Level"&IF(AND($F$108,$E$107)," (target: "&TEXT($F$107,"#,###")&" M USD)","") -> Seabed Sustainability Fund Level | AI207: million USD | AJ207: 0 | AK207: =MIN(AK206+AJ207,$F$107) -> 0 | AL207: =MIN(AL206+AK207,$F$107) -> 0 | AM207: 0 | AN207: 0 | AO207: =MIN(AO206+AN207,$F$107) -> 0 | AP207: 0 | AQ207: 0 | AR207: 0 | AS207: 0 | AT207: 0 | AU207: 0 | AV207: 0 | AW207: 0 | AX207: 0 | AY207: 0 | AZ207: 0 | BA207: 0 | BB207: 0 | BC207: 0 | BD207: 0 | BE207: 0 | BF207: 0 | BG207: 0 | BH207: =MIN(BH206+BG207,$F$107) -> 0 | BI207: 0 | BJ207: 0 | BK207: 0 | BL207: 0 | BM207: 0 | BN207: 0 | BO207: 0 | BP207: 0 | BQ207: =MIN(BQ206+BP207,$F$107) -> 0 | BR207: 0 | BS207: 0 | BT207: 0 | BU207: 0 | BV207: 0 | BW207: 0 | BX207: 0 | BY207: 0 | BZ207: 0 | CA207: 0 | CB207: 0 | CC207: 0 | CD207: 0 | CE207: 0 | CF207: 0 | CG207: 0
AH208: Annual Payment (-)! | AI208: million USD | AJ208: 0 | AK208: =IF(AND(UPPER($E$109)="YES",AK201=$H$21+1),AJ207,AJ207-AK207) -> 0 | AL208: 0 | AM208: 0 | AN208: 0 | AO208: 0 | AP208: 0 | AQ208: 0 | AR208: 0 | AS208: 0 | AT208: 0 | AU208: 0 | AV208: 0 | AW208: 0 | AX208: 0 | AY208: 0 | AZ208: 0 | BA208: 0 | BB208: 0 | BC208: 0 | BD208: 0 | BE208: 0 | BF208: 0 | BG208: 0 | BH208: 0 | BI208: 0 | BJ208: 0 | BK208: 0 | BL208: 0 | BM208: 0 | BN208: 0 | BO208: 0 | BP208: 0 | BQ208: =IF(AND(UPPER($E$109)="YES",BQ201=$H$21+1),BP207,BP207-BQ207) -> 0 | BR208: 0 | BS208: 0 | BT208: 0 | BU208: 0 | BV208: 0 | BW208: 0 | BX208: 0 | BY208: 0 | BZ208: 0 | CA208: 0 | CB208: 0 | CC208: 0 | CD208: 0 | CE208: 0 | CF208: 0 | CG208: 0
AH209: Total Environmental Levies | AI209: million USD | AJ209: =AJ202+AJ205+AJ208 -> 0 | AK209: =AK202+AK205+AK208 -> 0 | AL209: 0 | AM209: 0 | AN209: 0 | AO209: 0 | AP209: 0 | AQ209: 0 | AR209: 0 | AS209: 0 | AT209: 0 | AU209: -23.6705241 | AV209: -23.6705241 | AW209: -23.6705241 | AX209: -23.6705241 | AY209: -23.6705241 | AZ209: -23.6705241 | BA209: -23.6705241 | BB209: -23.6705241 | BC209: -23.6705241 | BD209: -23.6705241 | BE209: -23.6705241 | BF209: -23.6705241 | BG209: -23.6705241 | BH209: -23.6705241 | BI209: -23.6705241 | BJ209: -23.6705241 | BK209: -23.6705241 | BL209: -23.6705241 | BM209: -23.6705241 | BN209: -23.6705241 | BO209: -23.6705241 | BP209: -2.918993814 | BQ209: 0 | BR209: 0 | BS209: 0 | BT209: 0 | BU209: 0 | BV209: 0 | BW209: 0 | BX209: 0 | BY209: 0 | BZ209: 0 | CA209: 0 | CB209: 0 | CC209: 0 | CD209: 0 | CE209: 0 | CF209: 0 | CG209: 0
AH212: Book Value of Depreciable Assets: Collection | AJ212: 1 | AK212: 2 | AL212: 3 | AM212: 4 | AN212: 5 | AO212: 6 | AP212: 7 | AQ212: 8 | AR212: 9 | AS212: 10 | AT212: 11 | AU212: 12 | AV212: 13 | AW212: 14 | AX212: 15 | AY212: 16 | AZ212: 17 | BA212: 18 | BB212: 19 | BC212: 20 | BD212: 21 | BE212: 22 | BF212: 23 | BG212: 24 | BH212: 25 | BI212: 26 | BJ212: 27 | BK212: 28 | BL212: 29 | BM212: 30 | BN212: 31 | BO212: 32 | BP212: 33 | BQ212: 34 | BR212: 35 | BS212: 36 | BT212: 37 | BU212: 38 | BV212: 39 | BW212: 40 | BX212: 41 | BY212: 42 | BZ212: 43 | CA212: 44 | CB212: 45 | CC212: 46 | CD212: 47 | CE212: 48 | CF212: 49 | CG212: 50
AH213: Pre-Feasibility Phase [PFS] | AJ213: =AJ176-AJ219 -> 3.474361281 | AK213: =AK176+AJ213-AK219 -> 6.948722562 | AL213: 10.42308384 | AM213: 13.89744512 | AN213: 17.3718064 | AO213: 20.84616769 | AP213: 20.84616769 | AQ213: 20.84616769 | AR213: 20.84616769 | AS213: 20.84616769 | AT213: 20.84616769 | AU213: 18.76155092 | AV213: 16.67693415 | AW213: 14.59231738 | AX213: 12.50770061 | AY213: 10.42308384 | AZ213: 8.338467074 | BA213: 6.253850306 | BB213: 4.169233537 | BC213: 2.084616769 | BD213: 0 | BE213: 0 | BF213: 0 | BG213: 0 | BH213: 0 | BI213: 0 | BJ213: 0 | BK213: 0 | BL213: 0 | BM213: 0 | BN213: 0 | BO213: 0 | BP213: 0 | BQ213: =BQ176+BP213-BQ219 -> 0 | BR213: 0 | BS213: 0 | BT213: 0 | BU213: 0 | BV213: 0 | BW213: 0 | BX213: 0 | BY213: 0 | BZ213: 0 | CA213: 0 | CB213: 0 | CC213: 0 | CD213: 0 | CE213: 0 | CF213: 0 | CG213: 0
AH214: Feasibility Phase [FS] | AJ214: =AJ177-AJ220 -> 0 | AK214: =AK177+AJ214-AK220 -> 0 | AL214: 0 | AM214: 56.42791921 | AN214: 112.8558384 | AO214: 169.2837576 | AP214: 225.7116769 | AQ214: 225.7116769 | AR214: 225.7116769 | AS214: 225.7116769 | AT214: 225.7116769 | AU214: 203.1405092 | AV214: 180.5693415 | AW214: 157.9981738 | AX214: 135.4270061 | AY214: 112.8558384 | AZ214: 90.28467074 | BA214: 67.71350306 | BB214: 45.14233537 | BC214: 22.57116769 | BD214: 3.552713679e-14 | BE214: 3.552713679e-14 | BF214: 3.552713679e-14 | BG214: 3.552713679e-14 | BH214: 3.552713679e-14 | BI214: 3.552713679e-14 | BJ214: 3.552713679e-14 | BK214: 3.552713679e-14 | BL214: 3.552713679e-14 | BM214: 3.552713679e-14 | BN214: 3.552713679e-14 | BO214: 3.552713679e-14 | BP214: 3.552713679e-14 | BQ214: =BQ177+BP214-BQ220 -> 3.552713679e-14 | BR214: 3.552713679e-14 | BS214: 3.552713679e-14 | BT214: 3.552713679e-14 | BU214: 3.552713679e-14 | BV214: 3.552713679e-14 | BW214: 3.552713679e-14 | BX214: 3.552713679e-14 | BY214: 3.552713679e-14 | BZ214: 3.552713679e-14 | CA214: 3.552713679e-14 | CB214: 3.552713679e-14 | CC214: 3.552713679e-14 | CD214: 3.552713679e-14 | CE214: 3.552713679e-14 | CF214: 3.552713679e-14 | CG214: 3.552713679e-14
AH215: Design & Build - Collection System | AJ215: =AJ178-AJ221 -> 0 | AK215: =AK178+AJ215-AK221 -> 0 | AL215: 0 | AM215: 0 | AN215: 0 | AO215: 0 | AP215: 0 | AQ215: 208.7341921 | AR215: 417.4683843 | AS215: 626.2025764 | AT215: 834.9367685 | AU215: 763.9671432 | AV215: 692.9975179 | AW215: 622.0278926 | AX215: 551.0582672 | AY215: 480.0886419 | AZ215: 409.1190166 | BA215: 338.1493913 | BB215: 267.1797659 | BC215: 196.2101406 | BD215: 125.2405153 | BE215: 125.2405153 | BF215: 125.2405153 | BG215: 125.2405153 | BH215: 125.2405153 | BI215: 125.2405153 | BJ215: 125.2405153 | BK215: 125.2405153 | BL215: 125.2405153 | BM215: 125.2405153 | BN215: 125.2405153 | BO215: 125.2405153 | BP215: 125.2405153 | BQ215: =BQ178+BP215-BQ221 -> 125.2405153 | BR215: 125.2405153 | BS215: 125.2405153 | BT215: 125.2405153 | BU215: 125.2405153 | BV215: 125.2405153 | BW215: 125.2405153 | BX215: 125.2405153 | BY215: 125.2405153 | BZ215: 125.2405153 | CA215: 125.2405153 | CB215: 125.2405153 | CC215: 125.2405153 | CD215: 125.2405153 | CE215: 125.2405153 | CF215: 125.2405153 | CG215: 125.2405153
... 752 more rows

Sheet Material prices
BZ1: =(BZ8-BZ5)/BZ9 -> 0.8403633267 | EC1: =(EC8-EC5)/EC9 -> 0.7385971525 | EH1: DEFAULT | EI1: Nickel | GG1: =(GG8-GG5)/GG9 -> 0.8802685834 | GK1: DEFAULT | GL1: Cobalt | IJ1: =(IJ8-IJ5)/IJ9 -> 0.8903804625 | IN1: DEFAULT | IO1: Copper | KM1: =(KM8-KM5)/KM9 -> 0.7335737581 | KO1: USER | OT1: =(OT8-OT5)/OT9 -> 0.6157642741 | VG1: x | VJ1: Use Mn Metal = or Ore = 1 | VM1: 1 | XM1: Historic Data for Plots | XQ1: 1998$/ton | XR1: Copper | XS1: Nickel | XT1: Cobalt | XU1: Manganese | XW1: Year | XX1: Manganese ($2015) | XY1: MN Ore | XZ1: Nickel ($2015) | YA1: Cobalt ($2015) | YB1: Copper ($2015) | YC1: Historic Average for Plotting | YD1: Manganese | YE1: MN Ore | YF1: Nickel | YG1: Cobalt | YH1: Copper
